Workbook

Sheet Sheet_Index
B1: =IF((IFERROR(VLOOKUP(A1,'Project Information'!$C$31:$L$105,10,FALSE),""))="","",VLOOKUP(A1,'Project Information'!$C$31:$L$105,10,FALSE)) ->  | C1: =IF((IFERROR(VLOOKUP(A1,'Project Information'!$C$31:$C$105,1,FALSE),""))="","","Y") ->  | D1: =IFERROR(INDIRECT("'"&$A1&"'!"&"$U$15"),"") ->  | E1: =IFERROR(INDIRECT("'"&$A1&"'!"&"$V$15"),"") ->  | F1: =IFERROR(INDIRECT("'"&$A1&"'!"&"$W$15"),"") ->  | G1: =IFERROR(INDIRECT("'"&$A1&"'!"&"$X$15"),"") ->  | H1: =IFERROR(INDIRECT("'"&$A1&"'!"&"$Y$15"),"") ->  | I1: =IFERROR(INDIRECT("'"&$A1&"'!"&"$Z$15"),"") ->  | J1: =IFERROR(INDIRECT("'"&$A1&"'!"&"$AA$15"),"") ->  | K1: =IFERROR(INDIRECT("'"&$A1&"'!"&"$AB$15"),"") ->  | L1: =IFERROR(INDIRECT("'"&$A1&"'!"&"$AC$15"),"") ->  | M1: =IFERROR(INDIRECT("'"&$A1&"'!"&"$AD$15"),"") ->  | N1: =IFERROR(INDIRECT("'"&$A1&"'!"&"$AE$15"),"") ->  | O1: =IFERROR(INDIRECT("'"&$A1&"'!"&"$AF$15"),"") -> 
A2: Summary and Error Report | B2: Delete Sheet | C2: Tab Check | D2: Existing ADT Value | E2: No. of Observed Crashes Per Year | F2: Existing Predicted Crash Frequency | G2: Existing Expected Crash Frequency | H2: Potential for Safety Improvement | I2: Proposed ADT Value | J2: No. of Site CMFs Applied for Proposed Conditions | K2: =IF('Project Information'!$K$16="Proposed","Proposed Predicted Crash Frequency - Part C Only","Proposed Expected Crash Frequency - Site CMFs Only") -> Proposed Predicted Crash Frequency - Part C Only | L2: No. of Other CMFs Applied for Proposed Conditions | M2: =IF('Project Information'!$K$16="Proposed","Proposed Predicted Crash Frequency - All CMFs","Proposed Expected Crash Frequency - All CMFs") -> Proposed Predicted Crash Frequency - All CMFs | N2: Other CMF Allocation | O2: Analysis Completed
A3: SR665; 3.28 | B3: =IF((IFERROR(VLOOKUP(A3,'Project Information'!$C$31:$L$105,10,FALSE),""))="","",VLOOKUP(A3,'Project Information'!$C$31:$L$105,10,FALSE)) ->  | C3: =IF((IFERROR(VLOOKUP(A3,'Project Information'!$C$31:$C$105,1,FALSE),""))="","","Y") -> Y | D3: =IFERROR(INDIRECT("'"&$A3&"'!"&"$U$15"),"") -> N/A | E3: =IFERROR(INDIRECT("'"&$A3&"'!"&"$V$15"),"") -> N/A | F3: =IFERROR(INDIRECT("'"&$A3&"'!"&"$W$15"),"") -> N/A | G3: =IFERROR(INDIRECT("'"&$A3&"'!"&"$X$15"),"") -> N/A | H3: =IFERROR(INDIRECT("'"&$A3&"'!"&"$Y$15"),"") -> N/A | I3: =IFERROR(INDIRECT("'"&$A3&"'!"&"$Z$15"),"") -> 17 | J3: =IFERROR(INDIRECT("'"&$A3&"'!"&"$AA$15"),"") -> N/A | K3: =IFERROR(INDIRECT("'"&$A3&"'!"&"$AB$15"),"") -> 0.8827 | L3: =IFERROR(INDIRECT("'"&$A3&"'!"&"$AC$15"),"") -> 0 | M3: =IFERROR(INDIRECT("'"&$A3&"'!"&"$AD$15"),"") -> 0.8827 | N3: =IFERROR(INDIRECT("'"&$A3&"'!"&"$AE$15"),"") -> No Errors | O3: =IFERROR(INDIRECT("'"&$A3&"'!"&"$AF$15"),"") -> Yes

Sheet Instructions
R1: Version: | S1: 20230531
C3: Economic Crash Analysis Tool (ECAT)
C6: Overview
C7: This spreadsheet has been developed to assist in the application of the predictive methods contained in the Highway Safety Manual (HSM), 1st Edition for analyzing: urban and suburban arterials, rural multilane roads, and rural two lane roads.
C9: Analysis Area Color Identification | J9: Data Color Guidelines
E11: Project and Site Conditions Information | K11: Required user input data
E12: Predictive Analysis | K12: Required user input data restricted to dropdown values
E13: Empirical Bayes Analysis | K13: Automatically updated information based on previous user input data
E14: Proposed Conditions Information and Site CMF Selection
E15: Proposed Conditions - Other CMF Selection
E16: Benefit Cost Analysis
C19: Upon Opening the File
C20: 1. Ensure that macros are enabled in Excel. (Refer to Microsoft Help for more information about enabling macros.)
C21: 2. Read the Disclaimer and follow the instructions below.
C22: 3. Read all instructions before proceeding.
C23: 4. Hints have been provided throughout the tool on each worksheet.
C25: Instructions to Complete the Analysis Process | J25: For detailed instructions and help documentation, please visit the ECAT Website
C26: 1. Navigate to the “Project Information” worksheet.
C27: 2. Using the data color guidelines and analysis area color identification above, populate the required information under General Information, Project Element Description table, Traffic Volume Growth Rate Calculation, and Additional Non-Site Characteristic Countermeasures. (Note: Additional countermeasures can be added at any point during the analysis.)
C28: 3. There are hints placed throughout the spreadsheet. Red boxes require action by the user and blue boxes are for informational purposes only.
C29: 4. Navigate to the "Crash Data" Worksheet.
C30: 5. The worksheet uses the crash data layout from the CAM Tool. Click the "Load Crash Data From CAM Tool" button to import crash data layout from an existing CAM Tool. However, use of the CAM Tool is not required. Columns highlighted in yellow indicate which columns need to be filled out by users manually if the CAM Tool Layout is not used (Note: Step 1 in the toolbox should be skipped when the Location ID is entered manually.
C31: 6. If the CAM Tool Layout was used, open the Toolbox and select "Assign Crashes to Elements Automatically".
C32: 7. The automated Location ID may not be able to identify all of the crashes. For those crashes, filter column A for "Not Identified. Remember, driveway crashes should only be analyzed as part of segments, not intersections.
C33: 8. Open Toolbox and Create individual Project Element Analysis Worksheets by selecting "Add or Remove Analysis Worksheets."
C34: 9. Enter the required information into each Project Element Analysis Worksheet. (Refer to color coding guidelines above.)
C35: 10. Open the Toolbox and run "Create Project Summary Reports and Benefit Cost" (This only needs to be re-run if sheets are added or deleted.)
C36: 11. If a Benefit-Cost analysis is being completed, navigate next to the "Benefit Cost Analysis" worksheet.
C37: 12. Enter description of the Site Characteristic Countermeasures applicable to the project and expected service life of most prominent improvement.
C38: 13. Enter Project Construction Costs, Annual Maintenance and Energy Costs, and Salvage Values in current dollars for each of the countermeasures.

Sheet Project Information
A1: =Instructions!$E$11 -> Project and Site Conditions Information | B1: Project Information | BB1: Rural Two-Lane Two Way Segment | BC1: Segment | BD1: Existing | BE1: Unsignalized | BH1: Sheet Formatting In Progress | BI1: No | BX1: Hide Freeway Warning Message: | BY1: Y
B2: General Information | W2: ay Seg T; - | BB2: Rural Two-Lane Two Way Intersection | BC2: Intersection | BD2: Proposed | BE2: Signalized | BH2: Work Sheet Hints | BI2: Show | BX2: Run Create Sheets From Project Information Worksheet: | BY2: N
B3: Project Name | D3: MAD-665 at Spring Valley | G3: Contact Email | BB3: Rural Multilane Segment | BC3: Segment | BE3: N/A | BH3: Create Worksheets has been ran | BI3: Yes
B4: Project Description | G4: Contact Phone | BB4: Rural Multilane Intersection | BC4: Intersection | BH4: Disable UP Program
B5: Reference Number | G5: Date Performed | BB5: Urban & Suburban Arterial Segment | BC5: Segment | BH5: Sheet Creation in Progress | BI5: No
B6: Analyst | G6: Analysis Year | BB6: Urban & Suburban Arterial Intersection | BC6: Intersection
B7: Agency/Company | I7: ="" ->  | BB7: Freeway Segment | BC7: Segment | BD7: =COUNTIF(D31:$D$105,$BB$7) -> 0
B8: Perform Benefit Cost Analysis? | D8: Yes | BB8: Ramp Segment | BC8: Segment
BB9: Ramp Terminal Intersection | BC9: Intersection
BB10: Roundabout | BC10: Intersection
BB11: One Way Arterial Segment | BC11: Segment
BB12: One Way Arterial Intersection | BC12: Intersection
BB13: No Valid HSM Site Type - Segment | BC13: Segment | BF13: Previous Analysis Type
C14: Do the proposed improvements fundamentally change the conditions of the base safety performance function (SPF), Or is crash data unavailable for the analysis condition, Or is only predicted (and not expected) analysis needed for the existing or proposed condition? | K14: Yes | BB14: No Valid HSM Site Type - Intersection | BC14: Intersection | BF14: Yes
C15: (Examples: unsignalized to signalized, undivided to divided, increase or decrease in the number of lanes, change the number of approaches to an intersection, significant realignment of the roadway)
F16: =IF(K14="Yes","If Yes, are you analyzing the existing or proposed conditions?","") -> If Yes, are you analyzing the existing or proposed conditions? | K16: Proposed | BF16: Proposed
C27: =IF(D27="","",CONCATENATE(MID(F27,5,2),IF(MID(F27,7,1)="0",IF(MID(F27,8,1)="0",IF(MID(F27,9,1)="0",IF(MID(F27,10,1)="0",IF(MID(F27,11,1)="0","",MID(F27,11,1)),MID(F27,10,2)),MID(F27,9,3)),MID(F27,8,4)),MID(F27,7,5)),IF(LEFT(F27,1)="S",IF(RIGHT(F27,2)="*C","",MID(F27,13,1)),IF(RIGHT(F27,3)="**C","",MID(F27,12,1))),"; ",G27,IF(AB27="Segment","-"&H27,""))) ->  | I27: =IF(G27="","",IF(AB27="Segment",H27-G27,0.05)) -> 
C28: Project Elements Description Table | AB28: =IF(D28="","",VLOOKUP(D28,$BB$1:$BC$13,2,FALSE)) ->  | AC28: =IF(L28="","",L28) ->  | AE28: =IF(C28="","",F28) -> 0 | AF28: =IF(C28="","",IF($AB28="Segment",G28,IF($AE28=$AE27,IF(AB28=AB27,IF((G28-G27)<SUM(I27:I28),$AG27+0.001,$G28-I28),$G28-I28),$G28-I28))) -> 0 | AG28: =IF(C28="","",IF($AB28="Segment",H28,IF($AE28=$AE29,IF(AB28=AB29,IF((G29-G28)<SUM(I27:I28),ROUNDUP(G28+(G29-G28)*I28/SUM(I28:I29),2),$G28+I28),$G28+I28),$G28+I28))) -> 0 | AH28: =IF(C28="","",C28) -> Project Elements Description Table | AJ28: =IF(LEN($J28)>0,LEFT($J28,14),"") ->  | AK28: =IF(LEN($J28)>16,MID($J28,16,14),"") ->  | AL28: =IF(LEN($J28)>31,MID($J28,31,14),"") ->  | AM28: =IF(LEN($J28)>46,MID($J28,46,14),"") ->  | AN28: =IF(LEN($J28)>61,MID($J28,61,14),"") ->  | AO28: =AH28 -> Project Elements Description Table
F29: Location Information | AC29: =COUNTA(L31:L105) -> 0 | AE29: Crash assignment to homogenous segments or intersections | AJ29: Cross Route Identification
C30: Project Element ID (Must be Unique) | D30: Site Type | E30: Intersection Control Type | F30: NLFID | G30: Begin Logpoint/ Intersection Midpoint | H30: End Logpoint (Leave blank for Intersection) | I30: Length (mi) OR Intersection Radius Buffer (mi) | J30: Cross Route NLFID(s) | K30: Common Name | L30: Remove Project Element | AB30: Interseciton or Segment | AC30: Delete | AE30: NLFID | AF30: Begin Logpoint | AG30: End Logpoint | AH30: Project Element ID | AJ30: NLFID1 | AK30: NLFID2 | AL30: NLFID3 | AM30: NLFID4 | AN30: NLFID5 | AO30: Project Element ID
C31: =IF(D31="","",CONCATENATE(MID(F31,5,2),IF(MID(F31,7,1)="0",IF(MID(F31,8,1)="0",IF(MID(F31,9,1)="0",IF(MID(F31,10,1)="0",IF(MID(F31,11,1)="0","",MID(F31,11,1)),MID(F31,10,2)),MID(F31,9,3)),MID(F31,8,4)),MID(F31,7,5)),IF(LEFT(F31,1)="S",IF(RIGHT(F31,2)="*C","",MID(F31,13,1)),IF(RIGHT(F31,3)="**C","",MID(F31,12,1))),"; ",G31,IF(AB31="Segment","-"&H31,""))) -> SR665; 3.28 | D31: Roundabout | E31: Unsignalized | F31: SMADSR00665**C | G31: 3.28 | I31: =IF(G31="","",IF(AB31="Segment",H31-G31,0.05)) -> 0.05 | J31: CMADCR00071**C | K31: Spring Valley Rd | AB31: =IF(D31="","",VLOOKUP(D31,$BB$1:$BC$14,2,FALSE)) -> Intersection
C32: =IF(D32="","",CONCATENATE(MID(F32,5,2),IF(MID(F32,7,1)="0",IF(MID(F32,8,1)="0",IF(MID(F32,9,1)="0",IF(MID(F32,10,1)="0",IF(MID(F32,11,1)="0","",MID(F32,11,1)),MID(F32,10,2)),MID(F32,9,3)),MID(F32,8,4)),MID(F32,7,5)),IF(LEFT(F32,1)="S",IF(RIGHT(F32,2)="*C","",MID(F32,13,1)),IF(RIGHT(F32,3)="**C","",MID(F32,12,1))),"; ",G32,IF(AB32="Segment","-"&H32,""))) ->  | I32: =IF(G32="","",IF(AB32="Segment",H32-G32,0.05)) ->  | AB32: =IF(D32="","",VLOOKUP(D32,$BB$1:$BC$14,2,FALSE)) -> 
C33: =IF(D33="","",CONCATENATE(MID(F33,5,2),IF(MID(F33,7,1)="0",IF(MID(F33,8,1)="0",IF(MID(F33,9,1)="0",IF(MID(F33,10,1)="0",IF(MID(F33,11,1)="0","",MID(F33,11,1)),MID(F33,10,2)),MID(F33,9,3)),MID(F33,8,4)),MID(F33,7,5)),IF(LEFT(F33,1)="S",IF(OR(RIGHT(F33,2)="*C",RIGHT(F33,2)="*N"),"",MID(F33,13,1)),IF(OR(RIGHT(F33,3)="**C",RIGHT(F33,3)="**N"),"",MID(F33,12,1))),IF(RIGHT(F33,1)="N","N",""),"; ",G33,IF(AB33="Segment","-"&H33,""))) ->  | I33: =IF(OR(G33="",D33=""),"",IF(AB33="Segment",H33-G33,0.05)) ->  | AB33: =IF(D33="","",VLOOKUP(D33,$BB$1:$BC$14,2,FALSE)) -> 
C34: =IF(D34="","",CONCATENATE(MID(F34,5,2),IF(MID(F34,7,1)="0",IF(MID(F34,8,1)="0",IF(MID(F34,9,1)="0",IF(MID(F34,10,1)="0",IF(MID(F34,11,1)="0","",MID(F34,11,1)),MID(F34,10,2)),MID(F34,9,3)),MID(F34,8,4)),MID(F34,7,5)),IF(LEFT(F34,1)="S",IF(OR(RIGHT(F34,2)="*C",RIGHT(F34,2)="*N"),"",MID(F34,13,1)),IF(OR(RIGHT(F34,3)="**C",RIGHT(F34,3)="**N"),"",MID(F34,12,1))),IF(RIGHT(F34,1)="N","N",""),"; ",G34,IF(AB34="Segment","-"&H34,""))) ->  | I34: =IF(OR(G34="",D34=""),"",IF(AB34="Segment",H34-G34,0.05)) ->  | AB34: =IF(D34="","",VLOOKUP(D34,$BB$1:$BC$14,2,FALSE)) -> 
C35: =IF(D35="","",CONCATENATE(MID(F35,5,2),IF(MID(F35,7,1)="0",IF(MID(F35,8,1)="0",IF(MID(F35,9,1)="0",IF(MID(F35,10,1)="0",IF(MID(F35,11,1)="0","",MID(F35,11,1)),MID(F35,10,2)),MID(F35,9,3)),MID(F35,8,4)),MID(F35,7,5)),IF(LEFT(F35,1)="S",IF(OR(RIGHT(F35,2)="*C",RIGHT(F35,2)="*N"),"",MID(F35,13,1)),IF(OR(RIGHT(F35,3)="**C",RIGHT(F35,3)="**N"),"",MID(F35,12,1))),IF(RIGHT(F35,1)="N","N",""),"; ",G35,IF(AB35="Segment","-"&H35,""))) ->  | I35: =IF(OR(G35="",D35=""),"",IF(AB35="Segment",H35-G35,0.05)) ->  | AB35: =IF(D35="","",VLOOKUP(D35,$BB$1:$BC$14,2,FALSE)) -> 
C36: =IF(D36="","",CONCATENATE(MID(F36,5,2),IF(MID(F36,7,1)="0",IF(MID(F36,8,1)="0",IF(MID(F36,9,1)="0",IF(MID(F36,10,1)="0",IF(MID(F36,11,1)="0","",MID(F36,11,1)),MID(F36,10,2)),MID(F36,9,3)),MID(F36,8,4)),MID(F36,7,5)),IF(LEFT(F36,1)="S",IF(OR(RIGHT(F36,2)="*C",RIGHT(F36,2)="*N"),"",MID(F36,13,1)),IF(OR(RIGHT(F36,3)="**C",RIGHT(F36,3)="**N"),"",MID(F36,12,1))),IF(RIGHT(F36,1)="N","N",""),"; ",G36,IF(AB36="Segment","-"&H36,""))) ->  | I36: =IF(OR(G36="",D36=""),"",IF(AB36="Segment",H36-G36,0.05)) -> 
C96: =IF(D96="","",CONCATENATE(MID(F96,5,2),IF(MID(F96,7,1)="0",IF(MID(F96,8,1)="0",IF(MID(F96,9,1)="0",IF(MID(F96,10,1)="0",IF(MID(F96,11,1)="0","",MID(F96,11,1)),MID(F96,10,2)),MID(F96,9,3)),MID(F96,8,4)),MID(F96,7,5)),IF(LEFT(F96,1)="S",IF(OR(RIGHT(F96,2)="*C",RIGHT(F96,2)="*N"),"",MID(F96,13,1)),IF(OR(RIGHT(F96,3)="**C",RIGHT(F96,3)="**N"),"",MID(F96,12,1))),IF(RIGHT(F96,1)="N","N",""),"; ",G96,IF(AB96="Segment","-"&H96,""))) ->  | I96: =IF(OR(G96="",D96=""),"",IF(AB96="Segment",H96-G96,0.05)) -> 
C108: Traffic Volume Growth Rate Calculation For Benefit Cost Analysis
E109: Year | F109: AADT
C110: Present ADT (PADT) | E110: 2027 | F110: 2800 | G110: veh / day
C111: Future ADT (FADT) | E111: 2047 | F111: 3450 | G111: veh / day
C112: Annual Linear Growth Rate | F112: =IF(E111>0,ROUND((F111-F110)/(E111-E110)/F110,4),"") -> 0.0116
G114: =IF($C114="","",IF(ISERROR(VLOOKUP($C114,CMF!$P:$AB,8,FALSE)),"Add Value",IF(VLOOKUP($C114,CMF!$P:$T,4,FALSE)="Yes","Wet-Related",IF(VLOOKUP($C114,CMF!$P:$T,5,FALSE)="Yes","Night-Related",IF(VLOOKUP($C114,CMF!$P:$AB,8,FALSE)="Yes","By Crash Type",VLOOKUP($C114,CMF!$P:$AB,10,FALSE)))))) ->  | H114: =IF($C114="","",IF(ISERROR(VLOOKUP($C114,CMF!$P:$AB,8,FALSE)),"Add Value",IF(VLOOKUP($C114,CMF!$P:$T,4,FALSE)="Yes","Wet-Related",IF(VLOOKUP($C114,CMF!$P:$T,5,FALSE)="Yes","Night-Related",IF(VLOOKUP($C114,CMF!$P:$AB,8,FALSE)="Yes","By Crash Type",VLOOKUP($C114,CMF!$P:$AB,11,FALSE)))))) ->  | I114: =IF($C114="","",IF(ISERROR(VLOOKUP($C114,CMF!$P:$AB,8,FALSE)),"Add Value",IF(VLOOKUP($C114,CMF!$P:$T,4,FALSE)="Yes","Wet-Related",IF(VLOOKUP($C114,CMF!$P:$T,5,FALSE)="Yes","Night-Related",IF(VLOOKUP($C114,CMF!$P:$AB,8,FALSE)="Yes","By Crash Type",VLOOKUP($C114,CMF!$P:$AB,12,FALSE)))))) ->  | J114: =IF($C114="","",IF(ISERROR(VLOOKUP($C114,CMF!$P:$AB,8,FALSE)),"Add Value",IF(VLOOKUP($C114,CMF!$P:$T,4,FALSE)="Yes","Wet-Related",IF(VLOOKUP($C114,CMF!$P:$T,5,FALSE)="Yes","Night-Related",IF(VLOOKUP($C114,CMF!$P:$AB,8,FALSE)="Yes","By Crash Type",VLOOKUP($C114,CMF!$P:$AB,13,FALSE)))))) -> 
A115: =Instructions!E15 -> Proposed Conditions - Other CMF Selection | B115: =IF($K$16="Existing","N/A for Existing Site Analysis","Select Other Non-Site Characteristic Based Countermeasures For Entire Project") -> Select Other Non-Site Characteristic Based Countermeasures For Entire Project
B116: CMF Nbr | C116: Countermeasure | G116: CMF KA Value | H116: CMF B Value | I116: CMF C Value | J116: CMF O Value | K116: CMF Valid for the Following Site Types
B117: CMF 1 | G117: =IF($C117="","",IF(ISERROR(VLOOKUP($C117,CMF!$P:$AB,8,FALSE)),"Add Value",IF(VLOOKUP($C117,CMF!$P:$T,4,FALSE)="Yes","Wet-Related",IF(VLOOKUP($C117,CMF!$P:$T,5,FALSE)="Yes","Night-Related",IF(VLOOKUP($C117,CMF!$P:$AB,8,FALSE)="Yes","By Crash Type",VLOOKUP($C117,CMF!$P:$AB,10,FALSE)))))) ->  | H117: =IF($C117="","",IF(ISERROR(VLOOKUP($C117,CMF!$P:$AB,8,FALSE)),"Add Value",IF(VLOOKUP($C117,CMF!$P:$T,4,FALSE)="Yes","Wet-Related",IF(VLOOKUP($C117,CMF!$P:$T,5,FALSE)="Yes","Night-Related",IF(VLOOKUP($C117,CMF!$P:$AB,8,FALSE)="Yes","By Crash Type",VLOOKUP($C117,CMF!$P:$AB,11,FALSE)))))) ->  | I117: =IF($C117="","",IF(ISERROR(VLOOKUP($C117,CMF!$P:$AB,8,FALSE)),"Add Value",IF(VLOOKUP($C117,CMF!$P:$T,4,FALSE)="Yes","Wet-Related",IF(VLOOKUP($C117,CMF!$P:$T,5,FALSE)="Yes","Night-Related",IF(VLOOKUP($C117,CMF!$P:$AB,8,FALSE)="Yes","By Crash Type",VLOOKUP($C117,CMF!$P:$AB,12,FALSE)))))) ->  | J117: =IF($C117="","",IF(ISERROR(VLOOKUP($C117,CMF!$P:$AB,8,FALSE)),"Add Value",IF(VLOOKUP($C117,CMF!$P:$T,4,FALSE)="Yes","Wet-Related",IF(VLOOKUP($C117,CMF!$P:$T,5,FALSE)="Yes","Night-Related",IF(VLOOKUP($C117,CMF!$P:$AB,8,FALSE)="Yes","By Crash Type",VLOOKUP($C117,CMF!$P:$AB,13,FALSE)))))) ->  | K117: =IF(C117="","",IFERROR(VLOOKUP(C117,CMF!A:B,2,FALSE),"Unknown")) ->  | M117: 1 - Rural Two-Lane Two-Way Segments 2 - Rural Two-Lane Two-Way Intersections 3 - Rural Multilane Undivided Segments 4 - Rural Multilane Divided Segments 5 - Rural Multilane Intersections 6 - Urban & Suburban Arterial Segments 7 - Urban & Suburban Arterial Intersections 8 - Freeway Segments 9 - Ramp Segments 10 -Ramp Terminal Intersections
B118: CMF 2 | G118: =IF($C118="","",IF(ISERROR(VLOOKUP($C118,CMF!$P:$AB,8,FALSE)),"Add Value",IF(VLOOKUP($C118,CMF!$P:$T,4,FALSE)="Yes","Wet-Related",IF(VLOOKUP($C118,CMF!$P:$T,5,FALSE)="Yes","Night-Related",IF(VLOOKUP($C118,CMF!$P:$AB,8,FALSE)="Yes","By Crash Type",VLOOKUP($C118,CMF!$P:$AB,10,FALSE)))))) ->  | H118: =IF($C118="","",IF(ISERROR(VLOOKUP($C118,CMF!$P:$AB,8,FALSE)),"Add Value",IF(VLOOKUP($C118,CMF!$P:$T,4,FALSE)="Yes","Wet-Related",IF(VLOOKUP($C118,CMF!$P:$T,5,FALSE)="Yes","Night-Related",IF(VLOOKUP($C118,CMF!$P:$AB,8,FALSE)="Yes","By Crash Type",VLOOKUP($C118,CMF!$P:$AB,11,FALSE)))))) ->  | I118: =IF($C118="","",IF(ISERROR(VLOOKUP($C118,CMF!$P:$AB,8,FALSE)),"Add Value",IF(VLOOKUP($C118,CMF!$P:$T,4,FALSE)="Yes","Wet-Related",IF(VLOOKUP($C118,CMF!$P:$T,5,FALSE)="Yes","Night-Related",IF(VLOOKUP($C118,CMF!$P:$AB,8,FALSE)="Yes","By Crash Type",VLOOKUP($C118,CMF!$P:$AB,12,FALSE)))))) ->  | J118: =IF($C118="","",IF(ISERROR(VLOOKUP($C118,CMF!$P:$AB,8,FALSE)),"Add Value",IF(VLOOKUP($C118,CMF!$P:$T,4,FALSE)="Yes","Wet-Related",IF(VLOOKUP($C118,CMF!$P:$T,5,FALSE)="Yes","Night-Related",IF(VLOOKUP($C118,CMF!$P:$AB,8,FALSE)="Yes","By Crash Type",VLOOKUP($C118,CMF!$P:$AB,13,FALSE)))))) ->  | K118: =IF(C118="","",IFERROR(VLOOKUP(C118,CMF!A:B,2,FALSE),"Unknown")) -> 
B119: CMF 3 | G119: =IF($C119="","",IF(ISERROR(VLOOKUP($C119,CMF!$P:$AB,8,FALSE)),"Add Value",IF(VLOOKUP($C119,CMF!$P:$T,4,FALSE)="Yes","Wet-Related",IF(VLOOKUP($C119,CMF!$P:$T,5,FALSE)="Yes","Night-Related",IF(VLOOKUP($C119,CMF!$P:$AB,8,FALSE)="Yes","By Crash Type",VLOOKUP($C119,CMF!$P:$AB,10,FALSE)))))) ->  | H119: =IF($C119="","",IF(ISERROR(VLOOKUP($C119,CMF!$P:$AB,8,FALSE)),"Add Value",IF(VLOOKUP($C119,CMF!$P:$T,4,FALSE)="Yes","Wet-Related",IF(VLOOKUP($C119,CMF!$P:$T,5,FALSE)="Yes","Night-Related",IF(VLOOKUP($C119,CMF!$P:$AB,8,FALSE)="Yes","By Crash Type",VLOOKUP($C119,CMF!$P:$AB,11,FALSE)))))) ->  | I119: =IF($C119="","",IF(ISERROR(VLOOKUP($C119,CMF!$P:$AB,8,FALSE)),"Add Value",IF(VLOOKUP($C119,CMF!$P:$T,4,FALSE)="Yes","Wet-Related",IF(VLOOKUP($C119,CMF!$P:$T,5,FALSE)="Yes","Night-Related",IF(VLOOKUP($C119,CMF!$P:$AB,8,FALSE)="Yes","By Crash Type",VLOOKUP($C119,CMF!$P:$AB,12,FALSE)))))) ->  | J119: =IF($C119="","",IF(ISERROR(VLOOKUP($C119,CMF!$P:$AB,8,FALSE)),"Add Value",IF(VLOOKUP($C119,CMF!$P:$T,4,FALSE)="Yes","Wet-Related",IF(VLOOKUP($C119,CMF!$P:$T,5,FALSE)="Yes","Night-Related",IF(VLOOKUP($C119,CMF!$P:$AB,8,FALSE)="Yes","By Crash Type",VLOOKUP($C119,CMF!$P:$AB,13,FALSE)))))) ->  | K119: =IF(C119="","",IFERROR(VLOOKUP(C119,CMF!A:B,2,FALSE),"Unknown")) -> 
B120: CMF 4 | G120: =IF($C120="","",IF(ISERROR(VLOOKUP($C120,CMF!$P:$AB,8,FALSE)),"Add Value",IF(VLOOKUP($C120,CMF!$P:$T,4,FALSE)="Yes","Wet-Related",IF(VLOOKUP($C120,CMF!$P:$T,5,FALSE)="Yes","Night-Related",IF(VLOOKUP($C120,CMF!$P:$AB,8,FALSE)="Yes","By Crash Type",VLOOKUP($C120,CMF!$P:$AB,10,FALSE)))))) ->  | H120: =IF($C120="","",IF(ISERROR(VLOOKUP($C120,CMF!$P:$AB,8,FALSE)),"Add Value",IF(VLOOKUP($C120,CMF!$P:$T,4,FALSE)="Yes","Wet-Related",IF(VLOOKUP($C120,CMF!$P:$T,5,FALSE)="Yes","Night-Related",IF(VLOOKUP($C120,CMF!$P:$AB,8,FALSE)="Yes","By Crash Type",VLOOKUP($C120,CMF!$P:$AB,11,FALSE)))))) ->  | I120: =IF($C120="","",IF(ISERROR(VLOOKUP($C120,CMF!$P:$AB,8,FALSE)),"Add Value",IF(VLOOKUP($C120,CMF!$P:$T,4,FALSE)="Yes","Wet-Related",IF(VLOOKUP($C120,CMF!$P:$T,5,FALSE)="Yes","Night-Related",IF(VLOOKUP($C120,CMF!$P:$AB,8,FALSE)="Yes","By Crash Type",VLOOKUP($C120,CMF!$P:$AB,12,FALSE)))))) ->  | J120: =IF($C120="","",IF(ISERROR(VLOOKUP($C120,CMF!$P:$AB,8,FALSE)),"Add Value",IF(VLOOKUP($C120,CMF!$P:$T,4,FALSE)="Yes","Wet-Related",IF(VLOOKUP($C120,CMF!$P:$T,5,FALSE)="Yes","Night-Related",IF(VLOOKUP($C120,CMF!$P:$AB,8,FALSE)="Yes","By Crash Type",VLOOKUP($C120,CMF!$P:$AB,13,FALSE)))))) ->  | K120: =IF(C120="","",IFERROR(VLOOKUP(C120,CMF!A:B,2,FALSE),"Unknown")) -> 
B121: CMF 5 | G121: =IF($C121="","",IF(ISERROR(VLOOKUP($C121,CMF!$P:$AB,8,FALSE)),"Add Value",IF(VLOOKUP($C121,CMF!$P:$T,4,FALSE)="Yes","Wet-Related",IF(VLOOKUP($C121,CMF!$P:$T,5,FALSE)="Yes","Night-Related",IF(VLOOKUP($C121,CMF!$P:$AB,8,FALSE)="Yes","By Crash Type",VLOOKUP($C121,CMF!$P:$AB,10,FALSE)))))) ->  | H121: =IF($C121="","",IF(ISERROR(VLOOKUP($C121,CMF!$P:$AB,8,FALSE)),"Add Value",IF(VLOOKUP($C121,CMF!$P:$T,4,FALSE)="Yes","Wet-Related",IF(VLOOKUP($C121,CMF!$P:$T,5,FALSE)="Yes","Night-Related",IF(VLOOKUP($C121,CMF!$P:$AB,8,FALSE)="Yes","By Crash Type",VLOOKUP($C121,CMF!$P:$AB,11,FALSE)))))) ->  | I121: =IF($C121="","",IF(ISERROR(VLOOKUP($C121,CMF!$P:$AB,8,FALSE)),"Add Value",IF(VLOOKUP($C121,CMF!$P:$T,4,FALSE)="Yes","Wet-Related",IF(VLOOKUP($C121,CMF!$P:$T,5,FALSE)="Yes","Night-Related",IF(VLOOKUP($C121,CMF!$P:$AB,8,FALSE)="Yes","By Crash Type",VLOOKUP($C121,CMF!$P:$AB,12,FALSE)))))) ->  | J121: =IF($C121="","",IF(ISERROR(VLOOKUP($C121,CMF!$P:$AB,8,FALSE)),"Add Value",IF(VLOOKUP($C121,CMF!$P:$T,4,FALSE)="Yes","Wet-Related",IF(VLOOKUP($C121,CMF!$P:$T,5,FALSE)="Yes","Night-Related",IF(VLOOKUP($C121,CMF!$P:$AB,8,FALSE)="Yes","By Crash Type",VLOOKUP($C121,CMF!$P:$AB,13,FALSE)))))) ->  | K121: =IF(C121="","",IFERROR(VLOOKUP(C121,CMF!A:B,2,FALSE),"Unknown")) -> 
B122: CMF 6 | G122: =IF($C122="","",IF(ISERROR(VLOOKUP($C122,CMF!$P:$AB,8,FALSE)),"Add Value",IF(VLOOKUP($C122,CMF!$P:$T,4,FALSE)="Yes","Wet-Related",IF(VLOOKUP($C122,CMF!$P:$T,5,FALSE)="Yes","Night-Related",IF(VLOOKUP($C122,CMF!$P:$AB,8,FALSE)="Yes","By Crash Type",VLOOKUP($C122,CMF!$P:$AB,10,FALSE)))))) ->  | H122: =IF($C122="","",IF(ISERROR(VLOOKUP($C122,CMF!$P:$AB,8,FALSE)),"Add Value",IF(VLOOKUP($C122,CMF!$P:$T,4,FALSE)="Yes","Wet-Related",IF(VLOOKUP($C122,CMF!$P:$T,5,FALSE)="Yes","Night-Related",IF(VLOOKUP($C122,CMF!$P:$AB,8,FALSE)="Yes","By Crash Type",VLOOKUP($C122,CMF!$P:$AB,11,FALSE)))))) ->  | I122: =IF($C122="","",IF(ISERROR(VLOOKUP($C122,CMF!$P:$AB,8,FALSE)),"Add Value",IF(VLOOKUP($C122,CMF!$P:$T,4,FALSE)="Yes","Wet-Related",IF(VLOOKUP($C122,CMF!$P:$T,5,FALSE)="Yes","Night-Related",IF(VLOOKUP($C122,CMF!$P:$AB,8,FALSE)="Yes","By Crash Type",VLOOKUP($C122,CMF!$P:$AB,12,FALSE)))))) ->  | J122: =IF($C122="","",IF(ISERROR(VLOOKUP($C122,CMF!$P:$AB,8,FALSE)),"Add Value",IF(VLOOKUP($C122,CMF!$P:$T,4,FALSE)="Yes","Wet-Related",IF(VLOOKUP($C122,CMF!$P:$T,5,FALSE)="Yes","Night-Related",IF(VLOOKUP($C122,CMF!$P:$AB,8,FALSE)="Yes","By Crash Type",VLOOKUP($C122,CMF!$P:$AB,13,FALSE)))))) ->  | K122: =IF(C122="","",IFERROR(VLOOKUP(C122,CMF!A:B,2,FALSE),"Unknown")) -> 
B123: CMF 7 | G123: =IF($C123="","",IF(ISERROR(VLOOKUP($C123,CMF!$P:$AB,8,FALSE)),"Add Value",IF(VLOOKUP($C123,CMF!$P:$T,4,FALSE)="Yes","Wet-Related",IF(VLOOKUP($C123,CMF!$P:$T,5,FALSE)="Yes","Night-Related",IF(VLOOKUP($C123,CMF!$P:$AB,8,FALSE)="Yes","By Crash Type",VLOOKUP($C123,CMF!$P:$AB,10,FALSE)))))) ->  | H123: =IF($C123="","",IF(ISERROR(VLOOKUP($C123,CMF!$P:$AB,8,FALSE)),"Add Value",IF(VLOOKUP($C123,CMF!$P:$T,4,FALSE)="Yes","Wet-Related",IF(VLOOKUP($C123,CMF!$P:$T,5,FALSE)="Yes","Night-Related",IF(VLOOKUP($C123,CMF!$P:$AB,8,FALSE)="Yes","By Crash Type",VLOOKUP($C123,CMF!$P:$AB,11,FALSE)))))) ->  | I123: =IF($C123="","",IF(ISERROR(VLOOKUP($C123,CMF!$P:$AB,8,FALSE)),"Add Value",IF(VLOOKUP($C123,CMF!$P:$T,4,FALSE)="Yes","Wet-Related",IF(VLOOKUP($C123,CMF!$P:$T,5,FALSE)="Yes","Night-Related",IF(VLOOKUP($C123,CMF!$P:$AB,8,FALSE)="Yes","By Crash Type",VLOOKUP($C123,CMF!$P:$AB,12,FALSE)))))) ->  | J123: =IF($C123="","",IF(ISERROR(VLOOKUP($C123,CMF!$P:$AB,8,FALSE)),"Add Value",IF(VLOOKUP($C123,CMF!$P:$T,4,FALSE)="Yes","Wet-Related",IF(VLOOKUP($C123,CMF!$P:$T,5,FALSE)="Yes","Night-Related",IF(VLOOKUP($C123,CMF!$P:$AB,8,FALSE)="Yes","By Crash Type",VLOOKUP($C123,CMF!$P:$AB,13,FALSE)))))) ->  | K123: =IF(C123="","",IFERROR(VLOOKUP(C123,CMF!A:B,2,FALSE),"Unknown")) -> 
B124: CMF 8 | G124: =IF($C124="","",IF(ISERROR(VLOOKUP($C124,CMF!$P:$AB,8,FALSE)),"Add Value",IF(VLOOKUP($C124,CMF!$P:$T,4,FALSE)="Yes","Wet-Related",IF(VLOOKUP($C124,CMF!$P:$T,5,FALSE)="Yes","Night-Related",IF(VLOOKUP($C124,CMF!$P:$AB,8,FALSE)="Yes","By Crash Type",VLOOKUP($C124,CMF!$P:$AB,10,FALSE)))))) ->  | H124: =IF($C124="","",IF(ISERROR(VLOOKUP($C124,CMF!$P:$AB,8,FALSE)),"Add Value",IF(VLOOKUP($C124,CMF!$P:$T,4,FALSE)="Yes","Wet-Related",IF(VLOOKUP($C124,CMF!$P:$T,5,FALSE)="Yes","Night-Related",IF(VLOOKUP($C124,CMF!$P:$AB,8,FALSE)="Yes","By Crash Type",VLOOKUP($C124,CMF!$P:$AB,11,FALSE)))))) ->  | I124: =IF($C124="","",IF(ISERROR(VLOOKUP($C124,CMF!$P:$AB,8,FALSE)),"Add Value",IF(VLOOKUP($C124,CMF!$P:$T,4,FALSE)="Yes","Wet-Related",IF(VLOOKUP($C124,CMF!$P:$T,5,FALSE)="Yes","Night-Related",IF(VLOOKUP($C124,CMF!$P:$AB,8,FALSE)="Yes","By Crash Type",VLOOKUP($C124,CMF!$P:$AB,12,FALSE)))))) ->  | J124: =IF($C124="","",IF(ISERROR(VLOOKUP($C124,CMF!$P:$AB,8,FALSE)),"Add Value",IF(VLOOKUP($C124,CMF!$P:$T,4,FALSE)="Yes","Wet-Related",IF(VLOOKUP($C124,CMF!$P:$T,5,FALSE)="Yes","Night-Related",IF(VLOOKUP($C124,CMF!$P:$AB,8,FALSE)="Yes","By Crash Type",VLOOKUP($C124,CMF!$P:$AB,13,FALSE)))))) ->  | K124: =IF(C124="","",IFERROR(VLOOKUP(C124,CMF!A:B,2,FALSE),"Unknown")) ->  | M124: Select Part D CMFs for the entire project. The user will select which CMF to apply to a specific project element on each project element analysis sheet. These are not applicable when analyzing the existing conditions alone.
B125: CMF 9 | G125: =IF($C125="","",IF(ISERROR(VLOOKUP($C125,CMF!$P:$AB,8,FALSE)),"Add Value",IF(VLOOKUP($C125,CMF!$P:$T,4,FALSE)="Yes","Wet-Related",IF(VLOOKUP($C125,CMF!$P:$T,5,FALSE)="Yes","Night-Related",IF(VLOOKUP($C125,CMF!$P:$AB,8,FALSE)="Yes","By Crash Type",VLOOKUP($C125,CMF!$P:$AB,10,FALSE)))))) ->  | H125: =IF($C125="","",IF(ISERROR(VLOOKUP($C125,CMF!$P:$AB,8,FALSE)),"Add Value",IF(VLOOKUP($C125,CMF!$P:$T,4,FALSE)="Yes","Wet-Related",IF(VLOOKUP($C125,CMF!$P:$T,5,FALSE)="Yes","Night-Related",IF(VLOOKUP($C125,CMF!$P:$AB,8,FALSE)="Yes","By Crash Type",VLOOKUP($C125,CMF!$P:$AB,11,FALSE)))))) ->  | I125: =IF($C125="","",IF(ISERROR(VLOOKUP($C125,CMF!$P:$AB,8,FALSE)),"Add Value",IF(VLOOKUP($C125,CMF!$P:$T,4,FALSE)="Yes","Wet-Related",IF(VLOOKUP($C125,CMF!$P:$T,5,FALSE)="Yes","Night-Related",IF(VLOOKUP($C125,CMF!$P:$AB,8,FALSE)="Yes","By Crash Type",VLOOKUP($C125,CMF!$P:$AB,12,FALSE)))))) ->  | J125: =IF($C125="","",IF(ISERROR(VLOOKUP($C125,CMF!$P:$AB,8,FALSE)),"Add Value",IF(VLOOKUP($C125,CMF!$P:$T,4,FALSE)="Yes","Wet-Related",IF(VLOOKUP($C125,CMF!$P:$T,5,FALSE)="Yes","Night-Related",IF(VLOOKUP($C125,CMF!$P:$AB,8,FALSE)="Yes","By Crash Type",VLOOKUP($C125,CMF!$P:$AB,13,FALSE)))))) ->  | K125: =IF(C125="","",IFERROR(VLOOKUP(C125,CMF!A:B,2,FALSE),"Unknown")) -> 
B126: CMF 10 | G126: =IF($C126="","",IF(ISERROR(VLOOKUP($C126,CMF!$P:$AB,8,FALSE)),"Add Value",IF(VLOOKUP($C126,CMF!$P:$T,4,FALSE)="Yes","Wet-Related",IF(VLOOKUP($C126,CMF!$P:$T,5,FALSE)="Yes","Night-Related",IF(VLOOKUP($C126,CMF!$P:$AB,8,FALSE)="Yes","By Crash Type",VLOOKUP($C126,CMF!$P:$AB,10,FALSE)))))) ->  | H126: =IF($C126="","",IF(ISERROR(VLOOKUP($C126,CMF!$P:$AB,8,FALSE)),"Add Value",IF(VLOOKUP($C126,CMF!$P:$T,4,FALSE)="Yes","Wet-Related",IF(VLOOKUP($C126,CMF!$P:$T,5,FALSE)="Yes","Night-Related",IF(VLOOKUP($C126,CMF!$P:$AB,8,FALSE)="Yes","By Crash Type",VLOOKUP($C126,CMF!$P:$AB,11,FALSE)))))) ->  | I126: =IF($C126="","",IF(ISERROR(VLOOKUP($C126,CMF!$P:$AB,8,FALSE)),"Add Value",IF(VLOOKUP($C126,CMF!$P:$T,4,FALSE)="Yes","Wet-Related",IF(VLOOKUP($C126,CMF!$P:$T,5,FALSE)="Yes","Night-Related",IF(VLOOKUP($C126,CMF!$P:$AB,8,FALSE)="Yes","By Crash Type",VLOOKUP($C126,CMF!$P:$AB,12,FALSE)))))) ->  | J126: =IF($C126="","",IF(ISERROR(VLOOKUP($C126,CMF!$P:$AB,8,FALSE)),"Add Value",IF(VLOOKUP($C126,CMF!$P:$T,4,FALSE)="Yes","Wet-Related",IF(VLOOKUP($C126,CMF!$P:$T,5,FALSE)="Yes","Night-Related",IF(VLOOKUP($C126,CMF!$P:$AB,8,FALSE)="Yes","By Crash Type",VLOOKUP($C126,CMF!$P:$AB,13,FALSE)))))) ->  | K126: =IF(C126="","",IFERROR(VLOOKUP(C126,CMF!A:B,2,FALSE),"Unknown")) -> 

Sheet Crash Data (hidden)
A1: =IF(B1="",IF(C1="","Not Identified",C1),IF($K1="Driveway/Alley Access",IF(C1=0,"Not Identified",C1),B1)) -> IF($V1="Driveway/Alley Access","",IF(ISERROR(VLOOKUP(F1,'Project Information'!$AE$31:$AE$105,1,FALSE)),IF(ISERROR(VLOOKUP(F1,'Project Information'!$AJ$31:$AJ$105,1,FALSE)),IF(ISERROR(VLOOKUP(F1,'Project Information'!$AK$31:$AK$105,1,FALSE)),IF(ISERROR(VLOOKUP(F1,'Project Information'!$AL$31:$AL$105,1,FALSE)),IF(ISERROR(VLOOKUP(F1,'Project Information'!$AM$31:$AM$105,1,FALSE)),IF(ISERROR(VLOOKUP(F1,'Project Information'!$AN$31:$AN$105,1,FALSE)),"",VLOOKUP(F1,'Project Information'!$AN$31:$AO$105,2,FALSE)),VLOOKUP(F1,'Project Information'!$AM$31:$AO$105,3,FALSE)),VLOOKUP(F1,'Project Information'!$AL$31:$AO$105,4,FALSE)),VLOOKUP(F1,'Project Information'!$AK$31:$AO$105,5,FALSE)),VLOOKUP(F1,'Project Information'!$AJ$31:$AO$105,6,FALSE)),"")) | C1: IF($V1="Driveway/Alley Access","",IF(ISERROR(VLOOKUP(F1,'Project Information'!$AE$31:$AE$105,1,FALSE)),IF(ISERROR(VLOOKUP(F1,'Project Information'!$AJ$31:$AJ$105,1,FALSE)),IF(ISERROR(VLOOKUP(F1,'Project Information'!$AK$31:$AK$105,1,FALSE)),IF(ISERROR(VLOOKUP(F1,'Project Information'!$AL$31:$AL$105,1,FALSE)),IF(ISERROR(VLOOKUP(F1,'Project Information'!$AM$31:$AM$105,1,FALSE)),IF(ISERROR(VLOOKUP(F1,'Project Information'!$AN$31:$AN$105,1,FALSE)),"",VLOOKUP(F1,'Project Information'!$AN$31:$AO$105,2,FALSE)),VLOOKUP(F1,'Project Information'!$AM$31:$AO$105,3,FALSE)),VLOOKUP(F1,'Project Information'!$AL$31:$AO$105,4,FALSE)),VLOOKUP(F1,'Project Information'!$AK$31:$AO$105,5,FALSE)),VLOOKUP(F1,'Project Information'!$AJ$31:$AO$105,6,FALSE)),"")) | D1: =IF(OR(S1=$GE$1,S1=$GF$1),"K",IF(OR(S1=$GE$2,S1=$GF$2),"A",IF(OR(S1=$GE$3,S1=$GF$3),"B",IF(OR(S1=GG1,S1=$GH$1),"C","O")))) -> O | E1: =IFERROR(IF(VLOOKUP(A1,'Project Information'!$C$31:$D$105,2,FALSE)="Freeway Segment","Freeway Segment",""),"") ->  | F1: =IF(G1*1>2010,HYPERLINK(EZ1,"Crash Report"),IF(FA1="","","Restricted Access")) ->  | G1: =IF(O1="","",O1) ->  | H1: =IF(G1="","",BH1) ->  | I1: =IF(G1="","",T1) ->  | J1: =IF(G1="","",BG1) ->  | K1: =IF(G1="","",W1) ->  | L1: =IF(G1="","",P1) ->  | M1: =IF(G1="","",X1) ->  | N1: =IF(G1="","",Y1*1) ->  | P1: =COUNTA(O:O)-2 -> 0 | Q1: = Number of crashes | GC1: Freeway Segment | GE1: Fatal | GF1: (1) Fatal | GG1: Injury Possible | GH1: (4) Injury Possible
A2: Observed Crash Data | O2: CAM Tool Full Crash Data | GC2: Entrance Ramp | GE2: Serious Injury Suspected | GF2: (2) Serious Injury Suspected
A3: Location ID | B3: Intersection ID | C3: Segment ID | D3: Severity_5cd | E3: FreewayRelated | F3: HYPERLINK | G3: DOC_NBR | H3: Light Condition | I3: Crash Type | J3: Road Condition | K3: Crash Location | L3: Year | M3: NLFID | N3: Logpoint | O3: Document Number | P3: Year | Q3: Local Report Number | R3: User Defined | S3: Severity | T3: Crash Type | U3: ODOT District | V3: County Cd | W3: ODOT Crash Location | X3: NLFID | Y3: County True Log | Z3: State True Log | AA3: On Road | AB3: At Road | AC3: ODOT Latitude | AD3: ODOT Longitude | AE3: ODOT FIPS | AF3: ODOT FIPS Name | AG3: ODOT FIPS CVT Code | AH3: Fatalities | AI3: Serious Injuries | AJ3: Non Serious Injuries | AK3: Possible Injuries | AL3: No Injuries | AM3: Unrestrained Occupants | AN3: Number of Units | AO3: NLFID Jurisdiction | AP3: NLFID Route Type | AQ3: Facility Type | AR3: Urban Area | AS3: Functional Class | AT3: NHS | AU3: Divided Hwy | AV3: ODOT Number of Lanes | AW3: Operational Access Control | AX3: Freeway | AY3: Interstate | AZ3: ODOT Maintained | BA3: Maintenance Authority | BB3: Date | BC3: Month | BD3: Hour | BE3: Day in Week | BF3: Weather Condition | BG3: Road Condition | BH3: Light Condition | BI3: Road Contour | BJ3: Roadway Departure | BK3: ODOT Intersection Related | BL3: Alcohol Related | BM3: Marijuana Related | BN3: Drug Related | BO3: School Zone Related | BP3: Motorcycle Involved | BQ3: Speed Related | BR3: Senior Driver Involved | BS3: ODOT Young Driver | BT3: Work Zone Related | BU3: Location in Work Zone | BV3: Type of Work Zone | BW3: Distracted Driver | BX3: ODPS FIPS Name | BY3: ODPS On Road Name Prefix | BZ3: ODPS On Road Name | CA3: ODPS On Road Name Suffix | CB3: ODPS On Road Name Directional Suffix | CC3: ODPS On Route Type | CD3: ODPS On Route Number | CE3: ODPS On Route Suffix | CF3: ODPS At Road Name Prefix | CG3: ODPS At Road Name | CH3: ODPS At Road Name Suffix | CI3: ODPS At Road Name Directional Suffix | CJ3: ODPS At Route Type | CK3: ODPS At Route Number | CL3: ODPS At Route Suffix | CM3: ODPS Address Reference | CN3: ODPS Mile Post Reference | CO3: ODPS Reference Point Used | CP3: Unit 1 At Fault Ind | CQ3: Unit 1 ODPS Unit Nbr | CR3: Unit 1 Direction From Cd | CS3: Unit 1 Direction To Cd | CT3: Unit 1 Turn Cd | CU3: Unit 1 Traffic Control Cd | CV3: Unit 1 Type Of Unit Cd | CW3: Unit 1 Special Function Cd | CX3: Unit 1 Unit Speed Nbr | CY3: Unit 1 Posted Speed Nbr | CZ3: Unit 1 Precrash Action Cd | DA3: Unit 1 Cont Cir Primary Cd | DB3: Unit 1 Object Struck | DC3: Unit 1 Seq Of Events 1 Cd | DD3: Unit 1 Seq Of Events 2 Cd | DE3: Unit 1 Seq Of Events 3 Cd | DF3: Unit 1 Seq Of Events 4 Cd | DG3: Unit 1 Seq Of Events 5 Cd | DH3: Unit 1 Seq Of Events 6 Cd | DI3: Unit 1 Non Motorist Loc Cd | DJ3: Unit 1 Age Nbr | DK3: Unit 1 Gender Cd | DL3: Unit 1 Distracted By 1 Cd | DM3: Unit 2 ODPS Unit Nbr | DN3: Unit 2 Direction From Cd | DO3: Unit 2 Direction To Cd | DP3: Unit 2 Turn Cd | DQ3: Unit 2 Traffic Control Cd | DR3: Unit 2 Type Of Unit Cd | DS3: Unit 2 Special Function Cd | DT3: Unit 2 Unit Speed Nbr | DU3: Unit 2 Posted Speed Nbr | DV3: Unit 2 Precrash Action Cd | DW3: Unit 2 Cont Cir Primary Cd | DX3: Unit 2 Seq Of Events 1 Cd | DY3: Unit 2 Seq Of Events 2 Cd | DZ3: Unit 2 Seq Of Events 3 Cd | EA3: Unit 2 Seq Of Events 4 Cd | EB3: Unit 2 Seq Of Events 5 Cd | EC3: Unit 2 Seq Of Events 6 Cd | ED3: Unit 2 Non Motorist Loc Cd | EE3: Unit 2 Age Nbr | EF3: Unit 2 Gender Cd | EG3: Unit 2 Distracted By 1 Cd | EH3: Unit 3 ODPS Unit Nbr | EI3: Unit 3 Traffic Control Cd | EJ3: Unit 3 Type Of Unit Cd | EK3: Unit 3 Special Function Cd | EL3: Unit 3 Precrash Action Cd | EM3: Unit 3 Cont Cir Primary Cd | EN3: Unit 3 Seq Of Events 1 Cd | EO3: Unit 3 Seq Of Events 2 Cd | EP3: Unit 3 Seq Of Events 3 Cd | EQ3: Unit 3 Seq Of Events 4 Cd | ER3: Unit 3 Seq Of Events 5 Cd | ES3: Unit 3 Seq Of Events 6 Cd | ET3: Intersection ID | EU3: Intersection Leg | EV3: Interchange ID | EW3: SA Ramp ID | EX3: SA Segment ID | EY3: Jurisdiction Type | EZ3: CRASH_REPORT_LINK | FA3: HistoricalImagePath | FB3: Roadview | FC3: Google | FD3: Mashed Map | GC3: Exit Ramp | GE3: Minor Injury Suspected | GF3: (3) Minor Injury Suspected

Sheet Report
A1: =Instructions!$E$11 -> Project and Site Conditions Information | B1: Project Safety Performance Report | AA1: Summary Legend | AB1: KA | AC1: B | AD1: C | AE1: O | AF1: Total | BA1: Existing Loaded: | BB1: Yes
B2: General Information | AA2: Existing Conditions Predicted Average Crash Frequency
B3: Project Name | D3: =IF('Project Information'!$D$3="","",'Project Information'!$D$3) -> MAD-665 at Spring Valley | F3: Contact Email | H3: =IF('Project Information'!$I$3="","",'Project Information'!$I$3) ->  | AA3: Existing Conditions Expected Average Crash Frequency
B4: Project Description | D4: =IF('Project Information'!$D$4="","",'Project Information'!$D$4) ->  | F4: Contact Phone | H4: =IF('Project Information'!$I$4="","",'Project Information'!$I$4) ->  | AA4: Existing Condtions Potential for Safety Improvement
B5: Reference Number | D5: =IF('Project Information'!$D$5="","",'Project Information'!$D$5) ->  | F5: Date Performed | H5: =IF('Project Information'!$I$5="","",'Project Information'!$I$5) ->  | AA5: =IF('Project Information'!$K$16="Proposed","Proposed Conditions Predicted Average Crash Frequency","Proposed Conditions Expected Average Crash Frequency") -> Proposed Conditions Predicted Average Crash Frequency
B6: Analyst | D6: =IF('Project Information'!$D$6="","",'Project Information'!$D$6) ->  | F6: Analysis Year | H6: =IF('Project Information'!$I$6="","",'Project Information'!$I$6) ->  | AA6: =IF('Project Information'!K16="Proposed",CONCATENATE(D3," Proposed Conditions Crash Frequency Histogram "),CONCATENATE(D3," Existing Conditions Crash Frequency Histogram")) -> MAD-665 at Spring Valley Proposed Conditions Crash Frequency Histogram
B7: Agency/Company | D7: =IF('Project Information'!$D$7="","",'Project Information'!$D$7) ->  | H7: =IF('Project Information'!$I$7="","",'Project Information'!$I$7) -> 
B10: Summary of Anticipated Safety Performance of the Project (average crashes/year) | AT10: 1
B12: Project Summary Results (Without Animal Crashes)
E13: KA | F13: B | G13: C | H13: O | I13: Total
B14: Npredicted - Existing Conditions | E14: 0.2117 | F14: 0.5133 | G14: 0.3419 | H14: 1.8371 | I14: =SUM(E14:H14) -> 2.904 | AB14: =ROUND(E14,1) -> 0.2 | AC14: 0.5 | AD14: 0.3 | AE14: 1.8 | AF14: 2.9 | CA14: =SUM(CA22:CA96) -> 0 | CB14: =SUM(CB22:CB96) -> 0 | CC14: =SUM(CC22:CC96) -> 0 | CD14: =SUM(CD22:CD96) -> 0
B15: Nexpected - Existing Conditions | E15: 0.3063 | F15: 0.7423 | G15: 0.4943 | H15: 1.6422 | I15: =SUM(E15:H15) -> 3.1851 | K15: =HintText!$B$21 -> Existing Conditions Summary. Predicted analysis results will be used for the benefit cost analysis. | AB15: 0.3 | AC15: 0.7 | AD15: 0.5 | AE15: 1.6 | AF15: 3.2 | CA15: =SUM(CA101:CA175) -> 0 | CB15: =SUM(CB101:CB175) -> 0 | CC15: =SUM(CC101:CC175) -> 0 | CD15: =SUM(CD101:CD175) -> 0
B16: Npotential for improvement - Existing Conditions | E16: =IF('Crash Data'!$P$1=0,0,E15-E14) -> 0 | F16: =IF('Crash Data'!$P$1=0,0,F15-F14) -> 0 | G16: =IF('Crash Data'!$P$1=0,0,G15-G14) -> 0 | H16: =IF('Crash Data'!$P$1=0,0,H15-H14) -> 0 | I16: =IF('Crash Data'!$P$1=0,0,I15-I14) -> 0 | AB16: 0 | AC16: 0 | AD16: 0 | AE16: 0 | AF16: 0 | AT16: Element | AZ16: Exp | BA16: PredSeg | BB16: PredInt | BC16: Exc
B17: Nexpected - Proposed Conditions | E17: =SUM(E259:E333) -> 0.0034 | F17: =SUM(F259:F333) -> 0.0277 | G17: =SUM(G259:G333) -> 0.034 | H17: =SUM(H259:H333) -> 0.8176 | I17: =SUM(E17:H17) -> 0.8827 | K17: =HintText!$B$22 -> Proposed Conditions Summary. Predicted analysis results will be used for the benefit cost analysis. | AB17: 0 | AC17: 0 | AD17: 0 | AE17: 0.8 | AF17: 0.9 | AT17: =IF(B20="",0,B20) -> Project Element ID | AU17: =IFERROR(IF(VLOOKUP($AT17,'Project Information'!$C$31:$G$105,4,FALSE)="","",VLOOKUP($AT17,'Project Information'!$C$31:$G$105,4,FALSE)),"") ->  | AV17: =IFERROR(IF(VLOOKUP($AT17,'Project Information'!$C$31:$G$105,5,FALSE)="","",VLOOKUP($AT17,'Project Information'!$C$31:$G$105,5,FALSE)),"") ->  | AW17: =IFERROR(IF(VLOOKUP(AT17,'Project Information'!C29:AB103,26,FALSE)="","",VLOOKUP(AT17,'Project Information'!C29:AB103,26,FALSE)),"") ->  | AX17: =I20 -> 0 | AY17: =I99 -> 0 | AZ17: =IF(AY17<AX17,AY17,0) -> 0 | BA17: =IF(AW17="Segment",AX17,0) -> 0 | BB17: =IF(AW17="Segment",0,AX17) -> 0 | BC17: =IF(AY17>AX17,AY17,0) -> 0 | CA17: Npredicted - Proposed Conditions | CD17: Nexpected - Proposed Conditions
C18: =IF(B18="","",IF(VLOOKUP(B18,'Project Information'!$C$31:$K$105,9,FALSE)=0,"",VLOOKUP(B18,'Project Information'!$C$31:$K$105,9,FALSE))) ->  | E18: =IFERROR(INDIRECT("'"&$B18&"'!"&"$F$565"),"") ->  | F18: =IFERROR(INDIRECT("'"&$B18&"'!"&"$G$565"),"") ->  | G18: =IFERROR(INDIRECT("'"&$B18&"'!"&"$H$565"),"") ->  | H18: =IFERROR(INDIRECT("'"&$B18&"'!"&"$I$565"),"") ->  | AT18: Element | AU18: NLFID | AV18: Blog | AW18: Type | AX18: Predicted | AY18: Expected | AZ18: Exp<Pre | BA18: Predicted Segment | BB18: Predicted Intersection | BC18: Exp>Pre
B19: Existing Conditions Project Element Predicted Crash Summary (Without Animal Crashes) | AT19: SR665; 3.28 | AU19: SMADSR00665**C | AV19: 3.28 | AW19: Intersection | AX19: 2.904 | AY19: 0 | AZ19: 0 | BA19: 0 | BB19: 2.904 | BC19: 0
B20: Project Element ID | C20: Common Name | E20: Crash Severity Level | AT20: 0 | AX20: 0 | AY20: 0 | AZ20: 0 | BA20: 0 | BB20: 0 | BC20: 0
E21: KA | F21: B | G21: C | H21: O | I21: Total | AT21: 0 | AX21: 0 | AY21: 0 | AZ21: 0 | BA21: 0 | BB21: 0 | BC21: 0
B22: SR665; 3.28 | C22: Spring Valley Rd | E22: 0.2117 | F22: 0.5133 | G22: 0.3419 | H22: 1.8371 | I22: =SUM(E22:H22) -> 2.904 | AT22: 0 | AX22: 0 | AY22: 0 | AZ22: 0 | BA22: 0 | BB22: 0 | BC22: 0
I23: =SUM(E23:H23) -> 0 | AT23: 0 | AX23: 0 | AY23: 0 | AZ23: 0 | BA23: 0 | BB23: 0 | BC23: 0
I24: 0 | AT24: 0 | AX24: 0 | AY24: 0 | AZ24: 0 | BA24: 0 | BB24: 0 | BC24: 0
I25: 0 | AT25: 0 | AX25: 0 | AY25: 0 | AZ25: 0 | BA25: 0 | BB25: 0 | BC25: 0
I26: 0 | AT26: 0 | AX26: 0 | AY26: 0 | AZ26: 0 | BA26: 0 | BB26: 0 | BC26: 0
I27: 0 | AT27: 0 | AX27: 0 | AY27: 0 | AZ27: 0 | BA27: 0 | BB27: 0 | BC27: 0
I28: 0 | AT28: 0 | AX28: 0 | AY28: 0 | AZ28: 0 | BA28: 0 | BB28: 0 | BC28: 0
I29: 0 | AT29: 0 | AX29: 0 | AY29: 0 | AZ29: 0 | BA29: 0 | BB29: 0 | BC29: 0
I30: 0 | AT30: 0 | AX30: 0 | AY30: 0 | AZ30: 0 | BA30: 0 | BB30: 0 | BC30: 0
I31: 0 | AT31: 0 | AX31: 0 | AY31: 0 | AZ31: 0 | BA31: 0 | BB31: 0 | BC31: 0
I32: 0 | AT32: 0 | AX32: 0 | AY32: 0 | AZ32: 0 | BA32: 0 | BB32: 0 | BC32: 0
I33: 0 | AT33: 0 | AX33: 0 | AY33: 0 | AZ33: 0 | BA33: 0 | BB33: 0 | BC33: 0
I34: 0 | AT34: 0 | AX34: 0 | AY34: 0 | AZ34: 0 | BA34: 0 | BB34: 0 | BC34: 0
I35: 0 | AT35: 0 | AX35: 0 | AY35: 0 | AZ35: 0 | BA35: 0 | BB35: 0 | BC35: 0
I36: 0 | AT36: 0 | AX36: 0 | AY36: 0 | AZ36: 0 | BA36: 0 | BB36: 0 | BC36: 0
I37: 0 | AT37: 0 | AX37: 0 | AY37: 0 | AZ37: 0 | BA37: 0 | BB37: 0 | BC37: 0
I38: 0 | AT38: 0 | AX38: 0 | AY38: 0 | AZ38: 0 | BA38: 0 | BB38: 0 | BC38: 0
I39: 0 | AT39: 0 | AX39: 0 | AY39: 0 | AZ39: 0 | BA39: 0 | BB39: 0 | BC39: 0
I40: 0 | AT40: 0 | AX40: 0 | AY40: 0 | AZ40: 0 | BA40: 0 | BB40: 0 | BC40: 0
I41: 0 | AT41: 0 | AX41: 0 | AY41: 0 | AZ41: 0 | BA41: 0 | BB41: 0 | BC41: 0
I42: 0 | AT42: 0 | AX42: 0 | AY42: 0 | AZ42: 0 | BA42: 0 | BB42: 0 | BC42: 0
I43: 0 | AT43: 0 | AX43: 0 | AY43: 0 | AZ43: 0 | BA43: 0 | BB43: 0 | BC43: 0
I44: 0 | AT44: 0 | AX44: 0 | AY44: 0 | AZ44: 0 | BA44: 0 | BB44: 0 | BC44: 0
I45: 0 | AT45: 0 | AX45: 0 | AY45: 0 | AZ45: 0 | BA45: 0 | BB45: 0 | BC45: 0
I46: 0 | AT46: 0 | AX46: 0 | AY46: 0 | AZ46: 0 | BA46: 0 | BB46: 0 | BC46: 0
I47: 0 | AT47: 0 | AX47: 0 | AY47: 0 | AZ47: 0 | BA47: 0 | BB47: 0 | BC47: 0
I48: 0 | AT48: 0 | AX48: 0 | AY48: 0 | AZ48: 0 | BA48: 0 | BB48: 0 | BC48: 0
I49: 0 | AT49: 0 | AX49: 0 | AY49: 0 | AZ49: 0 | BA49: 0 | BB49: 0 | BC49: 0
I50: 0 | AT50: 0 | AX50: 0 | AY50: 0 | AZ50: 0 | BA50: 0 | BB50: 0 | BC50: 0
I51: 0 | AT51: 0 | AX51: 0 | AY51: 0 | AZ51: 0 | BA51: 0 | BB51: 0 | BC51: 0
I52: 0 | AT52: 0 | AX52: 0 | AY52: 0 | AZ52: 0 | BA52: 0 | BB52: 0 | BC52: 0
I53: 0 | AT53: 0 | AX53: 0 | AY53: 0 | AZ53: 0 | BA53: 0 | BB53: 0 | BC53: 0
I54: 0 | AT54: 0 | AX54: 0 | AY54: 0 | AZ54: 0 | BA54: 0 | BB54: 0 | BC54: 0
I55: 0 | AT55: 0 | AX55: 0 | AY55: 0 | AZ55: 0 | BA55: 0 | BB55: 0 | BC55: 0
I56: 0 | AT56: 0 | AX56: 0 | AY56: 0 | AZ56: 0 | BA56: 0 | BB56: 0 | BC56: 0
I57: 0 | AT57: 0 | AX57: 0 | AY57: 0 | AZ57: 0 | BA57: 0 | BB57: 0 | BC57: 0
I58: 0 | AT58: 0 | AX58: 0 | AY58: 0 | AZ58: 0 | BA58: 0 | BB58: 0 | BC58: 0
I59: 0 | AT59: 0 | AX59: 0 | AY59: 0 | AZ59: 0 | BA59: 0 | BB59: 0 | BC59: 0
I60: 0 | AT60: 0 | AX60: 0 | AY60: 0 | AZ60: 0 | BA60: 0 | BB60: 0 | BC60: 0
I61: 0 | AT61: 0 | AX61: 0 | AY61: 0 | AZ61: 0 | BA61: 0 | BB61: 0 | BC61: 0
I62: 0 | AT62: 0 | AX62: 0 | AY62: 0 | AZ62: 0 | BA62: 0 | BB62: 0 | BC62: 0
I63: 0 | AT63: 0 | AX63: 0 | AY63: 0 | AZ63: 0 | BA63: 0 | BB63: 0 | BC63: 0
I64: 0 | AT64: 0 | AX64: 0 | AY64: 0 | AZ64: 0 | BA64: 0 | BB64: 0 | BC64: 0
I65: 0 | AT65: 0 | AX65: 0 | AY65: 0 | AZ65: 0 | BA65: 0 | BB65: 0 | BC65: 0
I66: 0 | AT66: 0 | AX66: 0 | AY66: 0 | AZ66: 0 | BA66: 0 | BB66: 0 | BC66: 0
I67: 0 | AT67: 0 | AX67: 0 | AY67: 0 | AZ67: 0 | BA67: 0 | BB67: 0 | BC67: 0
I68: 0 | AT68: 0 | AX68: 0 | AY68: 0 | AZ68: 0 | BA68: 0 | BB68: 0 | BC68: 0
I69: 0 | AT69: 0 | AX69: 0 | AY69: 0 | AZ69: 0 | BA69: 0 | BB69: 0 | BC69: 0
I70: 0 | AT70: 0 | AX70: 0 | AY70: 0 | AZ70: 0 | BA70: 0 | BB70: 0 | BC70: 0
I71: 0 | AT71: 0 | AX71: 0 | AY71: 0 | AZ71: 0 | BA71: 0 | BB71: 0 | BC71: 0
I72: 0 | AT72: 0 | AX72: 0 | AY72: 0 | AZ72: 0 | BA72: 0 | BB72: 0 | BC72: 0
I73: 0 | AT73: 0 | AX73: 0 | AY73: 0 | AZ73: 0 | BA73: 0 | BB73: 0 | BC73: 0
I74: 0 | AT74: 0 | AX74: 0 | AY74: 0 | AZ74: 0 | BA74: 0 | BB74: 0 | BC74: 0
I75: 0 | AT75: 0 | AX75: 0 | AY75: 0 | AZ75: 0 | BA75: 0 | BB75: 0 | BC75: 0
I76: 0 | AT76: 0 | AX76: 0 | AY76: 0 | AZ76: 0 | BA76: 0 | BB76: 0 | BC76: 0
I77: 0 | AT77: 0 | AX77: 0 | AY77: 0 | AZ77: 0 | BA77: 0 | BB77: 0 | BC77: 0
I78: 0 | AT78: 0 | AX78: 0 | AY78: 0 | AZ78: 0 | BA78: 0 | BB78: 0 | BC78: 0
I79: 0 | AT79: 0 | AX79: 0 | AY79: 0 | AZ79: 0 | BA79: 0 | BB79: 0 | BC79: 0
I80: 0 | AT80: 0 | AX80: 0 | AY80: 0 | AZ80: 0 | BA80: 0 | BB80: 0 | BC80: 0
I81: 0 | AT81: 0 | AX81: 0 | AY81: 0 | AZ81: 0 | BA81: 0 | BB81: 0 | BC81: 0
I82: 0 | AT82: 0 | AX82: 0 | AY82: 0 | AZ82: 0 | BA82: 0 | BB82: 0 | BC82: 0
I83: 0 | AT83: 0 | AX83: 0 | AY83: 0 | AZ83: 0 | BA83: 0 | BB83: 0 | BC83: 0
I84: 0 | AT84: 0 | AX84: 0 | AY84: 0 | AZ84: 0 | BA84: 0 | BB84: 0 | BC84: 0
I85: 0 | AT85: 0 | AX85: 0 | AY85: 0 | AZ85: 0 | BA85: 0 | BB85: 0 | BC85: 0
I86: 0 | AT86: 0 | AX86: 0 | AY86: 0 | AZ86: 0 | BA86: 0 | BB86: 0 | BC86: 0
I87: 0 | AT87: 0 | AX87: 0 | AY87: 0 | AZ87: 0 | BA87: 0 | BB87: 0 | BC87: 0
I88: 0 | AT88: 0 | AX88: 0 | AY88: 0 | AZ88: 0 | BA88: 0 | BB88: 0 | BC88: 0
I89: 0 | AT89: 0 | AX89: 0 | AY89: 0 | AZ89: 0 | BA89: 0 | BB89: 0 | BC89: 0
I90: 0 | AT90: 0 | AX90: 0 | AY90: 0 | AZ90: 0 | BA90: 0 | BB90: 0 | BC90: 0
I91: 0 | AT91: 0 | AX91: 0 | AY91: 0 | AZ91: 0 | BA91: 0 | BB91: 0 | BC91: 0
I92: =SUM(E92:H92) -> 0 | AT92: 0 | AX92: 0 | AY92: 0 | AZ92: 0 | BA92: 0 | BB92: 0 | BC92: 0
I93: =SUM(E93:H93) -> 0 | AT93: 0 | AX93: 0 | AY93: 0 | AZ93: 0 | BA93: 0 | BB93: 0 | BC93: 0
I94: =SUM(E94:H94) -> 0
I95: =SUM(E95:H95) -> 0
I96: =SUM(E96:H96) -> 0
E97: =IFERROR(INDIRECT("'"&$B97&"'!"&"$F$566"),"") ->  | F97: =IFERROR(INDIRECT("'"&$B97&"'!"&"$G$566"),"") ->  | G97: =IFERROR(INDIRECT("'"&$B97&"'!"&"$H$566"),"") ->  | H97: =IFERROR(INDIRECT("'"&$B97&"'!"&"$I$566"),"") -> 
B98: Existing Conditions Project Element Expected Crash Summary (Without Animal Crashes)
B99: Project Element ID | C99: Common Name | E99: Crash Severity Level
E100: KA | F100: B | G100: C | H100: O | I100: Total
B101: SR665; 3.28 | C101: Spring Valley Rd | E101: 0.3063 | F101: 0.7423 | G101: 0.4943 | H101: 1.6422 | I101: =SUM(E101:H101) -> 3.1851
I102: 0
I103: 0
I104: 0
I105: 0
I106: 0
I107: 0
I108: 0
I109: 0
I110: 0
I111: 0
I112: 0
I113: 0
I114: 0
I115: 0
I116: 0
I117: 0
I118: 0
I119: 0
I120: 0
I121: 0
I122: 0
I123: 0
I124: 0
I125: 0
I126: 0
I127: 0
I128: 0
I129: 0
I130: 0
I131: 0
I132: 0
I133: 0
I134: 0
I135: 0
I136: 0
I137: 0
I138: 0
I139: 0
I140: 0
I141: 0
I142: 0
I143: 0
I144: 0
I145: 0
I146: 0
I147: 0
I148: 0
I149: 0
I150: 0
I151: 0
I152: 0
I153: 0
I154: 0
I155: 0
I156: 0
I157: 0
I158: 0
I159: 0
I160: 0
I161: 0
I162: 0
I163: 0
I164: 0
I165: 0
I166: 0
I167: 0
I168: 0
I169: 0
I170: =SUM(E170:H170) -> 0
I171: 0
I172: 0
I173: 0
I174: 0
I175: 0
E176: =IF($B176="","",E97-E18) ->  | F176: =IF($B176="","",F97-F18) ->  | G176: =IF($B176="","",G97-G18) ->  | H176: =IF($B176="","",H97-H18) -> 
B177: Existing Conditions Project Element Potential for Safety Improvement Summary (Without Animal Crashes)
B178: Project Element ID | C178: Common Name | E178: Crash Severity Level
E179: KA | F179: B | G179: C | H179: O | I179: Total
B180: SR665; 3.28 | C180: Spring Valley Rd | E180: 0.0946 | F180: 0.229 | G180: 0.1524 | H180: -0.1949 | I180: =SUM(E180:H180) -> 0.2811
I181: =SUM(E181:H181) -> 0
I182: 0
I183: 0
I184: 0
I185: 0
I186: 0
I187: 0
I188: 0
I189: 0
I190: 0
I191: 0
I192: 0
I193: 0
I194: 0
I195: 0
I196: 0
I197: 0
I198: 0
I199: 0
I200: 0
I201: 0
I202: 0
I203: 0
... 151 more rows

Sheet ObservedReport (hidden)
A1: =Instructions!$E$11 -> Project and Site Conditions Information | B1: Non-HSM Sites Only Safety Performance Report | AA1: Summary Legend
B2: General Information | AA2: Existing Observed Crash Frequency
B3: Project Name | D3: =IF('Project Information'!$D$3="","",'Project Information'!$D$3) -> MAD-665 at Spring Valley | F3: Contact Email | H3: =IF('Project Information'!$I$3="","",'Project Information'!$I$3) ->  | AA3: Existing Observed Crash Frequency with All CMFs
B4: Project Description | D4: =IF('Project Information'!$D$4="","",'Project Information'!$D$4) ->  | F4: Contact Phone | H4: =IF('Project Information'!$I$4="","",'Project Information'!$I$4) -> 
B5: Reference Number | D5: =IF('Project Information'!$D$5="","",'Project Information'!$D$5) ->  | F5: Date Performed | H5: =IF('Project Information'!$I$5="","",'Project Information'!$I$5) -> 
B6: Analyst | D6: =IF('Project Information'!$D$6="","",'Project Information'!$D$6) ->  | F6: Analysis Year | H6: =IF('Project Information'!$I$6="","",'Project Information'!$I$6) -> 
B7: Agency/Company | D7: =IF('Project Information'!$D$7="","",'Project Information'!$D$7) ->  | H7: =IF('Project Information'!$I$7="","",'Project Information'!$I$7) -> 
B10: Summary of Observed Safety Performance of the Project (average crashes/year)
B12: Project Summary Results (Without Animal Crashes)
E13: KA | F13: B | G13: C | H13: O | I13: Total
B14: Existing Conditions Observed Crashes | E14: =SUM(E22:E96) -> 0 | F14: =SUM(F22:F96) -> 0 | G14: =SUM(G22:G96) -> 0 | H14: =SUM(H22:H96) -> 0 | I14: =SUM(E14:H14) -> 0
B15: Proposed Conditions Observed Crashes | E15: =SUM(E101:E175) -> 0 | F15: =SUM(F101:F175) -> 0 | G15: =SUM(G101:G175) -> 0 | H15: =SUM(H101:H175) -> 0 | I15: =SUM(E15:H15) -> 0
C18: =IF(B18="","",IF(VLOOKUP(B18,'Project Information'!$C$31:$K$105,9,FALSE)=0,"",VLOOKUP(B18,'Project Information'!$C$31:$K$105,9,FALSE))) -> 
B19: Existing Conditions Project Element Observed Crash Summary (Without Animal Crashes)
B20: Project Element ID | C20: Common Name | E20: Crash Severity Level
E21: KA | F21: B | G21: C | H21: O | I21: Total
C22: =IF(B22="","",IF(VLOOKUP(B22,'Project Information'!$C$31:$K$105,9,FALSE)=0,"",VLOOKUP(B22,'Project Information'!$C$31:$K$105,9,FALSE))) ->  | D22: =IF(C22="","",IF(VLOOKUP(C22,'Project Information'!$C$31:$K$105,9,FALSE)=0,"",VLOOKUP(C22,'Project Information'!$C$31:$K$105,9,FALSE))) ->  | E22: =IFERROR(INDIRECT("'"&$B22&"'!"&"$F$565"),"") ->  | F22: =IFERROR(INDIRECT("'"&$B22&"'!"&"$G$565"),"") ->  | G22: =IFERROR(INDIRECT("'"&$B22&"'!"&"$H$565"),"") ->  | H22: =IFERROR(INDIRECT("'"&$B22&"'!"&"$I$565"),"") ->  | I22: =SUM(E22:H22) -> 0
C23: =IF(B23="","",IF(VLOOKUP(B23,'Project Information'!$C$31:$K$105,9,FALSE)=0,"",VLOOKUP(B23,'Project Information'!$C$31:$K$105,9,FALSE))) ->  | D23: =IF(C23="","",IF(VLOOKUP(C23,'Project Information'!$C$31:$K$105,9,FALSE)=0,"",VLOOKUP(C23,'Project Information'!$C$31:$K$105,9,FALSE))) ->  | E23: =IFERROR(INDIRECT("'"&$B23&"'!"&"$F$565"),"") ->  | F23: =IFERROR(INDIRECT("'"&$B23&"'!"&"$G$565"),"") ->  | G23: =IFERROR(INDIRECT("'"&$B23&"'!"&"$H$565"),"") ->  | H23: =IFERROR(INDIRECT("'"&$B23&"'!"&"$I$565"),"") ->  | I23: =SUM(E23:H23) -> 0
C24: =IF(B24="","",IF(VLOOKUP(B24,'Project Information'!$C$31:$K$105,9,FALSE)=0,"",VLOOKUP(B24,'Project Information'!$C$31:$K$105,9,FALSE))) ->  | D24: =IF(C24="","",IF(VLOOKUP(C24,'Project Information'!$C$31:$K$105,9,FALSE)=0,"",VLOOKUP(C24,'Project Information'!$C$31:$K$105,9,FALSE))) ->  | I24: 0
C25: =IF(B25="","",IF(VLOOKUP(B25,'Project Information'!$C$31:$K$105,9,FALSE)=0,"",VLOOKUP(B25,'Project Information'!$C$31:$K$105,9,FALSE))) ->  | D25: =IF(C25="","",IF(VLOOKUP(C25,'Project Information'!$C$31:$K$105,9,FALSE)=0,"",VLOOKUP(C25,'Project Information'!$C$31:$K$105,9,FALSE))) ->  | I25: 0
C26: =IF(B26="","",IF(VLOOKUP(B26,'Project Information'!$C$31:$K$105,9,FALSE)=0,"",VLOOKUP(B26,'Project Information'!$C$31:$K$105,9,FALSE))) ->  | D26: =IF(C26="","",IF(VLOOKUP(C26,'Project Information'!$C$31:$K$105,9,FALSE)=0,"",VLOOKUP(C26,'Project Information'!$C$31:$K$105,9,FALSE))) ->  | I26: 0
C27: =IF(B27="","",IF(VLOOKUP(B27,'Project Information'!$C$31:$K$105,9,FALSE)=0,"",VLOOKUP(B27,'Project Information'!$C$31:$K$105,9,FALSE))) ->  | D27: =IF(C27="","",IF(VLOOKUP(C27,'Project Information'!$C$31:$K$105,9,FALSE)=0,"",VLOOKUP(C27,'Project Information'!$C$31:$K$105,9,FALSE))) ->  | I27: 0
C28: =IF(B28="","",IF(VLOOKUP(B28,'Project Information'!$C$31:$K$105,9,FALSE)=0,"",VLOOKUP(B28,'Project Information'!$C$31:$K$105,9,FALSE))) ->  | D28: =IF(C28="","",IF(VLOOKUP(C28,'Project Information'!$C$31:$K$105,9,FALSE)=0,"",VLOOKUP(C28,'Project Information'!$C$31:$K$105,9,FALSE))) ->  | I28: 0
C29: =IF(B29="","",IF(VLOOKUP(B29,'Project Information'!$C$31:$K$105,9,FALSE)=0,"",VLOOKUP(B29,'Project Information'!$C$31:$K$105,9,FALSE))) ->  | D29: =IF(C29="","",IF(VLOOKUP(C29,'Project Information'!$C$31:$K$105,9,FALSE)=0,"",VLOOKUP(C29,'Project Information'!$C$31:$K$105,9,FALSE))) ->  | I29: 0
C30: =IF(B30="","",IF(VLOOKUP(B30,'Project Information'!$C$31:$K$105,9,FALSE)=0,"",VLOOKUP(B30,'Project Information'!$C$31:$K$105,9,FALSE))) ->  | D30: =IF(C30="","",IF(VLOOKUP(C30,'Project Information'!$C$31:$K$105,9,FALSE)=0,"",VLOOKUP(C30,'Project Information'!$C$31:$K$105,9,FALSE))) ->  | I30: 0
C31: =IF(B31="","",IF(VLOOKUP(B31,'Project Information'!$C$31:$K$105,9,FALSE)=0,"",VLOOKUP(B31,'Project Information'!$C$31:$K$105,9,FALSE))) ->  | D31: =IF(C31="","",IF(VLOOKUP(C31,'Project Information'!$C$31:$K$105,9,FALSE)=0,"",VLOOKUP(C31,'Project Information'!$C$31:$K$105,9,FALSE))) ->  | I31: 0
C32: =IF(B32="","",IF(VLOOKUP(B32,'Project Information'!$C$31:$K$105,9,FALSE)=0,"",VLOOKUP(B32,'Project Information'!$C$31:$K$105,9,FALSE))) ->  | D32: =IF(C32="","",IF(VLOOKUP(C32,'Project Information'!$C$31:$K$105,9,FALSE)=0,"",VLOOKUP(C32,'Project Information'!$C$31:$K$105,9,FALSE))) ->  | I32: 0
C33: =IF(B33="","",IF(VLOOKUP(B33,'Project Information'!$C$31:$K$105,9,FALSE)=0,"",VLOOKUP(B33,'Project Information'!$C$31:$K$105,9,FALSE))) ->  | D33: =IF(C33="","",IF(VLOOKUP(C33,'Project Information'!$C$31:$K$105,9,FALSE)=0,"",VLOOKUP(C33,'Project Information'!$C$31:$K$105,9,FALSE))) ->  | I33: 0
C34: =IF(B34="","",IF(VLOOKUP(B34,'Project Information'!$C$31:$K$105,9,FALSE)=0,"",VLOOKUP(B34,'Project Information'!$C$31:$K$105,9,FALSE))) ->  | D34: =IF(C34="","",IF(VLOOKUP(C34,'Project Information'!$C$31:$K$105,9,FALSE)=0,"",VLOOKUP(C34,'Project Information'!$C$31:$K$105,9,FALSE))) ->  | I34: 0
C35: =IF(B35="","",IF(VLOOKUP(B35,'Project Information'!$C$31:$K$105,9,FALSE)=0,"",VLOOKUP(B35,'Project Information'!$C$31:$K$105,9,FALSE))) ->  | D35: =IF(C35="","",IF(VLOOKUP(C35,'Project Information'!$C$31:$K$105,9,FALSE)=0,"",VLOOKUP(C35,'Project Information'!$C$31:$K$105,9,FALSE))) ->  | I35: 0
C36: =IF(B36="","",IF(VLOOKUP(B36,'Project Information'!$C$31:$K$105,9,FALSE)=0,"",VLOOKUP(B36,'Project Information'!$C$31:$K$105,9,FALSE))) ->  | D36: =IF(C36="","",IF(VLOOKUP(C36,'Project Information'!$C$31:$K$105,9,FALSE)=0,"",VLOOKUP(C36,'Project Information'!$C$31:$K$105,9,FALSE))) ->  | I36: 0
C37: =IF(B37="","",IF(VLOOKUP(B37,'Project Information'!$C$31:$K$105,9,FALSE)=0,"",VLOOKUP(B37,'Project Information'!$C$31:$K$105,9,FALSE))) ->  | D37: =IF(C37="","",IF(VLOOKUP(C37,'Project Information'!$C$31:$K$105,9,FALSE)=0,"",VLOOKUP(C37,'Project Information'!$C$31:$K$105,9,FALSE))) ->  | I37: 0
C38: =IF(B38="","",IF(VLOOKUP(B38,'Project Information'!$C$31:$K$105,9,FALSE)=0,"",VLOOKUP(B38,'Project Information'!$C$31:$K$105,9,FALSE))) ->  | D38: =IF(C38="","",IF(VLOOKUP(C38,'Project Information'!$C$31:$K$105,9,FALSE)=0,"",VLOOKUP(C38,'Project Information'!$C$31:$K$105,9,FALSE))) ->  | I38: 0
C39: =IF(B39="","",IF(VLOOKUP(B39,'Project Information'!$C$31:$K$105,9,FALSE)=0,"",VLOOKUP(B39,'Project Information'!$C$31:$K$105,9,FALSE))) ->  | D39: =IF(C39="","",IF(VLOOKUP(C39,'Project Information'!$C$31:$K$105,9,FALSE)=0,"",VLOOKUP(C39,'Project Information'!$C$31:$K$105,9,FALSE))) ->  | I39: 0
C40: =IF(B40="","",IF(VLOOKUP(B40,'Project Information'!$C$31:$K$105,9,FALSE)=0,"",VLOOKUP(B40,'Project Information'!$C$31:$K$105,9,FALSE))) ->  | D40: =IF(C40="","",IF(VLOOKUP(C40,'Project Information'!$C$31:$K$105,9,FALSE)=0,"",VLOOKUP(C40,'Project Information'!$C$31:$K$105,9,FALSE))) ->  | I40: 0
C41: =IF(B41="","",IF(VLOOKUP(B41,'Project Information'!$C$31:$K$105,9,FALSE)=0,"",VLOOKUP(B41,'Project Information'!$C$31:$K$105,9,FALSE))) ->  | D41: =IF(C41="","",IF(VLOOKUP(C41,'Project Information'!$C$31:$K$105,9,FALSE)=0,"",VLOOKUP(C41,'Project Information'!$C$31:$K$105,9,FALSE))) ->  | I41: 0
C42: =IF(B42="","",IF(VLOOKUP(B42,'Project Information'!$C$31:$K$105,9,FALSE)=0,"",VLOOKUP(B42,'Project Information'!$C$31:$K$105,9,FALSE))) ->  | D42: =IF(C42="","",IF(VLOOKUP(C42,'Project Information'!$C$31:$K$105,9,FALSE)=0,"",VLOOKUP(C42,'Project Information'!$C$31:$K$105,9,FALSE))) ->  | I42: 0
C43: =IF(B43="","",IF(VLOOKUP(B43,'Project Information'!$C$31:$K$105,9,FALSE)=0,"",VLOOKUP(B43,'Project Information'!$C$31:$K$105,9,FALSE))) ->  | D43: =IF(C43="","",IF(VLOOKUP(C43,'Project Information'!$C$31:$K$105,9,FALSE)=0,"",VLOOKUP(C43,'Project Information'!$C$31:$K$105,9,FALSE))) ->  | I43: 0
C44: =IF(B44="","",IF(VLOOKUP(B44,'Project Information'!$C$31:$K$105,9,FALSE)=0,"",VLOOKUP(B44,'Project Information'!$C$31:$K$105,9,FALSE))) ->  | D44: =IF(C44="","",IF(VLOOKUP(C44,'Project Information'!$C$31:$K$105,9,FALSE)=0,"",VLOOKUP(C44,'Project Information'!$C$31:$K$105,9,FALSE))) ->  | I44: 0
C45: =IF(B45="","",IF(VLOOKUP(B45,'Project Information'!$C$31:$K$105,9,FALSE)=0,"",VLOOKUP(B45,'Project Information'!$C$31:$K$105,9,FALSE))) ->  | D45: =IF(C45="","",IF(VLOOKUP(C45,'Project Information'!$C$31:$K$105,9,FALSE)=0,"",VLOOKUP(C45,'Project Information'!$C$31:$K$105,9,FALSE))) ->  | I45: 0
C46: =IF(B46="","",IF(VLOOKUP(B46,'Project Information'!$C$31:$K$105,9,FALSE)=0,"",VLOOKUP(B46,'Project Information'!$C$31:$K$105,9,FALSE))) ->  | D46: =IF(C46="","",IF(VLOOKUP(C46,'Project Information'!$C$31:$K$105,9,FALSE)=0,"",VLOOKUP(C46,'Project Information'!$C$31:$K$105,9,FALSE))) ->  | I46: 0
C47: =IF(B47="","",IF(VLOOKUP(B47,'Project Information'!$C$31:$K$105,9,FALSE)=0,"",VLOOKUP(B47,'Project Information'!$C$31:$K$105,9,FALSE))) ->  | D47: =IF(C47="","",IF(VLOOKUP(C47,'Project Information'!$C$31:$K$105,9,FALSE)=0,"",VLOOKUP(C47,'Project Information'!$C$31:$K$105,9,FALSE))) ->  | I47: 0
C48: =IF(B48="","",IF(VLOOKUP(B48,'Project Information'!$C$31:$K$105,9,FALSE)=0,"",VLOOKUP(B48,'Project Information'!$C$31:$K$105,9,FALSE))) ->  | D48: =IF(C48="","",IF(VLOOKUP(C48,'Project Information'!$C$31:$K$105,9,FALSE)=0,"",VLOOKUP(C48,'Project Information'!$C$31:$K$105,9,FALSE))) ->  | I48: 0
C49: =IF(B49="","",IF(VLOOKUP(B49,'Project Information'!$C$31:$K$105,9,FALSE)=0,"",VLOOKUP(B49,'Project Information'!$C$31:$K$105,9,FALSE))) ->  | D49: =IF(C49="","",IF(VLOOKUP(C49,'Project Information'!$C$31:$K$105,9,FALSE)=0,"",VLOOKUP(C49,'Project Information'!$C$31:$K$105,9,FALSE))) ->  | I49: 0
C50: =IF(B50="","",IF(VLOOKUP(B50,'Project Information'!$C$31:$K$105,9,FALSE)=0,"",VLOOKUP(B50,'Project Information'!$C$31:$K$105,9,FALSE))) ->  | D50: =IF(C50="","",IF(VLOOKUP(C50,'Project Information'!$C$31:$K$105,9,FALSE)=0,"",VLOOKUP(C50,'Project Information'!$C$31:$K$105,9,FALSE))) ->  | I50: 0
C51: =IF(B51="","",IF(VLOOKUP(B51,'Project Information'!$C$31:$K$105,9,FALSE)=0,"",VLOOKUP(B51,'Project Information'!$C$31:$K$105,9,FALSE))) ->  | D51: =IF(C51="","",IF(VLOOKUP(C51,'Project Information'!$C$31:$K$105,9,FALSE)=0,"",VLOOKUP(C51,'Project Information'!$C$31:$K$105,9,FALSE))) ->  | I51: 0
C52: =IF(B52="","",IF(VLOOKUP(B52,'Project Information'!$C$31:$K$105,9,FALSE)=0,"",VLOOKUP(B52,'Project Information'!$C$31:$K$105,9,FALSE))) ->  | D52: =IF(C52="","",IF(VLOOKUP(C52,'Project Information'!$C$31:$K$105,9,FALSE)=0,"",VLOOKUP(C52,'Project Information'!$C$31:$K$105,9,FALSE))) ->  | I52: 0
C53: =IF(B53="","",IF(VLOOKUP(B53,'Project Information'!$C$31:$K$105,9,FALSE)=0,"",VLOOKUP(B53,'Project Information'!$C$31:$K$105,9,FALSE))) ->  | D53: =IF(C53="","",IF(VLOOKUP(C53,'Project Information'!$C$31:$K$105,9,FALSE)=0,"",VLOOKUP(C53,'Project Information'!$C$31:$K$105,9,FALSE))) ->  | I53: 0
C54: =IF(B54="","",IF(VLOOKUP(B54,'Project Information'!$C$31:$K$105,9,FALSE)=0,"",VLOOKUP(B54,'Project Information'!$C$31:$K$105,9,FALSE))) ->  | D54: =IF(C54="","",IF(VLOOKUP(C54,'Project Information'!$C$31:$K$105,9,FALSE)=0,"",VLOOKUP(C54,'Project Information'!$C$31:$K$105,9,FALSE))) ->  | I54: 0
C55: =IF(B55="","",IF(VLOOKUP(B55,'Project Information'!$C$31:$K$105,9,FALSE)=0,"",VLOOKUP(B55,'Project Information'!$C$31:$K$105,9,FALSE))) ->  | D55: =IF(C55="","",IF(VLOOKUP(C55,'Project Information'!$C$31:$K$105,9,FALSE)=0,"",VLOOKUP(C55,'Project Information'!$C$31:$K$105,9,FALSE))) ->  | I55: 0
C56: =IF(B56="","",IF(VLOOKUP(B56,'Project Information'!$C$31:$K$105,9,FALSE)=0,"",VLOOKUP(B56,'Project Information'!$C$31:$K$105,9,FALSE))) ->  | D56: =IF(C56="","",IF(VLOOKUP(C56,'Project Information'!$C$31:$K$105,9,FALSE)=0,"",VLOOKUP(C56,'Project Information'!$C$31:$K$105,9,FALSE))) ->  | I56: 0
C57: =IF(B57="","",IF(VLOOKUP(B57,'Project Information'!$C$31:$K$105,9,FALSE)=0,"",VLOOKUP(B57,'Project Information'!$C$31:$K$105,9,FALSE))) ->  | D57: =IF(C57="","",IF(VLOOKUP(C57,'Project Information'!$C$31:$K$105,9,FALSE)=0,"",VLOOKUP(C57,'Project Information'!$C$31:$K$105,9,FALSE))) ->  | I57: 0
C58: =IF(B58="","",IF(VLOOKUP(B58,'Project Information'!$C$31:$K$105,9,FALSE)=0,"",VLOOKUP(B58,'Project Information'!$C$31:$K$105,9,FALSE))) ->  | D58: =IF(C58="","",IF(VLOOKUP(C58,'Project Information'!$C$31:$K$105,9,FALSE)=0,"",VLOOKUP(C58,'Project Information'!$C$31:$K$105,9,FALSE))) ->  | I58: 0
C59: =IF(B59="","",IF(VLOOKUP(B59,'Project Information'!$C$31:$K$105,9,FALSE)=0,"",VLOOKUP(B59,'Project Information'!$C$31:$K$105,9,FALSE))) ->  | D59: =IF(C59="","",IF(VLOOKUP(C59,'Project Information'!$C$31:$K$105,9,FALSE)=0,"",VLOOKUP(C59,'Project Information'!$C$31:$K$105,9,FALSE))) ->  | I59: 0
C60: =IF(B60="","",IF(VLOOKUP(B60,'Project Information'!$C$31:$K$105,9,FALSE)=0,"",VLOOKUP(B60,'Project Information'!$C$31:$K$105,9,FALSE))) ->  | D60: =IF(C60="","",IF(VLOOKUP(C60,'Project Information'!$C$31:$K$105,9,FALSE)=0,"",VLOOKUP(C60,'Project Information'!$C$31:$K$105,9,FALSE))) ->  | I60: 0
C61: =IF(B61="","",IF(VLOOKUP(B61,'Project Information'!$C$31:$K$105,9,FALSE)=0,"",VLOOKUP(B61,'Project Information'!$C$31:$K$105,9,FALSE))) ->  | D61: =IF(C61="","",IF(VLOOKUP(C61,'Project Information'!$C$31:$K$105,9,FALSE)=0,"",VLOOKUP(C61,'Project Information'!$C$31:$K$105,9,FALSE))) ->  | I61: 0
C62: =IF(B62="","",IF(VLOOKUP(B62,'Project Information'!$C$31:$K$105,9,FALSE)=0,"",VLOOKUP(B62,'Project Information'!$C$31:$K$105,9,FALSE))) ->  | D62: =IF(C62="","",IF(VLOOKUP(C62,'Project Information'!$C$31:$K$105,9,FALSE)=0,"",VLOOKUP(C62,'Project Information'!$C$31:$K$105,9,FALSE))) ->  | I62: 0
C63: =IF(B63="","",IF(VLOOKUP(B63,'Project Information'!$C$31:$K$105,9,FALSE)=0,"",VLOOKUP(B63,'Project Information'!$C$31:$K$105,9,FALSE))) ->  | D63: =IF(C63="","",IF(VLOOKUP(C63,'Project Information'!$C$31:$K$105,9,FALSE)=0,"",VLOOKUP(C63,'Project Information'!$C$31:$K$105,9,FALSE))) ->  | I63: 0
C64: =IF(B64="","",IF(VLOOKUP(B64,'Project Information'!$C$31:$K$105,9,FALSE)=0,"",VLOOKUP(B64,'Project Information'!$C$31:$K$105,9,FALSE))) ->  | D64: =IF(C64="","",IF(VLOOKUP(C64,'Project Information'!$C$31:$K$105,9,FALSE)=0,"",VLOOKUP(C64,'Project Information'!$C$31:$K$105,9,FALSE))) ->  | I64: 0
C65: =IF(B65="","",IF(VLOOKUP(B65,'Project Information'!$C$31:$K$105,9,FALSE)=0,"",VLOOKUP(B65,'Project Information'!$C$31:$K$105,9,FALSE))) ->  | D65: =IF(C65="","",IF(VLOOKUP(C65,'Project Information'!$C$31:$K$105,9,FALSE)=0,"",VLOOKUP(C65,'Project Information'!$C$31:$K$105,9,FALSE))) ->  | I65: 0
C66: =IF(B66="","",IF(VLOOKUP(B66,'Project Information'!$C$31:$K$105,9,FALSE)=0,"",VLOOKUP(B66,'Project Information'!$C$31:$K$105,9,FALSE))) ->  | D66: =IF(C66="","",IF(VLOOKUP(C66,'Project Information'!$C$31:$K$105,9,FALSE)=0,"",VLOOKUP(C66,'Project Information'!$C$31:$K$105,9,FALSE))) ->  | I66: 0
C67: =IF(B67="","",IF(VLOOKUP(B67,'Project Information'!$C$31:$K$105,9,FALSE)=0,"",VLOOKUP(B67,'Project Information'!$C$31:$K$105,9,FALSE))) ->  | D67: =IF(C67="","",IF(VLOOKUP(C67,'Project Information'!$C$31:$K$105,9,FALSE)=0,"",VLOOKUP(C67,'Project Information'!$C$31:$K$105,9,FALSE))) ->  | I67: 0
C68: =IF(B68="","",IF(VLOOKUP(B68,'Project Information'!$C$31:$K$105,9,FALSE)=0,"",VLOOKUP(B68,'Project Information'!$C$31:$K$105,9,FALSE))) ->  | D68: =IF(C68="","",IF(VLOOKUP(C68,'Project Information'!$C$31:$K$105,9,FALSE)=0,"",VLOOKUP(C68,'Project Information'!$C$31:$K$105,9,FALSE))) ->  | I68: 0
C69: =IF(B69="","",IF(VLOOKUP(B69,'Project Information'!$C$31:$K$105,9,FALSE)=0,"",VLOOKUP(B69,'Project Information'!$C$31:$K$105,9,FALSE))) ->  | D69: =IF(C69="","",IF(VLOOKUP(C69,'Project Information'!$C$31:$K$105,9,FALSE)=0,"",VLOOKUP(C69,'Project Information'!$C$31:$K$105,9,FALSE))) ->  | I69: 0
C70: =IF(B70="","",IF(VLOOKUP(B70,'Project Information'!$C$31:$K$105,9,FALSE)=0,"",VLOOKUP(B70,'Project Information'!$C$31:$K$105,9,FALSE))) ->  | D70: =IF(C70="","",IF(VLOOKUP(C70,'Project Information'!$C$31:$K$105,9,FALSE)=0,"",VLOOKUP(C70,'Project Information'!$C$31:$K$105,9,FALSE))) ->  | I70: 0
C71: =IF(B71="","",IF(VLOOKUP(B71,'Project Information'!$C$31:$K$105,9,FALSE)=0,"",VLOOKUP(B71,'Project Information'!$C$31:$K$105,9,FALSE))) ->  | D71: =IF(C71="","",IF(VLOOKUP(C71,'Project Information'!$C$31:$K$105,9,FALSE)=0,"",VLOOKUP(C71,'Project Information'!$C$31:$K$105,9,FALSE))) ->  | I71: 0
C72: =IF(B72="","",IF(VLOOKUP(B72,'Project Information'!$C$31:$K$105,9,FALSE)=0,"",VLOOKUP(B72,'Project Information'!$C$31:$K$105,9,FALSE))) ->  | D72: =IF(C72="","",IF(VLOOKUP(C72,'Project Information'!$C$31:$K$105,9,FALSE)=0,"",VLOOKUP(C72,'Project Information'!$C$31:$K$105,9,FALSE))) ->  | I72: 0
C73: =IF(B73="","",IF(VLOOKUP(B73,'Project Information'!$C$31:$K$105,9,FALSE)=0,"",VLOOKUP(B73,'Project Information'!$C$31:$K$105,9,FALSE))) ->  | D73: =IF(C73="","",IF(VLOOKUP(C73,'Project Information'!$C$31:$K$105,9,FALSE)=0,"",VLOOKUP(C73,'Project Information'!$C$31:$K$105,9,FALSE))) ->  | I73: 0
C74: =IF(B74="","",IF(VLOOKUP(B74,'Project Information'!$C$31:$K$105,9,FALSE)=0,"",VLOOKUP(B74,'Project Information'!$C$31:$K$105,9,FALSE))) ->  | D74: =IF(C74="","",IF(VLOOKUP(C74,'Project Information'!$C$31:$K$105,9,FALSE)=0,"",VLOOKUP(C74,'Project Information'!$C$31:$K$105,9,FALSE))) ->  | I74: 0
C75: =IF(B75="","",IF(VLOOKUP(B75,'Project Information'!$C$31:$K$105,9,FALSE)=0,"",VLOOKUP(B75,'Project Information'!$C$31:$K$105,9,FALSE))) ->  | D75: =IF(C75="","",IF(VLOOKUP(C75,'Project Information'!$C$31:$K$105,9,FALSE)=0,"",VLOOKUP(C75,'Project Information'!$C$31:$K$105,9,FALSE))) ->  | I75: 0
C76: =IF(B76="","",IF(VLOOKUP(B76,'Project Information'!$C$31:$K$105,9,FALSE)=0,"",VLOOKUP(B76,'Project Information'!$C$31:$K$105,9,FALSE))) ->  | D76: =IF(C76="","",IF(VLOOKUP(C76,'Project Information'!$C$31:$K$105,9,FALSE)=0,"",VLOOKUP(C76,'Project Information'!$C$31:$K$105,9,FALSE))) ->  | I76: 0
C77: =IF(B77="","",IF(VLOOKUP(B77,'Project Information'!$C$31:$K$105,9,FALSE)=0,"",VLOOKUP(B77,'Project Information'!$C$31:$K$105,9,FALSE))) ->  | D77: =IF(C77="","",IF(VLOOKUP(C77,'Project Information'!$C$31:$K$105,9,FALSE)=0,"",VLOOKUP(C77,'Project Information'!$C$31:$K$105,9,FALSE))) ->  | I77: 0
C78: =IF(B78="","",IF(VLOOKUP(B78,'Project Information'!$C$31:$K$105,9,FALSE)=0,"",VLOOKUP(B78,'Project Information'!$C$31:$K$105,9,FALSE))) ->  | D78: =IF(C78="","",IF(VLOOKUP(C78,'Project Information'!$C$31:$K$105,9,FALSE)=0,"",VLOOKUP(C78,'Project Information'!$C$31:$K$105,9,FALSE))) ->  | I78: 0
C79: =IF(B79="","",IF(VLOOKUP(B79,'Project Information'!$C$31:$K$105,9,FALSE)=0,"",VLOOKUP(B79,'Project Information'!$C$31:$K$105,9,FALSE))) ->  | D79: =IF(C79="","",IF(VLOOKUP(C79,'Project Information'!$C$31:$K$105,9,FALSE)=0,"",VLOOKUP(C79,'Project Information'!$C$31:$K$105,9,FALSE))) ->  | I79: 0
C80: =IF(B80="","",IF(VLOOKUP(B80,'Project Information'!$C$31:$K$105,9,FALSE)=0,"",VLOOKUP(B80,'Project Information'!$C$31:$K$105,9,FALSE))) ->  | D80: =IF(C80="","",IF(VLOOKUP(C80,'Project Information'!$C$31:$K$105,9,FALSE)=0,"",VLOOKUP(C80,'Project Information'!$C$31:$K$105,9,FALSE))) ->  | I80: 0
C81: =IF(B81="","",IF(VLOOKUP(B81,'Project Information'!$C$31:$K$105,9,FALSE)=0,"",VLOOKUP(B81,'Project Information'!$C$31:$K$105,9,FALSE))) ->  | D81: =IF(C81="","",IF(VLOOKUP(C81,'Project Information'!$C$31:$K$105,9,FALSE)=0,"",VLOOKUP(C81,'Project Information'!$C$31:$K$105,9,FALSE))) ->  | I81: 0
C82: =IF(B82="","",IF(VLOOKUP(B82,'Project Information'!$C$31:$K$105,9,FALSE)=0,"",VLOOKUP(B82,'Project Information'!$C$31:$K$105,9,FALSE))) ->  | D82: =IF(C82="","",IF(VLOOKUP(C82,'Project Information'!$C$31:$K$105,9,FALSE)=0,"",VLOOKUP(C82,'Project Information'!$C$31:$K$105,9,FALSE))) ->  | I82: 0
C83: =IF(B83="","",IF(VLOOKUP(B83,'Project Information'!$C$31:$K$105,9,FALSE)=0,"",VLOOKUP(B83,'Project Information'!$C$31:$K$105,9,FALSE))) ->  | D83: =IF(C83="","",IF(VLOOKUP(C83,'Project Information'!$C$31:$K$105,9,FALSE)=0,"",VLOOKUP(C83,'Project Information'!$C$31:$K$105,9,FALSE))) ->  | I83: 0
C84: =IF(B84="","",IF(VLOOKUP(B84,'Project Information'!$C$31:$K$105,9,FALSE)=0,"",VLOOKUP(B84,'Project Information'!$C$31:$K$105,9,FALSE))) ->  | D84: =IF(C84="","",IF(VLOOKUP(C84,'Project Information'!$C$31:$K$105,9,FALSE)=0,"",VLOOKUP(C84,'Project Information'!$C$31:$K$105,9,FALSE))) ->  | I84: 0
C85: =IF(B85="","",IF(VLOOKUP(B85,'Project Information'!$C$31:$K$105,9,FALSE)=0,"",VLOOKUP(B85,'Project Information'!$C$31:$K$105,9,FALSE))) ->  | D85: =IF(C85="","",IF(VLOOKUP(C85,'Project Information'!$C$31:$K$105,9,FALSE)=0,"",VLOOKUP(C85,'Project Information'!$C$31:$K$105,9,FALSE))) ->  | I85: 0
C86: =IF(B86="","",IF(VLOOKUP(B86,'Project Information'!$C$31:$K$105,9,FALSE)=0,"",VLOOKUP(B86,'Project Information'!$C$31:$K$105,9,FALSE))) ->  | D86: =IF(C86="","",IF(VLOOKUP(C86,'Project Information'!$C$31:$K$105,9,FALSE)=0,"",VLOOKUP(C86,'Project Information'!$C$31:$K$105,9,FALSE))) ->  | I86: 0
C87: =IF(B87="","",IF(VLOOKUP(B87,'Project Information'!$C$31:$K$105,9,FALSE)=0,"",VLOOKUP(B87,'Project Information'!$C$31:$K$105,9,FALSE))) ->  | D87: =IF(C87="","",IF(VLOOKUP(C87,'Project Information'!$C$31:$K$105,9,FALSE)=0,"",VLOOKUP(C87,'Project Information'!$C$31:$K$105,9,FALSE))) ->  | E87: =IFERROR(INDIRECT("'"&$B87&"'!"&"$F$565"),"") ->  | F87: =IFERROR(INDIRECT("'"&$B87&"'!"&"$G$565"),"") ->  | G87: =IFERROR(INDIRECT("'"&$B87&"'!"&"$H$565"),"") ->  | H87: =IFERROR(INDIRECT("'"&$B87&"'!"&"$I$565"),"") ->  | I87: 0
C88: =IF(B88="","",IF(VLOOKUP(B88,'Project Information'!$C$31:$K$105,9,FALSE)=0,"",VLOOKUP(B88,'Project Information'!$C$31:$K$105,9,FALSE))) ->  | D88: =IF(C88="","",IF(VLOOKUP(C88,'Project Information'!$C$31:$K$105,9,FALSE)=0,"",VLOOKUP(C88,'Project Information'!$C$31:$K$105,9,FALSE))) ->  | I88: 0
C89: =IF(B89="","",IF(VLOOKUP(B89,'Project Information'!$C$31:$K$105,9,FALSE)=0,"",VLOOKUP(B89,'Project Information'!$C$31:$K$105,9,FALSE))) ->  | D89: =IF(C89="","",IF(VLOOKUP(C89,'Project Information'!$C$31:$K$105,9,FALSE)=0,"",VLOOKUP(C89,'Project Information'!$C$31:$K$105,9,FALSE))) ->  | I89: 0
C90: =IF(B90="","",IF(VLOOKUP(B90,'Project Information'!$C$31:$K$105,9,FALSE)=0,"",VLOOKUP(B90,'Project Information'!$C$31:$K$105,9,FALSE))) ->  | D90: =IF(C90="","",IF(VLOOKUP(C90,'Project Information'!$C$31:$K$105,9,FALSE)=0,"",VLOOKUP(C90,'Project Information'!$C$31:$K$105,9,FALSE))) ->  | I90: 0
C91: =IF(B91="","",IF(VLOOKUP(B91,'Project Information'!$C$31:$K$105,9,FALSE)=0,"",VLOOKUP(B91,'Project Information'!$C$31:$K$105,9,FALSE))) ->  | D91: =IF(C91="","",IF(VLOOKUP(C91,'Project Information'!$C$31:$K$105,9,FALSE)=0,"",VLOOKUP(C91,'Project Information'!$C$31:$K$105,9,FALSE))) ->  | I91: 0
C92: =IF(B92="","",IF(VLOOKUP(B92,'Project Information'!$C$31:$K$105,9,FALSE)=0,"",VLOOKUP(B92,'Project Information'!$C$31:$K$105,9,FALSE))) ->  | D92: =IF(C92="","",IF(VLOOKUP(C92,'Project Information'!$C$31:$K$105,9,FALSE)=0,"",VLOOKUP(C92,'Project Information'!$C$31:$K$105,9,FALSE))) ->  | I92: =SUM(E92:H92) -> 0
C93: =IF(B93="","",IF(VLOOKUP(B93,'Project Information'!$C$31:$K$105,9,FALSE)=0,"",VLOOKUP(B93,'Project Information'!$C$31:$K$105,9,FALSE))) ->  | D93: =IF(C93="","",IF(VLOOKUP(C93,'Project Information'!$C$31:$K$105,9,FALSE)=0,"",VLOOKUP(C93,'Project Information'!$C$31:$K$105,9,FALSE))) ->  | I93: =SUM(E93:H93) -> 0
C94: =IF(B94="","",IF(VLOOKUP(B94,'Project Information'!$C$31:$K$105,9,FALSE)=0,"",VLOOKUP(B94,'Project Information'!$C$31:$K$105,9,FALSE))) ->  | D94: =IF(C94="","",IF(VLOOKUP(C94,'Project Information'!$C$31:$K$105,9,FALSE)=0,"",VLOOKUP(C94,'Project Information'!$C$31:$K$105,9,FALSE))) ->  | I94: =SUM(E94:H94) -> 0
C95: =IF(B95="","",IF(VLOOKUP(B95,'Project Information'!$C$31:$K$105,9,FALSE)=0,"",VLOOKUP(B95,'Project Information'!$C$31:$K$105,9,FALSE))) ->  | D95: =IF(C95="","",IF(VLOOKUP(C95,'Project Information'!$C$31:$K$105,9,FALSE)=0,"",VLOOKUP(C95,'Project Information'!$C$31:$K$105,9,FALSE))) ->  | I95: =SUM(E95:H95) -> 0
C96: =IF(B96="","",IF(VLOOKUP(B96,'Project Information'!$C$31:$K$105,9,FALSE)=0,"",VLOOKUP(B96,'Project Information'!$C$31:$K$105,9,FALSE))) ->  | D96: =IF(C96="","",IF(VLOOKUP(C96,'Project Information'!$C$31:$K$105,9,FALSE)=0,"",VLOOKUP(C96,'Project Information'!$C$31:$K$105,9,FALSE))) ->  | I96: =SUM(E96:H96) -> 0
B98: Proposed Conditions Project Element Observed Crash Summary (Without Animal Crashes)
B99: Project Element ID | C99: Common Name | E99: Crash Severity Level
E100: KA | F100: B | G100: C | H100: O | I100: Total
B101: =IF(B22="","",B22) ->  | E101: =IF(LEFT(VLOOKUP($B101,'Project Information'!$C$31:$D$105,2,FALSE),2)="No",IFERROR(INDIRECT("'"&$B101&"'!"&"$F$569"),""),"") ->  | F101: =IF(LEFT(VLOOKUP($B101,'Project Information'!$C$31:$D$105,2,FALSE),2)="No",IFERROR(INDIRECT("'"&$B101&"'!"&"$G$569"),""),"") ->  | G101: =IF(LEFT(VLOOKUP($B101,'Project Information'!$C$31:$D$105,2,FALSE),2)="No",IFERROR(INDIRECT("'"&$B101&"'!"&"$H$569"),""),"") ->  | H101: =IF(LEFT(VLOOKUP($B101,'Project Information'!$C$31:$D$105,2,FALSE),2)="No",IFERROR(INDIRECT("'"&$B101&"'!"&"$I$569"),""),"") ->  | I101: =SUM(E101:H101) -> 0
E102: =IF(LEFT(VLOOKUP($B102,'Project Information'!$C$31:$D$105,2,FALSE),2)="No",IFERROR(INDIRECT("'"&$B102&"'!"&"$F$569"),""),"") ->  | F102: =IF(LEFT(VLOOKUP($B102,'Project Information'!$C$31:$D$105,2,FALSE),2)="No",IFERROR(INDIRECT("'"&$B102&"'!"&"$G$569"),""),"") ->  | G102: =IF(LEFT(VLOOKUP($B102,'Project Information'!$C$31:$D$105,2,FALSE),2)="No",IFERROR(INDIRECT("'"&$B102&"'!"&"$H$569"),""),"") ->  | H102: =IF(LEFT(VLOOKUP($B102,'Project Information'!$C$31:$D$105,2,FALSE),2)="No",IFERROR(INDIRECT("'"&$B102&"'!"&"$I$569"),""),"") ->  | I102: 0
E103: =IF(LEFT(VLOOKUP($B103,'Project Information'!$C$31:$D$105,2,FALSE),2)="No",IFERROR(INDIRECT("'"&$B103&"'!"&"$F$569"),""),"") ->  | F103: =IF(LEFT(VLOOKUP($B103,'Project Information'!$C$31:$D$105,2,FALSE),2)="No",IFERROR(INDIRECT("'"&$B103&"'!"&"$G$569"),""),"") ->  | G103: =IF(LEFT(VLOOKUP($B103,'Project Information'!$C$31:$D$105,2,FALSE),2)="No",IFERROR(INDIRECT("'"&$B103&"'!"&"$H$569"),""),"") ->  | H103: =IF(LEFT(VLOOKUP($B103,'Project Information'!$C$31:$D$105,2,FALSE),2)="No",IFERROR(INDIRECT("'"&$B103&"'!"&"$I$569"),""),"") ->  | I103: 0
E104: =IF(LEFT(VLOOKUP($B104,'Project Information'!$C$31:$D$105,2,FALSE),2)="No",IFERROR(INDIRECT("'"&$B104&"'!"&"$F$569"),""),"") ->  | F104: =IF(LEFT(VLOOKUP($B104,'Project Information'!$C$31:$D$105,2,FALSE),2)="No",IFERROR(INDIRECT("'"&$B104&"'!"&"$G$569"),""),"") ->  | G104: =IF(LEFT(VLOOKUP($B104,'Project Information'!$C$31:$D$105,2,FALSE),2)="No",IFERROR(INDIRECT("'"&$B104&"'!"&"$H$569"),""),"") ->  | H104: =IF(LEFT(VLOOKUP($B104,'Project Information'!$C$31:$D$105,2,FALSE),2)="No",IFERROR(INDIRECT("'"&$B104&"'!"&"$I$569"),""),"") ->  | I104: 0
E105: =IF(LEFT(VLOOKUP($B105,'Project Information'!$C$31:$D$105,2,FALSE),2)="No",IFERROR(INDIRECT("'"&$B105&"'!"&"$F$569"),""),"") ->  | F105: =IF(LEFT(VLOOKUP($B105,'Project Information'!$C$31:$D$105,2,FALSE),2)="No",IFERROR(INDIRECT("'"&$B105&"'!"&"$G$569"),""),"") ->  | G105: =IF(LEFT(VLOOKUP($B105,'Project Information'!$C$31:$D$105,2,FALSE),2)="No",IFERROR(INDIRECT("'"&$B105&"'!"&"$H$569"),""),"") ->  | H105: =IF(LEFT(VLOOKUP($B105,'Project Information'!$C$31:$D$105,2,FALSE),2)="No",IFERROR(INDIRECT("'"&$B105&"'!"&"$I$569"),""),"") ->  | I105: 0
E106: =IF(LEFT(VLOOKUP($B106,'Project Information'!$C$31:$D$105,2,FALSE),2)="No",IFERROR(INDIRECT("'"&$B106&"'!"&"$F$569"),""),"") ->  | F106: =IF(LEFT(VLOOKUP($B106,'Project Information'!$C$31:$D$105,2,FALSE),2)="No",IFERROR(INDIRECT("'"&$B106&"'!"&"$G$569"),""),"") ->  | G106: =IF(LEFT(VLOOKUP($B106,'Project Information'!$C$31:$D$105,2,FALSE),2)="No",IFERROR(INDIRECT("'"&$B106&"'!"&"$H$569"),""),"") ->  | H106: =IF(LEFT(VLOOKUP($B106,'Project Information'!$C$31:$D$105,2,FALSE),2)="No",IFERROR(INDIRECT("'"&$B106&"'!"&"$I$569"),""),"") ->  | I106: 0
E107: =IF(LEFT(VLOOKUP($B107,'Project Information'!$C$31:$D$105,2,FALSE),2)="No",IFERROR(INDIRECT("'"&$B107&"'!"&"$F$569"),""),"") ->  | F107: =IF(LEFT(VLOOKUP($B107,'Project Information'!$C$31:$D$105,2,FALSE),2)="No",IFERROR(INDIRECT("'"&$B107&"'!"&"$G$569"),""),"") ->  | G107: =IF(LEFT(VLOOKUP($B107,'Project Information'!$C$31:$D$105,2,FALSE),2)="No",IFERROR(INDIRECT("'"&$B107&"'!"&"$H$569"),""),"") ->  | H107: =IF(LEFT(VLOOKUP($B107,'Project Information'!$C$31:$D$105,2,FALSE),2)="No",IFERROR(INDIRECT("'"&$B107&"'!"&"$I$569"),""),"") ->  | I107: 0
E108: =IF(LEFT(VLOOKUP($B108,'Project Information'!$C$31:$D$105,2,FALSE),2)="No",IFERROR(INDIRECT("'"&$B108&"'!"&"$F$569"),""),"") ->  | F108: =IF(LEFT(VLOOKUP($B108,'Project Information'!$C$31:$D$105,2,FALSE),2)="No",IFERROR(INDIRECT("'"&$B108&"'!"&"$G$569"),""),"") ->  | G108: =IF(LEFT(VLOOKUP($B108,'Project Information'!$C$31:$D$105,2,FALSE),2)="No",IFERROR(INDIRECT("'"&$B108&"'!"&"$H$569"),""),"") ->  | H108: =IF(LEFT(VLOOKUP($B108,'Project Information'!$C$31:$D$105,2,FALSE),2)="No",IFERROR(INDIRECT("'"&$B108&"'!"&"$I$569"),""),"") ->  | I108: 0
E109: =IF(LEFT(VLOOKUP($B109,'Project Information'!$C$31:$D$105,2,FALSE),2)="No",IFERROR(INDIRECT("'"&$B109&"'!"&"$F$569"),""),"") ->  | F109: =IF(LEFT(VLOOKUP($B109,'Project Information'!$C$31:$D$105,2,FALSE),2)="No",IFERROR(INDIRECT("'"&$B109&"'!"&"$G$569"),""),"") ->  | G109: =IF(LEFT(VLOOKUP($B109,'Project Information'!$C$31:$D$105,2,FALSE),2)="No",IFERROR(INDIRECT("'"&$B109&"'!"&"$H$569"),""),"") ->  | H109: =IF(LEFT(VLOOKUP($B109,'Project Information'!$C$31:$D$105,2,FALSE),2)="No",IFERROR(INDIRECT("'"&$B109&"'!"&"$I$569"),""),"") ->  | I109: 0
E110: =IF(LEFT(VLOOKUP($B110,'Project Information'!$C$31:$D$105,2,FALSE),2)="No",IFERROR(INDIRECT("'"&$B110&"'!"&"$F$569"),""),"") ->  | F110: =IF(LEFT(VLOOKUP($B110,'Project Information'!$C$31:$D$105,2,FALSE),2)="No",IFERROR(INDIRECT("'"&$B110&"'!"&"$G$569"),""),"") ->  | G110: =IF(LEFT(VLOOKUP($B110,'Project Information'!$C$31:$D$105,2,FALSE),2)="No",IFERROR(INDIRECT("'"&$B110&"'!"&"$H$569"),""),"") ->  | H110: =IF(LEFT(VLOOKUP($B110,'Project Information'!$C$31:$D$105,2,FALSE),2)="No",IFERROR(INDIRECT("'"&$B110&"'!"&"$I$569"),""),"") ->  | I110: 0
E111: =IF(LEFT(VLOOKUP($B111,'Project Information'!$C$31:$D$105,2,FALSE),2)="No",IFERROR(INDIRECT("'"&$B111&"'!"&"$F$569"),""),"") ->  | F111: =IF(LEFT(VLOOKUP($B111,'Project Information'!$C$31:$D$105,2,FALSE),2)="No",IFERROR(INDIRECT("'"&$B111&"'!"&"$G$569"),""),"") ->  | G111: =IF(LEFT(VLOOKUP($B111,'Project Information'!$C$31:$D$105,2,FALSE),2)="No",IFERROR(INDIRECT("'"&$B111&"'!"&"$H$569"),""),"") ->  | H111: =IF(LEFT(VLOOKUP($B111,'Project Information'!$C$31:$D$105,2,FALSE),2)="No",IFERROR(INDIRECT("'"&$B111&"'!"&"$I$569"),""),"") ->  | I111: 0
E112: =IF(LEFT(VLOOKUP($B112,'Project Information'!$C$31:$D$105,2,FALSE),2)="No",IFERROR(INDIRECT("'"&$B112&"'!"&"$F$569"),""),"") ->  | F112: =IF(LEFT(VLOOKUP($B112,'Project Information'!$C$31:$D$105,2,FALSE),2)="No",IFERROR(INDIRECT("'"&$B112&"'!"&"$G$569"),""),"") ->  | G112: =IF(LEFT(VLOOKUP($B112,'Project Information'!$C$31:$D$105,2,FALSE),2)="No",IFERROR(INDIRECT("'"&$B112&"'!"&"$H$569"),""),"") ->  | H112: =IF(LEFT(VLOOKUP($B112,'Project Information'!$C$31:$D$105,2,FALSE),2)="No",IFERROR(INDIRECT("'"&$B112&"'!"&"$I$569"),""),"") ->  | I112: 0
E113: =IF(LEFT(VLOOKUP($B113,'Project Information'!$C$31:$D$105,2,FALSE),2)="No",IFERROR(INDIRECT("'"&$B113&"'!"&"$F$569"),""),"") ->  | F113: =IF(LEFT(VLOOKUP($B113,'Project Information'!$C$31:$D$105,2,FALSE),2)="No",IFERROR(INDIRECT("'"&$B113&"'!"&"$G$569"),""),"") ->  | G113: =IF(LEFT(VLOOKUP($B113,'Project Information'!$C$31:$D$105,2,FALSE),2)="No",IFERROR(INDIRECT("'"&$B113&"'!"&"$H$569"),""),"") ->  | H113: =IF(LEFT(VLOOKUP($B113,'Project Information'!$C$31:$D$105,2,FALSE),2)="No",IFERROR(INDIRECT("'"&$B113&"'!"&"$I$569"),""),"") ->  | I113: 0
E114: =IF(LEFT(VLOOKUP($B114,'Project Information'!$C$31:$D$105,2,FALSE),2)="No",IFERROR(INDIRECT("'"&$B114&"'!"&"$F$569"),""),"") ->  | F114: =IF(LEFT(VLOOKUP($B114,'Project Information'!$C$31:$D$105,2,FALSE),2)="No",IFERROR(INDIRECT("'"&$B114&"'!"&"$G$569"),""),"") ->  | G114: =IF(LEFT(VLOOKUP($B114,'Project Information'!$C$31:$D$105,2,FALSE),2)="No",IFERROR(INDIRECT("'"&$B114&"'!"&"$H$569"),""),"") ->  | H114: =IF(LEFT(VLOOKUP($B114,'Project Information'!$C$31:$D$105,2,FALSE),2)="No",IFERROR(INDIRECT("'"&$B114&"'!"&"$I$569"),""),"") ->  | I114: 0
E115: =IF(LEFT(VLOOKUP($B115,'Project Information'!$C$31:$D$105,2,FALSE),2)="No",IFERROR(INDIRECT("'"&$B115&"'!"&"$F$569"),""),"") ->  | F115: =IF(LEFT(VLOOKUP($B115,'Project Information'!$C$31:$D$105,2,FALSE),2)="No",IFERROR(INDIRECT("'"&$B115&"'!"&"$G$569"),""),"") ->  | G115: =IF(LEFT(VLOOKUP($B115,'Project Information'!$C$31:$D$105,2,FALSE),2)="No",IFERROR(INDIRECT("'"&$B115&"'!"&"$H$569"),""),"") ->  | H115: =IF(LEFT(VLOOKUP($B115,'Project Information'!$C$31:$D$105,2,FALSE),2)="No",IFERROR(INDIRECT("'"&$B115&"'!"&"$I$569"),""),"") ->  | I115: 0
E116: =IF(LEFT(VLOOKUP($B116,'Project Information'!$C$31:$D$105,2,FALSE),2)="No",IFERROR(INDIRECT("'"&$B116&"'!"&"$F$569"),""),"") ->  | F116: =IF(LEFT(VLOOKUP($B116,'Project Information'!$C$31:$D$105,2,FALSE),2)="No",IFERROR(INDIRECT("'"&$B116&"'!"&"$G$569"),""),"") ->  | G116: =IF(LEFT(VLOOKUP($B116,'Project Information'!$C$31:$D$105,2,FALSE),2)="No",IFERROR(INDIRECT("'"&$B116&"'!"&"$H$569"),""),"") ->  | H116: =IF(LEFT(VLOOKUP($B116,'Project Information'!$C$31:$D$105,2,FALSE),2)="No",IFERROR(INDIRECT("'"&$B116&"'!"&"$I$569"),""),"") ->  | I116: 0
B117: =IF(B38="","",B38) ->  | E117: =IF(LEFT(VLOOKUP($B117,'Project Information'!$C$31:$D$105,2,FALSE),2)="No",IFERROR(INDIRECT("'"&$B117&"'!"&"$F$569"),""),"") ->  | F117: =IF(LEFT(VLOOKUP($B117,'Project Information'!$C$31:$D$105,2,FALSE),2)="No",IFERROR(INDIRECT("'"&$B117&"'!"&"$G$569"),""),"") ->  | G117: =IF(LEFT(VLOOKUP($B117,'Project Information'!$C$31:$D$105,2,FALSE),2)="No",IFERROR(INDIRECT("'"&$B117&"'!"&"$H$569"),""),"") ->  | H117: =IF(LEFT(VLOOKUP($B117,'Project Information'!$C$31:$D$105,2,FALSE),2)="No",IFERROR(INDIRECT("'"&$B117&"'!"&"$I$569"),""),"") ->  | I117: 0
E118: =IF(LEFT(VLOOKUP($B118,'Project Information'!$C$31:$D$105,2,FALSE),2)="No",IFERROR(INDIRECT("'"&$B118&"'!"&"$F$569"),""),"") ->  | F118: =IF(LEFT(VLOOKUP($B118,'Project Information'!$C$31:$D$105,2,FALSE),2)="No",IFERROR(INDIRECT("'"&$B118&"'!"&"$G$569"),""),"") ->  | G118: =IF(LEFT(VLOOKUP($B118,'Project Information'!$C$31:$D$105,2,FALSE),2)="No",IFERROR(INDIRECT("'"&$B118&"'!"&"$H$569"),""),"") ->  | H118: =IF(LEFT(VLOOKUP($B118,'Project Information'!$C$31:$D$105,2,FALSE),2)="No",IFERROR(INDIRECT("'"&$B118&"'!"&"$I$569"),""),"") ->  | I118: 0
E119: =IF(LEFT(VLOOKUP($B119,'Project Information'!$C$31:$D$105,2,FALSE),2)="No",IFERROR(INDIRECT("'"&$B119&"'!"&"$F$569"),""),"") ->  | F119: =IF(LEFT(VLOOKUP($B119,'Project Information'!$C$31:$D$105,2,FALSE),2)="No",IFERROR(INDIRECT("'"&$B119&"'!"&"$G$569"),""),"") ->  | G119: =IF(LEFT(VLOOKUP($B119,'Project Information'!$C$31:$D$105,2,FALSE),2)="No",IFERROR(INDIRECT("'"&$B119&"'!"&"$H$569"),""),"") ->  | H119: =IF(LEFT(VLOOKUP($B119,'Project Information'!$C$31:$D$105,2,FALSE),2)="No",IFERROR(INDIRECT("'"&$B119&"'!"&"$I$569"),""),"") ->  | I119: 0
E120: =IF(LEFT(VLOOKUP($B120,'Project Information'!$C$31:$D$105,2,FALSE),2)="No",IFERROR(INDIRECT("'"&$B120&"'!"&"$F$569"),""),"") ->  | F120: =IF(LEFT(VLOOKUP($B120,'Project Information'!$C$31:$D$105,2,FALSE),2)="No",IFERROR(INDIRECT("'"&$B120&"'!"&"$G$569"),""),"") ->  | G120: =IF(LEFT(VLOOKUP($B120,'Project Information'!$C$31:$D$105,2,FALSE),2)="No",IFERROR(INDIRECT("'"&$B120&"'!"&"$H$569"),""),"") ->  | H120: =IF(LEFT(VLOOKUP($B120,'Project Information'!$C$31:$D$105,2,FALSE),2)="No",IFERROR(INDIRECT("'"&$B120&"'!"&"$I$569"),""),"") ->  | I120: 0
E121: =IF(LEFT(VLOOKUP($B121,'Project Information'!$C$31:$D$105,2,FALSE),2)="No",IFERROR(INDIRECT("'"&$B121&"'!"&"$F$569"),""),"") ->  | F121: =IF(LEFT(VLOOKUP($B121,'Project Information'!$C$31:$D$105,2,FALSE),2)="No",IFERROR(INDIRECT("'"&$B121&"'!"&"$G$569"),""),"") ->  | G121: =IF(LEFT(VLOOKUP($B121,'Project Information'!$C$31:$D$105,2,FALSE),2)="No",IFERROR(INDIRECT("'"&$B121&"'!"&"$H$569"),""),"") ->  | H121: =IF(LEFT(VLOOKUP($B121,'Project Information'!$C$31:$D$105,2,FALSE),2)="No",IFERROR(INDIRECT("'"&$B121&"'!"&"$I$569"),""),"") ->  | I121: 0
E122: =IF(LEFT(VLOOKUP($B122,'Project Information'!$C$31:$D$105,2,FALSE),2)="No",IFERROR(INDIRECT("'"&$B122&"'!"&"$F$569"),""),"") ->  | F122: =IF(LEFT(VLOOKUP($B122,'Project Information'!$C$31:$D$105,2,FALSE),2)="No",IFERROR(INDIRECT("'"&$B122&"'!"&"$G$569"),""),"") ->  | G122: =IF(LEFT(VLOOKUP($B122,'Project Information'!$C$31:$D$105,2,FALSE),2)="No",IFERROR(INDIRECT("'"&$B122&"'!"&"$H$569"),""),"") ->  | H122: =IF(LEFT(VLOOKUP($B122,'Project Information'!$C$31:$D$105,2,FALSE),2)="No",IFERROR(INDIRECT("'"&$B122&"'!"&"$I$569"),""),"") ->  | I122: 0
E123: =IF(LEFT(VLOOKUP($B123,'Project Information'!$C$31:$D$105,2,FALSE),2)="No",IFERROR(INDIRECT("'"&$B123&"'!"&"$F$569"),""),"") ->  | F123: =IF(LEFT(VLOOKUP($B123,'Project Information'!$C$31:$D$105,2,FALSE),2)="No",IFERROR(INDIRECT("'"&$B123&"'!"&"$G$569"),""),"") ->  | G123: =IF(LEFT(VLOOKUP($B123,'Project Information'!$C$31:$D$105,2,FALSE),2)="No",IFERROR(INDIRECT("'"&$B123&"'!"&"$H$569"),""),"") ->  | H123: =IF(LEFT(VLOOKUP($B123,'Project Information'!$C$31:$D$105,2,FALSE),2)="No",IFERROR(INDIRECT("'"&$B123&"'!"&"$I$569"),""),"") ->  | I123: 0
E124: =IF(LEFT(VLOOKUP($B124,'Project Information'!$C$31:$D$105,2,FALSE),2)="No",IFERROR(INDIRECT("'"&$B124&"'!"&"$F$569"),""),"") ->  | F124: =IF(LEFT(VLOOKUP($B124,'Project Information'!$C$31:$D$105,2,FALSE),2)="No",IFERROR(INDIRECT("'"&$B124&"'!"&"$G$569"),""),"") ->  | G124: =IF(LEFT(VLOOKUP($B124,'Project Information'!$C$31:$D$105,2,FALSE),2)="No",IFERROR(INDIRECT("'"&$B124&"'!"&"$H$569"),""),"") ->  | H124: =IF(LEFT(VLOOKUP($B124,'Project Information'!$C$31:$D$105,2,FALSE),2)="No",IFERROR(INDIRECT("'"&$B124&"'!"&"$I$569"),""),"") ->  | I124: 0
E125: =IF(LEFT(VLOOKUP($B125,'Project Information'!$C$31:$D$105,2,FALSE),2)="No",IFERROR(INDIRECT("'"&$B125&"'!"&"$F$569"),""),"") ->  | F125: =IF(LEFT(VLOOKUP($B125,'Project Information'!$C$31:$D$105,2,FALSE),2)="No",IFERROR(INDIRECT("'"&$B125&"'!"&"$G$569"),""),"") ->  | G125: =IF(LEFT(VLOOKUP($B125,'Project Information'!$C$31:$D$105,2,FALSE),2)="No",IFERROR(INDIRECT("'"&$B125&"'!"&"$H$569"),""),"") ->  | H125: =IF(LEFT(VLOOKUP($B125,'Project Information'!$C$31:$D$105,2,FALSE),2)="No",IFERROR(INDIRECT("'"&$B125&"'!"&"$I$569"),""),"") ->  | I125: 0
E126: =IF(LEFT(VLOOKUP($B126,'Project Information'!$C$31:$D$105,2,FALSE),2)="No",IFERROR(INDIRECT("'"&$B126&"'!"&"$F$569"),""),"") ->  | F126: =IF(LEFT(VLOOKUP($B126,'Project Information'!$C$31:$D$105,2,FALSE),2)="No",IFERROR(INDIRECT("'"&$B126&"'!"&"$G$569"),""),"") ->  | G126: =IF(LEFT(VLOOKUP($B126,'Project Information'!$C$31:$D$105,2,FALSE),2)="No",IFERROR(INDIRECT("'"&$B126&"'!"&"$H$569"),""),"") ->  | H126: =IF(LEFT(VLOOKUP($B126,'Project Information'!$C$31:$D$105,2,FALSE),2)="No",IFERROR(INDIRECT("'"&$B126&"'!"&"$I$569"),""),"") ->  | I126: 0
E127: =IF(LEFT(VLOOKUP($B127,'Project Information'!$C$31:$D$105,2,FALSE),2)="No",IFERROR(INDIRECT("'"&$B127&"'!"&"$F$569"),""),"") ->  | F127: =IF(LEFT(VLOOKUP($B127,'Project Information'!$C$31:$D$105,2,FALSE),2)="No",IFERROR(INDIRECT("'"&$B127&"'!"&"$G$569"),""),"") ->  | G127: =IF(LEFT(VLOOKUP($B127,'Project Information'!$C$31:$D$105,2,FALSE),2)="No",IFERROR(INDIRECT("'"&$B127&"'!"&"$H$569"),""),"") ->  | H127: =IF(LEFT(VLOOKUP($B127,'Project Information'!$C$31:$D$105,2,FALSE),2)="No",IFERROR(INDIRECT("'"&$B127&"'!"&"$I$569"),""),"") ->  | I127: 0
E128: =IF(LEFT(VLOOKUP($B128,'Project Information'!$C$31:$D$105,2,FALSE),2)="No",IFERROR(INDIRECT("'"&$B128&"'!"&"$F$569"),""),"") ->  | F128: =IF(LEFT(VLOOKUP($B128,'Project Information'!$C$31:$D$105,2,FALSE),2)="No",IFERROR(INDIRECT("'"&$B128&"'!"&"$G$569"),""),"") ->  | G128: =IF(LEFT(VLOOKUP($B128,'Project Information'!$C$31:$D$105,2,FALSE),2)="No",IFERROR(INDIRECT("'"&$B128&"'!"&"$H$569"),""),"") ->  | H128: =IF(LEFT(VLOOKUP($B128,'Project Information'!$C$31:$D$105,2,FALSE),2)="No",IFERROR(INDIRECT("'"&$B128&"'!"&"$I$569"),""),"") ->  | I128: 0
E129: =IF(LEFT(VLOOKUP($B129,'Project Information'!$C$31:$D$105,2,FALSE),2)="No",IFERROR(INDIRECT("'"&$B129&"'!"&"$F$569"),""),"") ->  | F129: =IF(LEFT(VLOOKUP($B129,'Project Information'!$C$31:$D$105,2,FALSE),2)="No",IFERROR(INDIRECT("'"&$B129&"'!"&"$G$569"),""),"") ->  | G129: =IF(LEFT(VLOOKUP($B129,'Project Information'!$C$31:$D$105,2,FALSE),2)="No",IFERROR(INDIRECT("'"&$B129&"'!"&"$H$569"),""),"") ->  | H129: =IF(LEFT(VLOOKUP($B129,'Project Information'!$C$31:$D$105,2,FALSE),2)="No",IFERROR(INDIRECT("'"&$B129&"'!"&"$I$569"),""),"") ->  | I129: 0
E130: =IF(LEFT(VLOOKUP($B130,'Project Information'!$C$31:$D$105,2,FALSE),2)="No",IFERROR(INDIRECT("'"&$B130&"'!"&"$F$569"),""),"") ->  | F130: =IF(LEFT(VLOOKUP($B130,'Project Information'!$C$31:$D$105,2,FALSE),2)="No",IFERROR(INDIRECT("'"&$B130&"'!"&"$G$569"),""),"") ->  | G130: =IF(LEFT(VLOOKUP($B130,'Project Information'!$C$31:$D$105,2,FALSE),2)="No",IFERROR(INDIRECT("'"&$B130&"'!"&"$H$569"),""),"") ->  | H130: =IF(LEFT(VLOOKUP($B130,'Project Information'!$C$31:$D$105,2,FALSE),2)="No",IFERROR(INDIRECT("'"&$B130&"'!"&"$I$569"),""),"") ->  | I130: 0
E131: =IF(LEFT(VLOOKUP($B131,'Project Information'!$C$31:$D$105,2,FALSE),2)="No",IFERROR(INDIRECT("'"&$B131&"'!"&"$F$569"),""),"") ->  | F131: =IF(LEFT(VLOOKUP($B131,'Project Information'!$C$31:$D$105,2,FALSE),2)="No",IFERROR(INDIRECT("'"&$B131&"'!"&"$G$569"),""),"") ->  | G131: =IF(LEFT(VLOOKUP($B131,'Project Information'!$C$31:$D$105,2,FALSE),2)="No",IFERROR(INDIRECT("'"&$B131&"'!"&"$H$569"),""),"") ->  | H131: =IF(LEFT(VLOOKUP($B131,'Project Information'!$C$31:$D$105,2,FALSE),2)="No",IFERROR(INDIRECT("'"&$B131&"'!"&"$I$569"),""),"") ->  | I131: 0
E132: =IF(LEFT(VLOOKUP($B132,'Project Information'!$C$31:$D$105,2,FALSE),2)="No",IFERROR(INDIRECT("'"&$B132&"'!"&"$F$569"),""),"") ->  | F132: =IF(LEFT(VLOOKUP($B132,'Project Information'!$C$31:$D$105,2,FALSE),2)="No",IFERROR(INDIRECT("'"&$B132&"'!"&"$G$569"),""),"") ->  | G132: =IF(LEFT(VLOOKUP($B132,'Project Information'!$C$31:$D$105,2,FALSE),2)="No",IFERROR(INDIRECT("'"&$B132&"'!"&"$H$569"),""),"") ->  | H132: =IF(LEFT(VLOOKUP($B132,'Project Information'!$C$31:$D$105,2,FALSE),2)="No",IFERROR(INDIRECT("'"&$B132&"'!"&"$I$569"),""),"") ->  | I132: 0
B133: =IF(B54="","",B54) ->  | E133: =IF(LEFT(VLOOKUP($B133,'Project Information'!$C$31:$D$105,2,FALSE),2)="No",IFERROR(INDIRECT("'"&$B133&"'!"&"$F$569"),""),"") ->  | F133: =IF(LEFT(VLOOKUP($B133,'Project Information'!$C$31:$D$105,2,FALSE),2)="No",IFERROR(INDIRECT("'"&$B133&"'!"&"$G$569"),""),"") ->  | G133: =IF(LEFT(VLOOKUP($B133,'Project Information'!$C$31:$D$105,2,FALSE),2)="No",IFERROR(INDIRECT("'"&$B133&"'!"&"$H$569"),""),"") ->  | H133: =IF(LEFT(VLOOKUP($B133,'Project Information'!$C$31:$D$105,2,FALSE),2)="No",IFERROR(INDIRECT("'"&$B133&"'!"&"$I$569"),""),"") ->  | I133: 0
E134: =IF(LEFT(VLOOKUP($B134,'Project Information'!$C$31:$D$105,2,FALSE),2)="No",IFERROR(INDIRECT("'"&$B134&"'!"&"$F$569"),""),"") ->  | F134: =IF(LEFT(VLOOKUP($B134,'Project Information'!$C$31:$D$105,2,FALSE),2)="No",IFERROR(INDIRECT("'"&$B134&"'!"&"$G$569"),""),"") ->  | G134: =IF(LEFT(VLOOKUP($B134,'Project Information'!$C$31:$D$105,2,FALSE),2)="No",IFERROR(INDIRECT("'"&$B134&"'!"&"$H$569"),""),"") ->  | H134: =IF(LEFT(VLOOKUP($B134,'Project Information'!$C$31:$D$105,2,FALSE),2)="No",IFERROR(INDIRECT("'"&$B134&"'!"&"$I$569"),""),"") ->  | I134: 0
E135: =IF(LEFT(VLOOKUP($B135,'Project Information'!$C$31:$D$105,2,FALSE),2)="No",IFERROR(INDIRECT("'"&$B135&"'!"&"$F$569"),""),"") ->  | F135: =IF(LEFT(VLOOKUP($B135,'Project Information'!$C$31:$D$105,2,FALSE),2)="No",IFERROR(INDIRECT("'"&$B135&"'!"&"$G$569"),""),"") ->  | G135: =IF(LEFT(VLOOKUP($B135,'Project Information'!$C$31:$D$105,2,FALSE),2)="No",IFERROR(INDIRECT("'"&$B135&"'!"&"$H$569"),""),"") ->  | H135: =IF(LEFT(VLOOKUP($B135,'Project Information'!$C$31:$D$105,2,FALSE),2)="No",IFERROR(INDIRECT("'"&$B135&"'!"&"$I$569"),""),"") ->  | I135: 0
E136: =IF(LEFT(VLOOKUP($B136,'Project Information'!$C$31:$D$105,2,FALSE),2)="No",IFERROR(INDIRECT("'"&$B136&"'!"&"$F$569"),""),"") ->  | F136: =IF(LEFT(VLOOKUP($B136,'Project Information'!$C$31:$D$105,2,FALSE),2)="No",IFERROR(INDIRECT("'"&$B136&"'!"&"$G$569"),""),"") ->  | G136: =IF(LEFT(VLOOKUP($B136,'Project Information'!$C$31:$D$105,2,FALSE),2)="No",IFERROR(INDIRECT("'"&$B136&"'!"&"$H$569"),""),"") ->  | H136: =IF(LEFT(VLOOKUP($B136,'Project Information'!$C$31:$D$105,2,FALSE),2)="No",IFERROR(INDIRECT("'"&$B136&"'!"&"$I$569"),""),"") ->  | I136: 0
E137: =IF(LEFT(VLOOKUP($B137,'Project Information'!$C$31:$D$105,2,FALSE),2)="No",IFERROR(INDIRECT("'"&$B137&"'!"&"$F$569"),""),"") ->  | F137: =IF(LEFT(VLOOKUP($B137,'Project Information'!$C$31:$D$105,2,FALSE),2)="No",IFERROR(INDIRECT("'"&$B137&"'!"&"$G$569"),""),"") ->  | G137: =IF(LEFT(VLOOKUP($B137,'Project Information'!$C$31:$D$105,2,FALSE),2)="No",IFERROR(INDIRECT("'"&$B137&"'!"&"$H$569"),""),"") ->  | H137: =IF(LEFT(VLOOKUP($B137,'Project Information'!$C$31:$D$105,2,FALSE),2)="No",IFERROR(INDIRECT("'"&$B137&"'!"&"$I$569"),""),"") ->  | I137: 0
E138: =IF(LEFT(VLOOKUP($B138,'Project Information'!$C$31:$D$105,2,FALSE),2)="No",IFERROR(INDIRECT("'"&$B138&"'!"&"$F$569"),""),"") ->  | F138: =IF(LEFT(VLOOKUP($B138,'Project Information'!$C$31:$D$105,2,FALSE),2)="No",IFERROR(INDIRECT("'"&$B138&"'!"&"$G$569"),""),"") ->  | G138: =IF(LEFT(VLOOKUP($B138,'Project Information'!$C$31:$D$105,2,FALSE),2)="No",IFERROR(INDIRECT("'"&$B138&"'!"&"$H$569"),""),"") ->  | H138: =IF(LEFT(VLOOKUP($B138,'Project Information'!$C$31:$D$105,2,FALSE),2)="No",IFERROR(INDIRECT("'"&$B138&"'!"&"$I$569"),""),"") ->  | I138: 0
E139: =IF(LEFT(VLOOKUP($B139,'Project Information'!$C$31:$D$105,2,FALSE),2)="No",IFERROR(INDIRECT("'"&$B139&"'!"&"$F$569"),""),"") ->  | F139: =IF(LEFT(VLOOKUP($B139,'Project Information'!$C$31:$D$105,2,FALSE),2)="No",IFERROR(INDIRECT("'"&$B139&"'!"&"$G$569"),""),"") ->  | G139: =IF(LEFT(VLOOKUP($B139,'Project Information'!$C$31:$D$105,2,FALSE),2)="No",IFERROR(INDIRECT("'"&$B139&"'!"&"$H$569"),""),"") ->  | H139: =IF(LEFT(VLOOKUP($B139,'Project Information'!$C$31:$D$105,2,FALSE),2)="No",IFERROR(INDIRECT("'"&$B139&"'!"&"$I$569"),""),"") ->  | I139: 0
E140: =IF(LEFT(VLOOKUP($B140,'Project Information'!$C$31:$D$105,2,FALSE),2)="No",IFERROR(INDIRECT("'"&$B140&"'!"&"$F$569"),""),"") ->  | F140: =IF(LEFT(VLOOKUP($B140,'Project Information'!$C$31:$D$105,2,FALSE),2)="No",IFERROR(INDIRECT("'"&$B140&"'!"&"$G$569"),""),"") ->  | G140: =IF(LEFT(VLOOKUP($B140,'Project Information'!$C$31:$D$105,2,FALSE),2)="No",IFERROR(INDIRECT("'"&$B140&"'!"&"$H$569"),""),"") ->  | H140: =IF(LEFT(VLOOKUP($B140,'Project Information'!$C$31:$D$105,2,FALSE),2)="No",IFERROR(INDIRECT("'"&$B140&"'!"&"$I$569"),""),"") ->  | I140: 0
E141: =IF(LEFT(VLOOKUP($B141,'Project Information'!$C$31:$D$105,2,FALSE),2)="No",IFERROR(INDIRECT("'"&$B141&"'!"&"$F$569"),""),"") ->  | F141: =IF(LEFT(VLOOKUP($B141,'Project Information'!$C$31:$D$105,2,FALSE),2)="No",IFERROR(INDIRECT("'"&$B141&"'!"&"$G$569"),""),"") ->  | G141: =IF(LEFT(VLOOKUP($B141,'Project Information'!$C$31:$D$105,2,FALSE),2)="No",IFERROR(INDIRECT("'"&$B141&"'!"&"$H$569"),""),"") ->  | H141: =IF(LEFT(VLOOKUP($B141,'Project Information'!$C$31:$D$105,2,FALSE),2)="No",IFERROR(INDIRECT("'"&$B141&"'!"&"$I$569"),""),"") ->  | I141: 0
E142: =IF(LEFT(VLOOKUP($B142,'Project Information'!$C$31:$D$105,2,FALSE),2)="No",IFERROR(INDIRECT("'"&$B142&"'!"&"$F$569"),""),"") ->  | F142: =IF(LEFT(VLOOKUP($B142,'Project Information'!$C$31:$D$105,2,FALSE),2)="No",IFERROR(INDIRECT("'"&$B142&"'!"&"$G$569"),""),"") ->  | G142: =IF(LEFT(VLOOKUP($B142,'Project Information'!$C$31:$D$105,2,FALSE),2)="No",IFERROR(INDIRECT("'"&$B142&"'!"&"$H$569"),""),"") ->  | H142: =IF(LEFT(VLOOKUP($B142,'Project Information'!$C$31:$D$105,2,FALSE),2)="No",IFERROR(INDIRECT("'"&$B142&"'!"&"$I$569"),""),"") ->  | I142: 0
E143: =IF(LEFT(VLOOKUP($B143,'Project Information'!$C$31:$D$105,2,FALSE),2)="No",IFERROR(INDIRECT("'"&$B143&"'!"&"$F$569"),""),"") ->  | F143: =IF(LEFT(VLOOKUP($B143,'Project Information'!$C$31:$D$105,2,FALSE),2)="No",IFERROR(INDIRECT("'"&$B143&"'!"&"$G$569"),""),"") ->  | G143: =IF(LEFT(VLOOKUP($B143,'Project Information'!$C$31:$D$105,2,FALSE),2)="No",IFERROR(INDIRECT("'"&$B143&"'!"&"$H$569"),""),"") ->  | H143: =IF(LEFT(VLOOKUP($B143,'Project Information'!$C$31:$D$105,2,FALSE),2)="No",IFERROR(INDIRECT("'"&$B143&"'!"&"$I$569"),""),"") ->  | I143: 0
E144: =IF(LEFT(VLOOKUP($B144,'Project Information'!$C$31:$D$105,2,FALSE),2)="No",IFERROR(INDIRECT("'"&$B144&"'!"&"$F$569"),""),"") ->  | F144: =IF(LEFT(VLOOKUP($B144,'Project Information'!$C$31:$D$105,2,FALSE),2)="No",IFERROR(INDIRECT("'"&$B144&"'!"&"$G$569"),""),"") ->  | G144: =IF(LEFT(VLOOKUP($B144,'Project Information'!$C$31:$D$105,2,FALSE),2)="No",IFERROR(INDIRECT("'"&$B144&"'!"&"$H$569"),""),"") ->  | H144: =IF(LEFT(VLOOKUP($B144,'Project Information'!$C$31:$D$105,2,FALSE),2)="No",IFERROR(INDIRECT("'"&$B144&"'!"&"$I$569"),""),"") ->  | I144: 0
E145: =IF(LEFT(VLOOKUP($B145,'Project Information'!$C$31:$D$105,2,FALSE),2)="No",IFERROR(INDIRECT("'"&$B145&"'!"&"$F$569"),""),"") ->  | F145: =IF(LEFT(VLOOKUP($B145,'Project Information'!$C$31:$D$105,2,FALSE),2)="No",IFERROR(INDIRECT("'"&$B145&"'!"&"$G$569"),""),"") ->  | G145: =IF(LEFT(VLOOKUP($B145,'Project Information'!$C$31:$D$105,2,FALSE),2)="No",IFERROR(INDIRECT("'"&$B145&"'!"&"$H$569"),""),"") ->  | H145: =IF(LEFT(VLOOKUP($B145,'Project Information'!$C$31:$D$105,2,FALSE),2)="No",IFERROR(INDIRECT("'"&$B145&"'!"&"$I$569"),""),"") ->  | I145: 0
E146: =IF(LEFT(VLOOKUP($B146,'Project Information'!$C$31:$D$105,2,FALSE),2)="No",IFERROR(INDIRECT("'"&$B146&"'!"&"$F$569"),""),"") ->  | F146: =IF(LEFT(VLOOKUP($B146,'Project Information'!$C$31:$D$105,2,FALSE),2)="No",IFERROR(INDIRECT("'"&$B146&"'!"&"$G$569"),""),"") ->  | G146: =IF(LEFT(VLOOKUP($B146,'Project Information'!$C$31:$D$105,2,FALSE),2)="No",IFERROR(INDIRECT("'"&$B146&"'!"&"$H$569"),""),"") ->  | H146: =IF(LEFT(VLOOKUP($B146,'Project Information'!$C$31:$D$105,2,FALSE),2)="No",IFERROR(INDIRECT("'"&$B146&"'!"&"$I$569"),""),"") ->  | I146: 0
E147: =IF(LEFT(VLOOKUP($B147,'Project Information'!$C$31:$D$105,2,FALSE),2)="No",IFERROR(INDIRECT("'"&$B147&"'!"&"$F$569"),""),"") ->  | F147: =IF(LEFT(VLOOKUP($B147,'Project Information'!$C$31:$D$105,2,FALSE),2)="No",IFERROR(INDIRECT("'"&$B147&"'!"&"$G$569"),""),"") ->  | G147: =IF(LEFT(VLOOKUP($B147,'Project Information'!$C$31:$D$105,2,FALSE),2)="No",IFERROR(INDIRECT("'"&$B147&"'!"&"$H$569"),""),"") ->  | H147: =IF(LEFT(VLOOKUP($B147,'Project Information'!$C$31:$D$105,2,FALSE),2)="No",IFERROR(INDIRECT("'"&$B147&"'!"&"$I$569"),""),"") ->  | I147: 0
E148: =IF(LEFT(VLOOKUP($B148,'Project Information'!$C$31:$D$105,2,FALSE),2)="No",IFERROR(INDIRECT("'"&$B148&"'!"&"$F$569"),""),"") ->  | F148: =IF(LEFT(VLOOKUP($B148,'Project Information'!$C$31:$D$105,2,FALSE),2)="No",IFERROR(INDIRECT("'"&$B148&"'!"&"$G$569"),""),"") ->  | G148: =IF(LEFT(VLOOKUP($B148,'Project Information'!$C$31:$D$105,2,FALSE),2)="No",IFERROR(INDIRECT("'"&$B148&"'!"&"$H$569"),""),"") ->  | H148: =IF(LEFT(VLOOKUP($B148,'Project Information'!$C$31:$D$105,2,FALSE),2)="No",IFERROR(INDIRECT("'"&$B148&"'!"&"$I$569"),""),"") ->  | I148: 0
B149: =IF(B70="","",B70) ->  | E149: =IF(LEFT(VLOOKUP($B149,'Project Information'!$C$31:$D$105,2,FALSE),2)="No",IFERROR(INDIRECT("'"&$B149&"'!"&"$F$569"),""),"") ->  | F149: =IF(LEFT(VLOOKUP($B149,'Project Information'!$C$31:$D$105,2,FALSE),2)="No",IFERROR(INDIRECT("'"&$B149&"'!"&"$G$569"),""),"") ->  | G149: =IF(LEFT(VLOOKUP($B149,'Project Information'!$C$31:$D$105,2,FALSE),2)="No",IFERROR(INDIRECT("'"&$B149&"'!"&"$H$569"),""),"") ->  | H149: =IF(LEFT(VLOOKUP($B149,'Project Information'!$C$31:$D$105,2,FALSE),2)="No",IFERROR(INDIRECT("'"&$B149&"'!"&"$I$569"),""),"") ->  | I149: 0
E150: =IF(LEFT(VLOOKUP($B150,'Project Information'!$C$31:$D$105,2,FALSE),2)="No",IFERROR(INDIRECT("'"&$B150&"'!"&"$F$569"),""),"") ->  | F150: =IF(LEFT(VLOOKUP($B150,'Project Information'!$C$31:$D$105,2,FALSE),2)="No",IFERROR(INDIRECT("'"&$B150&"'!"&"$G$569"),""),"") ->  | G150: =IF(LEFT(VLOOKUP($B150,'Project Information'!$C$31:$D$105,2,FALSE),2)="No",IFERROR(INDIRECT("'"&$B150&"'!"&"$H$569"),""),"") ->  | H150: =IF(LEFT(VLOOKUP($B150,'Project Information'!$C$31:$D$105,2,FALSE),2)="No",IFERROR(INDIRECT("'"&$B150&"'!"&"$I$569"),""),"") ->  | I150: 0
E151: =IF(LEFT(VLOOKUP($B151,'Project Information'!$C$31:$D$105,2,FALSE),2)="No",IFERROR(INDIRECT("'"&$B151&"'!"&"$F$569"),""),"") ->  | F151: =IF(LEFT(VLOOKUP($B151,'Project Information'!$C$31:$D$105,2,FALSE),2)="No",IFERROR(INDIRECT("'"&$B151&"'!"&"$G$569"),""),"") ->  | G151: =IF(LEFT(VLOOKUP($B151,'Project Information'!$C$31:$D$105,2,FALSE),2)="No",IFERROR(INDIRECT("'"&$B151&"'!"&"$H$569"),""),"") ->  | H151: =IF(LEFT(VLOOKUP($B151,'Project Information'!$C$31:$D$105,2,FALSE),2)="No",IFERROR(INDIRECT("'"&$B151&"'!"&"$I$569"),""),"") ->  | I151: 0
E152: =IF(LEFT(VLOOKUP($B152,'Project Information'!$C$31:$D$105,2,FALSE),2)="No",IFERROR(INDIRECT("'"&$B152&"'!"&"$F$569"),""),"") ->  | F152: =IF(LEFT(VLOOKUP($B152,'Project Information'!$C$31:$D$105,2,FALSE),2)="No",IFERROR(INDIRECT("'"&$B152&"'!"&"$G$569"),""),"") ->  | G152: =IF(LEFT(VLOOKUP($B152,'Project Information'!$C$31:$D$105,2,FALSE),2)="No",IFERROR(INDIRECT("'"&$B152&"'!"&"$H$569"),""),"") ->  | H152: =IF(LEFT(VLOOKUP($B152,'Project Information'!$C$31:$D$105,2,FALSE),2)="No",IFERROR(INDIRECT("'"&$B152&"'!"&"$I$569"),""),"") ->  | I152: 0
E153: =IF(LEFT(VLOOKUP($B153,'Project Information'!$C$31:$D$105,2,FALSE),2)="No",IFERROR(INDIRECT("'"&$B153&"'!"&"$F$569"),""),"") ->  | F153: =IF(LEFT(VLOOKUP($B153,'Project Information'!$C$31:$D$105,2,FALSE),2)="No",IFERROR(INDIRECT("'"&$B153&"'!"&"$G$569"),""),"") ->  | G153: =IF(LEFT(VLOOKUP($B153,'Project Information'!$C$31:$D$105,2,FALSE),2)="No",IFERROR(INDIRECT("'"&$B153&"'!"&"$H$569"),""),"") ->  | H153: =IF(LEFT(VLOOKUP($B153,'Project Information'!$C$31:$D$105,2,FALSE),2)="No",IFERROR(INDIRECT("'"&$B153&"'!"&"$I$569"),""),"") ->  | I153: 0
E154: =IF(LEFT(VLOOKUP($B154,'Project Information'!$C$31:$D$105,2,FALSE),2)="No",IFERROR(INDIRECT("'"&$B154&"'!"&"$F$569"),""),"") ->  | F154: =IF(LEFT(VLOOKUP($B154,'Project Information'!$C$31:$D$105,2,FALSE),2)="No",IFERROR(INDIRECT("'"&$B154&"'!"&"$G$569"),""),"") ->  | G154: =IF(LEFT(VLOOKUP($B154,'Project Information'!$C$31:$D$105,2,FALSE),2)="No",IFERROR(INDIRECT("'"&$B154&"'!"&"$H$569"),""),"") ->  | H154: =IF(LEFT(VLOOKUP($B154,'Project Information'!$C$31:$D$105,2,FALSE),2)="No",IFERROR(INDIRECT("'"&$B154&"'!"&"$I$569"),""),"") ->  | I154: 0
E155: =IF(LEFT(VLOOKUP($B155,'Project Information'!$C$31:$D$105,2,FALSE),2)="No",IFERROR(INDIRECT("'"&$B155&"'!"&"$F$569"),""),"") ->  | F155: =IF(LEFT(VLOOKUP($B155,'Project Information'!$C$31:$D$105,2,FALSE),2)="No",IFERROR(INDIRECT("'"&$B155&"'!"&"$G$569"),""),"") ->  | G155: =IF(LEFT(VLOOKUP($B155,'Project Information'!$C$31:$D$105,2,FALSE),2)="No",IFERROR(INDIRECT("'"&$B155&"'!"&"$H$569"),""),"") ->  | H155: =IF(LEFT(VLOOKUP($B155,'Project Information'!$C$31:$D$105,2,FALSE),2)="No",IFERROR(INDIRECT("'"&$B155&"'!"&"$I$569"),""),"") ->  | I155: 0
E156: =IF(LEFT(VLOOKUP($B156,'Project Information'!$C$31:$D$105,2,FALSE),2)="No",IFERROR(INDIRECT("'"&$B156&"'!"&"$F$569"),""),"") ->  | F156: =IF(LEFT(VLOOKUP($B156,'Project Information'!$C$31:$D$105,2,FALSE),2)="No",IFERROR(INDIRECT("'"&$B156&"'!"&"$G$569"),""),"") ->  | G156: =IF(LEFT(VLOOKUP($B156,'Project Information'!$C$31:$D$105,2,FALSE),2)="No",IFERROR(INDIRECT("'"&$B156&"'!"&"$H$569"),""),"") ->  | H156: =IF(LEFT(VLOOKUP($B156,'Project Information'!$C$31:$D$105,2,FALSE),2)="No",IFERROR(INDIRECT("'"&$B156&"'!"&"$I$569"),""),"") ->  | I156: 0
E157: =IF(LEFT(VLOOKUP($B157,'Project Information'!$C$31:$D$105,2,FALSE),2)="No",IFERROR(INDIRECT("'"&$B157&"'!"&"$F$569"),""),"") ->  | F157: =IF(LEFT(VLOOKUP($B157,'Project Information'!$C$31:$D$105,2,FALSE),2)="No",IFERROR(INDIRECT("'"&$B157&"'!"&"$G$569"),""),"") ->  | G157: =IF(LEFT(VLOOKUP($B157,'Project Information'!$C$31:$D$105,2,FALSE),2)="No",IFERROR(INDIRECT("'"&$B157&"'!"&"$H$569"),""),"") ->  | H157: =IF(LEFT(VLOOKUP($B157,'Project Information'!$C$31:$D$105,2,FALSE),2)="No",IFERROR(INDIRECT("'"&$B157&"'!"&"$I$569"),""),"") ->  | I157: 0
E158: =IF(LEFT(VLOOKUP($B158,'Project Information'!$C$31:$D$105,2,FALSE),2)="No",IFERROR(INDIRECT("'"&$B158&"'!"&"$F$569"),""),"") ->  | F158: =IF(LEFT(VLOOKUP($B158,'Project Information'!$C$31:$D$105,2,FALSE),2)="No",IFERROR(INDIRECT("'"&$B158&"'!"&"$G$569"),""),"") ->  | G158: =IF(LEFT(VLOOKUP($B158,'Project Information'!$C$31:$D$105,2,FALSE),2)="No",IFERROR(INDIRECT("'"&$B158&"'!"&"$H$569"),""),"") ->  | H158: =IF(LEFT(VLOOKUP($B158,'Project Information'!$C$31:$D$105,2,FALSE),2)="No",IFERROR(INDIRECT("'"&$B158&"'!"&"$I$569"),""),"") ->  | I158: 0
B159: =IF(B75="","",B75) ->  | E159: =IF(LEFT(VLOOKUP($B159,'Project Information'!$C$31:$D$105,2,FALSE),2)="No",IFERROR(INDIRECT("'"&$B159&"'!"&"$F$569"),""),"") ->  | F159: =IF(LEFT(VLOOKUP($B159,'Project Information'!$C$31:$D$105,2,FALSE),2)="No",IFERROR(INDIRECT("'"&$B159&"'!"&"$G$569"),""),"") ->  | G159: =IF(LEFT(VLOOKUP($B159,'Project Information'!$C$31:$D$105,2,FALSE),2)="No",IFERROR(INDIRECT("'"&$B159&"'!"&"$H$569"),""),"") ->  | H159: =IF(LEFT(VLOOKUP($B159,'Project Information'!$C$31:$D$105,2,FALSE),2)="No",IFERROR(INDIRECT("'"&$B159&"'!"&"$I$569"),""),"") ->  | I159: 0
B160: =IF(B76="","",B76) ->  | E160: =IF(LEFT(VLOOKUP($B160,'Project Information'!$C$31:$D$105,2,FALSE),2)="No",IFERROR(INDIRECT("'"&$B160&"'!"&"$F$569"),""),"") ->  | F160: =IF(LEFT(VLOOKUP($B160,'Project Information'!$C$31:$D$105,2,FALSE),2)="No",IFERROR(INDIRECT("'"&$B160&"'!"&"$G$569"),""),"") ->  | G160: =IF(LEFT(VLOOKUP($B160,'Project Information'!$C$31:$D$105,2,FALSE),2)="No",IFERROR(INDIRECT("'"&$B160&"'!"&"$H$569"),""),"") ->  | H160: =IF(LEFT(VLOOKUP($B160,'Project Information'!$C$31:$D$105,2,FALSE),2)="No",IFERROR(INDIRECT("'"&$B160&"'!"&"$I$569"),""),"") ->  | I160: 0
B161: =IF(B77="","",B77) ->  | E161: =IF(LEFT(VLOOKUP($B161,'Project Information'!$C$31:$D$105,2,FALSE),2)="No",IFERROR(INDIRECT("'"&$B161&"'!"&"$F$569"),""),"") ->  | F161: =IF(LEFT(VLOOKUP($B161,'Project Information'!$C$31:$D$105,2,FALSE),2)="No",IFERROR(INDIRECT("'"&$B161&"'!"&"$G$569"),""),"") ->  | G161: =IF(LEFT(VLOOKUP($B161,'Project Information'!$C$31:$D$105,2,FALSE),2)="No",IFERROR(INDIRECT("'"&$B161&"'!"&"$H$569"),""),"") ->  | H161: =IF(LEFT(VLOOKUP($B161,'Project Information'!$C$31:$D$105,2,FALSE),2)="No",IFERROR(INDIRECT("'"&$B161&"'!"&"$I$569"),""),"") ->  | I161: 0
B162: =IF(B78="","",B78) ->  | E162: =IF(LEFT(VLOOKUP($B162,'Project Information'!$C$31:$D$105,2,FALSE),2)="No",IFERROR(INDIRECT("'"&$B162&"'!"&"$F$569"),""),"") ->  | F162: =IF(LEFT(VLOOKUP($B162,'Project Information'!$C$31:$D$105,2,FALSE),2)="No",IFERROR(INDIRECT("'"&$B162&"'!"&"$G$569"),""),"") ->  | G162: =IF(LEFT(VLOOKUP($B162,'Project Information'!$C$31:$D$105,2,FALSE),2)="No",IFERROR(INDIRECT("'"&$B162&"'!"&"$H$569"),""),"") ->  | H162: =IF(LEFT(VLOOKUP($B162,'Project Information'!$C$31:$D$105,2,FALSE),2)="No",IFERROR(INDIRECT("'"&$B162&"'!"&"$I$569"),""),"") ->  | I162: 0
B163: =IF(B79="","",B79) ->  | E163: =IF(LEFT(VLOOKUP($B163,'Project Information'!$C$31:$D$105,2,FALSE),2)="No",IFERROR(INDIRECT("'"&$B163&"'!"&"$F$569"),""),"") ->  | F163: =IF(LEFT(VLOOKUP($B163,'Project Information'!$C$31:$D$105,2,FALSE),2)="No",IFERROR(INDIRECT("'"&$B163&"'!"&"$G$569"),""),"") ->  | G163: =IF(LEFT(VLOOKUP($B163,'Project Information'!$C$31:$D$105,2,FALSE),2)="No",IFERROR(INDIRECT("'"&$B163&"'!"&"$H$569"),""),"") ->  | H163: =IF(LEFT(VLOOKUP($B163,'Project Information'!$C$31:$D$105,2,FALSE),2)="No",IFERROR(INDIRECT("'"&$B163&"'!"&"$I$569"),""),"") ->  | I163: 0
B164: =IF(B85="","",B85) ->  | E164: =IF(LEFT(VLOOKUP($B164,'Project Information'!$C$31:$D$105,2,FALSE),2)="No",IFERROR(INDIRECT("'"&$B164&"'!"&"$F$569"),""),"") ->  | F164: =IF(LEFT(VLOOKUP($B164,'Project Information'!$C$31:$D$105,2,FALSE),2)="No",IFERROR(INDIRECT("'"&$B164&"'!"&"$G$569"),""),"") ->  | G164: =IF(LEFT(VLOOKUP($B164,'Project Information'!$C$31:$D$105,2,FALSE),2)="No",IFERROR(INDIRECT("'"&$B164&"'!"&"$H$569"),""),"") ->  | H164: =IF(LEFT(VLOOKUP($B164,'Project Information'!$C$31:$D$105,2,FALSE),2)="No",IFERROR(INDIRECT("'"&$B164&"'!"&"$I$569"),""),"") ->  | I164: 0
E165: =IF(LEFT(VLOOKUP($B165,'Project Information'!$C$31:$D$105,2,FALSE),2)="No",IFERROR(INDIRECT("'"&$B165&"'!"&"$F$569"),""),"") ->  | F165: =IF(LEFT(VLOOKUP($B165,'Project Information'!$C$31:$D$105,2,FALSE),2)="No",IFERROR(INDIRECT("'"&$B165&"'!"&"$G$569"),""),"") ->  | G165: =IF(LEFT(VLOOKUP($B165,'Project Information'!$C$31:$D$105,2,FALSE),2)="No",IFERROR(INDIRECT("'"&$B165&"'!"&"$H$569"),""),"") ->  | H165: =IF(LEFT(VLOOKUP($B165,'Project Information'!$C$31:$D$105,2,FALSE),2)="No",IFERROR(INDIRECT("'"&$B165&"'!"&"$I$569"),""),"") ->  | I165: 0
E166: =IF(LEFT(VLOOKUP($B166,'Project Information'!$C$31:$D$105,2,FALSE),2)="No",IFERROR(INDIRECT("'"&$B166&"'!"&"$F$569"),""),"") ->  | F166: =IF(LEFT(VLOOKUP($B166,'Project Information'!$C$31:$D$105,2,FALSE),2)="No",IFERROR(INDIRECT("'"&$B166&"'!"&"$G$569"),""),"") ->  | G166: =IF(LEFT(VLOOKUP($B166,'Project Information'!$C$31:$D$105,2,FALSE),2)="No",IFERROR(INDIRECT("'"&$B166&"'!"&"$H$569"),""),"") ->  | H166: =IF(LEFT(VLOOKUP($B166,'Project Information'!$C$31:$D$105,2,FALSE),2)="No",IFERROR(INDIRECT("'"&$B166&"'!"&"$I$569"),""),"") ->  | I166: 0
E167: =IF(LEFT(VLOOKUP($B167,'Project Information'!$C$31:$D$105,2,FALSE),2)="No",IFERROR(INDIRECT("'"&$B167&"'!"&"$F$569"),""),"") ->  | F167: =IF(LEFT(VLOOKUP($B167,'Project Information'!$C$31:$D$105,2,FALSE),2)="No",IFERROR(INDIRECT("'"&$B167&"'!"&"$G$569"),""),"") ->  | G167: =IF(LEFT(VLOOKUP($B167,'Project Information'!$C$31:$D$105,2,FALSE),2)="No",IFERROR(INDIRECT("'"&$B167&"'!"&"$H$569"),""),"") ->  | H167: =IF(LEFT(VLOOKUP($B167,'Project Information'!$C$31:$D$105,2,FALSE),2)="No",IFERROR(INDIRECT("'"&$B167&"'!"&"$I$569"),""),"") ->  | I167: 0
E168: =IF(LEFT(VLOOKUP($B168,'Project Information'!$C$31:$D$105,2,FALSE),2)="No",IFERROR(INDIRECT("'"&$B168&"'!"&"$F$569"),""),"") ->  | F168: =IF(LEFT(VLOOKUP($B168,'Project Information'!$C$31:$D$105,2,FALSE),2)="No",IFERROR(INDIRECT("'"&$B168&"'!"&"$G$569"),""),"") ->  | G168: =IF(LEFT(VLOOKUP($B168,'Project Information'!$C$31:$D$105,2,FALSE),2)="No",IFERROR(INDIRECT("'"&$B168&"'!"&"$H$569"),""),"") ->  | H168: =IF(LEFT(VLOOKUP($B168,'Project Information'!$C$31:$D$105,2,FALSE),2)="No",IFERROR(INDIRECT("'"&$B168&"'!"&"$I$569"),""),"") ->  | I168: 0
E169: =IF(LEFT(VLOOKUP($B169,'Project Information'!$C$31:$D$105,2,FALSE),2)="No",IFERROR(INDIRECT("'"&$B169&"'!"&"$F$569"),""),"") ->  | F169: =IF(LEFT(VLOOKUP($B169,'Project Information'!$C$31:$D$105,2,FALSE),2)="No",IFERROR(INDIRECT("'"&$B169&"'!"&"$G$569"),""),"") ->  | G169: =IF(LEFT(VLOOKUP($B169,'Project Information'!$C$31:$D$105,2,FALSE),2)="No",IFERROR(INDIRECT("'"&$B169&"'!"&"$H$569"),""),"") ->  | H169: =IF(LEFT(VLOOKUP($B169,'Project Information'!$C$31:$D$105,2,FALSE),2)="No",IFERROR(INDIRECT("'"&$B169&"'!"&"$I$569"),""),"") ->  | I169: 0
E170: =IF(LEFT(VLOOKUP($B170,'Project Information'!$C$31:$D$105,2,FALSE),2)="No",IFERROR(INDIRECT("'"&$B170&"'!"&"$F$569"),""),"") ->  | F170: =IF(LEFT(VLOOKUP($B170,'Project Information'!$C$31:$D$105,2,FALSE),2)="No",IFERROR(INDIRECT("'"&$B170&"'!"&"$G$569"),""),"") ->  | G170: =IF(LEFT(VLOOKUP($B170,'Project Information'!$C$31:$D$105,2,FALSE),2)="No",IFERROR(INDIRECT("'"&$B170&"'!"&"$H$569"),""),"") ->  | H170: =IF(LEFT(VLOOKUP($B170,'Project Information'!$C$31:$D$105,2,FALSE),2)="No",IFERROR(INDIRECT("'"&$B170&"'!"&"$I$569"),""),"") ->  | I170: =SUM(E170:H170) -> 0
E171: =IF(LEFT(VLOOKUP($B171,'Project Information'!$C$31:$D$105,2,FALSE),2)="No",IFERROR(INDIRECT("'"&$B171&"'!"&"$F$569"),""),"") ->  | F171: =IF(LEFT(VLOOKUP($B171,'Project Information'!$C$31:$D$105,2,FALSE),2)="No",IFERROR(INDIRECT("'"&$B171&"'!"&"$G$569"),""),"") ->  | G171: =IF(LEFT(VLOOKUP($B171,'Project Information'!$C$31:$D$105,2,FALSE),2)="No",IFERROR(INDIRECT("'"&$B171&"'!"&"$H$569"),""),"") ->  | H171: =IF(LEFT(VLOOKUP($B171,'Project Information'!$C$31:$D$105,2,FALSE),2)="No",IFERROR(INDIRECT("'"&$B171&"'!"&"$I$569"),""),"") ->  | I171: 0
E172: =IF(LEFT(VLOOKUP($B172,'Project Information'!$C$31:$D$105,2,FALSE),2)="No",IFERROR(INDIRECT("'"&$B172&"'!"&"$F$569"),""),"") ->  | F172: =IF(LEFT(VLOOKUP($B172,'Project Information'!$C$31:$D$105,2,FALSE),2)="No",IFERROR(INDIRECT("'"&$B172&"'!"&"$G$569"),""),"") ->  | G172: =IF(LEFT(VLOOKUP($B172,'Project Information'!$C$31:$D$105,2,FALSE),2)="No",IFERROR(INDIRECT("'"&$B172&"'!"&"$H$569"),""),"") ->  | H172: =IF(LEFT(VLOOKUP($B172,'Project Information'!$C$31:$D$105,2,FALSE),2)="No",IFERROR(INDIRECT("'"&$B172&"'!"&"$I$569"),""),"") ->  | I172: 0
E173: =IF(LEFT(VLOOKUP($B173,'Project Information'!$C$31:$D$105,2,FALSE),2)="No",IFERROR(INDIRECT("'"&$B173&"'!"&"$F$569"),""),"") ->  | F173: =IF(LEFT(VLOOKUP($B173,'Project Information'!$C$31:$D$105,2,FALSE),2)="No",IFERROR(INDIRECT("'"&$B173&"'!"&"$G$569"),""),"") ->  | G173: =IF(LEFT(VLOOKUP($B173,'Project Information'!$C$31:$D$105,2,FALSE),2)="No",IFERROR(INDIRECT("'"&$B173&"'!"&"$H$569"),""),"") ->  | H173: =IF(LEFT(VLOOKUP($B173,'Project Information'!$C$31:$D$105,2,FALSE),2)="No",IFERROR(INDIRECT("'"&$B173&"'!"&"$I$569"),""),"") ->  | I173: 0
E174: =IF(LEFT(VLOOKUP($B174,'Project Information'!$C$31:$D$105,2,FALSE),2)="No",IFERROR(INDIRECT("'"&$B174&"'!"&"$F$569"),""),"") ->  | F174: =IF(LEFT(VLOOKUP($B174,'Project Information'!$C$31:$D$105,2,FALSE),2)="No",IFERROR(INDIRECT("'"&$B174&"'!"&"$G$569"),""),"") ->  | G174: =IF(LEFT(VLOOKUP($B174,'Project Information'!$C$31:$D$105,2,FALSE),2)="No",IFERROR(INDIRECT("'"&$B174&"'!"&"$H$569"),""),"") ->  | H174: =IF(LEFT(VLOOKUP($B174,'Project Information'!$C$31:$D$105,2,FALSE),2)="No",IFERROR(INDIRECT("'"&$B174&"'!"&"$I$569"),""),"") ->  | I174: 0
E175: =IF(LEFT(VLOOKUP($B175,'Project Information'!$C$31:$D$105,2,FALSE),2)="No",IFERROR(INDIRECT("'"&$B175&"'!"&"$F$569"),""),"") ->  | F175: =IF(LEFT(VLOOKUP($B175,'Project Information'!$C$31:$D$105,2,FALSE),2)="No",IFERROR(INDIRECT("'"&$B175&"'!"&"$G$569"),""),"") ->  | G175: =IF(LEFT(VLOOKUP($B175,'Project Information'!$C$31:$D$105,2,FALSE),2)="No",IFERROR(INDIRECT("'"&$B175&"'!"&"$H$569"),""),"") ->  | H175: =IF(LEFT(VLOOKUP($B175,'Project Information'!$C$31:$D$105,2,FALSE),2)="No",IFERROR(INDIRECT("'"&$B175&"'!"&"$I$569"),""),"") ->  | I175: 0
B178: Summary by Crash Type
B179: Crash Type | C179: Existing Observed Crash Frequency | D179: Proposed Observed Crash Frequency
B181: Unknown | D181: 0
B182: Head On | D182: 0
B183: Rear End | D183: 0
B184: Backing | D184: 0
B185: Sideswipe - Meeting | D185: 0
B186: Sideswipe - Passing | D186: 0
B187: Angle | D187: 0
B188: Parked Vehicle | D188: 0
B189: Pedestrian | D189: 0
B190: Animal | D190: 0
B191: Train | D191: 0
B192: Pedalcycles | D192: 0
B193: Other Non-Vehicle | D193: 0
B194: Fixed Object | D194: 0
B195: Other Object | D195: 0
B196: Overturning | D196: 0
B197: Other Non-Collision | D197: 0
B198: Left Turn | D198: 0
B199: Right Turn | D199: 0

Sheet DesignExceptionReport (hidden)
A1: =Instructions!$E$11 -> Project and Site Conditions Information | B1: Design Exception Report | BA1: Rural Two-Lane Two Way Segment | BB1: Segment | BC1: Rural
B2: General Information | BA2: Rural Two-Lane Two Way Intersection | BB2: Intersection | BC2: Rural
B3: Project Name | D3: =IF('Project Information'!$D$3="","",'Project Information'!$D$3) -> MAD-665 at Spring Valley | F3: Contact Email | H3: =IF('Project Information'!$I$3="","",'Project Information'!$I$3) ->  | BA3: Rural Multilane Segment; Undivided | BB3: Segment | BC3: Rural
B4: Project Description | D4: =IF('Project Information'!$D$4="","",'Project Information'!$D$4) ->  | F4: Contact Phone | H4: =IF('Project Information'!$I$4="","",'Project Information'!$I$4) ->  | BA4: Rural Multilane Segment; Divided | BB4: Segment | BC4: Rural
B5: Reference Number | D5: =IF('Project Information'!$D$5="","",'Project Information'!$D$5) ->  | F5: Date Performed | H5: =IF('Project Information'!$I$5="","",'Project Information'!$I$5) ->  | BA5: Rural Multilane Intersection | BB5: Intersection | BC5: Rural
B6: Analyst | D6: =IF('Project Information'!$D$6="","",'Project Information'!$D$6) ->  | F6: Analysis Year | H6: =IF('Project Information'!$I$6="","",'Project Information'!$I$6) ->  | BA6: Urban & Suburban Arterial Segment | BB6: Segment | BC6: Urban
B7: Agency/Company | D7: =IF('Project Information'!$D$7="","",'Project Information'!$D$7) ->  | H7: =IF('Project Information'!$I$7="","",'Project Information'!$I$7) ->  | BA7: Urban & Suburban Arterial Intersection | BB7: Intersection | BC7: Urban
BA8: Ramp Terminal Intersection | BB8: Intersection | BC8: Unknown
B9: Analysis Results:Δ | D9: =AA13 -> Please verify each site to determine if the thresholds set in ODOT Location & Design Manual, Volume 1, Section 105.5.1.2 are exceeded. | BA9: No Valid HSM Site Type - Segment | BB9: Segment | BC9: Unknown
D10: Δ Please see the ODOT Location and Design Manual Volume 1, Section 105.5 for required documentation.
B12: Design Exception Site Summary
B13: Project Element ID | C13: Common Name | E13: Area Type | F13: Length (Segments only) | G13: Total Expected Crashes* | H13: Total Expected Excess Crashes* PSI | I13: FSI Expected Excess* (PSI) | AA13: =IF(AB14>0,"Please verify each site to determine if the thresholds set in ODOT Location & Design Manual, Volume 1, Section 105.5.1.2 are exceeded.",IF(AA14>0,"The thresholds set in ODOT Location & Design Manual, Volume 1, Section 105.5.1.2 are EXCEEDED.","The thresholds set in ODOT Location & Design Manual, Volume 1, Section 105.5.1.2 are NOT exceeded.")) -> Please verify each site to determine if the thresholds set in ODOT Location & Design Manual, Volume 1, Section 105.5.1.2 are exceeded.
AA14: =IFERROR(SUM(AA15:AA89),1) -> 1 | AB14: =IFERROR(SUM(AB15:AB89),-1) -> 2 | AC14: SiteType | AD14: Segement?
B15: SR665; 3.28 | C15: =IF(B15="","",IF(VLOOKUP(B15,'Project Information'!$C$31:$K$105,9,FALSE)=0,"",VLOOKUP(B15,'Project Information'!$C$31:$K$105,9,FALSE))) -> Spring Valley Rd | D15: =IF(C15="","",IF(VLOOKUP(C15,'Project Information'!$C$31:$K$105,9,FALSE)=0,"",VLOOKUP(C15,'Project Information'!$C$31:$K$105,9,FALSE))) ->  | E15: =IF(B15="","",IFERROR(VLOOKUP(AC15,$BA$1:$BC$9,3,FALSE),"")) ->  | F15: =IF(B15="","",IF(AD15="Y",IFERROR(VLOOKUP(B15,'Project Information'!$C$31:$I$105,7,FALSE),""),"")) ->  | G15: =IFERROR(INDIRECT("'"&$B15&"'!"&"$AG$566"),"") -> 0 | H15: =IFERROR(INDIRECT("'"&$B15&"'!"&"$AG$567"),"") -> 0 | I15: =IFERROR(INDIRECT("'"&$B15&"'!"&"$AC$567"),"") -> 0 | AA15: =IF(B15="",0,IF(I15>=0.33,1,IF(G15>=3.33,IF(H15>=1,1,0),0))) -> 0 | AB15: =IF(B15="",0,IF(SUM(G15:I15)=0,1,0)) -> 1 | AC15: =IFERROR(VLOOKUP(B15,'Project Information'!$C$31:$D$105,2,FALSE),"") -> Roundabout | AD15: =IF(AC15="","",IF(VLOOKUP(AC15,$BA$1:$BB$9,2,FALSE)="Segment","Y","N")) -> 
B16: MR9547; 0.213 | C16: =IF(B16="","",IF(VLOOKUP(B16,'Project Information'!$C$31:$K$105,9,FALSE)=0,"",VLOOKUP(B16,'Project Information'!$C$31:$K$105,9,FALSE))) ->  | D16: =IF(C16="","",IF(VLOOKUP(C16,'Project Information'!$C$31:$K$105,9,FALSE)=0,"",VLOOKUP(C16,'Project Information'!$C$31:$K$105,9,FALSE))) ->  | E16: =IF(B16="","",IFERROR(VLOOKUP(AC16,$BA$1:$BC$9,3,FALSE),"")) ->  | F16: =IF(B16="","",IF(AD16="Y",IFERROR(VLOOKUP(B16,'Project Information'!$C$31:$I$105,7,FALSE),""),"")) ->  | AA16: 1 | AB16: 1 | AC16: =IFERROR(VLOOKUP(B16,'Project Information'!$C$31:$D$105,2,FALSE),"") ->  | AD16: =IF(AC16="","",IF(VLOOKUP(AC16,$BA$1:$BB$9,2,FALSE)="Segment","Y","N")) -> 
C17: =IF(B17="","",IF(VLOOKUP(B17,'Project Information'!$C$31:$K$105,9,FALSE)=0,"",VLOOKUP(B17,'Project Information'!$C$31:$K$105,9,FALSE))) ->  | D17: =IF(C17="","",IF(VLOOKUP(C17,'Project Information'!$C$31:$K$105,9,FALSE)=0,"",VLOOKUP(C17,'Project Information'!$C$31:$K$105,9,FALSE))) ->  | F17: =IF(B17="","",IF(AD17="Y",IFERROR(VLOOKUP(B17,'Project Information'!$C$31:$I$105,7,FALSE),""),"")) ->  | AA17: 0 | AB17: 0 | AC17: =IFERROR(VLOOKUP(B17,'Project Information'!$C$31:$D$105,2,FALSE),"") -> 
C18: =IF(B18="","",IF(VLOOKUP(B18,'Project Information'!$C$31:$K$105,9,FALSE)=0,"",VLOOKUP(B18,'Project Information'!$C$31:$K$105,9,FALSE))) ->  | D18: =IF(C18="","",IF(VLOOKUP(C18,'Project Information'!$C$31:$K$105,9,FALSE)=0,"",VLOOKUP(C18,'Project Information'!$C$31:$K$105,9,FALSE))) ->  | F18: =IF(B18="","",IF(AD18="Y",IFERROR(VLOOKUP(B18,'Project Information'!$C$31:$I$105,7,FALSE),""),"")) ->  | AA18: 0 | AB18: 0 | AC18: =IFERROR(VLOOKUP(B18,'Project Information'!$C$31:$D$105,2,FALSE),"") -> 
C19: =IF(B19="","",IF(VLOOKUP(B19,'Project Information'!$C$31:$K$105,9,FALSE)=0,"",VLOOKUP(B19,'Project Information'!$C$31:$K$105,9,FALSE))) ->  | D19: =IF(C19="","",IF(VLOOKUP(C19,'Project Information'!$C$31:$K$105,9,FALSE)=0,"",VLOOKUP(C19,'Project Information'!$C$31:$K$105,9,FALSE))) ->  | F19: =IF(B19="","",IF(AD19="Y",IFERROR(VLOOKUP(B19,'Project Information'!$C$31:$I$105,7,FALSE),""),"")) ->  | AA19: 0 | AB19: 0 | AC19: =IFERROR(VLOOKUP(B19,'Project Information'!$C$31:$D$105,2,FALSE),"") -> 
C20: =IF(B20="","",IF(VLOOKUP(B20,'Project Information'!$C$31:$K$105,9,FALSE)=0,"",VLOOKUP(B20,'Project Information'!$C$31:$K$105,9,FALSE))) ->  | D20: =IF(C20="","",IF(VLOOKUP(C20,'Project Information'!$C$31:$K$105,9,FALSE)=0,"",VLOOKUP(C20,'Project Information'!$C$31:$K$105,9,FALSE))) ->  | F20: =IF(B20="","",IF(AD20="Y",IFERROR(VLOOKUP(B20,'Project Information'!$C$31:$I$105,7,FALSE),""),"")) ->  | AA20: 0 | AB20: 0 | AC20: =IFERROR(VLOOKUP(B20,'Project Information'!$C$31:$D$105,2,FALSE),"") -> 
C21: =IF(B21="","",IF(VLOOKUP(B21,'Project Information'!$C$31:$K$105,9,FALSE)=0,"",VLOOKUP(B21,'Project Information'!$C$31:$K$105,9,FALSE))) ->  | D21: =IF(C21="","",IF(VLOOKUP(C21,'Project Information'!$C$31:$K$105,9,FALSE)=0,"",VLOOKUP(C21,'Project Information'!$C$31:$K$105,9,FALSE))) ->  | F21: =IF(B21="","",IF(AD21="Y",IFERROR(VLOOKUP(B21,'Project Information'!$C$31:$I$105,7,FALSE),""),"")) ->  | AA21: 0 | AB21: 0 | AC21: =IFERROR(VLOOKUP(B21,'Project Information'!$C$31:$D$105,2,FALSE),"") -> 
C22: =IF(B22="","",IF(VLOOKUP(B22,'Project Information'!$C$31:$K$105,9,FALSE)=0,"",VLOOKUP(B22,'Project Information'!$C$31:$K$105,9,FALSE))) ->  | D22: =IF(C22="","",IF(VLOOKUP(C22,'Project Information'!$C$31:$K$105,9,FALSE)=0,"",VLOOKUP(C22,'Project Information'!$C$31:$K$105,9,FALSE))) ->  | F22: =IF(B22="","",IF(AD22="Y",IFERROR(VLOOKUP(B22,'Project Information'!$C$31:$I$105,7,FALSE),""),"")) ->  | AA22: 0 | AB22: 0 | AC22: =IFERROR(VLOOKUP(B22,'Project Information'!$C$31:$D$105,2,FALSE),"") -> 
C23: =IF(B23="","",IF(VLOOKUP(B23,'Project Information'!$C$31:$K$105,9,FALSE)=0,"",VLOOKUP(B23,'Project Information'!$C$31:$K$105,9,FALSE))) ->  | D23: =IF(C23="","",IF(VLOOKUP(C23,'Project Information'!$C$31:$K$105,9,FALSE)=0,"",VLOOKUP(C23,'Project Information'!$C$31:$K$105,9,FALSE))) ->  | F23: =IF(B23="","",IF(AD23="Y",IFERROR(VLOOKUP(B23,'Project Information'!$C$31:$I$105,7,FALSE),""),"")) ->  | AA23: 0 | AB23: 0 | AC23: =IFERROR(VLOOKUP(B23,'Project Information'!$C$31:$D$105,2,FALSE),"") -> 
C24: =IF(B24="","",IF(VLOOKUP(B24,'Project Information'!$C$31:$K$105,9,FALSE)=0,"",VLOOKUP(B24,'Project Information'!$C$31:$K$105,9,FALSE))) ->  | D24: =IF(C24="","",IF(VLOOKUP(C24,'Project Information'!$C$31:$K$105,9,FALSE)=0,"",VLOOKUP(C24,'Project Information'!$C$31:$K$105,9,FALSE))) ->  | F24: =IF(B24="","",IF(AD24="Y",IFERROR(VLOOKUP(B24,'Project Information'!$C$31:$I$105,7,FALSE),""),"")) ->  | AA24: 0 | AB24: 0 | AC24: =IFERROR(VLOOKUP(B24,'Project Information'!$C$31:$D$105,2,FALSE),"") -> 
C25: =IF(B25="","",IF(VLOOKUP(B25,'Project Information'!$C$31:$K$105,9,FALSE)=0,"",VLOOKUP(B25,'Project Information'!$C$31:$K$105,9,FALSE))) ->  | D25: =IF(C25="","",IF(VLOOKUP(C25,'Project Information'!$C$31:$K$105,9,FALSE)=0,"",VLOOKUP(C25,'Project Information'!$C$31:$K$105,9,FALSE))) ->  | F25: =IF(B25="","",IF(AD25="Y",IFERROR(VLOOKUP(B25,'Project Information'!$C$31:$I$105,7,FALSE),""),"")) ->  | AA25: 0 | AB25: 0 | AC25: =IFERROR(VLOOKUP(B25,'Project Information'!$C$31:$D$105,2,FALSE),"") -> 
C26: =IF(B26="","",IF(VLOOKUP(B26,'Project Information'!$C$31:$K$105,9,FALSE)=0,"",VLOOKUP(B26,'Project Information'!$C$31:$K$105,9,FALSE))) ->  | D26: =IF(C26="","",IF(VLOOKUP(C26,'Project Information'!$C$31:$K$105,9,FALSE)=0,"",VLOOKUP(C26,'Project Information'!$C$31:$K$105,9,FALSE))) ->  | F26: =IF(B26="","",IF(AD26="Y",IFERROR(VLOOKUP(B26,'Project Information'!$C$31:$I$105,7,FALSE),""),"")) ->  | AA26: 0 | AB26: 0 | AC26: =IFERROR(VLOOKUP(B26,'Project Information'!$C$31:$D$105,2,FALSE),"") -> 
C27: =IF(B27="","",IF(VLOOKUP(B27,'Project Information'!$C$31:$K$105,9,FALSE)=0,"",VLOOKUP(B27,'Project Information'!$C$31:$K$105,9,FALSE))) ->  | D27: =IF(C27="","",IF(VLOOKUP(C27,'Project Information'!$C$31:$K$105,9,FALSE)=0,"",VLOOKUP(C27,'Project Information'!$C$31:$K$105,9,FALSE))) ->  | F27: =IF(B27="","",IF(AD27="Y",IFERROR(VLOOKUP(B27,'Project Information'!$C$31:$I$105,7,FALSE),""),"")) ->  | AA27: 0 | AB27: 0 | AC27: =IFERROR(VLOOKUP(B27,'Project Information'!$C$31:$D$105,2,FALSE),"") -> 
C28: =IF(B28="","",IF(VLOOKUP(B28,'Project Information'!$C$31:$K$105,9,FALSE)=0,"",VLOOKUP(B28,'Project Information'!$C$31:$K$105,9,FALSE))) ->  | D28: =IF(C28="","",IF(VLOOKUP(C28,'Project Information'!$C$31:$K$105,9,FALSE)=0,"",VLOOKUP(C28,'Project Information'!$C$31:$K$105,9,FALSE))) ->  | F28: =IF(B28="","",IF(AD28="Y",IFERROR(VLOOKUP(B28,'Project Information'!$C$31:$I$105,7,FALSE),""),"")) ->  | AA28: 0 | AB28: 0 | AC28: =IFERROR(VLOOKUP(B28,'Project Information'!$C$31:$D$105,2,FALSE),"") -> 
C29: =IF(B29="","",IF(VLOOKUP(B29,'Project Information'!$C$31:$K$105,9,FALSE)=0,"",VLOOKUP(B29,'Project Information'!$C$31:$K$105,9,FALSE))) ->  | D29: =IF(C29="","",IF(VLOOKUP(C29,'Project Information'!$C$31:$K$105,9,FALSE)=0,"",VLOOKUP(C29,'Project Information'!$C$31:$K$105,9,FALSE))) ->  | F29: =IF(B29="","",IF(AD29="Y",IFERROR(VLOOKUP(B29,'Project Information'!$C$31:$I$105,7,FALSE),""),"")) ->  | AA29: 0 | AB29: 0 | AC29: =IFERROR(VLOOKUP(B29,'Project Information'!$C$31:$D$105,2,FALSE),"") -> 
C30: =IF(B30="","",IF(VLOOKUP(B30,'Project Information'!$C$31:$K$105,9,FALSE)=0,"",VLOOKUP(B30,'Project Information'!$C$31:$K$105,9,FALSE))) ->  | D30: =IF(C30="","",IF(VLOOKUP(C30,'Project Information'!$C$31:$K$105,9,FALSE)=0,"",VLOOKUP(C30,'Project Information'!$C$31:$K$105,9,FALSE))) ->  | F30: =IF(B30="","",IF(AD30="Y",IFERROR(VLOOKUP(B30,'Project Information'!$C$31:$I$105,7,FALSE),""),"")) ->  | AA30: 0 | AB30: 0 | AC30: =IFERROR(VLOOKUP(B30,'Project Information'!$C$31:$D$105,2,FALSE),"") -> 
C31: =IF(B31="","",IF(VLOOKUP(B31,'Project Information'!$C$31:$K$105,9,FALSE)=0,"",VLOOKUP(B31,'Project Information'!$C$31:$K$105,9,FALSE))) ->  | D31: =IF(C31="","",IF(VLOOKUP(C31,'Project Information'!$C$31:$K$105,9,FALSE)=0,"",VLOOKUP(C31,'Project Information'!$C$31:$K$105,9,FALSE))) ->  | F31: =IF(B31="","",IF(AD31="Y",IFERROR(VLOOKUP(B31,'Project Information'!$C$31:$I$105,7,FALSE),""),"")) ->  | AA31: 0 | AB31: 0 | AC31: =IFERROR(VLOOKUP(B31,'Project Information'!$C$31:$D$105,2,FALSE),"") -> 
C32: =IF(B32="","",IF(VLOOKUP(B32,'Project Information'!$C$31:$K$105,9,FALSE)=0,"",VLOOKUP(B32,'Project Information'!$C$31:$K$105,9,FALSE))) ->  | D32: =IF(C32="","",IF(VLOOKUP(C32,'Project Information'!$C$31:$K$105,9,FALSE)=0,"",VLOOKUP(C32,'Project Information'!$C$31:$K$105,9,FALSE))) ->  | F32: =IF(B32="","",IF(AD32="Y",IFERROR(VLOOKUP(B32,'Project Information'!$C$31:$I$105,7,FALSE),""),"")) ->  | AA32: 0 | AB32: 0 | AC32: =IFERROR(VLOOKUP(B32,'Project Information'!$C$31:$D$105,2,FALSE),"") -> 
C33: =IF(B33="","",IF(VLOOKUP(B33,'Project Information'!$C$31:$K$105,9,FALSE)=0,"",VLOOKUP(B33,'Project Information'!$C$31:$K$105,9,FALSE))) ->  | D33: =IF(C33="","",IF(VLOOKUP(C33,'Project Information'!$C$31:$K$105,9,FALSE)=0,"",VLOOKUP(C33,'Project Information'!$C$31:$K$105,9,FALSE))) ->  | F33: =IF(B33="","",IF(AD33="Y",IFERROR(VLOOKUP(B33,'Project Information'!$C$31:$I$105,7,FALSE),""),"")) ->  | AA33: 0 | AB33: 0 | AC33: =IFERROR(VLOOKUP(B33,'Project Information'!$C$31:$D$105,2,FALSE),"") -> 
C34: =IF(B34="","",IF(VLOOKUP(B34,'Project Information'!$C$31:$K$105,9,FALSE)=0,"",VLOOKUP(B34,'Project Information'!$C$31:$K$105,9,FALSE))) ->  | D34: =IF(C34="","",IF(VLOOKUP(C34,'Project Information'!$C$31:$K$105,9,FALSE)=0,"",VLOOKUP(C34,'Project Information'!$C$31:$K$105,9,FALSE))) ->  | F34: =IF(B34="","",IF(AD34="Y",IFERROR(VLOOKUP(B34,'Project Information'!$C$31:$I$105,7,FALSE),""),"")) ->  | AA34: 0 | AB34: 0 | AC34: =IFERROR(VLOOKUP(B34,'Project Information'!$C$31:$D$105,2,FALSE),"") -> 
C35: =IF(B35="","",IF(VLOOKUP(B35,'Project Information'!$C$31:$K$105,9,FALSE)=0,"",VLOOKUP(B35,'Project Information'!$C$31:$K$105,9,FALSE))) ->  | D35: =IF(C35="","",IF(VLOOKUP(C35,'Project Information'!$C$31:$K$105,9,FALSE)=0,"",VLOOKUP(C35,'Project Information'!$C$31:$K$105,9,FALSE))) ->  | F35: =IF(B35="","",IF(AD35="Y",IFERROR(VLOOKUP(B35,'Project Information'!$C$31:$I$105,7,FALSE),""),"")) ->  | AA35: 0 | AB35: 0 | AC35: =IFERROR(VLOOKUP(B35,'Project Information'!$C$31:$D$105,2,FALSE),"") -> 
C36: =IF(B36="","",IF(VLOOKUP(B36,'Project Information'!$C$31:$K$105,9,FALSE)=0,"",VLOOKUP(B36,'Project Information'!$C$31:$K$105,9,FALSE))) ->  | D36: =IF(C36="","",IF(VLOOKUP(C36,'Project Information'!$C$31:$K$105,9,FALSE)=0,"",VLOOKUP(C36,'Project Information'!$C$31:$K$105,9,FALSE))) ->  | F36: =IF(B36="","",IF(AD36="Y",IFERROR(VLOOKUP(B36,'Project Information'!$C$31:$I$105,7,FALSE),""),"")) ->  | AA36: 0 | AB36: 0 | AC36: =IFERROR(VLOOKUP(B36,'Project Information'!$C$31:$D$105,2,FALSE),"") -> 
C37: =IF(B37="","",IF(VLOOKUP(B37,'Project Information'!$C$31:$K$105,9,FALSE)=0,"",VLOOKUP(B37,'Project Information'!$C$31:$K$105,9,FALSE))) ->  | D37: =IF(C37="","",IF(VLOOKUP(C37,'Project Information'!$C$31:$K$105,9,FALSE)=0,"",VLOOKUP(C37,'Project Information'!$C$31:$K$105,9,FALSE))) ->  | F37: =IF(B37="","",IF(AD37="Y",IFERROR(VLOOKUP(B37,'Project Information'!$C$31:$I$105,7,FALSE),""),"")) ->  | AA37: 0 | AB37: 0 | AC37: =IFERROR(VLOOKUP(B37,'Project Information'!$C$31:$D$105,2,FALSE),"") -> 
C38: =IF(B38="","",IF(VLOOKUP(B38,'Project Information'!$C$31:$K$105,9,FALSE)=0,"",VLOOKUP(B38,'Project Information'!$C$31:$K$105,9,FALSE))) ->  | D38: =IF(C38="","",IF(VLOOKUP(C38,'Project Information'!$C$31:$K$105,9,FALSE)=0,"",VLOOKUP(C38,'Project Information'!$C$31:$K$105,9,FALSE))) ->  | F38: =IF(B38="","",IF(AD38="Y",IFERROR(VLOOKUP(B38,'Project Information'!$C$31:$I$105,7,FALSE),""),"")) ->  | AA38: 0 | AB38: 0 | AC38: =IFERROR(VLOOKUP(B38,'Project Information'!$C$31:$D$105,2,FALSE),"") -> 
C39: =IF(B39="","",IF(VLOOKUP(B39,'Project Information'!$C$31:$K$105,9,FALSE)=0,"",VLOOKUP(B39,'Project Information'!$C$31:$K$105,9,FALSE))) ->  | D39: =IF(C39="","",IF(VLOOKUP(C39,'Project Information'!$C$31:$K$105,9,FALSE)=0,"",VLOOKUP(C39,'Project Information'!$C$31:$K$105,9,FALSE))) ->  | F39: =IF(B39="","",IF(AD39="Y",IFERROR(VLOOKUP(B39,'Project Information'!$C$31:$I$105,7,FALSE),""),"")) ->  | AA39: 0 | AB39: 0 | AC39: =IFERROR(VLOOKUP(B39,'Project Information'!$C$31:$D$105,2,FALSE),"") -> 
C40: =IF(B40="","",IF(VLOOKUP(B40,'Project Information'!$C$31:$K$105,9,FALSE)=0,"",VLOOKUP(B40,'Project Information'!$C$31:$K$105,9,FALSE))) ->  | D40: =IF(C40="","",IF(VLOOKUP(C40,'Project Information'!$C$31:$K$105,9,FALSE)=0,"",VLOOKUP(C40,'Project Information'!$C$31:$K$105,9,FALSE))) ->  | F40: =IF(B40="","",IF(AD40="Y",IFERROR(VLOOKUP(B40,'Project Information'!$C$31:$I$105,7,FALSE),""),"")) ->  | AA40: 0 | AB40: 0 | AC40: =IFERROR(VLOOKUP(B40,'Project Information'!$C$31:$D$105,2,FALSE),"") -> 
C41: =IF(B41="","",IF(VLOOKUP(B41,'Project Information'!$C$31:$K$105,9,FALSE)=0,"",VLOOKUP(B41,'Project Information'!$C$31:$K$105,9,FALSE))) ->  | D41: =IF(C41="","",IF(VLOOKUP(C41,'Project Information'!$C$31:$K$105,9,FALSE)=0,"",VLOOKUP(C41,'Project Information'!$C$31:$K$105,9,FALSE))) ->  | F41: =IF(B41="","",IF(AD41="Y",IFERROR(VLOOKUP(B41,'Project Information'!$C$31:$I$105,7,FALSE),""),"")) ->  | AA41: 0 | AB41: 0 | AC41: =IFERROR(VLOOKUP(B41,'Project Information'!$C$31:$D$105,2,FALSE),"") -> 
C42: =IF(B42="","",IF(VLOOKUP(B42,'Project Information'!$C$31:$K$105,9,FALSE)=0,"",VLOOKUP(B42,'Project Information'!$C$31:$K$105,9,FALSE))) ->  | D42: =IF(C42="","",IF(VLOOKUP(C42,'Project Information'!$C$31:$K$105,9,FALSE)=0,"",VLOOKUP(C42,'Project Information'!$C$31:$K$105,9,FALSE))) ->  | F42: =IF(B42="","",IF(AD42="Y",IFERROR(VLOOKUP(B42,'Project Information'!$C$31:$I$105,7,FALSE),""),"")) ->  | AA42: 0 | AB42: 0 | AC42: =IFERROR(VLOOKUP(B42,'Project Information'!$C$31:$D$105,2,FALSE),"") -> 
C43: =IF(B43="","",IF(VLOOKUP(B43,'Project Information'!$C$31:$K$105,9,FALSE)=0,"",VLOOKUP(B43,'Project Information'!$C$31:$K$105,9,FALSE))) ->  | D43: =IF(C43="","",IF(VLOOKUP(C43,'Project Information'!$C$31:$K$105,9,FALSE)=0,"",VLOOKUP(C43,'Project Information'!$C$31:$K$105,9,FALSE))) ->  | F43: =IF(B43="","",IF(AD43="Y",IFERROR(VLOOKUP(B43,'Project Information'!$C$31:$I$105,7,FALSE),""),"")) ->  | AA43: 0 | AB43: 0 | AC43: =IFERROR(VLOOKUP(B43,'Project Information'!$C$31:$D$105,2,FALSE),"") -> 
C44: =IF(B44="","",IF(VLOOKUP(B44,'Project Information'!$C$31:$K$105,9,FALSE)=0,"",VLOOKUP(B44,'Project Information'!$C$31:$K$105,9,FALSE))) ->  | D44: =IF(C44="","",IF(VLOOKUP(C44,'Project Information'!$C$31:$K$105,9,FALSE)=0,"",VLOOKUP(C44,'Project Information'!$C$31:$K$105,9,FALSE))) ->  | F44: =IF(B44="","",IF(AD44="Y",IFERROR(VLOOKUP(B44,'Project Information'!$C$31:$I$105,7,FALSE),""),"")) ->  | AA44: 0 | AB44: 0 | AC44: =IFERROR(VLOOKUP(B44,'Project Information'!$C$31:$D$105,2,FALSE),"") -> 
C45: =IF(B45="","",IF(VLOOKUP(B45,'Project Information'!$C$31:$K$105,9,FALSE)=0,"",VLOOKUP(B45,'Project Information'!$C$31:$K$105,9,FALSE))) ->  | D45: =IF(C45="","",IF(VLOOKUP(C45,'Project Information'!$C$31:$K$105,9,FALSE)=0,"",VLOOKUP(C45,'Project Information'!$C$31:$K$105,9,FALSE))) ->  | F45: =IF(B45="","",IF(AD45="Y",IFERROR(VLOOKUP(B45,'Project Information'!$C$31:$I$105,7,FALSE),""),"")) ->  | AA45: 0 | AB45: 0 | AC45: =IFERROR(VLOOKUP(B45,'Project Information'!$C$31:$D$105,2,FALSE),"") -> 
C46: =IF(B46="","",IF(VLOOKUP(B46,'Project Information'!$C$31:$K$105,9,FALSE)=0,"",VLOOKUP(B46,'Project Information'!$C$31:$K$105,9,FALSE))) ->  | D46: =IF(C46="","",IF(VLOOKUP(C46,'Project Information'!$C$31:$K$105,9,FALSE)=0,"",VLOOKUP(C46,'Project Information'!$C$31:$K$105,9,FALSE))) ->  | F46: =IF(B46="","",IF(AD46="Y",IFERROR(VLOOKUP(B46,'Project Information'!$C$31:$I$105,7,FALSE),""),"")) ->  | AA46: 0 | AB46: 0 | AC46: =IFERROR(VLOOKUP(B46,'Project Information'!$C$31:$D$105,2,FALSE),"") -> 
C47: =IF(B47="","",IF(VLOOKUP(B47,'Project Information'!$C$31:$K$105,9,FALSE)=0,"",VLOOKUP(B47,'Project Information'!$C$31:$K$105,9,FALSE))) ->  | D47: =IF(C47="","",IF(VLOOKUP(C47,'Project Information'!$C$31:$K$105,9,FALSE)=0,"",VLOOKUP(C47,'Project Information'!$C$31:$K$105,9,FALSE))) ->  | F47: =IF(B47="","",IF(AD47="Y",IFERROR(VLOOKUP(B47,'Project Information'!$C$31:$I$105,7,FALSE),""),"")) ->  | G47: =IFERROR(INDIRECT("'"&$B47&"'!"&"$AG$566"),"") ->  | H47: =IFERROR(INDIRECT("'"&$B47&"'!"&"$AG$567"),"") ->  | I47: =IFERROR(INDIRECT("'"&$B47&"'!"&"$AC$567"),"") ->  | AA47: =IF(B47="",0,IF(I47>=0.33,1,IF(G47>=3.33,IF(H47>=1,1,0),0))) -> 0 | AB47: =IF(B47="",0,IF(SUM(G47:I47)=0,1,0)) -> 0 | AC47: =IFERROR(VLOOKUP(B47,'Project Information'!$C$31:$D$105,2,FALSE),"") -> 
C48: =IF(B48="","",IF(VLOOKUP(B48,'Project Information'!$C$31:$K$105,9,FALSE)=0,"",VLOOKUP(B48,'Project Information'!$C$31:$K$105,9,FALSE))) ->  | D48: =IF(C48="","",IF(VLOOKUP(C48,'Project Information'!$C$31:$K$105,9,FALSE)=0,"",VLOOKUP(C48,'Project Information'!$C$31:$K$105,9,FALSE))) ->  | F48: =IF(B48="","",IF(AD48="Y",IFERROR(VLOOKUP(B48,'Project Information'!$C$31:$I$105,7,FALSE),""),"")) ->  | AA48: 0 | AB48: 0 | AC48: =IFERROR(VLOOKUP(B48,'Project Information'!$C$31:$D$105,2,FALSE),"") -> 
C49: =IF(B49="","",IF(VLOOKUP(B49,'Project Information'!$C$31:$K$105,9,FALSE)=0,"",VLOOKUP(B49,'Project Information'!$C$31:$K$105,9,FALSE))) ->  | D49: =IF(C49="","",IF(VLOOKUP(C49,'Project Information'!$C$31:$K$105,9,FALSE)=0,"",VLOOKUP(C49,'Project Information'!$C$31:$K$105,9,FALSE))) ->  | F49: =IF(B49="","",IF(AD49="Y",IFERROR(VLOOKUP(B49,'Project Information'!$C$31:$I$105,7,FALSE),""),"")) ->  | AA49: 0 | AB49: 0 | AC49: =IFERROR(VLOOKUP(B49,'Project Information'!$C$31:$D$105,2,FALSE),"") -> 
C50: =IF(B50="","",IF(VLOOKUP(B50,'Project Information'!$C$31:$K$105,9,FALSE)=0,"",VLOOKUP(B50,'Project Information'!$C$31:$K$105,9,FALSE))) ->  | D50: =IF(C50="","",IF(VLOOKUP(C50,'Project Information'!$C$31:$K$105,9,FALSE)=0,"",VLOOKUP(C50,'Project Information'!$C$31:$K$105,9,FALSE))) ->  | F50: =IF(B50="","",IF(AD50="Y",IFERROR(VLOOKUP(B50,'Project Information'!$C$31:$I$105,7,FALSE),""),"")) ->  | AA50: 0 | AB50: 0 | AC50: =IFERROR(VLOOKUP(B50,'Project Information'!$C$31:$D$105,2,FALSE),"") -> 
C51: =IF(B51="","",IF(VLOOKUP(B51,'Project Information'!$C$31:$K$105,9,FALSE)=0,"",VLOOKUP(B51,'Project Information'!$C$31:$K$105,9,FALSE))) ->  | D51: =IF(C51="","",IF(VLOOKUP(C51,'Project Information'!$C$31:$K$105,9,FALSE)=0,"",VLOOKUP(C51,'Project Information'!$C$31:$K$105,9,FALSE))) ->  | F51: =IF(B51="","",IF(AD51="Y",IFERROR(VLOOKUP(B51,'Project Information'!$C$31:$I$105,7,FALSE),""),"")) ->  | AA51: 0 | AB51: 0 | AC51: =IFERROR(VLOOKUP(B51,'Project Information'!$C$31:$D$105,2,FALSE),"") -> 
C52: =IF(B52="","",IF(VLOOKUP(B52,'Project Information'!$C$31:$K$105,9,FALSE)=0,"",VLOOKUP(B52,'Project Information'!$C$31:$K$105,9,FALSE))) ->  | D52: =IF(C52="","",IF(VLOOKUP(C52,'Project Information'!$C$31:$K$105,9,FALSE)=0,"",VLOOKUP(C52,'Project Information'!$C$31:$K$105,9,FALSE))) ->  | F52: =IF(B52="","",IF(AD52="Y",IFERROR(VLOOKUP(B52,'Project Information'!$C$31:$I$105,7,FALSE),""),"")) ->  | AA52: 0 | AB52: 0 | AC52: =IFERROR(VLOOKUP(B52,'Project Information'!$C$31:$D$105,2,FALSE),"") -> 
C53: =IF(B53="","",IF(VLOOKUP(B53,'Project Information'!$C$31:$K$105,9,FALSE)=0,"",VLOOKUP(B53,'Project Information'!$C$31:$K$105,9,FALSE))) ->  | D53: =IF(C53="","",IF(VLOOKUP(C53,'Project Information'!$C$31:$K$105,9,FALSE)=0,"",VLOOKUP(C53,'Project Information'!$C$31:$K$105,9,FALSE))) ->  | F53: =IF(B53="","",IF(AD53="Y",IFERROR(VLOOKUP(B53,'Project Information'!$C$31:$I$105,7,FALSE),""),"")) ->  | AA53: 0 | AB53: 0 | AC53: =IFERROR(VLOOKUP(B53,'Project Information'!$C$31:$D$105,2,FALSE),"") -> 
C54: =IF(B54="","",IF(VLOOKUP(B54,'Project Information'!$C$31:$K$105,9,FALSE)=0,"",VLOOKUP(B54,'Project Information'!$C$31:$K$105,9,FALSE))) ->  | D54: =IF(C54="","",IF(VLOOKUP(C54,'Project Information'!$C$31:$K$105,9,FALSE)=0,"",VLOOKUP(C54,'Project Information'!$C$31:$K$105,9,FALSE))) ->  | F54: =IF(B54="","",IF(AD54="Y",IFERROR(VLOOKUP(B54,'Project Information'!$C$31:$I$105,7,FALSE),""),"")) ->  | AA54: 0 | AB54: 0 | AC54: =IFERROR(VLOOKUP(B54,'Project Information'!$C$31:$D$105,2,FALSE),"") -> 
C55: =IF(B55="","",IF(VLOOKUP(B55,'Project Information'!$C$31:$K$105,9,FALSE)=0,"",VLOOKUP(B55,'Project Information'!$C$31:$K$105,9,FALSE))) ->  | D55: =IF(C55="","",IF(VLOOKUP(C55,'Project Information'!$C$31:$K$105,9,FALSE)=0,"",VLOOKUP(C55,'Project Information'!$C$31:$K$105,9,FALSE))) ->  | F55: =IF(B55="","",IF(AD55="Y",IFERROR(VLOOKUP(B55,'Project Information'!$C$31:$I$105,7,FALSE),""),"")) ->  | AA55: 0 | AB55: 0 | AC55: =IFERROR(VLOOKUP(B55,'Project Information'!$C$31:$D$105,2,FALSE),"") -> 
C56: =IF(B56="","",IF(VLOOKUP(B56,'Project Information'!$C$31:$K$105,9,FALSE)=0,"",VLOOKUP(B56,'Project Information'!$C$31:$K$105,9,FALSE))) ->  | D56: =IF(C56="","",IF(VLOOKUP(C56,'Project Information'!$C$31:$K$105,9,FALSE)=0,"",VLOOKUP(C56,'Project Information'!$C$31:$K$105,9,FALSE))) ->  | F56: =IF(B56="","",IF(AD56="Y",IFERROR(VLOOKUP(B56,'Project Information'!$C$31:$I$105,7,FALSE),""),"")) ->  | AA56: 0 | AB56: 0 | AC56: =IFERROR(VLOOKUP(B56,'Project Information'!$C$31:$D$105,2,FALSE),"") -> 
C57: =IF(B57="","",IF(VLOOKUP(B57,'Project Information'!$C$31:$K$105,9,FALSE)=0,"",VLOOKUP(B57,'Project Information'!$C$31:$K$105,9,FALSE))) ->  | D57: =IF(C57="","",IF(VLOOKUP(C57,'Project Information'!$C$31:$K$105,9,FALSE)=0,"",VLOOKUP(C57,'Project Information'!$C$31:$K$105,9,FALSE))) ->  | F57: =IF(B57="","",IF(AD57="Y",IFERROR(VLOOKUP(B57,'Project Information'!$C$31:$I$105,7,FALSE),""),"")) ->  | AA57: 0 | AB57: 0 | AC57: =IFERROR(VLOOKUP(B57,'Project Information'!$C$31:$D$105,2,FALSE),"") -> 
C58: =IF(B58="","",IF(VLOOKUP(B58,'Project Information'!$C$31:$K$105,9,FALSE)=0,"",VLOOKUP(B58,'Project Information'!$C$31:$K$105,9,FALSE))) ->  | D58: =IF(C58="","",IF(VLOOKUP(C58,'Project Information'!$C$31:$K$105,9,FALSE)=0,"",VLOOKUP(C58,'Project Information'!$C$31:$K$105,9,FALSE))) ->  | F58: =IF(B58="","",IF(AD58="Y",IFERROR(VLOOKUP(B58,'Project Information'!$C$31:$I$105,7,FALSE),""),"")) ->  | AA58: 0 | AB58: 0 | AC58: =IFERROR(VLOOKUP(B58,'Project Information'!$C$31:$D$105,2,FALSE),"") -> 
C59: =IF(B59="","",IF(VLOOKUP(B59,'Project Information'!$C$31:$K$105,9,FALSE)=0,"",VLOOKUP(B59,'Project Information'!$C$31:$K$105,9,FALSE))) ->  | D59: =IF(C59="","",IF(VLOOKUP(C59,'Project Information'!$C$31:$K$105,9,FALSE)=0,"",VLOOKUP(C59,'Project Information'!$C$31:$K$105,9,FALSE))) ->  | F59: =IF(B59="","",IF(AD59="Y",IFERROR(VLOOKUP(B59,'Project Information'!$C$31:$I$105,7,FALSE),""),"")) ->  | AA59: 0 | AB59: 0 | AC59: =IFERROR(VLOOKUP(B59,'Project Information'!$C$31:$D$105,2,FALSE),"") -> 
C60: =IF(B60="","",IF(VLOOKUP(B60,'Project Information'!$C$31:$K$105,9,FALSE)=0,"",VLOOKUP(B60,'Project Information'!$C$31:$K$105,9,FALSE))) ->  | D60: =IF(C60="","",IF(VLOOKUP(C60,'Project Information'!$C$31:$K$105,9,FALSE)=0,"",VLOOKUP(C60,'Project Information'!$C$31:$K$105,9,FALSE))) ->  | F60: =IF(B60="","",IF(AD60="Y",IFERROR(VLOOKUP(B60,'Project Information'!$C$31:$I$105,7,FALSE),""),"")) ->  | AA60: 0 | AB60: 0 | AC60: =IFERROR(VLOOKUP(B60,'Project Information'!$C$31:$D$105,2,FALSE),"") -> 
C61: =IF(B61="","",IF(VLOOKUP(B61,'Project Information'!$C$31:$K$105,9,FALSE)=0,"",VLOOKUP(B61,'Project Information'!$C$31:$K$105,9,FALSE))) ->  | D61: =IF(C61="","",IF(VLOOKUP(C61,'Project Information'!$C$31:$K$105,9,FALSE)=0,"",VLOOKUP(C61,'Project Information'!$C$31:$K$105,9,FALSE))) ->  | F61: =IF(B61="","",IF(AD61="Y",IFERROR(VLOOKUP(B61,'Project Information'!$C$31:$I$105,7,FALSE),""),"")) ->  | AA61: 0 | AB61: 0 | AC61: =IFERROR(VLOOKUP(B61,'Project Information'!$C$31:$D$105,2,FALSE),"") -> 
C62: =IF(B62="","",IF(VLOOKUP(B62,'Project Information'!$C$31:$K$105,9,FALSE)=0,"",VLOOKUP(B62,'Project Information'!$C$31:$K$105,9,FALSE))) ->  | D62: =IF(C62="","",IF(VLOOKUP(C62,'Project Information'!$C$31:$K$105,9,FALSE)=0,"",VLOOKUP(C62,'Project Information'!$C$31:$K$105,9,FALSE))) ->  | F62: =IF(B62="","",IF(AD62="Y",IFERROR(VLOOKUP(B62,'Project Information'!$C$31:$I$105,7,FALSE),""),"")) ->  | AA62: 0 | AB62: 0 | AC62: =IFERROR(VLOOKUP(B62,'Project Information'!$C$31:$D$105,2,FALSE),"") -> 
C63: =IF(B63="","",IF(VLOOKUP(B63,'Project Information'!$C$31:$K$105,9,FALSE)=0,"",VLOOKUP(B63,'Project Information'!$C$31:$K$105,9,FALSE))) ->  | D63: =IF(C63="","",IF(VLOOKUP(C63,'Project Information'!$C$31:$K$105,9,FALSE)=0,"",VLOOKUP(C63,'Project Information'!$C$31:$K$105,9,FALSE))) ->  | F63: =IF(B63="","",IF(AD63="Y",IFERROR(VLOOKUP(B63,'Project Information'!$C$31:$I$105,7,FALSE),""),"")) ->  | AA63: 0 | AB63: 0 | AC63: =IFERROR(VLOOKUP(B63,'Project Information'!$C$31:$D$105,2,FALSE),"") -> 
C64: =IF(B64="","",IF(VLOOKUP(B64,'Project Information'!$C$31:$K$105,9,FALSE)=0,"",VLOOKUP(B64,'Project Information'!$C$31:$K$105,9,FALSE))) ->  | D64: =IF(C64="","",IF(VLOOKUP(C64,'Project Information'!$C$31:$K$105,9,FALSE)=0,"",VLOOKUP(C64,'Project Information'!$C$31:$K$105,9,FALSE))) ->  | F64: =IF(B64="","",IF(AD64="Y",IFERROR(VLOOKUP(B64,'Project Information'!$C$31:$I$105,7,FALSE),""),"")) ->  | AA64: 0 | AB64: 0 | AC64: =IFERROR(VLOOKUP(B64,'Project Information'!$C$31:$D$105,2,FALSE),"") -> 
C65: =IF(B65="","",IF(VLOOKUP(B65,'Project Information'!$C$31:$K$105,9,FALSE)=0,"",VLOOKUP(B65,'Project Information'!$C$31:$K$105,9,FALSE))) ->  | D65: =IF(C65="","",IF(VLOOKUP(C65,'Project Information'!$C$31:$K$105,9,FALSE)=0,"",VLOOKUP(C65,'Project Information'!$C$31:$K$105,9,FALSE))) ->  | F65: =IF(B65="","",IF(AD65="Y",IFERROR(VLOOKUP(B65,'Project Information'!$C$31:$I$105,7,FALSE),""),"")) ->  | AA65: 0 | AB65: 0 | AC65: =IFERROR(VLOOKUP(B65,'Project Information'!$C$31:$D$105,2,FALSE),"") -> 
C66: =IF(B66="","",IF(VLOOKUP(B66,'Project Information'!$C$31:$K$105,9,FALSE)=0,"",VLOOKUP(B66,'Project Information'!$C$31:$K$105,9,FALSE))) ->  | D66: =IF(C66="","",IF(VLOOKUP(C66,'Project Information'!$C$31:$K$105,9,FALSE)=0,"",VLOOKUP(C66,'Project Information'!$C$31:$K$105,9,FALSE))) ->  | F66: =IF(B66="","",IF(AD66="Y",IFERROR(VLOOKUP(B66,'Project Information'!$C$31:$I$105,7,FALSE),""),"")) ->  | AA66: 0 | AB66: 0 | AC66: =IFERROR(VLOOKUP(B66,'Project Information'!$C$31:$D$105,2,FALSE),"") -> 
C67: =IF(B67="","",IF(VLOOKUP(B67,'Project Information'!$C$31:$K$105,9,FALSE)=0,"",VLOOKUP(B67,'Project Information'!$C$31:$K$105,9,FALSE))) ->  | D67: =IF(C67="","",IF(VLOOKUP(C67,'Project Information'!$C$31:$K$105,9,FALSE)=0,"",VLOOKUP(C67,'Project Information'!$C$31:$K$105,9,FALSE))) ->  | F67: =IF(B67="","",IF(AD67="Y",IFERROR(VLOOKUP(B67,'Project Information'!$C$31:$I$105,7,FALSE),""),"")) ->  | AA67: 0 | AB67: 0 | AC67: =IFERROR(VLOOKUP(B67,'Project Information'!$C$31:$D$105,2,FALSE),"") -> 
C68: =IF(B68="","",IF(VLOOKUP(B68,'Project Information'!$C$31:$K$105,9,FALSE)=0,"",VLOOKUP(B68,'Project Information'!$C$31:$K$105,9,FALSE))) ->  | D68: =IF(C68="","",IF(VLOOKUP(C68,'Project Information'!$C$31:$K$105,9,FALSE)=0,"",VLOOKUP(C68,'Project Information'!$C$31:$K$105,9,FALSE))) ->  | F68: =IF(B68="","",IF(AD68="Y",IFERROR(VLOOKUP(B68,'Project Information'!$C$31:$I$105,7,FALSE),""),"")) ->  | AA68: 0 | AB68: 0 | AC68: =IFERROR(VLOOKUP(B68,'Project Information'!$C$31:$D$105,2,FALSE),"") -> 
C69: =IF(B69="","",IF(VLOOKUP(B69,'Project Information'!$C$31:$K$105,9,FALSE)=0,"",VLOOKUP(B69,'Project Information'!$C$31:$K$105,9,FALSE))) ->  | D69: =IF(C69="","",IF(VLOOKUP(C69,'Project Information'!$C$31:$K$105,9,FALSE)=0,"",VLOOKUP(C69,'Project Information'!$C$31:$K$105,9,FALSE))) ->  | F69: =IF(B69="","",IF(AD69="Y",IFERROR(VLOOKUP(B69,'Project Information'!$C$31:$I$105,7,FALSE),""),"")) ->  | AA69: 0 | AB69: 0 | AC69: =IFERROR(VLOOKUP(B69,'Project Information'!$C$31:$D$105,2,FALSE),"") -> 
C70: =IF(B70="","",IF(VLOOKUP(B70,'Project Information'!$C$31:$K$105,9,FALSE)=0,"",VLOOKUP(B70,'Project Information'!$C$31:$K$105,9,FALSE))) ->  | D70: =IF(C70="","",IF(VLOOKUP(C70,'Project Information'!$C$31:$K$105,9,FALSE)=0,"",VLOOKUP(C70,'Project Information'!$C$31:$K$105,9,FALSE))) ->  | F70: =IF(B70="","",IF(AD70="Y",IFERROR(VLOOKUP(B70,'Project Information'!$C$31:$I$105,7,FALSE),""),"")) ->  | AA70: 0 | AB70: 0 | AC70: =IFERROR(VLOOKUP(B70,'Project Information'!$C$31:$D$105,2,FALSE),"") -> 
C71: =IF(B71="","",IF(VLOOKUP(B71,'Project Information'!$C$31:$K$105,9,FALSE)=0,"",VLOOKUP(B71,'Project Information'!$C$31:$K$105,9,FALSE))) ->  | D71: =IF(C71="","",IF(VLOOKUP(C71,'Project Information'!$C$31:$K$105,9,FALSE)=0,"",VLOOKUP(C71,'Project Information'!$C$31:$K$105,9,FALSE))) ->  | F71: =IF(B71="","",IF(AD71="Y",IFERROR(VLOOKUP(B71,'Project Information'!$C$31:$I$105,7,FALSE),""),"")) ->  | AA71: 0 | AB71: 0 | AC71: =IFERROR(VLOOKUP(B71,'Project Information'!$C$31:$D$105,2,FALSE),"") -> 
C72: =IF(B72="","",IF(VLOOKUP(B72,'Project Information'!$C$31:$K$105,9,FALSE)=0,"",VLOOKUP(B72,'Project Information'!$C$31:$K$105,9,FALSE))) ->  | D72: =IF(C72="","",IF(VLOOKUP(C72,'Project Information'!$C$31:$K$105,9,FALSE)=0,"",VLOOKUP(C72,'Project Information'!$C$31:$K$105,9,FALSE))) ->  | F72: =IF(B72="","",IF(AD72="Y",IFERROR(VLOOKUP(B72,'Project Information'!$C$31:$I$105,7,FALSE),""),"")) ->  | AA72: 0 | AB72: 0 | AC72: =IFERROR(VLOOKUP(B72,'Project Information'!$C$31:$D$105,2,FALSE),"") -> 
C73: =IF(B73="","",IF(VLOOKUP(B73,'Project Information'!$C$31:$K$105,9,FALSE)=0,"",VLOOKUP(B73,'Project Information'!$C$31:$K$105,9,FALSE))) ->  | D73: =IF(C73="","",IF(VLOOKUP(C73,'Project Information'!$C$31:$K$105,9,FALSE)=0,"",VLOOKUP(C73,'Project Information'!$C$31:$K$105,9,FALSE))) ->  | F73: =IF(B73="","",IF(AD73="Y",IFERROR(VLOOKUP(B73,'Project Information'!$C$31:$I$105,7,FALSE),""),"")) ->  | AA73: 0 | AB73: 0 | AC73: =IFERROR(VLOOKUP(B73,'Project Information'!$C$31:$D$105,2,FALSE),"") -> 
C74: =IF(B74="","",IF(VLOOKUP(B74,'Project Information'!$C$31:$K$105,9,FALSE)=0,"",VLOOKUP(B74,'Project Information'!$C$31:$K$105,9,FALSE))) ->  | D74: =IF(C74="","",IF(VLOOKUP(C74,'Project Information'!$C$31:$K$105,9,FALSE)=0,"",VLOOKUP(C74,'Project Information'!$C$31:$K$105,9,FALSE))) ->  | F74: =IF(B74="","",IF(AD74="Y",IFERROR(VLOOKUP(B74,'Project Information'!$C$31:$I$105,7,FALSE),""),"")) ->  | AA74: 0 | AB74: 0 | AC74: =IFERROR(VLOOKUP(B74,'Project Information'!$C$31:$D$105,2,FALSE),"") -> 
C75: =IF(B75="","",IF(VLOOKUP(B75,'Project Information'!$C$31:$K$105,9,FALSE)=0,"",VLOOKUP(B75,'Project Information'!$C$31:$K$105,9,FALSE))) ->  | D75: =IF(C75="","",IF(VLOOKUP(C75,'Project Information'!$C$31:$K$105,9,FALSE)=0,"",VLOOKUP(C75,'Project Information'!$C$31:$K$105,9,FALSE))) ->  | F75: =IF(B75="","",IF(AD75="Y",IFERROR(VLOOKUP(B75,'Project Information'!$C$31:$I$105,7,FALSE),""),"")) ->  | AA75: 0 | AB75: 0 | AC75: =IFERROR(VLOOKUP(B75,'Project Information'!$C$31:$D$105,2,FALSE),"") -> 
C76: =IF(B76="","",IF(VLOOKUP(B76,'Project Information'!$C$31:$K$105,9,FALSE)=0,"",VLOOKUP(B76,'Project Information'!$C$31:$K$105,9,FALSE))) ->  | D76: =IF(C76="","",IF(VLOOKUP(C76,'Project Information'!$C$31:$K$105,9,FALSE)=0,"",VLOOKUP(C76,'Project Information'!$C$31:$K$105,9,FALSE))) ->  | F76: =IF(B76="","",IF(AD76="Y",IFERROR(VLOOKUP(B76,'Project Information'!$C$31:$I$105,7,FALSE),""),"")) ->  | AA76: 0 | AB76: 0 | AC76: =IFERROR(VLOOKUP(B76,'Project Information'!$C$31:$D$105,2,FALSE),"") -> 
C77: =IF(B77="","",IF(VLOOKUP(B77,'Project Information'!$C$31:$K$105,9,FALSE)=0,"",VLOOKUP(B77,'Project Information'!$C$31:$K$105,9,FALSE))) ->  | D77: =IF(C77="","",IF(VLOOKUP(C77,'Project Information'!$C$31:$K$105,9,FALSE)=0,"",VLOOKUP(C77,'Project Information'!$C$31:$K$105,9,FALSE))) ->  | F77: =IF(B77="","",IF(AD77="Y",IFERROR(VLOOKUP(B77,'Project Information'!$C$31:$I$105,7,FALSE),""),"")) ->  | AA77: 0 | AB77: 0 | AC77: =IFERROR(VLOOKUP(B77,'Project Information'!$C$31:$D$105,2,FALSE),"") -> 
C78: =IF(B78="","",IF(VLOOKUP(B78,'Project Information'!$C$31:$K$105,9,FALSE)=0,"",VLOOKUP(B78,'Project Information'!$C$31:$K$105,9,FALSE))) ->  | D78: =IF(C78="","",IF(VLOOKUP(C78,'Project Information'!$C$31:$K$105,9,FALSE)=0,"",VLOOKUP(C78,'Project Information'!$C$31:$K$105,9,FALSE))) ->  | F78: =IF(B78="","",IF(AD78="Y",IFERROR(VLOOKUP(B78,'Project Information'!$C$31:$I$105,7,FALSE),""),"")) ->  | AA78: 0 | AB78: 0 | AC78: =IFERROR(VLOOKUP(B78,'Project Information'!$C$31:$D$105,2,FALSE),"") -> 
C79: =IF(B79="","",IF(VLOOKUP(B79,'Project Information'!$C$31:$K$105,9,FALSE)=0,"",VLOOKUP(B79,'Project Information'!$C$31:$K$105,9,FALSE))) ->  | D79: =IF(C79="","",IF(VLOOKUP(C79,'Project Information'!$C$31:$K$105,9,FALSE)=0,"",VLOOKUP(C79,'Project Information'!$C$31:$K$105,9,FALSE))) ->  | F79: =IF(B79="","",IF(AD79="Y",IFERROR(VLOOKUP(B79,'Project Information'!$C$31:$I$105,7,FALSE),""),"")) ->  | G79: =IFERROR(INDIRECT("'"&$B79&"'!"&"$AG$566"),"") ->  | H79: =IFERROR(INDIRECT("'"&$B79&"'!"&"$AG$567"),"") ->  | I79: =IFERROR(INDIRECT("'"&$B79&"'!"&"$AC$567"),"") ->  | AA79: =IF(B79="",0,IF(I79>=0.33,1,IF(G79>=3.33,IF(H79>=1,1,0),0))) -> 0 | AB79: =IF(B79="",0,IF(SUM(G79:I79)=0,1,0)) -> 0 | AC79: =IFERROR(VLOOKUP(B79,'Project Information'!$C$31:$D$105,2,FALSE),"") -> 
C80: =IF(B80="","",IF(VLOOKUP(B80,'Project Information'!$C$31:$K$105,9,FALSE)=0,"",VLOOKUP(B80,'Project Information'!$C$31:$K$105,9,FALSE))) ->  | D80: =IF(C80="","",IF(VLOOKUP(C80,'Project Information'!$C$31:$K$105,9,FALSE)=0,"",VLOOKUP(C80,'Project Information'!$C$31:$K$105,9,FALSE))) ->  | E80: =IF(B80="","",IFERROR(VLOOKUP(AC80,$BA$1:$BC$9,3,FALSE),"")) ->  | F80: =IF(B80="","",IF(AD80="Y",IFERROR(VLOOKUP(B80,'Project Information'!$C$31:$I$105,7,FALSE),""),"")) ->  | AA80: 0 | AB80: 0 | AC80: =IFERROR(VLOOKUP(B80,'Project Information'!$C$31:$D$105,2,FALSE),"") ->  | AD80: =IF(AC80="","",IF(VLOOKUP(AC80,$BA$1:$BB$9,2,FALSE)="Segment","Y","N")) -> 
C81: =IF(B81="","",IF(VLOOKUP(B81,'Project Information'!$C$31:$K$105,9,FALSE)=0,"",VLOOKUP(B81,'Project Information'!$C$31:$K$105,9,FALSE))) ->  | D81: =IF(C81="","",IF(VLOOKUP(C81,'Project Information'!$C$31:$K$105,9,FALSE)=0,"",VLOOKUP(C81,'Project Information'!$C$31:$K$105,9,FALSE))) ->  | F81: =IF(B81="","",IF(AD81="Y",IFERROR(VLOOKUP(B81,'Project Information'!$C$31:$I$105,7,FALSE),""),"")) ->  | AA81: 0 | AB81: 0 | AC81: =IFERROR(VLOOKUP(B81,'Project Information'!$C$31:$D$105,2,FALSE),"") -> 
C82: =IF(B82="","",IF(VLOOKUP(B82,'Project Information'!$C$31:$K$105,9,FALSE)=0,"",VLOOKUP(B82,'Project Information'!$C$31:$K$105,9,FALSE))) ->  | D82: =IF(C82="","",IF(VLOOKUP(C82,'Project Information'!$C$31:$K$105,9,FALSE)=0,"",VLOOKUP(C82,'Project Information'!$C$31:$K$105,9,FALSE))) ->  | F82: =IF(B82="","",IF(AD82="Y",IFERROR(VLOOKUP(B82,'Project Information'!$C$31:$I$105,7,FALSE),""),"")) ->  | AA82: 0 | AB82: 0 | AC82: =IFERROR(VLOOKUP(B82,'Project Information'!$C$31:$D$105,2,FALSE),"") -> 
C83: =IF(B83="","",IF(VLOOKUP(B83,'Project Information'!$C$31:$K$105,9,FALSE)=0,"",VLOOKUP(B83,'Project Information'!$C$31:$K$105,9,FALSE))) ->  | D83: =IF(C83="","",IF(VLOOKUP(C83,'Project Information'!$C$31:$K$105,9,FALSE)=0,"",VLOOKUP(C83,'Project Information'!$C$31:$K$105,9,FALSE))) ->  | F83: =IF(B83="","",IF(AD83="Y",IFERROR(VLOOKUP(B83,'Project Information'!$C$31:$I$105,7,FALSE),""),"")) ->  | AA83: 0 | AB83: 0 | AC83: =IFERROR(VLOOKUP(B83,'Project Information'!$C$31:$D$105,2,FALSE),"") -> 
C84: =IF(B84="","",IF(VLOOKUP(B84,'Project Information'!$C$31:$K$105,9,FALSE)=0,"",VLOOKUP(B84,'Project Information'!$C$31:$K$105,9,FALSE))) ->  | D84: =IF(C84="","",IF(VLOOKUP(C84,'Project Information'!$C$31:$K$105,9,FALSE)=0,"",VLOOKUP(C84,'Project Information'!$C$31:$K$105,9,FALSE))) ->  | F84: =IF(B84="","",IF(AD84="Y",IFERROR(VLOOKUP(B84,'Project Information'!$C$31:$I$105,7,FALSE),""),"")) ->  | AA84: 0 | AB84: 0 | AC84: =IFERROR(VLOOKUP(B84,'Project Information'!$C$31:$D$105,2,FALSE),"") -> 
C85: =IF(B85="","",IF(VLOOKUP(B85,'Project Information'!$C$31:$K$105,9,FALSE)=0,"",VLOOKUP(B85,'Project Information'!$C$31:$K$105,9,FALSE))) ->  | D85: =IF(C85="","",IF(VLOOKUP(C85,'Project Information'!$C$31:$K$105,9,FALSE)=0,"",VLOOKUP(C85,'Project Information'!$C$31:$K$105,9,FALSE))) ->  | F85: =IF(B85="","",IF(AD85="Y",IFERROR(VLOOKUP(B85,'Project Information'!$C$31:$I$105,7,FALSE),""),"")) ->  | AA85: 0 | AB85: 0 | AC85: =IFERROR(VLOOKUP(B85,'Project Information'!$C$31:$D$105,2,FALSE),"") -> 
C86: =IF(B86="","",IF(VLOOKUP(B86,'Project Information'!$C$31:$K$105,9,FALSE)=0,"",VLOOKUP(B86,'Project Information'!$C$31:$K$105,9,FALSE))) ->  | D86: =IF(C86="","",IF(VLOOKUP(C86,'Project Information'!$C$31:$K$105,9,FALSE)=0,"",VLOOKUP(C86,'Project Information'!$C$31:$K$105,9,FALSE))) ->  | F86: =IF(B86="","",IF(AD86="Y",IFERROR(VLOOKUP(B86,'Project Information'!$C$31:$I$105,7,FALSE),""),"")) ->  | AA86: 0 | AB86: 0 | AC86: =IFERROR(VLOOKUP(B86,'Project Information'!$C$31:$D$105,2,FALSE),"") -> 
C87: =IF(B87="","",IF(VLOOKUP(B87,'Project Information'!$C$31:$K$105,9,FALSE)=0,"",VLOOKUP(B87,'Project Information'!$C$31:$K$105,9,FALSE))) ->  | D87: =IF(C87="","",IF(VLOOKUP(C87,'Project Information'!$C$31:$K$105,9,FALSE)=0,"",VLOOKUP(C87,'Project Information'!$C$31:$K$105,9,FALSE))) ->  | F87: =IF(B87="","",IF(AD87="Y",IFERROR(VLOOKUP(B87,'Project Information'!$C$31:$I$105,7,FALSE),""),"")) ->  | AA87: 0 | AB87: 0 | AC87: =IFERROR(VLOOKUP(B87,'Project Information'!$C$31:$D$105,2,FALSE),"") -> 
C88: =IF(B88="","",IF(VLOOKUP(B88,'Project Information'!$C$31:$K$105,9,FALSE)=0,"",VLOOKUP(B88,'Project Information'!$C$31:$K$105,9,FALSE))) ->  | D88: =IF(C88="","",IF(VLOOKUP(C88,'Project Information'!$C$31:$K$105,9,FALSE)=0,"",VLOOKUP(C88,'Project Information'!$C$31:$K$105,9,FALSE))) ->  | F88: =IF(B88="","",IF(AD88="Y",IFERROR(VLOOKUP(B88,'Project Information'!$C$31:$I$105,7,FALSE),""),"")) ->  | AA88: 0 | AB88: 0 | AC88: =IFERROR(VLOOKUP(B88,'Project Information'!$C$31:$D$105,2,FALSE),"") -> 
C89: =IF(B89="","",IF(VLOOKUP(B89,'Project Information'!$C$31:$K$105,9,FALSE)=0,"",VLOOKUP(B89,'Project Information'!$C$31:$K$105,9,FALSE))) ->  | D89: =IF(C89="","",IF(VLOOKUP(C89,'Project Information'!$C$31:$K$105,9,FALSE)=0,"",VLOOKUP(C89,'Project Information'!$C$31:$K$105,9,FALSE))) ->  | F89: =IF(B89="","",IF(AD89="Y",IFERROR(VLOOKUP(B89,'Project Information'!$C$31:$I$105,7,FALSE),""),"")) ->  | AA89: 0 | AB89: 0 | AC89: =IFERROR(VLOOKUP(B89,'Project Information'!$C$31:$D$105,2,FALSE),"") -> 
G90: *Crashes are measured in Crashes/Mi/Year for segments and Crashes/Year for Intersections

Sheet CostEstimate
A1: =Instructions!E16 -> Benefit Cost Analysis | B1: Project Cost Estimate
B2: Project Name | F2: =IF('Project Information'!$D$3="","",'Project Information'!$D$3) -> MAD-665 at Spring Valley | I2: Contact Email | K2: =IF('Project Information'!$I$3="","",'Project Information'!$I$3) -> 
B3: Project Description | F3: =IF('Project Information'!$D$4="","",'Project Information'!$D$4) ->  | I3: Contact Phone | K3: =IF('Project Information'!$I$4="","",'Project Information'!$I$4) -> 
B4: Reference Number | F4: =IF('Project Information'!$D$5="","",'Project Information'!$D$5) ->  | I4: Date Performed | K4: =IF('Project Information'!$I$5="","",'Project Information'!$I$5) -> 
B5: Analyst | F5: =IF('Project Information'!$D$6="","",'Project Information'!$D$6) ->  | I5: Analysis Year | K5: =IF('Project Information'!$I$6="","",'Project Information'!$I$6) -> 
B6: Agency/Company | F6: =IF('Project Information'!$D$7="","",'Project Information'!$D$7) ->  | K6: =IF('Project Information'!$I$7="","",'Project Information'!$I$7) -> 
H8: Engineering Design %
H9: Contingency %
B11: Countermeasures | G11: Construction Costs | H11: Right of Way Costs | I11: Engineering Design Costs | J11: Contingency Amount | K11: Total Cost of Countermeasure | L11: Annual Maintenance & Energy Costs | M11: Salvage Value
B12: Site Characteristic Improvements (i.e. Lane widening) | I12: =IF($J$8="","",SUM($G12:$H12)*$J$8) ->  | J12: =IF($J$9="","",SUM($G12:$H12)*$J$9) ->  | K12: =SUM(G12:J12) -> 0
B13: Site Characteristic Improvements (i.e. Lighting) | I13: =IF($J$8="","",SUM($G13:$H13)*$J$8) ->  | J13: =IF($J$9="","",SUM($G13:$H13)*$J$9) ->  | K13: 0
B14: Site Characteristic Improvements (i.e. Signal Phasing) | K14: 0
B15: Site Characteristic Improvements (i.e. Added Right Turn Lane) | K15: 0
B16: =IF('Benefit Cost Analysis'!B20="","",'Benefit Cost Analysis'!B20) ->  | K16: 0
B17: =IF('Benefit Cost Analysis'!B21="","",'Benefit Cost Analysis'!B21) ->  | K17: 0
B18: =IF('Benefit Cost Analysis'!B22="","",'Benefit Cost Analysis'!B22) ->  | K18: 0
B19: =IF('Benefit Cost Analysis'!B23="","",'Benefit Cost Analysis'!B23) ->  | K19: 0
B20: =IF('Benefit Cost Analysis'!B24="","",'Benefit Cost Analysis'!B24) ->  | K20: 0
B21: =IF('Benefit Cost Analysis'!B25="","",'Benefit Cost Analysis'!B25) ->  | K21: 0
B22: =IF('Benefit Cost Analysis'!B26="","",'Benefit Cost Analysis'!B26) ->  | K22: 0
B23: =IF('Benefit Cost Analysis'!B27="","",'Benefit Cost Analysis'!B27) ->  | K23: 0
B24: =IF('Benefit Cost Analysis'!B28="","",'Benefit Cost Analysis'!B28) ->  | K24: 0
B25: =IF('Benefit Cost Analysis'!B29="","",'Benefit Cost Analysis'!B29) ->  | K25: 0
B26: Totals | G26: =SUM(G12:G25) -> 0 | H26: =SUM(H12:H25) -> 0 | I26: 0 | J26: 0 | K26: 0 | L26: 0 | M26: 0
I28: Inflation %
H30: Final Costruction Cost: | J30: =ROUND(K28*K26+K26,2) -> 0
H31: *Final construction cost should match the Project Cost Estimate
C33: 1. Incidentals to the project should be included in the contruction costs for a particular countermeasure.

Sheet Benefit Cost Analysis
A1: =Instructions!$E$16 -> Benefit Cost Analysis | B1: Safety Benefit - Cost Analysis | BJ1: Discount Rate | BK1: 0.04 | BL1: % | CZ1: Project Summary of Crash Modifications by Project Element (Without Animal Crashes) | EY1: All Sites
B2: General Information | X2: Annual Benefits Summary By Crash Severity | BI2: Traffic Volume Growth Rate | BK2: ='Project Information'!F112 -> 0.0116 | BP2: =B16 -> Site Characteristic Improvements (Please add description about improvements i.e. Lane widening) | BT2: Year | CZ2: Project Element ID | DA2: Site Type | DB2: Common Name | DC2: =BP2 -> Site Characteristic Improvements (Please add description about improvements i.e. Lane widening) | DG2: =BP10 ->  | DK2: =BP18 ->  | DO2: =BP26 ->  | DS2: =BP34 ->  | DW2: =BP42 ->  | EA2: =BP50 ->  | EE2: =BP58 ->  | EI2: =BP66 ->  | EM2: =BP74 ->  | EQ2: =BP82 ->  | EY2: HSM Elements Only | FI2: Annual Benefits Summary By AIS Crash Severity Codes
B3: Project Name | E3: =IF('Project Information'!$D$3="","",'Project Information'!$D$3) -> MAD-665 at Spring Valley | M3: Contact Email | O3: =IF('Project Information'!$I$3="","",'Project Information'!$I$3) ->  | AC3: Year | BP3: Code | BQ3: Severity | BR3: Reduction | BS3: PV $ | BT3: 0 | BU3: 1 | BV3: 2 | BW3: 3 | BX3: 4 | BY3: 5 | BZ3: 6 | CA3: 7 | CB3: 8 | CC3: 9 | CD3: 10 | CE3: 11 | CF3: 12 | CG3: 13 | CH3: 14 | CI3: 15 | CJ3: 16 | CK3: 17 | CL3: 18 | CM3: 19 | CN3: 20 | CO3: 21 | CP3: 22 | CQ3: 23 | CR3: 24 | CS3: 25 | CT3: 26 | CU3: 27 | CV3: 28 | CW3: 29 | CX3: 30 | DC3: KA | DD3: B | DE3: C | DF3: O | DG3: KA | DH3: B | DI3: C | DJ3: O | DK3: KA | DL3: B | DM3: C | DN3: O | DO3: KA | DP3: B | DQ3: C | DR3: O | DS3: KA | DT3: B | DU3: C | DV3: O | DW3: KA | DX3: B | DY3: C | DZ3: O | EA3: KA | EB3: B | EC3: C | ED3: O | EE3: KA | EF3: B | EG3: C | EH3: O | EI3: KA | EJ3: B | EK3: C | EL3: O | EM3: KA | EN3: B | EO3: C | EP3: O | EQ3: KA | ER3: B | ES3: C | ET3: O | EY3: Observed Elements Only | FO3: Year
B4: Project Description | E4: =IF('Project Information'!$D$4="","",'Project Information'!$D$4) ->  | M4: Contact Phone | O4: =IF('Project Information'!$I$4="","",'Project Information'!$I$4) ->  | X4: Code | Y4: Severity | Z4: Count | AA4: Avg Est Red | AB4: PV $ | AC4: 0 | AD4: 1 | AE4: 2 | AF4: 3 | AG4: 4 | AH4: 5 | AI4: 6 | AJ4: 7 | AK4: 8 | AL4: 9 | AM4: 10 | AN4: 11 | AO4: 12 | AP4: 13 | AQ4: 14 | AR4: 15 | AS4: 16 | AT4: 17 | AU4: 18 | AV4: 19 | AW4: 20 | AX4: 21 | AY4: 22 | AZ4: 23 | BA4: 24 | BB4: 25 | BC4: 26 | BD4: 27 | BE4: 28 | BF4: 29 | BG4: 30 | BP4: KA | BQ4: Fatal &Incapacitating Injury Crash | BR4: =DC83 -> 0.2083 | BS4: =$AB$5 -> 484544 | BT4: 0 | BU4: =IF(MAX($J$16:$J$29)>=BU$3,$BS4*(1+$BK$2)^BU$3*$BR4,0) -> 102101.3092 | BV4: =IF(MAX($J$16:$J$29)>=BV$3,$BS4*(1+$BK$2)^BV$3*$BR4,0) -> 103285.6844 | BW4: 104483.7983 | BX4: 105695.8104 | BY4: 106921.8818 | BZ4: 108162.1756 | CA4: 109416.8568 | CB4: 110686.0924 | CC4: 111970.051 | CD4: 113268.9036 | CE4: 114582.8229 | CF4: 115911.9837 | CG4: 117256.5627 | CH4: 118616.7388 | CI4: 119992.693 | CJ4: 121384.6082 | CK4: 122792.6697 | CL4: 124217.0646 | CM4: 125657.9826 | CN4: 127115.6152 | CO4: 0 | CP4: 0 | CQ4: 0 | CR4: 0 | CS4: 0 | CT4: 0 | CU4: 0 | CV4: 0 | CW4: 0 | CX4: 0 | CZ4: =IF('Project Information'!$C31="","",'Project Information'!C31) -> SR665; 3.28 | DA4: =IF('Project Information'!$C31="","",'Project Information'!D31) -> Roundabout | DB4: =IF('Project Information'!$C31="","",'Project Information'!K31) -> Spring Valley Rd | DC4: =IF($CZ4="","",IF('Project Information'!$K$16="Proposed",IFERROR(INDIRECT("'"&$CZ4&"'!"&"$F$565"),"Error"),IFERROR(INDIRECT("'"&$CZ4&"'!"&"$F$568"),"Error"))) -> 0.0034 | DD4: =IF($CZ4="","",IF('Project Information'!$K$16="Proposed",IFERROR(INDIRECT("'"&$CZ4&"'!"&"$G$565"),"Error"),IFERROR(INDIRECT("'"&$CZ4&"'!"&"$G$568"),"Error"))) -> 0.0277 | DE4: =IF($CZ4="","",IF('Project Information'!$K$16="Proposed",IFERROR(INDIRECT("'"&$CZ4&"'!"&"$H$565"),"Error"),IFERROR(INDIRECT("'"&$CZ4&"'!"&"$H$568"),"Error"))) -> 0.034 | DF4: =IF($CZ4="","",IF('Project Information'!$K$16="Proposed",IFERROR(INDIRECT("'"&$CZ4&"'!"&"$I$565"),"Error"),IFERROR(INDIRECT("'"&$CZ4&"'!"&"$I$568"),"Error"))) -> 0.8176 | DG4: =IF($CZ4="","",IFERROR(INDIRECT("'"&$CZ4&"'!"&"$C$545"),"Error")) -> 0 | DH4: =IF($CZ4="","",IFERROR(INDIRECT("'"&$CZ4&"'!"&"$D$545"),"Error")) -> 0 | DI4: =IF($CZ4="","",IFERROR(INDIRECT("'"&$CZ4&"'!"&"$E$545"),"Error")) -> 0 | DJ4: =IF($CZ4="","",IFERROR(INDIRECT("'"&$CZ4&"'!"&"$F$545"),"Error")) -> 0 | DK4: =IF($CZ4="","",IFERROR(INDIRECT("'"&$CZ4&"'!"&"$G$545"),"Error")) -> 0 | DL4: =IF($CZ4="","",IFERROR(INDIRECT("'"&$CZ4&"'!"&"$H$545"),"Error")) -> 0 | DM4: =IF($CZ4="","",IFERROR(INDIRECT("'"&$CZ4&"'!"&"$I$545"),"Error")) -> 0 | DN4: =IF($CZ4="","",IFERROR(INDIRECT("'"&$CZ4&"'!"&"$J$545"),"Error")) -> 0 | DO4: =IF($CZ4="","",IFERROR(INDIRECT("'"&$CZ4&"'!"&"$K$545"),"Error")) -> 0 | DP4: =IF($CZ4="","",IFERROR(INDIRECT("'"&$CZ4&"'!"&"$L$545"),"Error")) -> 0 | DQ4: =IF($CZ4="","",IFERROR(INDIRECT("'"&$CZ4&"'!"&"$M$545"),"Error")) -> 0 | DR4: =IF($CZ4="","",IFERROR(INDIRECT("'"&$CZ4&"'!"&"$N$545"),"Error")) -> 0 | DS4: =IF($CZ4="","",IFERROR(INDIRECT("'"&$CZ4&"'!"&"$O$545"),"Error")) -> 0 | DT4: =IF($CZ4="","",IFERROR(INDIRECT("'"&$CZ4&"'!"&"$P$545"),"Error")) -> 0 | DU4: =IF($CZ4="","",IFERROR(INDIRECT("'"&$CZ4&"'!"&"$Q$545"),"Error")) -> 0 | DV4: =IF($CZ4="","",IFERROR(INDIRECT("'"&$CZ4&"'!"&"$R$545"),"Error")) -> 0 | DW4: =IF($CZ4="","",IFERROR(INDIRECT("'"&$CZ4&"'!"&"$S$545"),"Error")) -> 0 | DX4: =IF($CZ4="","",IFERROR(INDIRECT("'"&$CZ4&"'!"&"$T$545"),"Error")) -> 0 | DY4: =IF($CZ4="","",IFERROR(INDIRECT("'"&$CZ4&"'!"&"$U$545"),"Error")) -> 0 | DZ4: =IF($CZ4="","",IFERROR(INDIRECT("'"&$CZ4&"'!"&"$V$545"),"Error")) -> 0 | EA4: =IF($CZ4="","",IFERROR(INDIRECT("'"&$CZ4&"'!"&"$W$545"),"Error")) -> 0 | EB4: =IF($CZ4="","",IFERROR(INDIRECT("'"&$CZ4&"'!"&"$X$545"),"Error")) -> 0 | EC4: =IF($CZ4="","",IFERROR(INDIRECT("'"&$CZ4&"'!"&"$Y$545"),"Error")) -> 0 | ED4: =IF($CZ4="","",IFERROR(INDIRECT("'"&$CZ4&"'!"&"$Z$545"),"Error")) -> 0 | EE4: =IF($CZ4="","",IFERROR(INDIRECT("'"&$CZ4&"'!"&"$AA$545"),"Error")) -> 0 | EF4: =IF($CZ4="","",IFERROR(INDIRECT("'"&$CZ4&"'!"&"$AB$545"),"Error")) -> 0 | EG4: =IF($CZ4="","",IFERROR(INDIRECT("'"&$CZ4&"'!"&"$AC$545"),"Error")) -> 0 | EH4: =IF($CZ4="","",IFERROR(INDIRECT("'"&$CZ4&"'!"&"$AD$545"),"Error")) -> 0 | EI4: =IF($CZ4="","",IFERROR(INDIRECT("'"&$CZ4&"'!"&"$AE$545"),"Error")) -> 0 | EJ4: =IF($CZ4="","",IFERROR(INDIRECT("'"&$CZ4&"'!"&"$AF$545"),"Error")) -> 0 | EK4: =IF($CZ4="","",IFERROR(INDIRECT("'"&$CZ4&"'!"&"$AG$545"),"Error")) -> 0 | EL4: =IF($CZ4="","",IFERROR(INDIRECT("'"&$CZ4&"'!"&"$AH$545"),"Error")) -> 0 | EM4: =IF($CZ4="","",IFERROR(INDIRECT("'"&$CZ4&"'!"&"$AI$545"),"Error")) -> 0 | EN4: =IF($CZ4="","",IFERROR(INDIRECT("'"&$CZ4&"'!"&"$AJ$545"),"Error")) -> 0 | EO4: =IF($CZ4="","",IFERROR(INDIRECT("'"&$CZ4&"'!"&"$AK$545"),"Error")) -> 0 | EP4: =IF($CZ4="","",IFERROR(INDIRECT("'"&$CZ4&"'!"&"$AL$545"),"Error")) -> 0 | EQ4: =IF($CZ4="","",IFERROR(INDIRECT("'"&$CZ4&"'!"&"$AM$545"),"Error")) -> 0 | ER4: =IF($CZ4="","",IFERROR(INDIRECT("'"&$CZ4&"'!"&"$AN$545"),"Error")) -> 0 | ES4: =IF($CZ4="","",IFERROR(INDIRECT("'"&$CZ4&"'!"&"$AO$545"),"Error")) -> 0 | ET4: =IF($CZ4="","",IFERROR(INDIRECT("'"&$CZ4&"'!"&"$AP$545"),"Error")) -> 0 | FJ4: Code | FK4: Severity | FL4: Count | FM4: Avg Est Red | FN4: PV $ | FO4: 0 | FP4: 1 | FQ4: 2 | FR4: 3 | FS4: 4 | FT4: 5 | FU4: 6 | FV4: 7 | FW4: 8 | FX4: 9 | FY4: 10 | FZ4: 11 | GA4: 12 | GB4: 13 | GC4: 14 | GD4: 15 | GE4: 16 | GF4: 17 | GG4: 18 | GH4: 19 | GI4: 20 | GJ4: 21 | GK4: 22 | GL4: 23 | GM4: 24 | GN4: 25 | GO4: 26 | GP4: 27 | GQ4: 28 | GR4: 29 | GS4: 30
B5: Reference Number | E5: =IF('Project Information'!$D$5="","",'Project Information'!$D$5) ->  | M5: Date Performed | O5: =IF('Project Information'!$I$5="","",'Project Information'!$I$5) ->  | X5: KA | Y5: Fatal &Incapacitating Injury Crash | AA5: =BR4+BR12+BR20+BR28+BR36+BR44+BR52+BR60+BR68+BR76+BR84 -> 0.2083 | AB5: 484544 | AC5: 0 | AD5: =IF(MAX($J$16:$J$29)>=AD$4,$AB5*(1+$BK$2)^AD$4*$AA5,0) -> 102101.3092 | AE5: =IF(MAX($J$16:$J$29)>=AE$4,$AB5*(1+$BK$2)^AE$4*$AA5,0) -> 103285.6844 | AF5: 104483.7983 | AG5: 105695.8104 | AH5: 106921.8818 | AI5: 108162.1756 | AJ5: 109416.8568 | AK5: 110686.0924 | AL5: 111970.051 | AM5: 113268.9036 | AN5: 114582.8229 | AO5: 115911.9837 | AP5: 117256.5627 | AQ5: 118616.7388 | AR5: 119992.693 | AS5: 121384.6082 | AT5: 122792.6697 | AU5: 124217.0646 | AV5: 125657.9826 | AW5: 127115.6152 | AX5: 0 | AY5: 0 | AZ5: 0 | BA5: 0 | BB5: 0 | BC5: 0 | BD5: 0 | BE5: 0 | BF5: 0 | BG5: 0 | BP5: B | BQ5: Non-Incapacitating Injury Crash | BR5: =DD83 -> 0.4856 | BS5: =$AB$6 -> 69135 | BT5: 0 | BU5: =IF(MAX($J$16:$J$29)>=BU$3,$BS5*(1+$BK$2)^BU$3*$BR5,0) -> 33961.39069 | BV5: =IF(MAX($J$16:$J$29)>=BV$3,$BS5*(1+$BK$2)^BV$3*$BR5,0) -> 34355.34282 | BW5: 34753.8648 | BX5: 35157.00963 | BY5: 35564.83094 | BZ5: 35977.38298 | CA5: 36394.72062 | CB5: 36816.89938 | CC5: 37243.97542 | CD5: 37676.00553 | CE5: 38113.04719 | CF5: 38555.15854 | CG5: 39002.39838 | CH5: 39454.8262 | CI5: 39912.50219 | CJ5: 40375.48721 | CK5: 40843.84286 | CL5: 41317.63144 | CM5: 41796.91596 | CN5: 42281.76019 | CO5: 0 | CP5: 0 | CQ5: 0 | CR5: 0 | CS5: 0 | CT5: 0 | CU5: 0 | CV5: 0 | CW5: 0 | CX5: 0 | CZ5: =IF('Project Information'!$C32="","",'Project Information'!C32) ->  | DA5: =IF('Project Information'!$C32="","",'Project Information'!D32) ->  | DB5: =IF('Project Information'!$C32="","",'Project Information'!K32) ->  | DC5: =IF($CZ5="","",IF('Project Information'!$K$16="Proposed",IFERROR(INDIRECT("'"&$CZ5&"'!"&"$F$565"),"Error"),IFERROR(INDIRECT("'"&$CZ5&"'!"&"$F$568"),"Error"))) ->  | DD5: =IF($CZ5="","",IF('Project Information'!$K$16="Proposed",IFERROR(INDIRECT("'"&$CZ5&"'!"&"$G$565"),"Error"),IFERROR(INDIRECT("'"&$CZ5&"'!"&"$G$568"),"Error"))) ->  | DE5: =IF($CZ5="","",IF('Project Information'!$K$16="Proposed",IFERROR(INDIRECT("'"&$CZ5&"'!"&"$H$565"),"Error"),IFERROR(INDIRECT("'"&$CZ5&"'!"&"$H$568"),"Error"))) ->  | DF5: =IF($CZ5="","",IF('Project Information'!$K$16="Proposed",IFERROR(INDIRECT("'"&$CZ5&"'!"&"$I$565"),"Error"),IFERROR(INDIRECT("'"&$CZ5&"'!"&"$I$568"),"Error"))) ->  | DG5: =IF($CZ5="","",IFERROR(INDIRECT("'"&$CZ5&"'!"&"$C$545"),"Error")) ->  | DH5: =IF($CZ5="","",IFERROR(INDIRECT("'"&$CZ5&"'!"&"$D$545"),"Error")) ->  | DI5: =IF($CZ5="","",IFERROR(INDIRECT("'"&$CZ5&"'!"&"$E$545"),"Error")) ->  | DJ5: =IF($CZ5="","",IFERROR(INDIRECT("'"&$CZ5&"'!"&"$F$545"),"Error")) ->  | DK5: =IF($CZ5="","",IFERROR(INDIRECT("'"&$CZ5&"'!"&"$G$545"),"Error")) ->  | DL5: =IF($CZ5="","",IFERROR(INDIRECT("'"&$CZ5&"'!"&"$H$545"),"Error")) ->  | DM5: =IF($CZ5="","",IFERROR(INDIRECT("'"&$CZ5&"'!"&"$I$545"),"Error")) ->  | DN5: =IF($CZ5="","",IFERROR(INDIRECT("'"&$CZ5&"'!"&"$J$545"),"Error")) ->  | DO5: =IF($CZ5="","",IFERROR(INDIRECT("'"&$CZ5&"'!"&"$K$545"),"Error")) ->  | DP5: =IF($CZ5="","",IFERROR(INDIRECT("'"&$CZ5&"'!"&"$L$545"),"Error")) ->  | DQ5: =IF($CZ5="","",IFERROR(INDIRECT("'"&$CZ5&"'!"&"$M$545"),"Error")) ->  | DR5: =IF($CZ5="","",IFERROR(INDIRECT("'"&$CZ5&"'!"&"$N$545"),"Error")) ->  | DS5: =IF($CZ5="","",IFERROR(INDIRECT("'"&$CZ5&"'!"&"$O$545"),"Error")) ->  | DT5: =IF($CZ5="","",IFERROR(INDIRECT("'"&$CZ5&"'!"&"$P$545"),"Error")) ->  | DU5: =IF($CZ5="","",IFERROR(INDIRECT("'"&$CZ5&"'!"&"$Q$545"),"Error")) ->  | DV5: =IF($CZ5="","",IFERROR(INDIRECT("'"&$CZ5&"'!"&"$R$545"),"Error")) ->  | DW5: =IF($CZ5="","",IFERROR(INDIRECT("'"&$CZ5&"'!"&"$S$545"),"Error")) ->  | DX5: =IF($CZ5="","",IFERROR(INDIRECT("'"&$CZ5&"'!"&"$T$545"),"Error")) ->  | DY5: =IF($CZ5="","",IFERROR(INDIRECT("'"&$CZ5&"'!"&"$U$545"),"Error")) ->  | DZ5: =IF($CZ5="","",IFERROR(INDIRECT("'"&$CZ5&"'!"&"$V$545"),"Error")) ->  | EA5: =IF($CZ5="","",IFERROR(INDIRECT("'"&$CZ5&"'!"&"$W$545"),"Error")) ->  | EB5: =IF($CZ5="","",IFERROR(INDIRECT("'"&$CZ5&"'!"&"$X$545"),"Error")) ->  | EC5: =IF($CZ5="","",IFERROR(INDIRECT("'"&$CZ5&"'!"&"$Y$545"),"Error")) ->  | ED5: =IF($CZ5="","",IFERROR(INDIRECT("'"&$CZ5&"'!"&"$Z$545"),"Error")) ->  | EE5: =IF($CZ5="","",IFERROR(INDIRECT("'"&$CZ5&"'!"&"$AA$545"),"Error")) ->  | EF5: =IF($CZ5="","",IFERROR(INDIRECT("'"&$CZ5&"'!"&"$AB$545"),"Error")) ->  | EG5: =IF($CZ5="","",IFERROR(INDIRECT("'"&$CZ5&"'!"&"$AC$545"),"Error")) ->  | EH5: =IF($CZ5="","",IFERROR(INDIRECT("'"&$CZ5&"'!"&"$AD$545"),"Error")) ->  | EI5: =IF($CZ5="","",IFERROR(INDIRECT("'"&$CZ5&"'!"&"$AE$545"),"Error")) ->  | EJ5: =IF($CZ5="","",IFERROR(INDIRECT("'"&$CZ5&"'!"&"$AF$545"),"Error")) ->  | EK5: =IF($CZ5="","",IFERROR(INDIRECT("'"&$CZ5&"'!"&"$AG$545"),"Error")) ->  | EL5: =IF($CZ5="","",IFERROR(INDIRECT("'"&$CZ5&"'!"&"$AH$545"),"Error")) ->  | EM5: =IF($CZ5="","",IFERROR(INDIRECT("'"&$CZ5&"'!"&"$AI$545"),"Error")) ->  | EN5: =IF($CZ5="","",IFERROR(INDIRECT("'"&$CZ5&"'!"&"$AJ$545"),"Error")) ->  | EO5: =IF($CZ5="","",IFERROR(INDIRECT("'"&$CZ5&"'!"&"$AK$545"),"Error")) ->  | EP5: =IF($CZ5="","",IFERROR(INDIRECT("'"&$CZ5&"'!"&"$AL$545"),"Error")) ->  | EQ5: =IF($CZ5="","",IFERROR(INDIRECT("'"&$CZ5&"'!"&"$AM$545"),"Error")) ->  | ER5: =IF($CZ5="","",IFERROR(INDIRECT("'"&$CZ5&"'!"&"$AN$545"),"Error")) ->  | ES5: =IF($CZ5="","",IFERROR(INDIRECT("'"&$CZ5&"'!"&"$AO$545"),"Error")) ->  | ET5: =IF($CZ5="","",IFERROR(INDIRECT("'"&$CZ5&"'!"&"$AP$545"),"Error")) ->  | FJ5: AIS 0 | FL5: =FJ$20*$FS20+FK$20*$FT20+FL$20*$FU20+FM$20*$FV20+FN$20*$FW20+FO$20*$FX20 -> 1.706596552 | FM5: =FJ$21*$FS20+FK$21*$FT20+FL$21*$FU20+FM$21*$FV20+FN$21*$FW20+FO$21*$FX20 -> 1.062332311 | FN5: 0 | FO5: 0 | FP5: =IF(MAX($J$16:$J$29)>=FP$4,$FM5*(1+'Project Information'!$F$112)^FP$4*$FN5,0) -> 0 | FQ5: =IF(MAX($J$16:$J$29)>=FQ$4,$FM5*(1+'Project Information'!$F$112)^FQ$4*$FN5,0) -> 0 | FR5: =IF(MAX($J$16:$J$29)>=FR$4,$FM5*(1+'Project Information'!$F$112)^FR$4*$FN5,0) -> 0 | FS5: =IF(MAX($J$16:$J$29)>=FS$4,$FM5*(1+'Project Information'!$F$112)^FS$4*$FN5,0) -> 0 | FT5: =IF(MAX($J$16:$J$29)>=FT$4,$FM5*(1+'Project Information'!$F$112)^FT$4*$FN5,0) -> 0 | FU5: =IF(MAX($J$16:$J$29)>=FU$4,$FM5*(1+'Project Information'!$F$112)^FU$4*$FN5,0) -> 0 | FV5: =IF(MAX($J$16:$J$29)>=FV$4,$FM5*(1+'Project Information'!$F$112)^FV$4*$FN5,0) -> 0 | FW5: =IF(MAX($J$16:$J$29)>=FW$4,$FM5*(1+'Project Information'!$F$112)^FW$4*$FN5,0) -> 0 | FX5: =IF(MAX($J$16:$J$29)>=FX$4,$FM5*(1+'Project Information'!$F$112)^FX$4*$FN5,0) -> 0 | FY5: =IF(MAX($J$16:$J$29)>=FY$4,$FM5*(1+'Project Information'!$F$112)^FY$4*$FN5,0) -> 0 | FZ5: =IF(MAX($J$16:$J$29)>=FZ$4,$FM5*(1+'Project Information'!$F$112)^FZ$4*$FN5,0) -> 0 | GA5: =IF(MAX($J$16:$J$29)>=GA$4,$FM5*(1+'Project Information'!$F$112)^GA$4*$FN5,0) -> 0 | GB5: =IF(MAX($J$16:$J$29)>=GB$4,$FM5*(1+'Project Information'!$F$112)^GB$4*$FN5,0) -> 0 | GC5: =IF(MAX($J$16:$J$29)>=GC$4,$FM5*(1+'Project Information'!$F$112)^GC$4*$FN5,0) -> 0 | GD5: =IF(MAX($J$16:$J$29)>=GD$4,$FM5*(1+'Project Information'!$F$112)^GD$4*$FN5,0) -> 0 | GE5: =IF(MAX($J$16:$J$29)>=GE$4,$FM5*(1+'Project Information'!$F$112)^GE$4*$FN5,0) -> 0 | GF5: =IF(MAX($J$16:$J$29)>=GF$4,$FM5*(1+'Project Information'!$F$112)^GF$4*$FN5,0) -> 0 | GG5: =IF(MAX($J$16:$J$29)>=GG$4,$FM5*(1+'Project Information'!$F$112)^GG$4*$FN5,0) -> 0 | GH5: =IF(MAX($J$16:$J$29)>=GH$4,$FM5*(1+'Project Information'!$F$112)^GH$4*$FN5,0) -> 0 | GI5: =IF(MAX($J$16:$J$29)>=GI$4,$FM5*(1+'Project Information'!$F$112)^GI$4*$FN5,0) -> 0 | GJ5: =IF(MAX($J$16:$J$29)>=GJ$4,$FM5*(1+'Project Information'!$F$112)^GJ$4*$FN5,0) -> 0 | GK5: =IF(MAX($J$16:$J$29)>=GK$4,$FM5*(1+'Project Information'!$F$112)^GK$4*$FN5,0) -> 0 | GL5: =IF(MAX($J$16:$J$29)>=GL$4,$FM5*(1+'Project Information'!$F$112)^GL$4*$FN5,0) -> 0 | GM5: =IF(MAX($J$16:$J$29)>=GM$4,$FM5*(1+'Project Information'!$F$112)^GM$4*$FN5,0) -> 0 | GN5: =IF(MAX($J$16:$J$29)>=GN$4,$FM5*(1+'Project Information'!$F$112)^GN$4*$FN5,0) -> 0 | GO5: =IF(MAX($J$16:$J$29)>=GO$4,$FM5*(1+'Project Information'!$F$112)^GO$4*$FN5,0) -> 0 | GP5: =IF(MAX($J$16:$J$29)>=GP$4,$FM5*(1+'Project Information'!$F$112)^GP$4*$FN5,0) -> 0 | GQ5: =IF(MAX($J$16:$J$29)>=GQ$4,$FM5*(1+'Project Information'!$F$112)^GQ$4*$FN5,0) -> 0 | GR5: =IF(MAX($J$16:$J$29)>=GR$4,$FM5*(1+'Project Information'!$F$112)^GR$4*$FN5,0) -> 0 | GS5: =IF(MAX($J$16:$J$29)>=GS$4,$FM5*(1+'Project Information'!$F$112)^GS$4*$FN5,0) -> 0
B6: Analyst | E6: =IF('Project Information'!$D$6="","",'Project Information'!$D$6) ->  | M6: Analysis Year | O6: =IF('Project Information'!$I$6="","",'Project Information'!$I$6) ->  | X6: B | Y6: Non-Incapacitating Injury Crash | AA6: =BR5+BR13+BR21+BR29+BR37+BR45+BR53+BR61+BR69+BR77+BR85 -> 0.4856 | AB6: 69135 | AC6: 0 | AD6: =IF(MAX($J$16:$J$29)>=AD$4,$AB6*(1+$BK$2)^AD$4*$AA6,0) -> 33961.39069 | AE6: =IF(MAX($J$16:$J$29)>=AE$4,$AB6*(1+$BK$2)^AE$4*$AA6,0) -> 34355.34282 | AF6: 34753.8648 | AG6: 35157.00963 | AH6: 35564.83094 | AI6: 35977.38298 | AJ6: 36394.72062 | AK6: 36816.89938 | AL6: 37243.97542 | AM6: 37676.00553 | AN6: 38113.04719 | AO6: 38555.15854 | AP6: 39002.39838 | AQ6: 39454.8262 | AR6: 39912.50219 | AS6: 40375.48721 | AT6: 40843.84286 | AU6: 41317.63144 | AV6: 41796.91596 | AW6: 42281.76019 | AX6: 0 | AY6: 0 | AZ6: 0 | BA6: 0 | BB6: 0 | BC6: 0 | BD6: 0 | BE6: 0 | BF6: 0 | BG6: 0 | BP6: C | BQ6: Possible Injury Crash | BR6: =DE83 -> 0.3079 | BS6: =$AB$7 -> 46860 | BT6: 0 | BU6: =IF(MAX($J$16:$J$29)>=BU$3,$BS6*(1+$BK$2)^BU$3*$BR6,0) -> 14595.56105 | BV6: 14764.86956 | BW6: 14936.14205 | BX6: 15109.40129 | BY6: 15284.67035 | BZ6: 15461.97252 | CA6: 15641.33141 | CB6: 15822.77085 | CC6: 16006.31499 | CD6: 16191.98825 | CE6: 16379.81531 | CF6: 16569.82117 | CG6: 16762.03109 | CH6: 16956.47065 | CI6: 17153.16571 | CJ6: 17352.14243 | CK6: 17553.42729 | CL6: 17757.04704 | CM6: 17963.02879 | CN6: 18171.39992 | CO6: 0 | CP6: 0 | CQ6: 0 | CR6: 0 | CS6: 0 | CT6: 0 | CU6: 0 | CV6: 0 | CW6: 0 | CX6: 0 | CZ6: =IF('Project Information'!$C33="","",'Project Information'!C33) ->  | DA6: =IF('Project Information'!$C33="","",'Project Information'!D33) ->  | DB6: =IF('Project Information'!$C33="","",'Project Information'!K33) ->  | DC6: =IF($CZ6="","",IF('Project Information'!$K$16="Proposed",IFERROR(INDIRECT("'"&$CZ6&"'!"&"$F$565"),"Error"),IFERROR(INDIRECT("'"&$CZ6&"'!"&"$F$568"),"Error"))) ->  | DD6: =IF($CZ6="","",IF('Project Information'!$K$16="Proposed",IFERROR(INDIRECT("'"&$CZ6&"'!"&"$G$565"),"Error"),IFERROR(INDIRECT("'"&$CZ6&"'!"&"$G$568"),"Error"))) ->  | DE6: =IF($CZ6="","",IF('Project Information'!$K$16="Proposed",IFERROR(INDIRECT("'"&$CZ6&"'!"&"$H$565"),"Error"),IFERROR(INDIRECT("'"&$CZ6&"'!"&"$H$568"),"Error"))) ->  | DF6: =IF($CZ6="","",IF('Project Information'!$K$16="Proposed",IFERROR(INDIRECT("'"&$CZ6&"'!"&"$I$565"),"Error"),IFERROR(INDIRECT("'"&$CZ6&"'!"&"$I$568"),"Error"))) ->  | FJ6: AIS 1 | FL6: =FJ$20*$FS21+FK$20*$FT21+FL$20*$FU21+FM$20*$FV21+FN$20*$FW21+FO$20*$FX21 -> 1.178711954 | FM6: =FJ$21*$FS21+FK$21*$FT21+FL$21*$FU21+FM$21*$FV21+FN$21*$FW21+FO$21*$FX21 -> 0.7602928516 | FN6: 27600 | FO6: 0 | FP6: =IF(MAX($J$16:$J$29)>=FP$4,$FM6*(1+'Project Information'!$F$112)^FP$4*$FN6,0) -> 21227.49806 | FQ6: =IF(MAX($J$16:$J$29)>=FQ$4,$FM6*(1+'Project Information'!$F$112)^FQ$4*$FN6,0) -> 21473.73704 | FR6: =IF(MAX($J$16:$J$29)>=FR$4,$FM6*(1+'Project Information'!$F$112)^FR$4*$FN6,0) -> 21722.83239 | FS6: =IF(MAX($J$16:$J$29)>=FS$4,$FM6*(1+'Project Information'!$F$112)^FS$4*$FN6,0) -> 21974.81725 | FT6: =IF(MAX($J$16:$J$29)>=FT$4,$FM6*(1+'Project Information'!$F$112)^FT$4*$FN6,0) -> 22229.72513 | FU6: =IF(MAX($J$16:$J$29)>=FU$4,$FM6*(1+'Project Information'!$F$112)^FU$4*$FN6,0) -> 22487.58994 | FV6: =IF(MAX($J$16:$J$29)>=FV$4,$FM6*(1+'Project Information'!$F$112)^FV$4*$FN6,0) -> 22748.44598 | FW6: =IF(MAX($J$16:$J$29)>=FW$4,$FM6*(1+'Project Information'!$F$112)^FW$4*$FN6,0) -> 23012.32795 | FX6: =IF(MAX($J$16:$J$29)>=FX$4,$FM6*(1+'Project Information'!$F$112)^FX$4*$FN6,0) -> 23279.27096 | FY6: =IF(MAX($J$16:$J$29)>=FY$4,$FM6*(1+'Project Information'!$F$112)^FY$4*$FN6,0) -> 23549.3105 | FZ6: =IF(MAX($J$16:$J$29)>=FZ$4,$FM6*(1+'Project Information'!$F$112)^FZ$4*$FN6,0) -> 23822.4825 | GA6: =IF(MAX($J$16:$J$29)>=GA$4,$FM6*(1+'Project Information'!$F$112)^GA$4*$FN6,0) -> 24098.8233 | GB6: =IF(MAX($J$16:$J$29)>=GB$4,$FM6*(1+'Project Information'!$F$112)^GB$4*$FN6,0) -> 24378.36965 | GC6: =IF(MAX($J$16:$J$29)>=GC$4,$FM6*(1+'Project Information'!$F$112)^GC$4*$FN6,0) -> 24661.15874 | GD6: =IF(MAX($J$16:$J$29)>=GD$4,$FM6*(1+'Project Information'!$F$112)^GD$4*$FN6,0) -> 24947.22818 | GE6: =IF(MAX($J$16:$J$29)>=GE$4,$FM6*(1+'Project Information'!$F$112)^GE$4*$FN6,0) -> 25236.61603 | GF6: =IF(MAX($J$16:$J$29)>=GF$4,$FM6*(1+'Project Information'!$F$112)^GF$4*$FN6,0) -> 25529.36077 | GG6: =IF(MAX($J$16:$J$29)>=GG$4,$FM6*(1+'Project Information'!$F$112)^GG$4*$FN6,0) -> 25825.50136 | GH6: =IF(MAX($J$16:$J$29)>=GH$4,$FM6*(1+'Project Information'!$F$112)^GH$4*$FN6,0) -> 26125.07717 | GI6: =IF(MAX($J$16:$J$29)>=GI$4,$FM6*(1+'Project Information'!$F$112)^GI$4*$FN6,0) -> 26428.12807 | GJ6: =IF(MAX($J$16:$J$29)>=GJ$4,$FM6*(1+'Project Information'!$F$112)^GJ$4*$FN6,0) -> 0 | GK6: =IF(MAX($J$16:$J$29)>=GK$4,$FM6*(1+'Project Information'!$F$112)^GK$4*$FN6,0) -> 0 | GL6: =IF(MAX($J$16:$J$29)>=GL$4,$FM6*(1+'Project Information'!$F$112)^GL$4*$FN6,0) -> 0 | GM6: =IF(MAX($J$16:$J$29)>=GM$4,$FM6*(1+'Project Information'!$F$112)^GM$4*$FN6,0) -> 0 | GN6: =IF(MAX($J$16:$J$29)>=GN$4,$FM6*(1+'Project Information'!$F$112)^GN$4*$FN6,0) -> 0 | GO6: =IF(MAX($J$16:$J$29)>=GO$4,$FM6*(1+'Project Information'!$F$112)^GO$4*$FN6,0) -> 0 | GP6: =IF(MAX($J$16:$J$29)>=GP$4,$FM6*(1+'Project Information'!$F$112)^GP$4*$FN6,0) -> 0 | GQ6: =IF(MAX($J$16:$J$29)>=GQ$4,$FM6*(1+'Project Information'!$F$112)^GQ$4*$FN6,0) -> 0 | GR6: =IF(MAX($J$16:$J$29)>=GR$4,$FM6*(1+'Project Information'!$F$112)^GR$4*$FN6,0) -> 0 | GS6: =IF(MAX($J$16:$J$29)>=GS$4,$FM6*(1+'Project Information'!$F$112)^GS$4*$FN6,0) -> 0
B7: Agency/Company | E7: =IF('Project Information'!$D$7="","",'Project Information'!$D$7) ->  | O7: =IF('Project Information'!$I$7="","",'Project Information'!$I$7) ->  | X7: C | Y7: Possible Injury Crash | AA7: =BR6+BR14+BR22+BR30+BR38+BR46+BR54+BR62+BR70+BR78+BR86 -> 0.3079 | AB7: 46860 | AC7: 0 | AD7: =IF(MAX($J$16:$J$29)>=AD$4,$AB7*(1+$BK$2)^AD$4*$AA7,0) -> 14595.56105 | AE7: 14764.86956 | AF7: 14936.14205 | AG7: 15109.40129 | AH7: 15284.67035 | AI7: 15461.97252 | AJ7: 15641.33141 | AK7: 15822.77085 | AL7: 16006.31499 | AM7: 16191.98825 | AN7: 16379.81531 | AO7: 16569.82117 | AP7: 16762.03109 | AQ7: 16956.47065 | AR7: 17153.16571 | AS7: 17352.14243 | AT7: 17553.42729 | AU7: 17757.04704 | AV7: 17963.02879 | AW7: 18171.39992 | AX7: 0 | AY7: 0 | AZ7: 0 | BA7: 0 | BB7: 0 | BC7: 0 | BD7: 0 | BE7: 0 | BF7: 0 | BG7: 0 | BP7: O | BQ7: Property Damage Crash | BR7: =DF83 -> 1.0195 | BS7: =$AB$8 -> 0 | BT7: 0 | BU7: =IF(MAX($J$16:$J$29)>=BU$3,$BS7*(1+$BK$2)^BU$3*$BR7,0) -> 0 | BV7: 0 | BW7: 0 | BX7: 0 | BY7: 0 | BZ7: 0 | CA7: 0 | CB7: 0 | CC7: 0 | CD7: 0 | CE7: 0 | CF7: 0 | CG7: 0 | CH7: 0 | CI7: 0 | CJ7: 0 | CK7: 0 | CL7: 0 | CM7: 0 | CN7: 0 | CO7: 0 | CP7: 0 | CQ7: 0 | CR7: 0 | CS7: 0 | CT7: 0 | CU7: 0 | CV7: 0 | CW7: 0 | CX7: 0 | CZ7: =IF('Project Information'!$C34="","",'Project Information'!C34) ->  | DA7: =IF('Project Information'!$C34="","",'Project Information'!D34) ->  | DB7: =IF('Project Information'!$C34="","",'Project Information'!K34) ->  | DC7: =IF($CZ7="","",IF('Project Information'!$K$16="Proposed",IFERROR(INDIRECT("'"&$CZ7&"'!"&"$F$565"),"Error"),IFERROR(INDIRECT("'"&$CZ7&"'!"&"$F$568"),"Error"))) ->  | DD7: =IF($CZ7="","",IF('Project Information'!$K$16="Proposed",IFERROR(INDIRECT("'"&$CZ7&"'!"&"$G$565"),"Error"),IFERROR(INDIRECT("'"&$CZ7&"'!"&"$G$568"),"Error"))) ->  | DE7: =IF($CZ7="","",IF('Project Information'!$K$16="Proposed",IFERROR(INDIRECT("'"&$CZ7&"'!"&"$H$565"),"Error"),IFERROR(INDIRECT("'"&$CZ7&"'!"&"$H$568"),"Error"))) ->  | DF7: =IF($CZ7="","",IF('Project Information'!$K$16="Proposed",IFERROR(INDIRECT("'"&$CZ7&"'!"&"$I$565"),"Error"),IFERROR(INDIRECT("'"&$CZ7&"'!"&"$I$568"),"Error"))) ->  | FJ7: AIS 2 | FL7: 0.1716691941 | FM7: 0.112653237 | FN7: 432400 | FO7: 0 | FP7: =IF(MAX($J$16:$J$29)>=FP$4,$FM7*(1+'Project Information'!$F$112)^FP$4*$FN7,0) -> 49276.31027 | FQ7: =IF(MAX($J$16:$J$29)>=FQ$4,$FM7*(1+'Project Information'!$F$112)^FQ$4*$FN7,0) -> 49847.91547 | FR7: =IF(MAX($J$16:$J$29)>=FR$4,$FM7*(1+'Project Information'!$F$112)^FR$4*$FN7,0) -> 50426.15129 | FS7: =IF(MAX($J$16:$J$29)>=FS$4,$FM7*(1+'Project Information'!$F$112)^FS$4*$FN7,0) -> 51011.09465 | FT7: =IF(MAX($J$16:$J$29)>=FT$4,$FM7*(1+'Project Information'!$F$112)^FT$4*$FN7,0) -> 51602.82334 | FU7: =IF(MAX($J$16:$J$29)>=FU$4,$FM7*(1+'Project Information'!$F$112)^FU$4*$FN7,0) -> 52201.41609 | FV7: =IF(MAX($J$16:$J$29)>=FV$4,$FM7*(1+'Project Information'!$F$112)^FV$4*$FN7,0) -> 52806.95252 | FW7: =IF(MAX($J$16:$J$29)>=FW$4,$FM7*(1+'Project Information'!$F$112)^FW$4*$FN7,0) -> 53419.51317 | FX7: =IF(MAX($J$16:$J$29)>=FX$4,$FM7*(1+'Project Information'!$F$112)^FX$4*$FN7,0) -> 54039.17952 | FY7: =IF(MAX($J$16:$J$29)>=FY$4,$FM7*(1+'Project Information'!$F$112)^FY$4*$FN7,0) -> 54666.03401 | FZ7: =IF(MAX($J$16:$J$29)>=FZ$4,$FM7*(1+'Project Information'!$F$112)^FZ$4*$FN7,0) -> 55300.16 | GA7: =IF(MAX($J$16:$J$29)>=GA$4,$FM7*(1+'Project Information'!$F$112)^GA$4*$FN7,0) -> 55941.64186 | GB7: =IF(MAX($J$16:$J$29)>=GB$4,$FM7*(1+'Project Information'!$F$112)^GB$4*$FN7,0) -> 56590.5649 | GC7: =IF(MAX($J$16:$J$29)>=GC$4,$FM7*(1+'Project Information'!$F$112)^GC$4*$FN7,0) -> 57247.01545 | GD7: =IF(MAX($J$16:$J$29)>=GD$4,$FM7*(1+'Project Information'!$F$112)^GD$4*$FN7,0) -> 57911.08083 | GE7: =IF(MAX($J$16:$J$29)>=GE$4,$FM7*(1+'Project Information'!$F$112)^GE$4*$FN7,0) -> 58582.84937 | GF7: =IF(MAX($J$16:$J$29)>=GF$4,$FM7*(1+'Project Information'!$F$112)^GF$4*$FN7,0) -> 59262.41042 | GG7: =IF(MAX($J$16:$J$29)>=GG$4,$FM7*(1+'Project Information'!$F$112)^GG$4*$FN7,0) -> 59949.85438 | GH7: =IF(MAX($J$16:$J$29)>=GH$4,$FM7*(1+'Project Information'!$F$112)^GH$4*$FN7,0) -> 60645.2727 | GI7: =IF(MAX($J$16:$J$29)>=GI$4,$FM7*(1+'Project Information'!$F$112)^GI$4*$FN7,0) -> 61348.75786 | GJ7: =IF(MAX($J$16:$J$29)>=GJ$4,$FM7*(1+'Project Information'!$F$112)^GJ$4*$FN7,0) -> 0 | GK7: =IF(MAX($J$16:$J$29)>=GK$4,$FM7*(1+'Project Information'!$F$112)^GK$4*$FN7,0) -> 0 | GL7: =IF(MAX($J$16:$J$29)>=GL$4,$FM7*(1+'Project Information'!$F$112)^GL$4*$FN7,0) -> 0 | GM7: =IF(MAX($J$16:$J$29)>=GM$4,$FM7*(1+'Project Information'!$F$112)^GM$4*$FN7,0) -> 0 | GN7: =IF(MAX($J$16:$J$29)>=GN$4,$FM7*(1+'Project Information'!$F$112)^GN$4*$FN7,0) -> 0 | GO7: =IF(MAX($J$16:$J$29)>=GO$4,$FM7*(1+'Project Information'!$F$112)^GO$4*$FN7,0) -> 0 | GP7: =IF(MAX($J$16:$J$29)>=GP$4,$FM7*(1+'Project Information'!$F$112)^GP$4*$FN7,0) -> 0 | GQ7: =IF(MAX($J$16:$J$29)>=GQ$4,$FM7*(1+'Project Information'!$F$112)^GQ$4*$FN7,0) -> 0 | GR7: =IF(MAX($J$16:$J$29)>=GR$4,$FM7*(1+'Project Information'!$F$112)^GR$4*$FN7,0) -> 0 | GS7: =IF(MAX($J$16:$J$29)>=GS$4,$FM7*(1+'Project Information'!$F$112)^GS$4*$FN7,0) -> 0
X8: O | Y8: Property Damage Crash | AA8: =BR7+BR15+BR23+BR31+BR39+BR47+BR55+BR63+BR71+BR79+BR87 -> 1.0195 | AB8: 0 | AC8: 0 | AD8: =IF(MAX($J$16:$J$29)>=AD$4,$AB8*(1+$BK$2)^AD$4*$AA8,0) -> 0 | AE8: 0 | AF8: 0 | AG8: 0 | AH8: 0 | AI8: 0 | AJ8: 0 | AK8: 0 | AL8: 0 | AM8: 0 | AN8: 0 | AO8: 0 | AP8: 0 | AQ8: 0 | AR8: 0 | AS8: 0 | AT8: 0 | AU8: 0 | AV8: 0 | AW8: 0 | AX8: 0 | AY8: 0 | AZ8: 0 | BA8: 0 | BB8: 0 | BC8: 0 | BD8: 0 | BE8: 0 | BF8: 0 | BG8: 0 | BP8: Total Annual Benefit | BT8: =SUM(BT4:BT7) -> 0 | BU8: 150658.2609 | BV8: 152405.8967 | BW8: 154173.8051 | BX8: 155962.2213 | BY8: 157771.3831 | BZ8: 159601.5311 | CA8: 161452.9089 | CB8: 163325.7626 | CC8: 165220.3414 | CD8: 167136.8974 | CE8: 169075.6854 | CF8: 171036.9634 | CG8: 173020.9921 | CH8: 175028.0357 | CI8: 177058.3609 | CJ8: 179112.2378 | CK8: 181189.9398 | CL8: 183291.7431 | CM8: 185417.9273 | CN8: 187568.7753 | CO8: 0 | CP8: 0 | CQ8: 0 | CR8: 0 | CS8: 0 | CT8: 0 | CU8: 0 | CV8: 0 | CW8: 0 | CX8: 0 | CZ8: =IF('Project Information'!$C35="","",'Project Information'!C35) ->  | DA8: =IF('Project Information'!$C35="","",'Project Information'!D35) ->  | DB8: =IF('Project Information'!$C35="","",'Project Information'!K35) ->  | DC8: =IF($CZ8="","",IF('Project Information'!$K$16="Proposed",IFERROR(INDIRECT("'"&$CZ8&"'!"&"$F$565"),"Error"),IFERROR(INDIRECT("'"&$CZ8&"'!"&"$F$568"),"Error"))) ->  | DD8: =IF($CZ8="","",IF('Project Information'!$K$16="Proposed",IFERROR(INDIRECT("'"&$CZ8&"'!"&"$G$565"),"Error"),IFERROR(INDIRECT("'"&$CZ8&"'!"&"$G$568"),"Error"))) ->  | DE8: =IF($CZ8="","",IF('Project Information'!$K$16="Proposed",IFERROR(INDIRECT("'"&$CZ8&"'!"&"$H$565"),"Error"),IFERROR(INDIRECT("'"&$CZ8&"'!"&"$H$568"),"Error"))) ->  | DF8: =IF($CZ8="","",IF('Project Information'!$K$16="Proposed",IFERROR(INDIRECT("'"&$CZ8&"'!"&"$I$565"),"Error"),IFERROR(INDIRECT("'"&$CZ8&"'!"&"$I$568"),"Error"))) ->  | FJ8: AIS 3 | FL8: 0.06773259612 | FM8: 0.04513860479 | FN8: 966000 | FO8: 0 | FP8: =IF(MAX($J$16:$J$29)>=FP$4,$FM8*(1+'Project Information'!$F$112)^FP$4*$FN8,0) -> 44109.69738 | FQ8: =IF(MAX($J$16:$J$29)>=FQ$4,$FM8*(1+'Project Information'!$F$112)^FQ$4*$FN8,0) -> 44621.36987 | FR8: =IF(MAX($J$16:$J$29)>=FR$4,$FM8*(1+'Project Information'!$F$112)^FR$4*$FN8,0) -> 45138.97776 | FS8: =IF(MAX($J$16:$J$29)>=FS$4,$FM8*(1+'Project Information'!$F$112)^FS$4*$FN8,0) -> 45662.5899 | FT8: =IF(MAX($J$16:$J$29)>=FT$4,$FM8*(1+'Project Information'!$F$112)^FT$4*$FN8,0) -> 46192.27595 | FU8: =IF(MAX($J$16:$J$29)>=FU$4,$FM8*(1+'Project Information'!$F$112)^FU$4*$FN8,0) -> 46728.10635 | FV8: =IF(MAX($J$16:$J$29)>=FV$4,$FM8*(1+'Project Information'!$F$112)^FV$4*$FN8,0) -> 47270.15238 | FW8: =IF(MAX($J$16:$J$29)>=FW$4,$FM8*(1+'Project Information'!$F$112)^FW$4*$FN8,0) -> 47818.48615 | FX8: =IF(MAX($J$16:$J$29)>=FX$4,$FM8*(1+'Project Information'!$F$112)^FX$4*$FN8,0) -> 48373.18059 | FY8: =IF(MAX($J$16:$J$29)>=FY$4,$FM8*(1+'Project Information'!$F$112)^FY$4*$FN8,0) -> 48934.30948 | FZ8: =IF(MAX($J$16:$J$29)>=FZ$4,$FM8*(1+'Project Information'!$F$112)^FZ$4*$FN8,0) -> 49501.94747 | GA8: =IF(MAX($J$16:$J$29)>=GA$4,$FM8*(1+'Project Information'!$F$112)^GA$4*$FN8,0) -> 50076.17006 | GB8: =IF(MAX($J$16:$J$29)>=GB$4,$FM8*(1+'Project Information'!$F$112)^GB$4*$FN8,0) -> 50657.05364 | GC8: =IF(MAX($J$16:$J$29)>=GC$4,$FM8*(1+'Project Information'!$F$112)^GC$4*$FN8,0) -> 51244.67546 | GD8: =IF(MAX($J$16:$J$29)>=GD$4,$FM8*(1+'Project Information'!$F$112)^GD$4*$FN8,0) -> 51839.11369 | GE8: =IF(MAX($J$16:$J$29)>=GE$4,$FM8*(1+'Project Information'!$F$112)^GE$4*$FN8,0) -> 52440.44741 | GF8: =IF(MAX($J$16:$J$29)>=GF$4,$FM8*(1+'Project Information'!$F$112)^GF$4*$FN8,0) -> 53048.7566 | GG8: =IF(MAX($J$16:$J$29)>=GG$4,$FM8*(1+'Project Information'!$F$112)^GG$4*$FN8,0) -> 53664.12218 | GH8: =IF(MAX($J$16:$J$29)>=GH$4,$FM8*(1+'Project Information'!$F$112)^GH$4*$FN8,0) -> 54286.626 | GI8: =IF(MAX($J$16:$J$29)>=GI$4,$FM8*(1+'Project Information'!$F$112)^GI$4*$FN8,0) -> 54916.35086 | GJ8: =IF(MAX($J$16:$J$29)>=GJ$4,$FM8*(1+'Project Information'!$F$112)^GJ$4*$FN8,0) -> 0 | GK8: =IF(MAX($J$16:$J$29)>=GK$4,$FM8*(1+'Project Information'!$F$112)^GK$4*$FN8,0) -> 0 | GL8: =IF(MAX($J$16:$J$29)>=GL$4,$FM8*(1+'Project Information'!$F$112)^GL$4*$FN8,0) -> 0 | GM8: =IF(MAX($J$16:$J$29)>=GM$4,$FM8*(1+'Project Information'!$F$112)^GM$4*$FN8,0) -> 0 | GN8: =IF(MAX($J$16:$J$29)>=GN$4,$FM8*(1+'Project Information'!$F$112)^GN$4*$FN8,0) -> 0 | GO8: =IF(MAX($J$16:$J$29)>=GO$4,$FM8*(1+'Project Information'!$F$112)^GO$4*$FN8,0) -> 0 | GP8: =IF(MAX($J$16:$J$29)>=GP$4,$FM8*(1+'Project Information'!$F$112)^GP$4*$FN8,0) -> 0 | GQ8: =IF(MAX($J$16:$J$29)>=GQ$4,$FM8*(1+'Project Information'!$F$112)^GQ$4*$FN8,0) -> 0 | GR8: =IF(MAX($J$16:$J$29)>=GR$4,$FM8*(1+'Project Information'!$F$112)^GR$4*$FN8,0) -> 0 | GS8: =IF(MAX($J$16:$J$29)>=GS$4,$FM8*(1+'Project Information'!$F$112)^GS$4*$FN8,0) -> 0
X9: Total Annual Benefit | AC9: =SUM(AC5:AC8) -> 0 | AD9: 150658.2609 | AE9: 152405.8967 | AF9: 154173.8051 | AG9: 155962.2213 | AH9: 157771.3831 | AI9: 159601.5311 | AJ9: 161452.9089 | AK9: 163325.7626 | AL9: 165220.3414 | AM9: 167136.8974 | AN9: 169075.6854 | AO9: 171036.9634 | AP9: 173020.9921 | AQ9: 175028.0357 | AR9: 177058.3609 | AS9: 179112.2378 | AT9: 181189.9398 | AU9: 183291.7431 | AV9: 185417.9273 | AW9: 187568.7753 | AX9: 0 | AY9: 0 | AZ9: 0 | BA9: 0 | BB9: 0 | BC9: 0 | BD9: 0 | BE9: 0 | BF9: 0 | BG9: 0 | BP9: Net Present Value of Safety Benefits | BT9: =BT8*(1+$BK$1)^-BT3 -> 0 | BU9: 144863.7124 | BV9: 140907.8187 | BW9: 137059.9514 | BX9: 133317.1604 | BY9: 129676.5764 | BZ9: 126135.4084 | CA9: 122690.9414 | CB9: 119340.535 | CC9: 116081.6203 | CD9: 112911.6992 | CE9: 109828.3412 | CF9: 106829.1827 | CG9: 103911.9242 | CH9: 101074.3294 | CI9: 98314.2227 | CJ9: 95629.48815 | CK9: 93018.06752 | CL9: 90477.95875 | CM9: 88007.21449 | CN9: 85603.94056 | CO9: 0 | CP9: 0 | CQ9: 0 | CR9: 0 | CS9: 0 | CT9: 0 | CU9: 0 | CV9: 0 | CW9: 0 | CX9: 0 | CZ9: =IF('Project Information'!$C36="","",'Project Information'!C36) ->  | DA9: =IF('Project Information'!$C36="","",'Project Information'!D36) ->  | DB9: =IF('Project Information'!$C36="","",'Project Information'!K36) ->  | DC9: =IF($CZ9="","",IF('Project Information'!$K$16="Proposed",IFERROR(INDIRECT("'"&$CZ9&"'!"&"$F$565"),"Error"),IFERROR(INDIRECT("'"&$CZ9&"'!"&"$F$568"),"Error"))) ->  | DD9: =IF($CZ9="","",IF('Project Information'!$K$16="Proposed",IFERROR(INDIRECT("'"&$CZ9&"'!"&"$G$565"),"Error"),IFERROR(INDIRECT("'"&$CZ9&"'!"&"$G$568"),"Error"))) ->  | DE9: =IF($CZ9="","",IF('Project Information'!$K$16="Proposed",IFERROR(INDIRECT("'"&$CZ9&"'!"&"$H$565"),"Error"),IFERROR(INDIRECT("'"&$CZ9&"'!"&"$H$568"),"Error"))) ->  | DF9: =IF($CZ9="","",IF('Project Information'!$K$16="Proposed",IFERROR(INDIRECT("'"&$CZ9&"'!"&"$I$565"),"Error"),IFERROR(INDIRECT("'"&$CZ9&"'!"&"$I$568"),"Error"))) ->  | FJ9: AIS 4 | FL9: 0.0159671299 | FM9: 0.01069931045 | FN9: 2447200 | FO9: 0 | FP9: =IF(MAX($J$16:$J$29)>=FP$4,$FM9*(1+'Project Information'!$F$112)^FP$4*$FN9,0) -> 26487.07942 | FQ9: =IF(MAX($J$16:$J$29)>=FQ$4,$FM9*(1+'Project Information'!$F$112)^FQ$4*$FN9,0) -> 26794.32954 | FR9: =IF(MAX($J$16:$J$29)>=FR$4,$FM9*(1+'Project Information'!$F$112)^FR$4*$FN9,0) -> 27105.14376 | FS9: =IF(MAX($J$16:$J$29)>=FS$4,$FM9*(1+'Project Information'!$F$112)^FS$4*$FN9,0) -> 27419.56343 | FT9: =IF(MAX($J$16:$J$29)>=FT$4,$FM9*(1+'Project Information'!$F$112)^FT$4*$FN9,0) -> 27737.63036 | FU9: =IF(MAX($J$16:$J$29)>=FU$4,$FM9*(1+'Project Information'!$F$112)^FU$4*$FN9,0) -> 28059.38687 | FV9: =IF(MAX($J$16:$J$29)>=FV$4,$FM9*(1+'Project Information'!$F$112)^FV$4*$FN9,0) -> 28384.87576 | FW9: =IF(MAX($J$16:$J$29)>=FW$4,$FM9*(1+'Project Information'!$F$112)^FW$4*$FN9,0) -> 28714.14032 | FX9: =IF(MAX($J$16:$J$29)>=FX$4,$FM9*(1+'Project Information'!$F$112)^FX$4*$FN9,0) -> 29047.22435 | FY9: =IF(MAX($J$16:$J$29)>=FY$4,$FM9*(1+'Project Information'!$F$112)^FY$4*$FN9,0) -> 29384.17215 | FZ9: =IF(MAX($J$16:$J$29)>=FZ$4,$FM9*(1+'Project Information'!$F$112)^FZ$4*$FN9,0) -> 29725.02855 | GA9: =IF(MAX($J$16:$J$29)>=GA$4,$FM9*(1+'Project Information'!$F$112)^GA$4*$FN9,0) -> 30069.83888 | GB9: =IF(MAX($J$16:$J$29)>=GB$4,$FM9*(1+'Project Information'!$F$112)^GB$4*$FN9,0) -> 30418.64901 | GC9: =IF(MAX($J$16:$J$29)>=GC$4,$FM9*(1+'Project Information'!$F$112)^GC$4*$FN9,0) -> 30771.50534 | GD9: =IF(MAX($J$16:$J$29)>=GD$4,$FM9*(1+'Project Information'!$F$112)^GD$4*$FN9,0) -> 31128.4548 | GE9: =IF(MAX($J$16:$J$29)>=GE$4,$FM9*(1+'Project Information'!$F$112)^GE$4*$FN9,0) -> 31489.54488 | GF9: =IF(MAX($J$16:$J$29)>=GF$4,$FM9*(1+'Project Information'!$F$112)^GF$4*$FN9,0) -> 31854.8236 | GG9: =IF(MAX($J$16:$J$29)>=GG$4,$FM9*(1+'Project Information'!$F$112)^GG$4*$FN9,0) -> 32224.33955 | GH9: =IF(MAX($J$16:$J$29)>=GH$4,$FM9*(1+'Project Information'!$F$112)^GH$4*$FN9,0) -> 32598.14189 | GI9: =IF(MAX($J$16:$J$29)>=GI$4,$FM9*(1+'Project Information'!$F$112)^GI$4*$FN9,0) -> 32976.28034 | GJ9: =IF(MAX($J$16:$J$29)>=GJ$4,$FM9*(1+'Project Information'!$F$112)^GJ$4*$FN9,0) -> 0 | GK9: =IF(MAX($J$16:$J$29)>=GK$4,$FM9*(1+'Project Information'!$F$112)^GK$4*$FN9,0) -> 0 | GL9: =IF(MAX($J$16:$J$29)>=GL$4,$FM9*(1+'Project Information'!$F$112)^GL$4*$FN9,0) -> 0 | GM9: =IF(MAX($J$16:$J$29)>=GM$4,$FM9*(1+'Project Information'!$F$112)^GM$4*$FN9,0) -> 0 | GN9: =IF(MAX($J$16:$J$29)>=GN$4,$FM9*(1+'Project Information'!$F$112)^GN$4*$FN9,0) -> 0 | GO9: =IF(MAX($J$16:$J$29)>=GO$4,$FM9*(1+'Project Information'!$F$112)^GO$4*$FN9,0) -> 0 | GP9: =IF(MAX($J$16:$J$29)>=GP$4,$FM9*(1+'Project Information'!$F$112)^GP$4*$FN9,0) -> 0 | GQ9: =IF(MAX($J$16:$J$29)>=GQ$4,$FM9*(1+'Project Information'!$F$112)^GQ$4*$FN9,0) -> 0 | GR9: =IF(MAX($J$16:$J$29)>=GR$4,$FM9*(1+'Project Information'!$F$112)^GR$4*$FN9,0) -> 0 | GS9: =IF(MAX($J$16:$J$29)>=GS$4,$FM9*(1+'Project Information'!$F$112)^GS$4*$FN9,0) -> 0
B10: Select Site Types to be used in Benefit-Cost Analysis: | X10: Net Present Value of Safety Benefits | AC10: =AC9*(1+$BK$1)^-AC4 -> 0 | AD10: 144863.7124 | AE10: 140907.8187 | AF10: 137059.9514 | AG10: 133317.1604 | AH10: 129676.5764 | AI10: 126135.4084 | AJ10: 122690.9414 | AK10: 119340.535 | AL10: 116081.6203 | AM10: 112911.6992 | AN10: 109828.3412 | AO10: 106829.1827 | AP10: 103911.9242 | AQ10: 101074.3294 | AR10: 98314.2227 | AS10: 95629.48815 | AT10: 93018.06752 | AU10: 90477.95875 | AV10: 88007.21449 | AW10: 85603.94056 | AX10: 0 | AY10: 0 | AZ10: 0 | BA10: 0 | BB10: 0 | BC10: 0 | BD10: 0 | BE10: 0 | BF10: 0 | BG10: 0 | BO10: 1 | BP10: =B20 ->  | BT10: Year | CZ10: =IF('Project Information'!$C37="","",'Project Information'!C37) ->  | DA10: =IF('Project Information'!$C37="","",'Project Information'!D37) ->  | DB10: =IF('Project Information'!$C37="","",'Project Information'!K37) ->  | DC10: =IF($CZ10="","",IF('Project Information'!$K$16="Proposed",IFERROR(INDIRECT("'"&$CZ10&"'!"&"$F$565"),"Error"),IFERROR(INDIRECT("'"&$CZ10&"'!"&"$F$568"),"Error"))) ->  | DD10: =IF($CZ10="","",IF('Project Information'!$K$16="Proposed",IFERROR(INDIRECT("'"&$CZ10&"'!"&"$G$565"),"Error"),IFERROR(INDIRECT("'"&$CZ10&"'!"&"$G$568"),"Error"))) ->  | DE10: =IF($CZ10="","",IF('Project Information'!$K$16="Proposed",IFERROR(INDIRECT("'"&$CZ10&"'!"&"$H$565"),"Error"),IFERROR(INDIRECT("'"&$CZ10&"'!"&"$H$568"),"Error"))) ->  | DF10: =IF($CZ10="","",IF('Project Information'!$K$16="Proposed",IFERROR(INDIRECT("'"&$CZ10&"'!"&"$I$565"),"Error"),IFERROR(INDIRECT("'"&$CZ10&"'!"&"$I$568"),"Error"))) ->  | FJ10: AIS 5 | FL10: 0.005632958144 | FM10: 0.00380472005 | FN10: 5455600 | FO10: 0 | FP10: =IF(MAX($J$16:$J$29)>=FP$4,$FM10*(1+'Project Information'!$F$112)^FP$4*$FN10,0) -> 20997.81226 | FQ10: =IF(MAX($J$16:$J$29)>=FQ$4,$FM10*(1+'Project Information'!$F$112)^FQ$4*$FN10,0) -> 21241.38689 | FR10: =IF(MAX($J$16:$J$29)>=FR$4,$FM10*(1+'Project Information'!$F$112)^FR$4*$FN10,0) -> 21487.78697 | FS10: =IF(MAX($J$16:$J$29)>=FS$4,$FM10*(1+'Project Information'!$F$112)^FS$4*$FN10,0) -> 21737.0453 | FT10: =IF(MAX($J$16:$J$29)>=FT$4,$FM10*(1+'Project Information'!$F$112)^FT$4*$FN10,0) -> 21989.19503 | FU10: =IF(MAX($J$16:$J$29)>=FU$4,$FM10*(1+'Project Information'!$F$112)^FU$4*$FN10,0) -> 22244.26969 | FV10: =IF(MAX($J$16:$J$29)>=FV$4,$FM10*(1+'Project Information'!$F$112)^FV$4*$FN10,0) -> 22502.30322 | FW10: =IF(MAX($J$16:$J$29)>=FW$4,$FM10*(1+'Project Information'!$F$112)^FW$4*$FN10,0) -> 22763.32994 | FX10: =IF(MAX($J$16:$J$29)>=FX$4,$FM10*(1+'Project Information'!$F$112)^FX$4*$FN10,0) -> 23027.38456 | FY10: =IF(MAX($J$16:$J$29)>=FY$4,$FM10*(1+'Project Information'!$F$112)^FY$4*$FN10,0) -> 23294.50222 | FZ10: =IF(MAX($J$16:$J$29)>=FZ$4,$FM10*(1+'Project Information'!$F$112)^FZ$4*$FN10,0) -> 23564.71845 | GA10: =IF(MAX($J$16:$J$29)>=GA$4,$FM10*(1+'Project Information'!$F$112)^GA$4*$FN10,0) -> 23838.06918 | GB10: =IF(MAX($J$16:$J$29)>=GB$4,$FM10*(1+'Project Information'!$F$112)^GB$4*$FN10,0) -> 24114.59079 | GC10: =IF(MAX($J$16:$J$29)>=GC$4,$FM10*(1+'Project Information'!$F$112)^GC$4*$FN10,0) -> 24394.32004 | GD10: =IF(MAX($J$16:$J$29)>=GD$4,$FM10*(1+'Project Information'!$F$112)^GD$4*$FN10,0) -> 24677.29415 | GE10: =IF(MAX($J$16:$J$29)>=GE$4,$FM10*(1+'Project Information'!$F$112)^GE$4*$FN10,0) -> 24963.55076 | GF10: =IF(MAX($J$16:$J$29)>=GF$4,$FM10*(1+'Project Information'!$F$112)^GF$4*$FN10,0) -> 25253.12795 | GG10: =IF(MAX($J$16:$J$29)>=GG$4,$FM10*(1+'Project Information'!$F$112)^GG$4*$FN10,0) -> 25546.06424 | GH10: =IF(MAX($J$16:$J$29)>=GH$4,$FM10*(1+'Project Information'!$F$112)^GH$4*$FN10,0) -> 25842.39858 | GI10: =IF(MAX($J$16:$J$29)>=GI$4,$FM10*(1+'Project Information'!$F$112)^GI$4*$FN10,0) -> 26142.17041 | GJ10: =IF(MAX($J$16:$J$29)>=GJ$4,$FM10*(1+'Project Information'!$F$112)^GJ$4*$FN10,0) -> 0 | GK10: =IF(MAX($J$16:$J$29)>=GK$4,$FM10*(1+'Project Information'!$F$112)^GK$4*$FN10,0) -> 0 | GL10: =IF(MAX($J$16:$J$29)>=GL$4,$FM10*(1+'Project Information'!$F$112)^GL$4*$FN10,0) -> 0 | GM10: =IF(MAX($J$16:$J$29)>=GM$4,$FM10*(1+'Project Information'!$F$112)^GM$4*$FN10,0) -> 0 | GN10: =IF(MAX($J$16:$J$29)>=GN$4,$FM10*(1+'Project Information'!$F$112)^GN$4*$FN10,0) -> 0 | GO10: =IF(MAX($J$16:$J$29)>=GO$4,$FM10*(1+'Project Information'!$F$112)^GO$4*$FN10,0) -> 0 | GP10: =IF(MAX($J$16:$J$29)>=GP$4,$FM10*(1+'Project Information'!$F$112)^GP$4*$FN10,0) -> 0 | GQ10: =IF(MAX($J$16:$J$29)>=GQ$4,$FM10*(1+'Project Information'!$F$112)^GQ$4*$FN10,0) -> 0 | GR10: =IF(MAX($J$16:$J$29)>=GR$4,$FM10*(1+'Project Information'!$F$112)^GR$4*$FN10,0) -> 0 | GS10: =IF(MAX($J$16:$J$29)>=GS$4,$FM10*(1+'Project Information'!$F$112)^GS$4*$FN10,0) -> 0
BP11: Code | BQ11: Severity | BR11: Avg Est Red | BS11: PV $ | BT11: 0 | BU11: 1 | BV11: 2 | BW11: 3 | BX11: 4 | BY11: 5 | BZ11: 6 | CA11: 7 | CB11: 8 | CC11: 9 | CD11: 10 | CE11: 11 | CF11: 12 | CG11: 13 | CH11: 14 | CI11: 15 | CJ11: 16 | CK11: 17 | CL11: 18 | CM11: 19 | CN11: 20 | CO11: 21 | CP11: 22 | CQ11: 23 | CR11: 24 | CS11: 25 | CT11: 26 | CU11: 27 | CV11: 28 | CW11: 29 | CX11: 30 | CZ11: =IF('Project Information'!$C38="","",'Project Information'!C38) ->  | DA11: =IF('Project Information'!$C38="","",'Project Information'!D38) ->  | DB11: =IF('Project Information'!$C38="","",'Project Information'!K38) ->  | DC11: =IF($CZ11="","",IF('Project Information'!$K$16="Proposed",IFERROR(INDIRECT("'"&$CZ11&"'!"&"$F$565"),"Error"),IFERROR(INDIRECT("'"&$CZ11&"'!"&"$F$568"),"Error"))) ->  | DD11: =IF($CZ11="","",IF('Project Information'!$K$16="Proposed",IFERROR(INDIRECT("'"&$CZ11&"'!"&"$G$565"),"Error"),IFERROR(INDIRECT("'"&$CZ11&"'!"&"$G$568"),"Error"))) ->  | DE11: =IF($CZ11="","",IF('Project Information'!$K$16="Proposed",IFERROR(INDIRECT("'"&$CZ11&"'!"&"$H$565"),"Error"),IFERROR(INDIRECT("'"&$CZ11&"'!"&"$H$568"),"Error"))) ->  | DF11: =IF($CZ11="","",IF('Project Information'!$K$16="Proposed",IFERROR(INDIRECT("'"&$CZ11&"'!"&"$I$565"),"Error"),IFERROR(INDIRECT("'"&$CZ11&"'!"&"$I$568"),"Error"))) ->  | FJ11: AIS 6 | FL11: 0.03878961614 | FM11: 0.0263789652 | FN11: 9200000 | FO11: 0 | FP11: =IF(MAX($J$16:$J$29)>=FP$4,$FM11*(1+'Project Information'!$F$112)^FP$4*$FN11,0) -> 245501.643 | FQ11: =IF(MAX($J$16:$J$29)>=FQ$4,$FM11*(1+'Project Information'!$F$112)^FQ$4*$FN11,0) -> 248349.4621 | FR11: =IF(MAX($J$16:$J$29)>=FR$4,$FM11*(1+'Project Information'!$F$112)^FR$4*$FN11,0) -> 251230.3158 | FS11: =IF(MAX($J$16:$J$29)>=FS$4,$FM11*(1+'Project Information'!$F$112)^FS$4*$FN11,0) -> 254144.5875 | FT11: =IF(MAX($J$16:$J$29)>=FT$4,$FM11*(1+'Project Information'!$F$112)^FT$4*$FN11,0) -> 257092.6647 | FU11: =IF(MAX($J$16:$J$29)>=FU$4,$FM11*(1+'Project Information'!$F$112)^FU$4*$FN11,0) -> 260074.9396 | FV11: =IF(MAX($J$16:$J$29)>=FV$4,$FM11*(1+'Project Information'!$F$112)^FV$4*$FN11,0) -> 263091.8089 | FW11: =IF(MAX($J$16:$J$29)>=FW$4,$FM11*(1+'Project Information'!$F$112)^FW$4*$FN11,0) -> 266143.6739 | FX11: =IF(MAX($J$16:$J$29)>=FX$4,$FM11*(1+'Project Information'!$F$112)^FX$4*$FN11,0) -> 269230.9405 | FY11: =IF(MAX($J$16:$J$29)>=FY$4,$FM11*(1+'Project Information'!$F$112)^FY$4*$FN11,0) -> 272354.0194 | FZ11: =IF(MAX($J$16:$J$29)>=FZ$4,$FM11*(1+'Project Information'!$F$112)^FZ$4*$FN11,0) -> 275513.3261 | GA11: =IF(MAX($J$16:$J$29)>=GA$4,$FM11*(1+'Project Information'!$F$112)^GA$4*$FN11,0) -> 278709.2806 | GB11: =IF(MAX($J$16:$J$29)>=GB$4,$FM11*(1+'Project Information'!$F$112)^GB$4*$FN11,0) -> 281942.3083 | GC11: =IF(MAX($J$16:$J$29)>=GC$4,$FM11*(1+'Project Information'!$F$112)^GC$4*$FN11,0) -> 285212.8391 | GD11: =IF(MAX($J$16:$J$29)>=GD$4,$FM11*(1+'Project Information'!$F$112)^GD$4*$FN11,0) -> 288521.308 | GE11: =IF(MAX($J$16:$J$29)>=GE$4,$FM11*(1+'Project Information'!$F$112)^GE$4*$FN11,0) -> 291868.1552 | GF11: =IF(MAX($J$16:$J$29)>=GF$4,$FM11*(1+'Project Information'!$F$112)^GF$4*$FN11,0) -> 295253.8258 | GG11: =IF(MAX($J$16:$J$29)>=GG$4,$FM11*(1+'Project Information'!$F$112)^GG$4*$FN11,0) -> 298678.7702 | GH11: =IF(MAX($J$16:$J$29)>=GH$4,$FM11*(1+'Project Information'!$F$112)^GH$4*$FN11,0) -> 302143.4439 | GI11: =IF(MAX($J$16:$J$29)>=GI$4,$FM11*(1+'Project Information'!$F$112)^GI$4*$FN11,0) -> 305648.3078 | GJ11: =IF(MAX($J$16:$J$29)>=GJ$4,$FM11*(1+'Project Information'!$F$112)^GJ$4*$FN11,0) -> 0 | GK11: =IF(MAX($J$16:$J$29)>=GK$4,$FM11*(1+'Project Information'!$F$112)^GK$4*$FN11,0) -> 0 | GL11: =IF(MAX($J$16:$J$29)>=GL$4,$FM11*(1+'Project Information'!$F$112)^GL$4*$FN11,0) -> 0 | GM11: =IF(MAX($J$16:$J$29)>=GM$4,$FM11*(1+'Project Information'!$F$112)^GM$4*$FN11,0) -> 0 | GN11: =IF(MAX($J$16:$J$29)>=GN$4,$FM11*(1+'Project Information'!$F$112)^GN$4*$FN11,0) -> 0 | GO11: =IF(MAX($J$16:$J$29)>=GO$4,$FM11*(1+'Project Information'!$F$112)^GO$4*$FN11,0) -> 0 | GP11: =IF(MAX($J$16:$J$29)>=GP$4,$FM11*(1+'Project Information'!$F$112)^GP$4*$FN11,0) -> 0 | GQ11: =IF(MAX($J$16:$J$29)>=GQ$4,$FM11*(1+'Project Information'!$F$112)^GQ$4*$FN11,0) -> 0 | GR11: =IF(MAX($J$16:$J$29)>=GR$4,$FM11*(1+'Project Information'!$F$112)^GR$4*$FN11,0) -> 0 | GS11: =IF(MAX($J$16:$J$29)>=GS$4,$FM11*(1+'Project Information'!$F$112)^GS$4*$FN11,0) -> 0
B12: All Sites | Z12: Part C Countermeasure Service Life & Cost Breakdown | BP12: KA | BQ12: Fatal &Incapacitating Injury Crash | BR12: =DG83*-1 -> 0 | BS12: =$AB$5 -> 484544 | BT12: 0 | BU12: =IF(MAX($J$16:$J$29)>=BU$11,$BS12*(1+$BK$2)^BU$11*$BR12,0) -> 0 | BV12: =IF(MAX($J$16:$J$29)>=BV$11,$BS12*(1+$BK$2)^BV$11*$BR12,0) -> 0 | BW12: 0 | BX12: 0 | BY12: 0 | BZ12: 0 | CA12: 0 | CB12: 0 | CC12: 0 | CD12: 0 | CE12: 0 | CF12: 0 | CG12: 0 | CH12: 0 | CI12: 0 | CJ12: 0 | CK12: 0 | CL12: 0 | CM12: 0 | CN12: 0 | CO12: 0 | CP12: 0 | CQ12: 0 | CR12: 0 | CS12: 0 | CT12: 0 | CU12: 0 | CV12: 0 | CW12: 0 | CX12: 0 | CZ12: =IF('Project Information'!$C39="","",'Project Information'!C39) ->  | DA12: =IF('Project Information'!$C39="","",'Project Information'!D39) ->  | DB12: =IF('Project Information'!$C39="","",'Project Information'!K39) ->  | DC12: =IF($CZ12="","",IF('Project Information'!$K$16="Proposed",IFERROR(INDIRECT("'"&$CZ12&"'!"&"$F$565"),"Error"),IFERROR(INDIRECT("'"&$CZ12&"'!"&"$F$568"),"Error"))) ->  | DD12: =IF($CZ12="","",IF('Project Information'!$K$16="Proposed",IFERROR(INDIRECT("'"&$CZ12&"'!"&"$G$565"),"Error"),IFERROR(INDIRECT("'"&$CZ12&"'!"&"$G$568"),"Error"))) ->  | DE12: =IF($CZ12="","",IF('Project Information'!$K$16="Proposed",IFERROR(INDIRECT("'"&$CZ12&"'!"&"$H$565"),"Error"),IFERROR(INDIRECT("'"&$CZ12&"'!"&"$H$568"),"Error"))) ->  | DF12: =IF($CZ12="","",IF('Project Information'!$K$16="Proposed",IFERROR(INDIRECT("'"&$CZ12&"'!"&"$I$565"),"Error"),IFERROR(INDIRECT("'"&$CZ12&"'!"&"$I$568"),"Error"))) ->  | FJ12: Total Annual Benefit | FO12: =SUM(FO5:FO11) -> 0 | FP12: 407600.0404 | FQ12: 412328.2009 | FR12: 417111.208 | FS12: 421949.698 | FT12: 426844.3145 | FU12: 431795.7086 | FV12: 436804.5388 | FW12: 441871.4714 | FX12: 446997.1805 | FY12: 452182.3478 | FZ12: 457427.663 | GA12: 462733.8239 | GB12: 468101.5363 | GC12: 473531.5141 | GD12: 479024.4797 | GE12: 484581.1636 | GF12: 490202.3051 | GG12: 495888.6519 | GH12: 501640.9602 | GI12: 507459.9954 | GJ12: 0 | GK12: 0 | GL12: 0 | GM12: 0 | GN12: 0 | GO12: 0 | GP12: 0 | GQ12: 0 | GR12: 0 | GS12: 0
Z13: Countermeasure | AA13: =AA21 -> SL | AB13: Initial Cost | AC13: 0 | AD13: 1 | AE13: 2 | AF13: 3 | AG13: 4 | AH13: 5 | AI13: 6 | AJ13: 7 | AK13: 8 | AL13: 9 | AM13: 10 | AN13: 11 | AO13: 12 | AP13: 13 | AQ13: 14 | AR13: 15 | AS13: 16 | AT13: 17 | AU13: 18 | AV13: 19 | AW13: 20 | AX13: X | AY13: X | AZ13: X | BA13: X | BB13: X | BC13: X | BD13: X | BE13: X | BF13: X | BG13: X | BP13: B | BQ13: Non-Incapacitating Injury Crash | BR13: =DH83*-1 -> 0 | BS13: =$AB$6 -> 69135 | BT13: 0 | BU13: =IF(MAX($J$16:$J$29)>=BU$11,$BS13*(1+$BK$2)^BU$11*$BR13,0) -> 0 | BV13: =IF(MAX($J$16:$J$29)>=BV$11,$BS13*(1+$BK$2)^BV$11*$BR13,0) -> 0 | BW13: 0 | BX13: 0 | BY13: 0 | BZ13: 0 | CA13: 0 | CB13: 0 | CC13: 0 | CD13: 0 | CE13: 0 | CF13: 0 | CG13: 0 | CH13: 0 | CI13: 0 | CJ13: 0 | CK13: 0 | CL13: 0 | CM13: 0 | CN13: 0 | CO13: 0 | CP13: 0 | CQ13: 0 | CR13: 0 | CS13: 0 | CT13: 0 | CU13: 0 | CV13: 0 | CW13: 0 | CX13: 0 | CZ13: =IF('Project Information'!$C40="","",'Project Information'!C40) ->  | DA13: =IF('Project Information'!$C40="","",'Project Information'!D40) ->  | DB13: =IF('Project Information'!$C40="","",'Project Information'!K40) ->  | DC13: =IF($CZ13="","",IF('Project Information'!$K$16="Proposed",IFERROR(INDIRECT("'"&$CZ13&"'!"&"$F$565"),"Error"),IFERROR(INDIRECT("'"&$CZ13&"'!"&"$F$568"),"Error"))) ->  | DD13: =IF($CZ13="","",IF('Project Information'!$K$16="Proposed",IFERROR(INDIRECT("'"&$CZ13&"'!"&"$G$565"),"Error"),IFERROR(INDIRECT("'"&$CZ13&"'!"&"$G$568"),"Error"))) ->  | DE13: =IF($CZ13="","",IF('Project Information'!$K$16="Proposed",IFERROR(INDIRECT("'"&$CZ13&"'!"&"$H$565"),"Error"),IFERROR(INDIRECT("'"&$CZ13&"'!"&"$H$568"),"Error"))) ->  | DF13: =IF($CZ13="","",IF('Project Information'!$K$16="Proposed",IFERROR(INDIRECT("'"&$CZ13&"'!"&"$I$565"),"Error"),IFERROR(INDIRECT("'"&$CZ13&"'!"&"$I$568"),"Error"))) ->  | FJ13: Net Present Value of Safety Benefits | FO13: =FO12*(1+$BK$1)^-FO4 -> 0 | FP13: 391923.1158 | FQ13: 381220.5999 | FR13: 370810.3451 | FS13: 360684.3703 | FT13: 350834.9125 | FU13: 341254.4206 | FV13: 331935.5499 | FW13: 322871.156 | FX13: 314054.2899 | FY13: 305478.1919 | FZ13: 297136.2875 | GA13: 289022.1812 | GB13: 281129.6524 | GC13: 273452.6503 | GD13: 265985.2895 | GE13: 258721.845 | GF13: 251656.7485 | GG13: 244784.5835 | GH13: 238100.0814 | GI13: 231598.1176 | GJ13: 0 | GK13: 0 | GL13: 0 | GM13: 0 | GN13: 0 | GO13: 0 | GP13: 0 | GQ13: 0 | GR13: 0 | GS13: 0
B14: Countermeasure Service Lives, Costs, and Safety Benefits | Z14: Part C 1 | AA14: =J16 -> 20 | AB14: =K16*-1 -> -3500000 | AC14: =$AB14*(1+$BK$1)^AC$21 -> -3500000 | AD14: =IF(AD$21<>"X",IF(AD$21=MAX($J$16:$J$29),($M16-$L16)*(1+$BK$1)^AD$21,IF(OR($AA14="X"),(-$K16-$L16)*(1+$BK$1)^AD$21,-$L16*(1+$BK$1)^AD$21)),0) -> 0 | AE14: 0 | AF14: =IF(AF$21<>"X",IF(AF$21=MAX($J$16:$J$29),($M16-$L16)*(1+$BK$1)^AF$21,IF(OR($AA14=3),(-$K16-$L16)*(1+$BK$1)^AF$21,-$L16*(1+$BK$1)^AF$21)),0) -> 0 | AG14: =IF(AG$21<>"X",IF(AG$21=MAX($J$16:$J$29),($M16-$L16)*(1+$BK$1)^AG$21,IF(OR($AA14="X"),(-$K16-$L16)*(1+$BK$1)^AG$21,-$L16*(1+$BK$1)^AG$21)),0) -> 0 | AH14: =IF(AH$21<>"X",IF(AH$21=MAX($J$16:$J$29),($M16-$L16)*(1+$BK$1)^AH$21,IF(OR($AA14=5),(-$K16-$L16)*(1+$BK$1)^AH$21,-$L16*(1+$BK$1)^AH$21)),0) -> 0 | AI14: =IF(AI$21<>"X",IF(AI$21=MAX($J$16:$J$29),$M$16*(1+$BK$1)^AI$21,IF(OR($AA14=3),(-$K16-$L16)*(1+$BK$1)^AI$21,-$L16*(1+$BK$1)^AI$21)),0) -> 0 | AJ14: =IF(AJ$21<>"X",IF(AJ$21=MAX($J$16:$J$29),($M16-$L16)*(1+$BK$1)^AJ$21,IF(OR($AA14="X"),(-$K16-$L16)*(1+$BK$1)^AJ$21,-$L16*(1+$BK$1)^AJ$21)),0) -> 0 | AK14: 0 | AL14: =IF(AL$21<>"X",IF(AL$21=MAX($J$16:$J$29),$M$16*(1+$BK$1)^AL$21,IF(OR($AA14=3),(-$K16-$L16)*(1+$BK$1)^AL$21,-$L16*(1+$BK$1)^AL$21)),0) -> 0 | AM14: =IF(AM$21<>"X",IF(AM$21=MAX($J$16:$J$29),($M16-$L16)*(1+$BK$1)^AM$21,IF(OR($AA14=5,$AA14=10),(-$K16-$L16)*(1+$BK$1)^AM$21,-$L16*(1+$BK$1)^AM$21)),0) -> 0 | AN14: =IF(AN$21<>"X",IF(AN$21=MAX($J$16:$J$29),($M16-$L16)*(1+$BK$1)^AN$21,IF(OR($AA14="X"),(-$K16-$L16)*(1+$BK$1)^AN$21,-$L16*(1+$BK$1)^AN$21)),0) -> 0 | AO14: =IF(AO$21<>"X",IF(AO$21=MAX($J$16:$J$29),$M$16*(1+$BK$1)^AO$21,IF(OR($AA14=3),(-$K16-$L16)*(1+$BK$1)^AO$21,-$L16*(1+$BK$1)^AO$21)),0) -> 0 | AP14: =IF(AP$21<>"X",IF(AP$21=MAX($J$16:$J$29),($M16-$L16)*(1+$BK$1)^AP$21,IF(OR($AA14="X"),(-$K16-$L16)*(1+$BK$1)^AP$21,-$L16*(1+$BK$1)^AP$21)),0) -> 0 | AQ14: 0 | AR14: =IF(AR$21<>"X",IF(AR$21=MAX($J$16:$J$29),($M16-$L16)*(1+$BK$1)^AR$21,IF(OR($AA14=3,$AA14=5,$AA14=15),(-$K16-$L16)*(1+$BK$1)^AR$21,-$L16*(1+$BK$1)^AR$21)),0) -> 0 | AS14: =IF(AS$21<>"X",IF(AS$21=MAX($J$16:$J$29),($M16-$L16)*(1+$BK$1)^AS$21,IF(OR($AA14="X"),(-$K16-$L16)*(1+$BK$1)^AS$21,-$L16*(1+$BK$1)^AS$21)),0) -> 0 | AT14: 0 | AU14: =IF(AU$21<>"X",IF(AU$21=MAX($J$16:$J$29),$M$16*(1+$BK$1)^AU$21,IF(OR($AA14=3),(-$K16-$L16)*(1+$BK$1)^AU$21,-$L16*(1+$BK$1)^AU$21)),0) -> 0 | AV14: =IF(AV$21<>"X",IF(AV$21=MAX($J$16:$J$29),($M16-$L16)*(1+$BK$1)^AV$21,IF(OR($AA14="X"),(-$K16-$L16)*(1+$BK$1)^AV$21,-$L16*(1+$BK$1)^AV$21)),0) -> 0 | AW14: =IF(AW$21<>"X",IF(AW$21=MAX($J$16:$J$29),($M16-$L16)*(1+$BK$1)^AW$21,IF(OR($AA14=5,$AA14=10,$AA14=20),(-$K16-$L16)*(1+$BK$1)^AW$21,-$L16*(1+$BK$1)^AW$21)),0) -> 0 | AX14: =IF(AX$21<>"X",IF(AX$21=MAX($J$16:$J$29),$M$16*(1+$BK$1)^AX$21,IF(OR($AA14=3),(-$K16-$L16)*(1+$BK$1)^AX$21,-$L16*(1+$BK$1)^AX$21)),0) -> 0 | AY14: =IF(AY$21<>"X",IF(AY$21=MAX($J$16:$J$29),($M16-$L16)*(1+$BK$1)^AY$21,IF(OR($AA14="X"),(-$K16-$L16)*(1+$BK$1)^AY$21,-$L16*(1+$BK$1)^AY$21)),0) -> 0 | AZ14: 0 | BA14: =IF(BA$21<>"X",IF(BA$21=MAX($J$16:$J$29),$M$16*(1+$BK$1)^BA$21,IF(OR($AA14=3),(-$K16-$L16)*(1+$BK$1)^BA$21,-$L16*(1+$BK$1)^BA$21)),0) -> 0 | BB14: =IF(BB$21<>"X",IF(BB$21=MAX($J$16:$J$29),($M16-$L16)*(1+$BK$1)^BB$21,IF(OR($AA14=5,$AA14=25),(-$K16-$L16)*(1+$BK$1)^BB$21,-$L16*(1+$BK$1)^BB$21)),0) -> 0 | BC14: =IF(BC$21<>"X",IF(BC$21=MAX($J$16:$J$29),($M16-$L16)*(1+$BK$1)^BC$21,IF(OR($AA14="X"),(-$K16-$L16)*(1+$BK$1)^BC$21,-$L16*(1+$BK$1)^BC$21)),0) -> 0 | BD14: =IF(BD$21<>"X",IF(BD$21=MAX($J$16:$J$29),$M$16*(1+$BK$1)^BD$21,IF(OR($AA14=3),(-$K16-$L16)*(1+$BK$1)^BD$21,-$L16*(1+$BK$1)^BD$21)),0) -> 0 | BE14: =IF(BE$21<>"X",IF(BE$21=MAX($J$16:$J$29),($M16-$L16)*(1+$BK$1)^BE$21,IF(OR($AA14="X"),(-$K16-$L16)*(1+$BK$1)^BE$21,-$L16*(1+$BK$1)^BE$21)),0) -> 0 | BF14: 0 | BG14: =IF(BG$21<>"X",($M16-$L16)*(1+$BK$1)^BG$21,0) -> 0 | BP14: C | BQ14: Possible Injury Crash | BR14: =DI83*-1 -> 0 | BS14: =$AB$7 -> 46860 | BT14: 0 | BU14: =IF(MAX($J$16:$J$29)>=BU$11,$BS14*(1+$BK$2)^BU$11*$BR14,0) -> 0 | BV14: 0 | BW14: 0 | BX14: 0 | BY14: 0 | BZ14: 0 | CA14: 0 | CB14: 0 | CC14: 0 | CD14: 0 | CE14: 0 | CF14: 0 | CG14: 0 | CH14: 0 | CI14: 0 | CJ14: 0 | CK14: 0 | CL14: 0 | CM14: 0 | CN14: 0 | CO14: 0 | CP14: 0 | CQ14: 0 | CR14: 0 | CS14: 0 | CT14: 0 | CU14: 0 | CV14: 0 | CW14: 0 | CX14: 0 | CZ14: =IF('Project Information'!$C41="","",'Project Information'!C41) ->  | DA14: =IF('Project Information'!$C41="","",'Project Information'!D41) ->  | DB14: =IF('Project Information'!$C41="","",'Project Information'!K41) ->  | DC14: =IF($CZ14="","",IF('Project Information'!$K$16="Proposed",IFERROR(INDIRECT("'"&$CZ14&"'!"&"$F$565"),"Error"),IFERROR(INDIRECT("'"&$CZ14&"'!"&"$F$568"),"Error"))) ->  | DD14: =IF($CZ14="","",IF('Project Information'!$K$16="Proposed",IFERROR(INDIRECT("'"&$CZ14&"'!"&"$G$565"),"Error"),IFERROR(INDIRECT("'"&$CZ14&"'!"&"$G$568"),"Error"))) ->  | DE14: =IF($CZ14="","",IF('Project Information'!$K$16="Proposed",IFERROR(INDIRECT("'"&$CZ14&"'!"&"$H$565"),"Error"),IFERROR(INDIRECT("'"&$CZ14&"'!"&"$H$568"),"Error"))) ->  | DF14: =IF($CZ14="","",IF('Project Information'!$K$16="Proposed",IFERROR(INDIRECT("'"&$CZ14&"'!"&"$I$565"),"Error"),IFERROR(INDIRECT("'"&$CZ14&"'!"&"$I$568"),"Error"))) ->  | FJ14: Net Present Value of Safety Benefits | FO14: =SUM(FO13:GS13) -> 6102654.389
B15: Countermeasures | J15: Service Life (Years) | K15: Initial Cost of Countermeasure | L15: Annual Maintenance & Energy Costs | M15: Salvage Value | N15: Net Present Cost of Countermeasure | O15: Total Cost of Countermeasures | P15: Summary of Annual Crash Modifications | Q15: Net Present Value of Safety Benefits | Z15: Part C 2 | AA15: =J17 -> 0 | AB15: =K17*-1 -> 0 | AC15: =$AB15*(1+$BK$1)^AC$21 -> 0 | AD15: 0 | AE15: 0 | AF15: =IF(AF$21<>"X",IF(AF$21=MAX($J$16:$J$29),($M17-$L17)*(1+$BK$1)^AF$21,IF(OR($AA15=3),(-$K17-$L17)*(1+$BK$1)^AF$21,-$L17*(1+$BK$1)^AF$21)),0) -> 0 | AG15: =IF(AG$21<>"X",IF(AG$21=MAX($J$16:$J$29),($M17-$L17)*(1+$BK$1)^AG$21,IF(OR($AA15="X"),(-$K17-$L17)*(1+$BK$1)^AG$21,-$L17*(1+$BK$1)^AG$21)),0) -> 0 | AH15: =IF(AH$21<>"X",IF(AH$21=MAX($J$16:$J$29),($M17-$L17)*(1+$BK$1)^AH$21,IF(OR($AA15=5),(-$K17-$L17)*(1+$BK$1)^AH$21,-$L17*(1+$BK$1)^AH$21)),0) -> 0 | AI15: =IF(AI$21<>"X",IF(AI$21=MAX($J$16:$J$29),$M$16*(1+$BK$1)^AI$21,IF(OR($AA15=3),(-$K17-$L17)*(1+$BK$1)^AI$21,-$L17*(1+$BK$1)^AI$21)),0) -> 0 | AJ15: 0 | AK15: 0 | AL15: =IF(AL$21<>"X",IF(AL$21=MAX($J$16:$J$29),$M$16*(1+$BK$1)^AL$21,IF(OR($AA15=3),(-$K17-$L17)*(1+$BK$1)^AL$21,-$L17*(1+$BK$1)^AL$21)),0) -> 0 | AM15: =IF(AM$21<>"X",IF(AM$21=MAX($J$16:$J$29),($M17-$L17)*(1+$BK$1)^AM$21,IF(OR($AA15=5,$AA15=10),(-$K17-$L17)*(1+$BK$1)^AM$21,-$L17*(1+$BK$1)^AM$21)),0) -> 0 | AN15: =IF(AN$21<>"X",IF(AN$21=MAX($J$16:$J$29),($M17-$L17)*(1+$BK$1)^AN$21,IF(OR($AA15="X"),(-$K17-$L17)*(1+$BK$1)^AN$21,-$L17*(1+$BK$1)^AN$21)),0) -> 0 | AO15: =IF(AO$21<>"X",IF(AO$21=MAX($J$16:$J$29),$M$16*(1+$BK$1)^AO$21,IF(OR($AA15=3),(-$K17-$L17)*(1+$BK$1)^AO$21,-$L17*(1+$BK$1)^AO$21)),0) -> 0 | AP15: 0 | AQ15: 0 | AR15: =IF(AR$21<>"X",IF(AR$21=MAX($J$16:$J$29),($M17-$L17)*(1+$BK$1)^AR$21,IF(OR($AA15=3,$AA15=5,$AA15=15),(-$K17-$L17)*(1+$BK$1)^AR$21,-$L17*(1+$BK$1)^AR$21)),0) -> 0 | AS15: 0 | AT15: 0 | AU15: =IF(AU$21<>"X",IF(AU$21=MAX($J$16:$J$29),$M$16*(1+$BK$1)^AU$21,IF(OR($AA15=3),(-$K17-$L17)*(1+$BK$1)^AU$21,-$L17*(1+$BK$1)^AU$21)),0) -> 0 | AV15: =IF(AV$21<>"X",IF(AV$21=MAX($J$16:$J$29),($M17-$L17)*(1+$BK$1)^AV$21,IF(OR($AA15="X"),(-$K17-$L17)*(1+$BK$1)^AV$21,-$L17*(1+$BK$1)^AV$21)),0) -> 0 | AW15: =IF(AW$21<>"X",IF(AW$21=MAX($J$16:$J$29),($M17-$L17)*(1+$BK$1)^AW$21,IF(OR($AA15=5,$AA15=10,$AA15=20),(-$K17-$L17)*(1+$BK$1)^AW$21,-$L17*(1+$BK$1)^AW$21)),0) -> 0 | AX15: =IF(AX$21<>"X",IF(AX$21=MAX($J$16:$J$29),$M$16*(1+$BK$1)^AX$21,IF(OR($AA15=3),(-$K17-$L17)*(1+$BK$1)^AX$21,-$L17*(1+$BK$1)^AX$21)),0) -> 0 | AY15: 0 | AZ15: 0 | BA15: =IF(BA$21<>"X",IF(BA$21=MAX($J$16:$J$29),$M$16*(1+$BK$1)^BA$21,IF(OR($AA15=3),(-$K17-$L17)*(1+$BK$1)^BA$21,-$L17*(1+$BK$1)^BA$21)),0) -> 0 | BB15: =IF(BB$21<>"X",IF(BB$21=MAX($J$16:$J$29),($M17-$L17)*(1+$BK$1)^BB$21,IF(OR($AA15=5,$AA15=25),(-$K17-$L17)*(1+$BK$1)^BB$21,-$L17*(1+$BK$1)^BB$21)),0) -> 0 | BC15: =IF(BC$21<>"X",IF(BC$21=MAX($J$16:$J$29),($M17-$L17)*(1+$BK$1)^BC$21,IF(OR($AA15="X"),(-$K17-$L17)*(1+$BK$1)^BC$21,-$L17*(1+$BK$1)^BC$21)),0) -> 0 | BD15: =IF(BD$21<>"X",IF(BD$21=MAX($J$16:$J$29),$M$16*(1+$BK$1)^BD$21,IF(OR($AA15=3),(-$K17-$L17)*(1+$BK$1)^BD$21,-$L17*(1+$BK$1)^BD$21)),0) -> 0 | BE15: 0 | BF15: 0 | BG15: =IF(BG$21<>"X",($M17-$L17)*(1+$BK$1)^BG$21,0) -> 0 | BP15: O | BQ15: Property Damage Crash | BR15: =DJ83*-1 -> 0 | BS15: =$AB$8 -> 0 | BT15: 0 | BU15: =IF(MAX($J$16:$J$29)>=BU$11,$BS15*(1+$BK$2)^BU$11*$BR15,0) -> 0 | BV15: 0 | BW15: 0 | BX15: 0 | BY15: 0 | BZ15: 0 | CA15: 0 | CB15: 0 | CC15: 0 | CD15: 0 | CE15: 0 | CF15: 0 | CG15: 0 | CH15: 0 | CI15: 0 | CJ15: 0 | CK15: 0 | CL15: 0 | CM15: 0 | CN15: 0 | CO15: 0 | CP15: 0 | CQ15: 0 | CR15: 0 | CS15: 0 | CT15: 0 | CU15: 0 | CV15: 0 | CW15: 0 | CX15: 0 | CZ15: =IF('Project Information'!$C42="","",'Project Information'!C42) ->  | DA15: =IF('Project Information'!$C42="","",'Project Information'!D42) ->  | DB15: =IF('Project Information'!$C42="","",'Project Information'!K42) ->  | DC15: =IF($CZ15="","",IF('Project Information'!$K$16="Proposed",IFERROR(INDIRECT("'"&$CZ15&"'!"&"$F$565"),"Error"),IFERROR(INDIRECT("'"&$CZ15&"'!"&"$F$568"),"Error"))) ->  | DD15: =IF($CZ15="","",IF('Project Information'!$K$16="Proposed",IFERROR(INDIRECT("'"&$CZ15&"'!"&"$G$565"),"Error"),IFERROR(INDIRECT("'"&$CZ15&"'!"&"$G$568"),"Error"))) ->  | DE15: =IF($CZ15="","",IF('Project Information'!$K$16="Proposed",IFERROR(INDIRECT("'"&$CZ15&"'!"&"$H$565"),"Error"),IFERROR(INDIRECT("'"&$CZ15&"'!"&"$H$568"),"Error"))) ->  | DF15: =IF($CZ15="","",IF('Project Information'!$K$16="Proposed",IFERROR(INDIRECT("'"&$CZ15&"'!"&"$I$565"),"Error"),IFERROR(INDIRECT("'"&$CZ15&"'!"&"$I$568"),"Error"))) -> 
B16: Site Characteristic Improvements (Please add description about improvements i.e. Lane widening) | J16: 20 | K16: 3500000 | N16: =IF(J16="",0,IF(J16<MAX($J$16:$J$29),ROUNDUP(MAX($J$16:$J$29)/J16,0)*(K16-M16)+(MAX($J$16:$J$29)-1)*L16,(K16-M16)+(J16-1)*L16)) -> 3500000 | O16: =SUM(AC14:BG14)*-1 -> 3500000 | P16: =-SUM(BR4:BR7) -> -2.0213 | Q16: =IFERROR(SUM(BT9:CX9),0) -> 2255680.093 | Z16: Part C 3 | AA16: =J18 -> 0 | AB16: =K18*-1 -> 0 | AC16: =$AB16*(1+$BK$1)^AC$21 -> 0 | AD16: 0 | AE16: 0 | AF16: =IF(AF$21<>"X",IF(AF$21=MAX($J$16:$J$29),($M18-$L18)*(1+$BK$1)^AF$21,IF(OR($AA16=3),(-$K18-$L18)*(1+$BK$1)^AF$21,-$L18*(1+$BK$1)^AF$21)),0) -> 0 | AG16: =IF(AG$21<>"X",IF(AG$21=MAX($J$16:$J$29),($M18-$L18)*(1+$BK$1)^AG$21,IF(OR($AA16="X"),(-$K18-$L18)*(1+$BK$1)^AG$21,-$L18*(1+$BK$1)^AG$21)),0) -> 0 | AH16: =IF(AH$21<>"X",IF(AH$21=MAX($J$16:$J$29),($M18-$L18)*(1+$BK$1)^AH$21,IF(OR($AA16=5),(-$K18-$L18)*(1+$BK$1)^AH$21,-$L18*(1+$BK$1)^AH$21)),0) -> 0 | AI16: =IF(AI$21<>"X",IF(AI$21=MAX($J$16:$J$29),$M$16*(1+$BK$1)^AI$21,IF(OR($AA16=3),(-$K18-$L18)*(1+$BK$1)^AI$21,-$L18*(1+$BK$1)^AI$21)),0) -> 0 | AJ16: 0 | AK16: 0 | AL16: =IF(AL$21<>"X",IF(AL$21=MAX($J$16:$J$29),$M$16*(1+$BK$1)^AL$21,IF(OR($AA16=3),(-$K18-$L18)*(1+$BK$1)^AL$21,-$L18*(1+$BK$1)^AL$21)),0) -> 0 | AM16: =IF(AM$21<>"X",IF(AM$21=MAX($J$16:$J$29),($M18-$L18)*(1+$BK$1)^AM$21,IF(OR($AA16=5,$AA16=10),(-$K18-$L18)*(1+$BK$1)^AM$21,-$L18*(1+$BK$1)^AM$21)),0) -> 0 | AN16: =IF(AN$21<>"X",IF(AN$21=MAX($J$16:$J$29),($M18-$L18)*(1+$BK$1)^AN$21,IF(OR($AA16="X"),(-$K18-$L18)*(1+$BK$1)^AN$21,-$L18*(1+$BK$1)^AN$21)),0) -> 0 | AO16: =IF(AO$21<>"X",IF(AO$21=MAX($J$16:$J$29),$M$16*(1+$BK$1)^AO$21,IF(OR($AA16=3),(-$K18-$L18)*(1+$BK$1)^AO$21,-$L18*(1+$BK$1)^AO$21)),0) -> 0 | AP16: 0 | AQ16: 0 | AR16: =IF(AR$21<>"X",IF(AR$21=MAX($J$16:$J$29),($M18-$L18)*(1+$BK$1)^AR$21,IF(OR($AA16=3,$AA16=5,$AA16=15),(-$K18-$L18)*(1+$BK$1)^AR$21,-$L18*(1+$BK$1)^AR$21)),0) -> 0 | AS16: 0 | AT16: 0 | AU16: =IF(AU$21<>"X",IF(AU$21=MAX($J$16:$J$29),$M$16*(1+$BK$1)^AU$21,IF(OR($AA16=3),(-$K18-$L18)*(1+$BK$1)^AU$21,-$L18*(1+$BK$1)^AU$21)),0) -> 0 | AV16: =IF(AV$21<>"X",IF(AV$21=MAX($J$16:$J$29),($M18-$L18)*(1+$BK$1)^AV$21,IF(OR($AA16="X"),(-$K18-$L18)*(1+$BK$1)^AV$21,-$L18*(1+$BK$1)^AV$21)),0) -> 0 | AW16: =IF(AW$21<>"X",IF(AW$21=MAX($J$16:$J$29),($M18-$L18)*(1+$BK$1)^AW$21,IF(OR($AA16=5,$AA16=10,$AA16=20),(-$K18-$L18)*(1+$BK$1)^AW$21,-$L18*(1+$BK$1)^AW$21)),0) -> 0 | AX16: =IF(AX$21<>"X",IF(AX$21=MAX($J$16:$J$29),$M$16*(1+$BK$1)^AX$21,IF(OR($AA16=3),(-$K18-$L18)*(1+$BK$1)^AX$21,-$L18*(1+$BK$1)^AX$21)),0) -> 0 | AY16: 0 | AZ16: 0 | BA16: =IF(BA$21<>"X",IF(BA$21=MAX($J$16:$J$29),$M$16*(1+$BK$1)^BA$21,IF(OR($AA16=3),(-$K18-$L18)*(1+$BK$1)^BA$21,-$L18*(1+$BK$1)^BA$21)),0) -> 0 | BB16: =IF(BB$21<>"X",IF(BB$21=MAX($J$16:$J$29),($M18-$L18)*(1+$BK$1)^BB$21,IF(OR($AA16=5,$AA16=25),(-$K18-$L18)*(1+$BK$1)^BB$21,-$L18*(1+$BK$1)^BB$21)),0) -> 0 | BC16: =IF(BC$21<>"X",IF(BC$21=MAX($J$16:$J$29),($M18-$L18)*(1+$BK$1)^BC$21,IF(OR($AA16="X"),(-$K18-$L18)*(1+$BK$1)^BC$21,-$L18*(1+$BK$1)^BC$21)),0) -> 0 | BD16: =IF(BD$21<>"X",IF(BD$21=MAX($J$16:$J$29),$M$16*(1+$BK$1)^BD$21,IF(OR($AA16=3),(-$K18-$L18)*(1+$BK$1)^BD$21,-$L18*(1+$BK$1)^BD$21)),0) -> 0 | BE16: 0 | BF16: 0 | BG16: =IF(BG$21<>"X",($M18-$L18)*(1+$BK$1)^BG$21,0) -> 0 | BP16: Total Annual Benefit | BT16: =SUM(BT12:BT15) -> 0 | BU16: 0 | BV16: 0 | BW16: 0 | BX16: 0 | BY16: 0 | BZ16: 0 | CA16: 0 | CB16: 0 | CC16: 0 | CD16: 0 | CE16: 0 | CF16: 0 | CG16: 0 | CH16: 0 | CI16: 0 | CJ16: 0 | CK16: 0 | CL16: 0 | CM16: 0 | CN16: 0 | CO16: 0 | CP16: 0 | CQ16: 0 | CR16: 0 | CS16: 0 | CT16: 0 | CU16: 0 | CV16: 0 | CW16: 0 | CX16: 0 | CZ16: =IF('Project Information'!$C43="","",'Project Information'!C43) ->  | DA16: =IF('Project Information'!$C43="","",'Project Information'!D43) ->  | DB16: =IF('Project Information'!$C43="","",'Project Information'!K43) ->  | DC16: =IF($CZ16="","",IF('Project Information'!$K$16="Proposed",IFERROR(INDIRECT("'"&$CZ16&"'!"&"$F$565"),"Error"),IFERROR(INDIRECT("'"&$CZ16&"'!"&"$F$568"),"Error"))) ->  | DD16: =IF($CZ16="","",IF('Project Information'!$K$16="Proposed",IFERROR(INDIRECT("'"&$CZ16&"'!"&"$G$565"),"Error"),IFERROR(INDIRECT("'"&$CZ16&"'!"&"$G$568"),"Error"))) ->  | DE16: =IF($CZ16="","",IF('Project Information'!$K$16="Proposed",IFERROR(INDIRECT("'"&$CZ16&"'!"&"$H$565"),"Error"),IFERROR(INDIRECT("'"&$CZ16&"'!"&"$H$568"),"Error"))) ->  | DF16: =IF($CZ16="","",IF('Project Information'!$K$16="Proposed",IFERROR(INDIRECT("'"&$CZ16&"'!"&"$I$565"),"Error"),IFERROR(INDIRECT("'"&$CZ16&"'!"&"$I$568"),"Error"))) -> 
B17: Site Characteristic Improvements (Please add description about improvements i.e. Lighting) | N17: 0 | O17: =SUM(AC15:BG15)*-1 -> 0 | Z17: Part C 4 | AA17: =J19 -> 0 | AB17: =K19*-1 -> 0 | AC17: =$AB17*(1+$BK$1)^AC$21 -> 0 | AD17: 0 | AE17: 0 | AF17: =IF(AF$21<>"X",IF(AF$21=MAX($J$16:$J$29),($M19-$L19)*(1+$BK$1)^AF$21,IF(OR($AA17=3),(-$K19-$L19)*(1+$BK$1)^AF$21,-$L19*(1+$BK$1)^AF$21)),0) -> 0 | AG17: =IF(AG$21<>"X",IF(AG$21=MAX($J$16:$J$29),($M19-$L19)*(1+$BK$1)^AG$21,IF(OR($AA17="X"),(-$K19-$L19)*(1+$BK$1)^AG$21,-$L19*(1+$BK$1)^AG$21)),0) -> 0 | AH17: =IF(AH$21<>"X",IF(AH$21=MAX($J$16:$J$29),($M19-$L19)*(1+$BK$1)^AH$21,IF(OR($AA17=5),(-$K19-$L19)*(1+$BK$1)^AH$21,-$L19*(1+$BK$1)^AH$21)),0) -> 0 | AI17: =IF(AI$21<>"X",IF(AI$21=MAX($J$16:$J$29),$M$16*(1+$BK$1)^AI$21,IF(OR($AA17=3),(-$K19-$L19)*(1+$BK$1)^AI$21,-$L19*(1+$BK$1)^AI$21)),0) -> 0 | AJ17: 0 | AK17: 0 | AL17: =IF(AL$21<>"X",IF(AL$21=MAX($J$16:$J$29),$M$16*(1+$BK$1)^AL$21,IF(OR($AA17=3),(-$K19-$L19)*(1+$BK$1)^AL$21,-$L19*(1+$BK$1)^AL$21)),0) -> 0 | AM17: =IF(AM$21<>"X",IF(AM$21=MAX($J$16:$J$29),($M19-$L19)*(1+$BK$1)^AM$21,IF(OR($AA17=5,$AA17=10),(-$K19-$L19)*(1+$BK$1)^AM$21,-$L19*(1+$BK$1)^AM$21)),0) -> 0 | AN17: =IF(AN$21<>"X",IF(AN$21=MAX($J$16:$J$29),($M19-$L19)*(1+$BK$1)^AN$21,IF(OR($AA17="X"),(-$K19-$L19)*(1+$BK$1)^AN$21,-$L19*(1+$BK$1)^AN$21)),0) -> 0 | AO17: =IF(AO$21<>"X",IF(AO$21=MAX($J$16:$J$29),$M$16*(1+$BK$1)^AO$21,IF(OR($AA17=3),(-$K19-$L19)*(1+$BK$1)^AO$21,-$L19*(1+$BK$1)^AO$21)),0) -> 0 | AP17: 0 | AQ17: 0 | AR17: =IF(AR$21<>"X",IF(AR$21=MAX($J$16:$J$29),($M19-$L19)*(1+$BK$1)^AR$21,IF(OR($AA17=3,$AA17=5,$AA17=15),(-$K19-$L19)*(1+$BK$1)^AR$21,-$L19*(1+$BK$1)^AR$21)),0) -> 0 | AS17: 0 | AT17: 0 | AU17: =IF(AU$21<>"X",IF(AU$21=MAX($J$16:$J$29),$M$16*(1+$BK$1)^AU$21,IF(OR($AA17=3),(-$K19-$L19)*(1+$BK$1)^AU$21,-$L19*(1+$BK$1)^AU$21)),0) -> 0 | AV17: =IF(AV$21<>"X",IF(AV$21=MAX($J$16:$J$29),($M19-$L19)*(1+$BK$1)^AV$21,IF(OR($AA17="X"),(-$K19-$L19)*(1+$BK$1)^AV$21,-$L19*(1+$BK$1)^AV$21)),0) -> 0 | AW17: =IF(AW$21<>"X",IF(AW$21=MAX($J$16:$J$29),($M19-$L19)*(1+$BK$1)^AW$21,IF(OR($AA17=5,$AA17=10,$AA17=20),(-$K19-$L19)*(1+$BK$1)^AW$21,-$L19*(1+$BK$1)^AW$21)),0) -> 0 | AX17: =IF(AX$21<>"X",IF(AX$21=MAX($J$16:$J$29),$M$16*(1+$BK$1)^AX$21,IF(OR($AA17=3),(-$K19-$L19)*(1+$BK$1)^AX$21,-$L19*(1+$BK$1)^AX$21)),0) -> 0 | AY17: 0 | AZ17: 0 | BA17: =IF(BA$21<>"X",IF(BA$21=MAX($J$16:$J$29),$M$16*(1+$BK$1)^BA$21,IF(OR($AA17=3),(-$K19-$L19)*(1+$BK$1)^BA$21,-$L19*(1+$BK$1)^BA$21)),0) -> 0 | BB17: =IF(BB$21<>"X",IF(BB$21=MAX($J$16:$J$29),($M19-$L19)*(1+$BK$1)^BB$21,IF(OR($AA17=5,$AA17=25),(-$K19-$L19)*(1+$BK$1)^BB$21,-$L19*(1+$BK$1)^BB$21)),0) -> 0 | BC17: =IF(BC$21<>"X",IF(BC$21=MAX($J$16:$J$29),($M19-$L19)*(1+$BK$1)^BC$21,IF(OR($AA17="X"),(-$K19-$L19)*(1+$BK$1)^BC$21,-$L19*(1+$BK$1)^BC$21)),0) -> 0 | BD17: =IF(BD$21<>"X",IF(BD$21=MAX($J$16:$J$29),$M$16*(1+$BK$1)^BD$21,IF(OR($AA17=3),(-$K19-$L19)*(1+$BK$1)^BD$21,-$L19*(1+$BK$1)^BD$21)),0) -> 0 | BE17: 0 | BF17: 0 | BG17: =IF(BG$21<>"X",($M19-$L19)*(1+$BK$1)^BG$21,0) -> 0 | BP17: Net Present Value of Safety Benefits | BT17: =BT16*(1+$BK$1)^-BT11 -> 0 | BU17: 0 | BV17: 0 | BW17: 0 | BX17: 0 | BY17: 0 | BZ17: 0 | CA17: 0 | CB17: 0 | CC17: 0 | CD17: 0 | CE17: 0 | CF17: 0 | CG17: 0 | CH17: 0 | CI17: 0 | CJ17: 0 | CK17: 0 | CL17: 0 | CM17: 0 | CN17: 0 | CO17: 0 | CP17: 0 | CQ17: 0 | CR17: 0 | CS17: 0 | CT17: 0 | CU17: 0 | CV17: 0 | CW17: 0 | CX17: 0 | CZ17: =IF('Project Information'!$C44="","",'Project Information'!C44) ->  | DA17: =IF('Project Information'!$C44="","",'Project Information'!D44) ->  | DB17: =IF('Project Information'!$C44="","",'Project Information'!K44) ->  | DC17: =IF($CZ17="","",IF('Project Information'!$K$16="Proposed",IFERROR(INDIRECT("'"&$CZ17&"'!"&"$F$565"),"Error"),IFERROR(INDIRECT("'"&$CZ17&"'!"&"$F$568"),"Error"))) ->  | DD17: =IF($CZ17="","",IF('Project Information'!$K$16="Proposed",IFERROR(INDIRECT("'"&$CZ17&"'!"&"$G$565"),"Error"),IFERROR(INDIRECT("'"&$CZ17&"'!"&"$G$568"),"Error"))) ->  | DE17: =IF($CZ17="","",IF('Project Information'!$K$16="Proposed",IFERROR(INDIRECT("'"&$CZ17&"'!"&"$H$565"),"Error"),IFERROR(INDIRECT("'"&$CZ17&"'!"&"$H$568"),"Error"))) ->  | DF17: =IF($CZ17="","",IF('Project Information'!$K$16="Proposed",IFERROR(INDIRECT("'"&$CZ17&"'!"&"$I$565"),"Error"),IFERROR(INDIRECT("'"&$CZ17&"'!"&"$I$568"),"Error"))) -> 
B18: Site Characteristic Improvements (Please add description about improvements i.e. Signal Phasing) | N18: 0 | O18: =SUM(AC16:BG16)*-1 -> 0 | Z18: Part C Total Annual Costs | AC18: =SUM(AC14:AC17) -> -3500000 | AD18: =SUM(AD14:AD17) -> 0 | AE18: 0 | AF18: 0 | AG18: 0 | AH18: 0 | AI18: 0 | AJ18: 0 | AK18: 0 | AL18: 0 | AM18: 0 | AN18: 0 | AO18: 0 | AP18: 0 | AQ18: 0 | AR18: 0 | AS18: 0 | AT18: 0 | AU18: 0 | AV18: 0 | AW18: 0 | AX18: 0 | AY18: 0 | AZ18: 0 | BA18: 0 | BB18: 0 | BC18: 0 | BD18: 0 | BE18: 0 | BF18: 0 | BG18: 0 | BO18: 2 | BP18: =B21 ->  | BT18: Year | CZ18: =IF('Project Information'!$C45="","",'Project Information'!C45) ->  | DA18: =IF('Project Information'!$C45="","",'Project Information'!D45) ->  | DB18: =IF('Project Information'!$C45="","",'Project Information'!K45) ->  | DC18: =IF($CZ18="","",IF('Project Information'!$K$16="Proposed",IFERROR(INDIRECT("'"&$CZ18&"'!"&"$F$565"),"Error"),IFERROR(INDIRECT("'"&$CZ18&"'!"&"$F$568"),"Error"))) ->  | DD18: =IF($CZ18="","",IF('Project Information'!$K$16="Proposed",IFERROR(INDIRECT("'"&$CZ18&"'!"&"$G$565"),"Error"),IFERROR(INDIRECT("'"&$CZ18&"'!"&"$G$568"),"Error"))) ->  | DE18: =IF($CZ18="","",IF('Project Information'!$K$16="Proposed",IFERROR(INDIRECT("'"&$CZ18&"'!"&"$H$565"),"Error"),IFERROR(INDIRECT("'"&$CZ18&"'!"&"$H$568"),"Error"))) ->  | DF18: =IF($CZ18="","",IF('Project Information'!$K$16="Proposed",IFERROR(INDIRECT("'"&$CZ18&"'!"&"$I$565"),"Error"),IFERROR(INDIRECT("'"&$CZ18&"'!"&"$I$568"),"Error"))) ->  | FI18: Existing Expected Crash Summary | FR18: KABCO to AIS Conversion Table
B19: Site Characteristic Improvements (Please add description about improvements i.e. Added Right Turn Lane) | N19: 0 | O19: =SUM(AC17:BG17)*-1 -> 0 | BP19: Code | BQ19: Severity | BR19: Avg Est Red | BS19: PV $ | BT19: 0 | BU19: 1 | BV19: 2 | BW19: 3 | BX19: 4 | BY19: 5 | BZ19: 6 | CA19: 7 | CB19: 8 | CC19: 9 | CD19: 10 | CE19: 11 | CF19: 12 | CG19: 13 | CH19: 14 | CI19: 15 | CJ19: 16 | CK19: 17 | CL19: 18 | CM19: 19 | CN19: 20 | CO19: 21 | CP19: 22 | CQ19: 23 | CR19: 24 | CS19: 25 | CT19: 26 | CU19: 27 | CV19: 28 | CW19: 29 | CX19: 30 | CZ19: =IF('Project Information'!$C46="","",'Project Information'!C46) ->  | DA19: =IF('Project Information'!$C46="","",'Project Information'!D46) ->  | DB19: =IF('Project Information'!$C46="","",'Project Information'!K46) ->  | DC19: =IF($CZ19="","",IF('Project Information'!$K$16="Proposed",IFERROR(INDIRECT("'"&$CZ19&"'!"&"$F$565"),"Error"),IFERROR(INDIRECT("'"&$CZ19&"'!"&"$F$568"),"Error"))) ->  | DD19: =IF($CZ19="","",IF('Project Information'!$K$16="Proposed",IFERROR(INDIRECT("'"&$CZ19&"'!"&"$G$565"),"Error"),IFERROR(INDIRECT("'"&$CZ19&"'!"&"$G$568"),"Error"))) ->  | DE19: =IF($CZ19="","",IF('Project Information'!$K$16="Proposed",IFERROR(INDIRECT("'"&$CZ19&"'!"&"$H$565"),"Error"),IFERROR(INDIRECT("'"&$CZ19&"'!"&"$H$568"),"Error"))) ->  | DF19: =IF($CZ19="","",IF('Project Information'!$K$16="Proposed",IFERROR(INDIRECT("'"&$CZ19&"'!"&"$I$565"),"Error"),IFERROR(INDIRECT("'"&$CZ19&"'!"&"$I$568"),"Error"))) ->  | FJ19: K | FK19: A | FL19: B | FM19: C | FN19: O | FO19: U | FR19: AIS Code | FS19: K | FT19: A | FU19: B | FV19: C | FW19: O | FX19: U
B20: =IF('Project Information'!C117="","",'Project Information'!B117&" - "&'Project Information'!C117) ->  | J20: =IF(ISERROR(VLOOKUP(MID(B20,9,100),CMF!P:Q,2,FALSE)),IF(B20="","","Add Value"),VLOOKUP(MID(B20,9,100),CMF!P:Q,2,FALSE)) ->  | N20: 0 | O20: =SUM(AC23:BG23)*-1 -> 0 | P20: =-SUM(BR12:BR15) -> 0 | Q20: =IFERROR(SUM(BT17:CX17),0) -> 0 | Z20: Countermeasure Service Life & Cost | BP20: KA | BQ20: Fatal &Incapacitating Injury Crash | BR20: =DK83*-1 -> 0 | BS20: =$AB$5 -> 484544 | BT20: 0 | BU20: =IF(MAX($J$16:$J$29)>=BU$19,$BS20*(1+$BK$2)^BU$19*$BR20,0) -> 0 | BV20: =IF(MAX($J$16:$J$29)>=BV$19,$BS20*(1+$BK$2)^BV$19*$BR20,0) -> 0 | BW20: 0 | BX20: 0 | BY20: 0 | BZ20: 0 | CA20: 0 | CB20: 0 | CC20: 0 | CD20: 0 | CE20: 0 | CF20: 0 | CG20: 0 | CH20: 0 | CI20: 0 | CJ20: 0 | CK20: 0 | CL20: 0 | CM20: 0 | CN20: 0 | CO20: 0 | CP20: 0 | CQ20: 0 | CR20: 0 | CS20: 0 | CT20: 0 | CU20: 0 | CV20: 0 | CW20: 0 | CX20: 0 | CZ20: =IF('Project Information'!$C47="","",'Project Information'!C47) ->  | DA20: =IF('Project Information'!$C47="","",'Project Information'!D47) ->  | DB20: =IF('Project Information'!$C47="","",'Project Information'!K47) ->  | DC20: =IF($CZ20="","",IF('Project Information'!$K$16="Proposed",IFERROR(INDIRECT("'"&$CZ20&"'!"&"$F$565"),"Error"),IFERROR(INDIRECT("'"&$CZ20&"'!"&"$F$568"),"Error"))) ->  | DD20: =IF($CZ20="","",IF('Project Information'!$K$16="Proposed",IFERROR(INDIRECT("'"&$CZ20&"'!"&"$G$565"),"Error"),IFERROR(INDIRECT("'"&$CZ20&"'!"&"$G$568"),"Error"))) ->  | DE20: =IF($CZ20="","",IF('Project Information'!$K$16="Proposed",IFERROR(INDIRECT("'"&$CZ20&"'!"&"$H$565"),"Error"),IFERROR(INDIRECT("'"&$CZ20&"'!"&"$H$568"),"Error"))) ->  | DF20: =IF($CZ20="","",IF('Project Information'!$K$16="Proposed",IFERROR(INDIRECT("'"&$CZ20&"'!"&"$I$565"),"Error"),IFERROR(INDIRECT("'"&$CZ20&"'!"&"$I$568"),"Error"))) ->  | FI20: Count | FJ20: =Report!E15*FH32 -> 0.03878961614 | FK20: =Report!E15*FI32 -> 0.2675103839 | FL20: =Report!F15 -> 0.7423 | FM20: =Report!G15 -> 0.4943 | FN20: =Report!H15 -> 1.6422 | FO20: 0 | FR20: AIS 0 | FS20: 0 | FT20: 0.03437 | FU20: 0.08347 | FV20: 0.23437 | FW20: 0.92534 | FX20: 0.21538
B21: =IF('Project Information'!C118="","",'Project Information'!B118&" - "&'Project Information'!C118) ->  | J21: =IF(ISERROR(VLOOKUP(MID(B21,9,100),CMF!P:Q,2,FALSE)),IF(B21="","","Add Value"),VLOOKUP(MID(B21,9,100),CMF!P:Q,2,FALSE)) ->  | N21: 0 | O21: 0 | P21: =-SUM(BR20:BR23) -> 0 | Q21: =IFERROR(SUM(BT25:CX25),0) -> 0 | Z21: Countermeasure | AA21: SL | AB21: Initial Cost | AC21: 0 | AD21: =IF(AD4<=MAX($J$16:$J$29),AD4,"X") -> 1 | AE21: 2 | AF21: 3 | AG21: 4 | AH21: 5 | AI21: 6 | AJ21: 7 | AK21: 8 | AL21: 9 | AM21: 10 | AN21: 11 | AO21: 12 | AP21: 13 | AQ21: 14 | AR21: 15 | AS21: 16 | AT21: 17 | AU21: 18 | AV21: 19 | AW21: 20 | AX21: X | AY21: X | AZ21: X | BA21: X | BB21: X | BC21: X | BD21: X | BE21: X | BF21: X | BG21: X | BP21: B | BQ21: Non-Incapacitating Injury Crash | BR21: =DL83*-1 -> 0 | BS21: =$AB$6 -> 69135 | BT21: 0 | BU21: =IF(MAX($J$16:$J$29)>=BU$19,$BS21*(1+$BK$2)^BU$19*$BR21,0) -> 0 | BV21: =IF(MAX($J$16:$J$29)>=BV$19,$BS21*(1+$BK$2)^BV$19*$BR21,0) -> 0 | BW21: 0 | BX21: 0 | BY21: 0 | BZ21: 0 | CA21: 0 | CB21: 0 | CC21: 0 | CD21: 0 | CE21: 0 | CF21: 0 | CG21: 0 | CH21: 0 | CI21: 0 | CJ21: 0 | CK21: 0 | CL21: 0 | CM21: 0 | CN21: 0 | CO21: 0 | CP21: 0 | CQ21: 0 | CR21: 0 | CS21: 0 | CT21: 0 | CU21: 0 | CV21: 0 | CW21: 0 | CX21: 0 | CZ21: =IF('Project Information'!$C48="","",'Project Information'!C48) ->  | DA21: =IF('Project Information'!$C48="","",'Project Information'!D48) ->  | DB21: =IF('Project Information'!$C48="","",'Project Information'!K48) ->  | DC21: =IF($CZ21="","",IF('Project Information'!$K$16="Proposed",IFERROR(INDIRECT("'"&$CZ21&"'!"&"$F$565"),"Error"),IFERROR(INDIRECT("'"&$CZ21&"'!"&"$F$568"),"Error"))) ->  | DD21: =IF($CZ21="","",IF('Project Information'!$K$16="Proposed",IFERROR(INDIRECT("'"&$CZ21&"'!"&"$G$565"),"Error"),IFERROR(INDIRECT("'"&$CZ21&"'!"&"$G$568"),"Error"))) ->  | DE21: =IF($CZ21="","",IF('Project Information'!$K$16="Proposed",IFERROR(INDIRECT("'"&$CZ21&"'!"&"$H$565"),"Error"),IFERROR(INDIRECT("'"&$CZ21&"'!"&"$H$568"),"Error"))) ->  | DF21: =IF($CZ21="","",IF('Project Information'!$K$16="Proposed",IFERROR(INDIRECT("'"&$CZ21&"'!"&"$I$565"),"Error"),IFERROR(INDIRECT("'"&$CZ21&"'!"&"$I$568"),"Error"))) ->  | FI21: Reduction | FJ21: =AA5*FH32 -> 0.0263789652 | FK21: =AA5*FI32 -> 0.1819210348 | FL21: =AA6 -> 0.4856 | FM21: =AA7 -> 0.3079 | FN21: =AA8 -> 1.0195 | FO21: 0 | FR21: AIS 1 | FS21: 0 | FT21: 0.55449 | FU21: 0.76843 | FV21: 0.68946 | FW21: 0.07257 | FX21: 0.62728
B22: =IF('Project Information'!C119="","",'Project Information'!B119&" - "&'Project Information'!C119) ->  | J22: =IF(ISERROR(VLOOKUP(MID(B22,9,100),CMF!P:Q,2,FALSE)),IF(B22="","","Add Value"),VLOOKUP(MID(B22,9,100),CMF!P:Q,2,FALSE)) ->  | N22: 0 | O22: 0 | P22: =-SUM(BR28:BR31) -> 0 | Q22: =IFERROR(SUM(BT33:CX33),0) -> 0 | Z22: Total Part C Countermeasures | AB22: =SUM(AB14:AB17) -> -3500000 | AC22: -3500000 | AD22: 0 | AE22: 0 | AF22: 0 | AG22: 0 | AH22: 0 | AI22: 0 | AJ22: 0 | AK22: 0 | AL22: 0 | AM22: 0 | AN22: 0 | AO22: 0 | AP22: 0 | AQ22: 0 | AR22: 0 | AS22: 0 | AT22: 0 | AU22: 0 | AV22: 0 | AW22: 0 | AX22: 0 | AY22: 0 | AZ22: 0 | BA22: 0 | BB22: 0 | BC22: 0 | BD22: 0 | BE22: 0 | BF22: 0 | BG22: 0 | BP22: C | BQ22: Possible Injury Crash | BR22: =DM83*-1 -> 0 | BS22: =$AB$7 -> 46860 | BT22: 0 | BU22: =IF(MAX($J$16:$J$29)>=BU$19,$BS22*(1+$BK$2)^BU$19*$BR22,0) -> 0 | BV22: 0 | BW22: 0 | BX22: 0 | BY22: 0 | BZ22: 0 | CA22: 0 | CB22: 0 | CC22: 0 | CD22: 0 | CE22: 0 | CF22: 0 | CG22: 0 | CH22: 0 | CI22: 0 | CJ22: 0 | CK22: 0 | CL22: 0 | CM22: 0 | CN22: 0 | CO22: 0 | CP22: 0 | CQ22: 0 | CR22: 0 | CS22: 0 | CT22: 0 | CU22: 0 | CV22: 0 | CW22: 0 | CX22: 0 | CZ22: =IF('Project Information'!$C49="","",'Project Information'!C49) ->  | DA22: =IF('Project Information'!$C49="","",'Project Information'!D49) ->  | DB22: =IF('Project Information'!$C49="","",'Project Information'!K49) ->  | DC22: =IF($CZ22="","",IF('Project Information'!$K$16="Proposed",IFERROR(INDIRECT("'"&$CZ22&"'!"&"$F$565"),"Error"),IFERROR(INDIRECT("'"&$CZ22&"'!"&"$F$568"),"Error"))) ->  | DD22: =IF($CZ22="","",IF('Project Information'!$K$16="Proposed",IFERROR(INDIRECT("'"&$CZ22&"'!"&"$G$565"),"Error"),IFERROR(INDIRECT("'"&$CZ22&"'!"&"$G$568"),"Error"))) ->  | DE22: =IF($CZ22="","",IF('Project Information'!$K$16="Proposed",IFERROR(INDIRECT("'"&$CZ22&"'!"&"$H$565"),"Error"),IFERROR(INDIRECT("'"&$CZ22&"'!"&"$H$568"),"Error"))) ->  | DF22: =IF($CZ22="","",IF('Project Information'!$K$16="Proposed",IFERROR(INDIRECT("'"&$CZ22&"'!"&"$I$565"),"Error"),IFERROR(INDIRECT("'"&$CZ22&"'!"&"$I$568"),"Error"))) ->  | FR22: AIS 2 | FS22: 0 | FT22: 0.20908 | FU22: 0.10898 | FV22: 0.06391 | FW22: 0.00198 | FX22: 0.104
B23: =IF('Project Information'!C120="","",'Project Information'!B120&" - "&'Project Information'!C120) ->  | J23: =IF(ISERROR(VLOOKUP(MID(B23,9,100),CMF!P:Q,2,FALSE)),IF(B23="","","Add Value"),VLOOKUP(MID(B23,9,100),CMF!P:Q,2,FALSE)) ->  | N23: 0 | O23: 0 | P23: =-SUM(BR36:BR39) -> 0 | Q23: =IFERROR(SUM(BT41:CX41),0) -> 0 | Z23: =B20 ->  | AA23: =J20 ->  | AB23: =K20*-1 -> 0 | AC23: =$AB23*(1+$BK$1)^AC$21 -> 0 | AD23: =IF(AD$21<>"X",IF(AD$21=MAX($J$16:$J$29),($M20-$L20)*(1+$BK$1)^AD$21,IF(OR($AA23="X"),(-$K20-$L20)*(1+$BK$1)^AD$21,-$L20*(1+$BK$1)^AD$21)),0) -> 0 | AE23: 0 | AF23: =IF(AF$21<>"X",IF(AF$21=MAX($J$16:$J$29),($M20-$L20)*(1+$BK$1)^AF$21,IF(OR($AA23=3),(-$K20-$L20)*(1+$BK$1)^AF$21,-$L20*(1+$BK$1)^AF$21)),0) -> 0 | AG23: =IF(AG$21<>"X",IF(AG$21=MAX($J$16:$J$29),($M20-$L20)*(1+$BK$1)^AG$21,IF(OR($AA23="X"),(-$K20-$L20)*(1+$BK$1)^AG$21,-$L20*(1+$BK$1)^AG$21)),0) -> 0 | AH23: =IF(AH$21<>"X",IF(AH$21=MAX($J$16:$J$29),($M20-$L20)*(1+$BK$1)^AH$21,IF(OR($AA23=5),(-$K20-$L20)*(1+$BK$1)^AH$21,-$L20*(1+$BK$1)^AH$21)),0) -> 0 | AI23: =IF(AI$21<>"X",IF(AI$21=MAX($J$16:$J$29),$M$16*(1+$BK$1)^AI$21,IF(OR($AA23=3),(-$K20-$L20)*(1+$BK$1)^AI$21,-$L20*(1+$BK$1)^AI$21)),0) -> 0 | AJ23: =IF(AJ$21<>"X",IF(AJ$21=MAX($J$16:$J$29),($M20-$L20)*(1+$BK$1)^AJ$21,IF(OR($AA23="X"),(-$K20-$L20)*(1+$BK$1)^AJ$21,-$L20*(1+$BK$1)^AJ$21)),0) -> 0 | AK23: 0 | AL23: =IF(AL$21<>"X",IF(AL$21=MAX($J$16:$J$29),$M$16*(1+$BK$1)^AL$21,IF(OR($AA23=3),(-$K20-$L20)*(1+$BK$1)^AL$21,-$L20*(1+$BK$1)^AL$21)),0) -> 0 | AM23: =IF(AM$21<>"X",IF(AM$21=MAX($J$16:$J$29),($M20-$L20)*(1+$BK$1)^AM$21,IF(OR($AA23=5,$AA23=10),(-$K20-$L20)*(1+$BK$1)^AM$21,-$L20*(1+$BK$1)^AM$21)),0) -> 0 | AN23: =IF(AN$21<>"X",IF(AN$21=MAX($J$16:$J$29),($M20-$L20)*(1+$BK$1)^AN$21,IF(OR($AA23="X"),(-$K20-$L20)*(1+$BK$1)^AN$21,-$L20*(1+$BK$1)^AN$21)),0) -> 0 | AO23: =IF(AO$21<>"X",IF(AO$21=MAX($J$16:$J$29),$M$16*(1+$BK$1)^AO$21,IF(OR($AA23=3),(-$K20-$L20)*(1+$BK$1)^AO$21,-$L20*(1+$BK$1)^AO$21)),0) -> 0 | AP23: =IF(AP$21<>"X",IF(AP$21=MAX($J$16:$J$29),($M20-$L20)*(1+$BK$1)^AP$21,IF(OR($AA23="X"),(-$K20-$L20)*(1+$BK$1)^AP$21,-$L20*(1+$BK$1)^AP$21)),0) -> 0 | AQ23: 0 | AR23: =IF(AR$21<>"X",IF(AR$21=MAX($J$16:$J$29),($M20-$L20)*(1+$BK$1)^AR$21,IF(OR($AA23=3,$AA23=5,$AA23=15),(-$K20-$L20)*(1+$BK$1)^AR$21,-$L20*(1+$BK$1)^AR$21)),0) -> 0 | AS23: =IF(AS$21<>"X",IF(AS$21=MAX($J$16:$J$29),($M20-$L20)*(1+$BK$1)^AS$21,IF(OR($AA23="X"),(-$K20-$L20)*(1+$BK$1)^AS$21,-$L20*(1+$BK$1)^AS$21)),0) -> 0 | AT23: 0 | AU23: =IF(AU$21<>"X",IF(AU$21=MAX($J$16:$J$29),$M$16*(1+$BK$1)^AU$21,IF(OR($AA23=3),(-$K20-$L20)*(1+$BK$1)^AU$21,-$L20*(1+$BK$1)^AU$21)),0) -> 0 | AV23: =IF(AV$21<>"X",IF(AV$21=MAX($J$16:$J$29),($M20-$L20)*(1+$BK$1)^AV$21,IF(OR($AA23="X"),(-$K20-$L20)*(1+$BK$1)^AV$21,-$L20*(1+$BK$1)^AV$21)),0) -> 0 | AW23: =IF(AW$21<>"X",IF(AW$21=MAX($J$16:$J$29),($M20-$L20)*(1+$BK$1)^AW$21,IF(OR($AA23=5,$AA23=10,$AA23=20),(-$K20-$L20)*(1+$BK$1)^AW$21,-$L20*(1+$BK$1)^AW$21)),0) -> 0 | AX23: =IF(AX$21<>"X",IF(AX$21=MAX($J$16:$J$29),$M$16*(1+$BK$1)^AX$21,IF(OR($AA23=3),(-$K20-$L20)*(1+$BK$1)^AX$21,-$L20*(1+$BK$1)^AX$21)),0) -> 0 | AY23: =IF(AY$21<>"X",IF(AY$21=MAX($J$16:$J$29),($M20-$L20)*(1+$BK$1)^AY$21,IF(OR($AA23="X"),(-$K20-$L20)*(1+$BK$1)^AY$21,-$L20*(1+$BK$1)^AY$21)),0) -> 0 | AZ23: 0 | BA23: =IF(BA$21<>"X",IF(BA$21=MAX($J$16:$J$29),$M$16*(1+$BK$1)^BA$21,IF(OR($AA23=3),(-$K20-$L20)*(1+$BK$1)^BA$21,-$L20*(1+$BK$1)^BA$21)),0) -> 0 | BB23: =IF(BB$21<>"X",IF(BB$21=MAX($J$16:$J$29),($M20-$L20)*(1+$BK$1)^BB$21,IF(OR($AA23=5,$AA23=25),(-$K20-$L20)*(1+$BK$1)^BB$21,-$L20*(1+$BK$1)^BB$21)),0) -> 0 | BC23: =IF(BC$21<>"X",IF(BC$21=MAX($J$16:$J$29),($M20-$L20)*(1+$BK$1)^BC$21,IF(OR($AA23="X"),(-$K20-$L20)*(1+$BK$1)^BC$21,-$L20*(1+$BK$1)^BC$21)),0) -> 0 | BD23: =IF(BD$21<>"X",IF(BD$21=MAX($J$16:$J$29),$M$16*(1+$BK$1)^BD$21,IF(OR($AA23=3),(-$K20-$L20)*(1+$BK$1)^BD$21,-$L20*(1+$BK$1)^BD$21)),0) -> 0 | BE23: =IF(BE$21<>"X",IF(BE$21=MAX($J$16:$J$29),($M20-$L20)*(1+$BK$1)^BE$21,IF(OR($AA23="X"),(-$K20-$L20)*(1+$BK$1)^BE$21,-$L20*(1+$BK$1)^BE$21)),0) -> 0 | BF23: 0 | BG23: =IF(BG$21<>"X",($M20-$L20)*(1+$BK$1)^BG$21,0) -> 0 | BP23: O | BQ23: Property Damage Crash | BR23: =DN83*-1 -> 0 | BS23: =$AB$8 -> 0 | BT23: 0 | BU23: =IF(MAX($J$16:$J$29)>=BU$19,$BS23*(1+$BK$2)^BU$19*$BR23,0) -> 0 | BV23: 0 | BW23: 0 | BX23: 0 | BY23: 0 | BZ23: 0 | CA23: 0 | CB23: 0 | CC23: 0 | CD23: 0 | CE23: 0 | CF23: 0 | CG23: 0 | CH23: 0 | CI23: 0 | CJ23: 0 | CK23: 0 | CL23: 0 | CM23: 0 | CN23: 0 | CO23: 0 | CP23: 0 | CQ23: 0 | CR23: 0 | CS23: 0 | CT23: 0 | CU23: 0 | CV23: 0 | CW23: 0 | CX23: 0 | CZ23: =IF('Project Information'!$C50="","",'Project Information'!C50) ->  | DA23: =IF('Project Information'!$C50="","",'Project Information'!D50) ->  | DB23: =IF('Project Information'!$C50="","",'Project Information'!K50) ->  | DC23: =IF($CZ23="","",IF('Project Information'!$K$16="Proposed",IFERROR(INDIRECT("'"&$CZ23&"'!"&"$F$565"),"Error"),IFERROR(INDIRECT("'"&$CZ23&"'!"&"$F$568"),"Error"))) ->  | DD23: =IF($CZ23="","",IF('Project Information'!$K$16="Proposed",IFERROR(INDIRECT("'"&$CZ23&"'!"&"$G$565"),"Error"),IFERROR(INDIRECT("'"&$CZ23&"'!"&"$G$568"),"Error"))) ->  | DE23: =IF($CZ23="","",IF('Project Information'!$K$16="Proposed",IFERROR(INDIRECT("'"&$CZ23&"'!"&"$H$565"),"Error"),IFERROR(INDIRECT("'"&$CZ23&"'!"&"$H$568"),"Error"))) ->  | DF23: =IF($CZ23="","",IF('Project Information'!$K$16="Proposed",IFERROR(INDIRECT("'"&$CZ23&"'!"&"$I$565"),"Error"),IFERROR(INDIRECT("'"&$CZ23&"'!"&"$I$568"),"Error"))) ->  | FR23: AIS 3 | FS23: 0 | FT23: 0.14437 | FU23: 0.03191 | FV23: 0.01071 | FW23: 8e-05 | FX23: 0.03858
B24: =IF('Project Information'!C121="","",'Project Information'!B121&" - "&'Project Information'!C121) ->  | J24: =IF(ISERROR(VLOOKUP(MID(B24,9,100),CMF!P:Q,2,FALSE)),IF(B24="","","Add Value"),VLOOKUP(MID(B24,9,100),CMF!P:Q,2,FALSE)) ->  | N24: 0 | O24: 0 | P24: =-SUM(BR44:BR47) -> 0 | Q24: =IFERROR(SUM(BT49:CX49),0) -> 0 | AB24: 0 | AC24: 0 | AD24: 0 | AE24: 0 | AF24: 0 | AG24: 0 | AH24: 0 | AI24: 0 | AJ24: 0 | AK24: 0 | AL24: 0 | AM24: 0 | AN24: 0 | AO24: 0 | AP24: 0 | AQ24: 0 | AR24: 0 | AS24: 0 | AT24: 0 | AU24: 0 | AV24: 0 | AW24: 0 | AX24: 0 | AY24: 0 | AZ24: 0 | BA24: 0 | BB24: 0 | BC24: 0 | BD24: 0 | BE24: 0 | BF24: 0 | BG24: 0 | BP24: Total Annual Benefit | BT24: =SUM(BT20:BT23) -> 0 | BU24: 0 | BV24: 0 | BW24: 0 | BX24: 0 | BY24: 0 | BZ24: 0 | CA24: 0 | CB24: 0 | CC24: 0 | CD24: 0 | CE24: 0 | CF24: 0 | CG24: 0 | CH24: 0 | CI24: 0 | CJ24: 0 | CK24: 0 | CL24: 0 | CM24: 0 | CN24: 0 | CO24: 0 | CP24: 0 | CQ24: 0 | CR24: 0 | CS24: 0 | CT24: 0 | CU24: 0 | CV24: 0 | CW24: 0 | CX24: 0 | CZ24: =IF('Project Information'!$C51="","",'Project Information'!C51) ->  | DA24: =IF('Project Information'!$C51="","",'Project Information'!D51) ->  | DB24: =IF('Project Information'!$C51="","",'Project Information'!K51) ->  | DC24: =IF($CZ24="","",IF('Project Information'!$K$16="Proposed",IFERROR(INDIRECT("'"&$CZ24&"'!"&"$F$565"),"Error"),IFERROR(INDIRECT("'"&$CZ24&"'!"&"$F$568"),"Error"))) ->  | DD24: =IF($CZ24="","",IF('Project Information'!$K$16="Proposed",IFERROR(INDIRECT("'"&$CZ24&"'!"&"$G$565"),"Error"),IFERROR(INDIRECT("'"&$CZ24&"'!"&"$G$568"),"Error"))) ->  | DE24: =IF($CZ24="","",IF('Project Information'!$K$16="Proposed",IFERROR(INDIRECT("'"&$CZ24&"'!"&"$H$565"),"Error"),IFERROR(INDIRECT("'"&$CZ24&"'!"&"$H$568"),"Error"))) ->  | DF24: =IF($CZ24="","",IF('Project Information'!$K$16="Proposed",IFERROR(INDIRECT("'"&$CZ24&"'!"&"$I$565"),"Error"),IFERROR(INDIRECT("'"&$CZ24&"'!"&"$I$568"),"Error"))) ->  | FH24: K | FI24: A | FR24: AIS 4 | FS24: 0 | FT24: 0.03986 | FU24: 0.0062 | FV24: 0.00142 | FW24: 0 | FX24: 0.00442
B25: =IF('Project Information'!C122="","",'Project Information'!B122&" - "&'Project Information'!C122) ->  | J25: =IF(ISERROR(VLOOKUP(MID(B25,9,100),CMF!P:Q,2,FALSE)),IF(B25="","","Add Value"),VLOOKUP(MID(B25,9,100),CMF!P:Q,2,FALSE)) ->  | N25: 0 | O25: 0 | P25: =-SUM(BR52:BR55) -> 0 | Q25: =IFERROR(SUM(BT57:CX57),0) -> 0 | AB25: 0 | AC25: 0 | AD25: 0 | AE25: 0 | AF25: 0 | AG25: 0 | AH25: 0 | AI25: 0 | AJ25: 0 | AK25: 0 | AL25: 0 | AM25: 0 | AN25: 0 | AO25: 0 | AP25: 0 | AQ25: 0 | AR25: 0 | AS25: 0 | AT25: 0 | AU25: 0 | AV25: 0 | AW25: 0 | AX25: 0 | AY25: 0 | AZ25: 0 | BA25: 0 | BB25: 0 | BC25: 0 | BD25: 0 | BE25: 0 | BF25: 0 | BG25: 0 | BP25: Net Present Value of Safety Benefits | BT25: =BT24*(1+$BK$1)^-BT19 -> 0 | BU25: 0 | BV25: 0 | BW25: 0 | BX25: 0 | BY25: 0 | BZ25: 0 | CA25: 0 | CB25: 0 | CC25: 0 | CD25: 0 | CE25: 0 | CF25: 0 | CG25: 0 | CH25: 0 | CI25: 0 | CJ25: 0 | CK25: 0 | CL25: 0 | CM25: 0 | CN25: 0 | CO25: 0 | CP25: 0 | CQ25: 0 | CR25: 0 | CS25: 0 | CT25: 0 | CU25: 0 | CV25: 0 | CW25: 0 | CX25: 0 | CZ25: =IF('Project Information'!$C52="","",'Project Information'!C52) ->  | DA25: =IF('Project Information'!$C52="","",'Project Information'!D52) ->  | DB25: =IF('Project Information'!$C52="","",'Project Information'!K52) ->  | DC25: =IF($CZ25="","",IF('Project Information'!$K$16="Proposed",IFERROR(INDIRECT("'"&$CZ25&"'!"&"$F$565"),"Error"),IFERROR(INDIRECT("'"&$CZ25&"'!"&"$F$568"),"Error"))) ->  | DD25: =IF($CZ25="","",IF('Project Information'!$K$16="Proposed",IFERROR(INDIRECT("'"&$CZ25&"'!"&"$G$565"),"Error"),IFERROR(INDIRECT("'"&$CZ25&"'!"&"$G$568"),"Error"))) ->  | DE25: =IF($CZ25="","",IF('Project Information'!$K$16="Proposed",IFERROR(INDIRECT("'"&$CZ25&"'!"&"$H$565"),"Error"),IFERROR(INDIRECT("'"&$CZ25&"'!"&"$H$568"),"Error"))) ->  | DF25: =IF($CZ25="","",IF('Project Information'!$K$16="Proposed",IFERROR(INDIRECT("'"&$CZ25&"'!"&"$I$565"),"Error"),IFERROR(INDIRECT("'"&$CZ25&"'!"&"$I$568"),"Error"))) ->  | FG25: 2015 | FH25: 1029 | FI25: 7340 | FR25: AIS 5 | FS25: 0 | FT25: 0.01783 | FU25: 0.00101 | FV25: 0.00013 | FW25: 3e-05 | FX25: 0.01034
B26: =IF('Project Information'!C123="","",'Project Information'!B123&" - "&'Project Information'!C123) ->  | J26: =IF(ISERROR(VLOOKUP(MID(B26,9,100),CMF!P:Q,2,FALSE)),IF(B26="","","Add Value"),VLOOKUP(MID(B26,9,100),CMF!P:Q,2,FALSE)) ->  | N26: 0 | O26: 0 | P26: =-SUM(BR60:BR63) -> 0 | Q26: =IFERROR(SUM(BT65:CX65),0) -> 0 | AB26: 0 | AC26: 0 | AD26: 0 | AE26: 0 | AF26: 0 | AG26: 0 | AH26: 0 | AI26: 0 | AJ26: 0 | AK26: 0 | AL26: 0 | AM26: 0 | AN26: 0 | AO26: 0 | AP26: 0 | AQ26: 0 | AR26: 0 | AS26: 0 | AT26: 0 | AU26: 0 | AV26: 0 | AW26: 0 | AX26: 0 | AY26: 0 | AZ26: 0 | BA26: 0 | BB26: 0 | BC26: 0 | BD26: 0 | BE26: 0 | BF26: 0 | BG26: 0 | BO26: 3 | BP26: =B22 ->  | BT26: Year | CZ26: =IF('Project Information'!$C53="","",'Project Information'!C53) ->  | DA26: =IF('Project Information'!$C53="","",'Project Information'!D53) ->  | DB26: =IF('Project Information'!$C53="","",'Project Information'!K53) ->  | DC26: =IF($CZ26="","",IF('Project Information'!$K$16="Proposed",IFERROR(INDIRECT("'"&$CZ26&"'!"&"$F$565"),"Error"),IFERROR(INDIRECT("'"&$CZ26&"'!"&"$F$568"),"Error"))) ->  | DD26: =IF($CZ26="","",IF('Project Information'!$K$16="Proposed",IFERROR(INDIRECT("'"&$CZ26&"'!"&"$G$565"),"Error"),IFERROR(INDIRECT("'"&$CZ26&"'!"&"$G$568"),"Error"))) ->  | DE26: =IF($CZ26="","",IF('Project Information'!$K$16="Proposed",IFERROR(INDIRECT("'"&$CZ26&"'!"&"$H$565"),"Error"),IFERROR(INDIRECT("'"&$CZ26&"'!"&"$H$568"),"Error"))) ->  | DF26: =IF($CZ26="","",IF('Project Information'!$K$16="Proposed",IFERROR(INDIRECT("'"&$CZ26&"'!"&"$I$565"),"Error"),IFERROR(INDIRECT("'"&$CZ26&"'!"&"$I$568"),"Error"))) ->  | FG26: 2016 | FH26: 1054 | FI26: 7509 | FR26: AIS 6 | FS26: 1 | FT26: 0 | FU26: 0 | FV26: 0 | FW26: 0 | FX26: 0
B27: =IF('Project Information'!C124="","",'Project Information'!B124&" - "&'Project Information'!C124) ->  | J27: =IF(ISERROR(VLOOKUP(MID(B27,9,100),CMF!P:Q,2,FALSE)),IF(B27="","","Add Value"),VLOOKUP(MID(B27,9,100),CMF!P:Q,2,FALSE)) ->  | N27: 0 | O27: 0 | P27: =-SUM(BR68:BR71) -> 0 | Q27: =IFERROR(SUM(BT73:CX73),0) -> 0 | AB27: 0 | AC27: 0 | AD27: 0 | AE27: 0 | AF27: 0 | AG27: 0 | AH27: 0 | AI27: 0 | AJ27: 0 | AK27: 0 | AL27: 0 | AM27: 0 | AN27: 0 | AO27: 0 | AP27: 0 | AQ27: 0 | AR27: 0 | AS27: 0 | AT27: 0 | AU27: 0 | AV27: 0 | AW27: 0 | AX27: 0 | AY27: 0 | AZ27: 0 | BA27: 0 | BB27: 0 | BC27: 0 | BD27: 0 | BE27: 0 | BF27: 0 | BG27: 0 | BP27: Code | BQ27: Severity | BR27: Avg Est Red | BS27: PV $ | BT27: 0 | BU27: 1 | BV27: 2 | BW27: 3 | BX27: 4 | BY27: 5 | BZ27: 6 | CA27: 7 | CB27: 8 | CC27: 9 | CD27: 10 | CE27: 11 | CF27: 12 | CG27: 13 | CH27: 14 | CI27: 15 | CJ27: 16 | CK27: 17 | CL27: 18 | CM27: 19 | CN27: 20 | CO27: 21 | CP27: 22 | CQ27: 23 | CR27: 24 | CS27: 25 | CT27: 26 | CU27: 27 | CV27: 28 | CW27: 29 | CX27: 30 | CZ27: =IF('Project Information'!$C54="","",'Project Information'!C54) ->  | DA27: =IF('Project Information'!$C54="","",'Project Information'!D54) ->  | DB27: =IF('Project Information'!$C54="","",'Project Information'!K54) ->  | DC27: =IF($CZ27="","",IF('Project Information'!$K$16="Proposed",IFERROR(INDIRECT("'"&$CZ27&"'!"&"$F$565"),"Error"),IFERROR(INDIRECT("'"&$CZ27&"'!"&"$F$568"),"Error"))) ->  | DD27: =IF($CZ27="","",IF('Project Information'!$K$16="Proposed",IFERROR(INDIRECT("'"&$CZ27&"'!"&"$G$565"),"Error"),IFERROR(INDIRECT("'"&$CZ27&"'!"&"$G$568"),"Error"))) ->  | DE27: =IF($CZ27="","",IF('Project Information'!$K$16="Proposed",IFERROR(INDIRECT("'"&$CZ27&"'!"&"$H$565"),"Error"),IFERROR(INDIRECT("'"&$CZ27&"'!"&"$H$568"),"Error"))) ->  | DF27: =IF($CZ27="","",IF('Project Information'!$K$16="Proposed",IFERROR(INDIRECT("'"&$CZ27&"'!"&"$I$565"),"Error"),IFERROR(INDIRECT("'"&$CZ27&"'!"&"$I$568"),"Error"))) ->  | FG27: 2017 | FH27: 1094 | FI27: 7061
B28: =IF('Project Information'!C125="","",'Project Information'!B125&" - "&'Project Information'!C125) ->  | J28: =IF(ISERROR(VLOOKUP(MID(B28,9,100),CMF!P:Q,2,FALSE)),IF(B28="","","Add Value"),VLOOKUP(MID(B28,9,100),CMF!P:Q,2,FALSE)) ->  | N28: 0 | O28: 0 | P28: =-SUM(BR76:BR79) -> 0 | Q28: =IFERROR(SUM(BT81:CX81),0) -> 0 | AB28: 0 | AC28: 0 | AD28: 0 | AE28: 0 | AF28: 0 | AG28: 0 | AH28: 0 | AI28: 0 | AJ28: 0 | AK28: 0 | AL28: 0 | AM28: 0 | AN28: 0 | AO28: 0 | AP28: 0 | AQ28: 0 | AR28: 0 | AS28: 0 | AT28: 0 | AU28: 0 | AV28: 0 | AW28: 0 | AX28: 0 | AY28: 0 | AZ28: 0 | BA28: 0 | BB28: 0 | BC28: 0 | BD28: 0 | BE28: 0 | BF28: 0 | BG28: 0 | BP28: KA | BQ28: Fatal &Incapacitating Injury Crash | BR28: =DO83*-1 -> 0 | BS28: =$AB$5 -> 484544 | BT28: 0 | BU28: =IF(MAX($J$16:$J$29)>=BU$27,$BS28*(1+$BK$2)^BU$27*$BR28,0) -> 0 | BV28: =IF(MAX($J$16:$J$29)>=BV$27,$BS28*(1+$BK$2)^BV$27*$BR28,0) -> 0 | BW28: 0 | BX28: 0 | BY28: 0 | BZ28: 0 | CA28: 0 | CB28: 0 | CC28: 0 | CD28: 0 | CE28: 0 | CF28: 0 | CG28: 0 | CH28: 0 | CI28: 0 | CJ28: 0 | CK28: 0 | CL28: 0 | CM28: 0 | CN28: 0 | CO28: 0 | CP28: 0 | CQ28: 0 | CR28: 0 | CS28: 0 | CT28: 0 | CU28: 0 | CV28: 0 | CW28: 0 | CX28: 0 | CZ28: =IF('Project Information'!$C55="","",'Project Information'!C55) ->  | DA28: =IF('Project Information'!$C55="","",'Project Information'!D55) ->  | DB28: =IF('Project Information'!$C55="","",'Project Information'!K55) ->  | DC28: =IF($CZ28="","",IF('Project Information'!$K$16="Proposed",IFERROR(INDIRECT("'"&$CZ28&"'!"&"$F$565"),"Error"),IFERROR(INDIRECT("'"&$CZ28&"'!"&"$F$568"),"Error"))) ->  | DD28: =IF($CZ28="","",IF('Project Information'!$K$16="Proposed",IFERROR(INDIRECT("'"&$CZ28&"'!"&"$G$565"),"Error"),IFERROR(INDIRECT("'"&$CZ28&"'!"&"$G$568"),"Error"))) ->  | DE28: =IF($CZ28="","",IF('Project Information'!$K$16="Proposed",IFERROR(INDIRECT("'"&$CZ28&"'!"&"$H$565"),"Error"),IFERROR(INDIRECT("'"&$CZ28&"'!"&"$H$568"),"Error"))) ->  | DF28: =IF($CZ28="","",IF('Project Information'!$K$16="Proposed",IFERROR(INDIRECT("'"&$CZ28&"'!"&"$I$565"),"Error"),IFERROR(INDIRECT("'"&$CZ28&"'!"&"$I$568"),"Error"))) -> 
B29: =IF('Project Information'!C126="","",'Project Information'!B126&" - "&'Project Information'!C126) ->  | J29: =IF(ISERROR(VLOOKUP(MID(B29,10,100),CMF!P:Q,2,FALSE)),IF(B29="","","Add Value"),VLOOKUP(MID(B29,10,100),CMF!P:Q,2,FALSE)) ->  | N29: 0 | O29: 0 | P29: =-SUM(BR84:BR87) -> 0 | Q29: =IFERROR(SUM(BT89:CX89),0) -> 0 | AB29: 0 | AC29: 0 | AD29: 0 | AE29: 0 | AF29: 0 | AG29: 0 | AH29: 0 | AI29: 0 | AJ29: 0 | AK29: 0 | AL29: 0 | AM29: 0 | AN29: 0 | AO29: 0 | AP29: 0 | AQ29: 0 | AR29: 0 | AS29: 0 | AT29: 0 | AU29: 0 | AV29: 0 | AW29: 0 | AX29: 0 | AY29: 0 | AZ29: 0 | BA29: 0 | BB29: 0 | BC29: 0 | BD29: 0 | BE29: 0 | BF29: 0 | BG29: 0 | BP29: B | BQ29: Non-Incapacitating Injury Crash | BR29: =DP83*-1 -> 0 | BS29: =$AB$6 -> 69135 | BT29: 0 | BU29: =IF(MAX($J$16:$J$29)>=BU$27,$BS29*(1+$BK$2)^BU$27*$BR29,0) -> 0 | BV29: =IF(MAX($J$16:$J$29)>=BV$27,$BS29*(1+$BK$2)^BV$27*$BR29,0) -> 0 | BW29: 0 | BX29: 0 | BY29: 0 | BZ29: 0 | CA29: 0 | CB29: 0 | CC29: 0 | CD29: 0 | CE29: 0 | CF29: 0 | CG29: 0 | CH29: 0 | CI29: 0 | CJ29: 0 | CK29: 0 | CL29: 0 | CM29: 0 | CN29: 0 | CO29: 0 | CP29: 0 | CQ29: 0 | CR29: 0 | CS29: 0 | CT29: 0 | CU29: 0 | CV29: 0 | CW29: 0 | CX29: 0 | CZ29: =IF('Project Information'!$C56="","",'Project Information'!C56) ->  | DA29: =IF('Project Information'!$C56="","",'Project Information'!D56) ->  | DB29: =IF('Project Information'!$C56="","",'Project Information'!K56) ->  | DC29: =IF($CZ29="","",IF('Project Information'!$K$16="Proposed",IFERROR(INDIRECT("'"&$CZ29&"'!"&"$F$565"),"Error"),IFERROR(INDIRECT("'"&$CZ29&"'!"&"$F$568"),"Error"))) ->  | DD29: =IF($CZ29="","",IF('Project Information'!$K$16="Proposed",IFERROR(INDIRECT("'"&$CZ29&"'!"&"$G$565"),"Error"),IFERROR(INDIRECT("'"&$CZ29&"'!"&"$G$568"),"Error"))) ->  | DE29: =IF($CZ29="","",IF('Project Information'!$K$16="Proposed",IFERROR(INDIRECT("'"&$CZ29&"'!"&"$H$565"),"Error"),IFERROR(INDIRECT("'"&$CZ29&"'!"&"$H$568"),"Error"))) ->  | DF29: =IF($CZ29="","",IF('Project Information'!$K$16="Proposed",IFERROR(INDIRECT("'"&$CZ29&"'!"&"$I$565"),"Error"),IFERROR(INDIRECT("'"&$CZ29&"'!"&"$I$568"),"Error"))) ->  | FH29: =SUM(FH25:FH28) -> 3177 | FI29: =SUM(FI25:FI28) -> 21910
B30: Totals | K30: =SUM(K16:K29) -> 3500000 | L30: 0 | M30: 0 | N30: 3500000 | O30: 3500000 | P30: -2.0213 | Q30: 2255680.093 | AB30: 0 | AC30: 0 | AD30: 0 | AE30: 0 | AF30: 0 | AG30: 0 | AH30: 0 | AI30: 0 | AJ30: 0 | AK30: 0 | AL30: 0 | AM30: 0 | AN30: 0 | AO30: 0 | AP30: 0 | AQ30: 0 | AR30: 0 | AS30: 0 | AT30: 0 | AU30: 0 | AV30: 0 | AW30: 0 | AX30: 0 | AY30: 0 | AZ30: 0 | BA30: 0 | BB30: 0 | BC30: 0 | BD30: 0 | BE30: 0 | BF30: 0 | BG30: 0 | BP30: C | BQ30: Possible Injury Crash | BR30: =DQ83*-1 -> 0 | BS30: =$AB$7 -> 46860 | BT30: 0 | BU30: =IF(MAX($J$16:$J$29)>=BU$27,$BS30*(1+$BK$2)^BU$27*$BR30,0) -> 0 | BV30: 0 | BW30: 0 | BX30: 0 | BY30: 0 | BZ30: 0 | CA30: 0 | CB30: 0 | CC30: 0 | CD30: 0 | CE30: 0 | CF30: 0 | CG30: 0 | CH30: 0 | CI30: 0 | CJ30: 0 | CK30: 0 | CL30: 0 | CM30: 0 | CN30: 0 | CO30: 0 | CP30: 0 | CQ30: 0 | CR30: 0 | CS30: 0 | CT30: 0 | CU30: 0 | CV30: 0 | CW30: 0 | CX30: 0 | CZ30: =IF('Project Information'!$C57="","",'Project Information'!C57) ->  | DA30: =IF('Project Information'!$C57="","",'Project Information'!D57) ->  | DB30: =IF('Project Information'!$C57="","",'Project Information'!K57) ->  | DC30: =IF($CZ30="","",IF('Project Information'!$K$16="Proposed",IFERROR(INDIRECT("'"&$CZ30&"'!"&"$F$565"),"Error"),IFERROR(INDIRECT("'"&$CZ30&"'!"&"$F$568"),"Error"))) ->  | DD30: =IF($CZ30="","",IF('Project Information'!$K$16="Proposed",IFERROR(INDIRECT("'"&$CZ30&"'!"&"$G$565"),"Error"),IFERROR(INDIRECT("'"&$CZ30&"'!"&"$G$568"),"Error"))) ->  | DE30: =IF($CZ30="","",IF('Project Information'!$K$16="Proposed",IFERROR(INDIRECT("'"&$CZ30&"'!"&"$H$565"),"Error"),IFERROR(INDIRECT("'"&$CZ30&"'!"&"$H$568"),"Error"))) ->  | DF30: =IF($CZ30="","",IF('Project Information'!$K$16="Proposed",IFERROR(INDIRECT("'"&$CZ30&"'!"&"$I$565"),"Error"),IFERROR(INDIRECT("'"&$CZ30&"'!"&"$I$568"),"Error"))) ->  | FI30: =SUM(FH29:FI29) -> 25087
AB31: 0 | AC31: 0 | AD31: 0 | AE31: 0 | AF31: 0 | AG31: 0 | AH31: 0 | AI31: 0 | AJ31: 0 | AK31: 0 | AL31: 0 | AM31: 0 | AN31: 0 | AO31: 0 | AP31: 0 | AQ31: 0 | AR31: 0 | AS31: 0 | AT31: 0 | AU31: 0 | AV31: 0 | AW31: 0 | AX31: 0 | AY31: 0 | AZ31: 0 | BA31: 0 | BB31: 0 | BC31: 0 | BD31: 0 | BE31: 0 | BF31: 0 | BG31: 0 | BP31: O | BQ31: Property Damage Crash | BR31: =DR83*-1 -> 0 | BS31: =$AB$8 -> 0 | BT31: 0 | BU31: =IF(MAX($J$16:$J$29)>=BU$27,$BS31*(1+$BK$2)^BU$27*$BR31,0) -> 0 | BV31: 0 | BW31: 0 | BX31: 0 | BY31: 0 | BZ31: 0 | CA31: 0 | CB31: 0 | CC31: 0 | CD31: 0 | CE31: 0 | CF31: 0 | CG31: 0 | CH31: 0 | CI31: 0 | CJ31: 0 | CK31: 0 | CL31: 0 | CM31: 0 | CN31: 0 | CO31: 0 | CP31: 0 | CQ31: 0 | CR31: 0 | CS31: 0 | CT31: 0 | CU31: 0 | CV31: 0 | CW31: 0 | CX31: 0 | CZ31: =IF('Project Information'!$C58="","",'Project Information'!C58) ->  | DA31: =IF('Project Information'!$C58="","",'Project Information'!D58) ->  | DB31: =IF('Project Information'!$C58="","",'Project Information'!K58) ->  | DC31: =IF($CZ31="","",IF('Project Information'!$K$16="Proposed",IFERROR(INDIRECT("'"&$CZ31&"'!"&"$F$565"),"Error"),IFERROR(INDIRECT("'"&$CZ31&"'!"&"$F$568"),"Error"))) ->  | DD31: =IF($CZ31="","",IF('Project Information'!$K$16="Proposed",IFERROR(INDIRECT("'"&$CZ31&"'!"&"$G$565"),"Error"),IFERROR(INDIRECT("'"&$CZ31&"'!"&"$G$568"),"Error"))) ->  | DE31: =IF($CZ31="","",IF('Project Information'!$K$16="Proposed",IFERROR(INDIRECT("'"&$CZ31&"'!"&"$H$565"),"Error"),IFERROR(INDIRECT("'"&$CZ31&"'!"&"$H$568"),"Error"))) ->  | DF31: =IF($CZ31="","",IF('Project Information'!$K$16="Proposed",IFERROR(INDIRECT("'"&$CZ31&"'!"&"$I$565"),"Error"),IFERROR(INDIRECT("'"&$CZ31&"'!"&"$I$568"),"Error"))) -> 
AB32: 0 | AC32: 0 | AD32: 0 | AE32: 0 | AF32: 0 | AG32: 0 | AH32: 0 | AI32: 0 | AJ32: 0 | AK32: 0 | AL32: 0 | AM32: 0 | AN32: 0 | AO32: 0 | AP32: 0 | AQ32: 0 | AR32: 0 | AS32: 0 | AT32: 0 | AU32: 0 | AV32: 0 | AW32: 0 | AX32: 0 | AY32: 0 | AZ32: 0 | BA32: 0 | BB32: 0 | BC32: 0 | BD32: 0 | BE32: 0 | BF32: 0 | BG32: 0 | BP32: Total Annual Benefit | BT32: =SUM(BT28:BT31) -> 0 | BU32: 0 | BV32: 0 | BW32: 0 | BX32: 0 | BY32: 0 | BZ32: 0 | CA32: 0 | CB32: 0 | CC32: 0 | CD32: 0 | CE32: 0 | CF32: 0 | CG32: 0 | CH32: 0 | CI32: 0 | CJ32: 0 | CK32: 0 | CL32: 0 | CM32: 0 | CN32: 0 | CO32: 0 | CP32: 0 | CQ32: 0 | CR32: 0 | CS32: 0 | CT32: 0 | CU32: 0 | CV32: 0 | CW32: 0 | CX32: 0 | CZ32: =IF('Project Information'!$C59="","",'Project Information'!C59) ->  | DA32: =IF('Project Information'!$C59="","",'Project Information'!D59) ->  | DB32: =IF('Project Information'!$C59="","",'Project Information'!K59) ->  | DC32: =IF($CZ32="","",IF('Project Information'!$K$16="Proposed",IFERROR(INDIRECT("'"&$CZ32&"'!"&"$F$565"),"Error"),IFERROR(INDIRECT("'"&$CZ32&"'!"&"$F$568"),"Error"))) ->  | DD32: =IF($CZ32="","",IF('Project Information'!$K$16="Proposed",IFERROR(INDIRECT("'"&$CZ32&"'!"&"$G$565"),"Error"),IFERROR(INDIRECT("'"&$CZ32&"'!"&"$G$568"),"Error"))) ->  | DE32: =IF($CZ32="","",IF('Project Information'!$K$16="Proposed",IFERROR(INDIRECT("'"&$CZ32&"'!"&"$H$565"),"Error"),IFERROR(INDIRECT("'"&$CZ32&"'!"&"$H$568"),"Error"))) ->  | DF32: =IF($CZ32="","",IF('Project Information'!$K$16="Proposed",IFERROR(INDIRECT("'"&$CZ32&"'!"&"$I$565"),"Error"),IFERROR(INDIRECT("'"&$CZ32&"'!"&"$I$568"),"Error"))) ->  | FG32: Proportions | FH32: =FH29/$FI$30 -> 0.1266392953 | FI32: =FI29/$FI$30 -> 0.8733607047
B33: Benefit - Cost Calculator | K33: Expected Annual Crash Adjustment | Z33: Total Annual Costs | AC33: =SUM(AC22:AC32) -> -3500000 | AD33: 0 | AE33: 0 | AF33: 0 | AG33: 0 | AH33: 0 | AI33: 0 | AJ33: 0 | AK33: 0 | AL33: 0 | AM33: 0 | AN33: 0 | AO33: 0 | AP33: 0 | AQ33: 0 | AR33: 0 | AS33: 0 | AT33: 0 | AU33: 0 | AV33: 0 | AW33: 0 | AX33: 0 | AY33: 0 | AZ33: 0 | BA33: 0 | BB33: 0 | BC33: 0 | BD33: 0 | BE33: 0 | BF33: 0 | BG33: 0 | BP33: Net Present Value of Safety Benefits | BT33: =BT32*(1+$BK$1)^-BT27 -> 0 | BU33: 0 | BV33: 0 | BW33: 0 | BX33: 0 | BY33: 0 | BZ33: 0 | CA33: 0 | CB33: 0 | CC33: 0 | CD33: 0 | CE33: 0 | CF33: 0 | CG33: 0 | CH33: 0 | CI33: 0 | CJ33: 0 | CK33: 0 | CL33: 0 | CM33: 0 | CN33: 0 | CO33: 0 | CP33: 0 | CQ33: 0 | CR33: 0 | CS33: 0 | CT33: 0 | CU33: 0 | CV33: 0 | CW33: 0 | CX33: 0 | CZ33: =IF('Project Information'!$C60="","",'Project Information'!C60) ->  | DA33: =IF('Project Information'!$C60="","",'Project Information'!D60) ->  | DB33: =IF('Project Information'!$C60="","",'Project Information'!K60) ->  | DC33: =IF($CZ33="","",IF('Project Information'!$K$16="Proposed",IFERROR(INDIRECT("'"&$CZ33&"'!"&"$F$565"),"Error"),IFERROR(INDIRECT("'"&$CZ33&"'!"&"$F$568"),"Error"))) ->  | DD33: =IF($CZ33="","",IF('Project Information'!$K$16="Proposed",IFERROR(INDIRECT("'"&$CZ33&"'!"&"$G$565"),"Error"),IFERROR(INDIRECT("'"&$CZ33&"'!"&"$G$568"),"Error"))) ->  | DE33: =IF($CZ33="","",IF('Project Information'!$K$16="Proposed",IFERROR(INDIRECT("'"&$CZ33&"'!"&"$H$565"),"Error"),IFERROR(INDIRECT("'"&$CZ33&"'!"&"$H$568"),"Error"))) ->  | DF33: =IF($CZ33="","",IF('Project Information'!$K$16="Proposed",IFERROR(INDIRECT("'"&$CZ33&"'!"&"$I$565"),"Error"),IFERROR(INDIRECT("'"&$CZ33&"'!"&"$I$568"),"Error"))) -> 
BO34: 4 | BP34: =B23 ->  | BT34: Year | CZ34: =IF('Project Information'!$C61="","",'Project Information'!C61) ->  | DA34: =IF('Project Information'!$C61="","",'Project Information'!D61) ->  | DB34: =IF('Project Information'!$C61="","",'Project Information'!K61) ->  | DC34: =IF($CZ34="","",IF('Project Information'!$K$16="Proposed",IFERROR(INDIRECT("'"&$CZ34&"'!"&"$F$565"),"Error"),IFERROR(INDIRECT("'"&$CZ34&"'!"&"$F$568"),"Error"))) ->  | DD34: =IF($CZ34="","",IF('Project Information'!$K$16="Proposed",IFERROR(INDIRECT("'"&$CZ34&"'!"&"$G$565"),"Error"),IFERROR(INDIRECT("'"&$CZ34&"'!"&"$G$568"),"Error"))) ->  | DE34: =IF($CZ34="","",IF('Project Information'!$K$16="Proposed",IFERROR(INDIRECT("'"&$CZ34&"'!"&"$H$565"),"Error"),IFERROR(INDIRECT("'"&$CZ34&"'!"&"$H$568"),"Error"))) ->  | DF34: =IF($CZ34="","",IF('Project Information'!$K$16="Proposed",IFERROR(INDIRECT("'"&$CZ34&"'!"&"$I$565"),"Error"),IFERROR(INDIRECT("'"&$CZ34&"'!"&"$I$568"),"Error"))) -> 
F35: Net Present Value of Project | G35: =N30 -> 3500000 | K35: Number of Fatal & Incapacitating Injury Crashes | M35: =-AA5 -> -0.2083 | BP35: Code | BQ35: Severity | BR35: Avg Est Red | BS35: PV $ | BT35: 0 | BU35: 1 | BV35: 2 | BW35: 3 | BX35: 4 | BY35: 5 | BZ35: 6 | CA35: 7 | CB35: 8 | CC35: 9 | CD35: 10 | CE35: 11 | CF35: 12 | CG35: 13 | CH35: 14 | CI35: 15 | CJ35: 16 | CK35: 17 | CL35: 18 | CM35: 19 | CN35: 20 | CO35: 21 | CP35: 22 | CQ35: 23 | CR35: 24 | CS35: 25 | CT35: 26 | CU35: 27 | CV35: 28 | CW35: 29 | CX35: 30 | CZ35: =IF('Project Information'!$C62="","",'Project Information'!C62) ->  | DA35: =IF('Project Information'!$C62="","",'Project Information'!D62) ->  | DB35: =IF('Project Information'!$C62="","",'Project Information'!K62) ->  | DC35: =IF($CZ35="","",IF('Project Information'!$K$16="Proposed",IFERROR(INDIRECT("'"&$CZ35&"'!"&"$F$565"),"Error"),IFERROR(INDIRECT("'"&$CZ35&"'!"&"$F$568"),"Error"))) ->  | DD35: =IF($CZ35="","",IF('Project Information'!$K$16="Proposed",IFERROR(INDIRECT("'"&$CZ35&"'!"&"$G$565"),"Error"),IFERROR(INDIRECT("'"&$CZ35&"'!"&"$G$568"),"Error"))) ->  | DE35: =IF($CZ35="","",IF('Project Information'!$K$16="Proposed",IFERROR(INDIRECT("'"&$CZ35&"'!"&"$H$565"),"Error"),IFERROR(INDIRECT("'"&$CZ35&"'!"&"$H$568"),"Error"))) ->  | DF35: =IF($CZ35="","",IF('Project Information'!$K$16="Proposed",IFERROR(INDIRECT("'"&$CZ35&"'!"&"$I$565"),"Error"),IFERROR(INDIRECT("'"&$CZ35&"'!"&"$I$568"),"Error"))) -> 
AB36: Countermeasure Annual Benefit-Cost Amount | BP36: KA | BQ36: Fatal &Incapacitating Injury Crash | BR36: =DS83*-1 -> 0 | BS36: =$AB$5 -> 484544 | BT36: 0 | BU36: =IF(MAX($J$16:$J$29)>=BU$35,$BS36*(1+$BK$2)^BU$35*$BR36,0) -> 0 | BV36: =IF(MAX($J$16:$J$29)>=BV$35,$BS36*(1+$BK$2)^BV$35*$BR36,0) -> 0 | BW36: 0 | BX36: 0 | BY36: 0 | BZ36: 0 | CA36: 0 | CB36: 0 | CC36: 0 | CD36: 0 | CE36: 0 | CF36: 0 | CG36: 0 | CH36: 0 | CI36: 0 | CJ36: 0 | CK36: 0 | CL36: 0 | CM36: 0 | CN36: 0 | CO36: 0 | CP36: 0 | CQ36: 0 | CR36: 0 | CS36: 0 | CT36: 0 | CU36: 0 | CV36: 0 | CW36: 0 | CX36: 0 | CZ36: =IF('Project Information'!$C63="","",'Project Information'!C63) ->  | DA36: =IF('Project Information'!$C63="","",'Project Information'!D63) ->  | DB36: =IF('Project Information'!$C63="","",'Project Information'!K63) ->  | DC36: =IF($CZ36="","",IF('Project Information'!$K$16="Proposed",IFERROR(INDIRECT("'"&$CZ36&"'!"&"$F$565"),"Error"),IFERROR(INDIRECT("'"&$CZ36&"'!"&"$F$568"),"Error"))) ->  | DD36: =IF($CZ36="","",IF('Project Information'!$K$16="Proposed",IFERROR(INDIRECT("'"&$CZ36&"'!"&"$G$565"),"Error"),IFERROR(INDIRECT("'"&$CZ36&"'!"&"$G$568"),"Error"))) ->  | DE36: =IF($CZ36="","",IF('Project Information'!$K$16="Proposed",IFERROR(INDIRECT("'"&$CZ36&"'!"&"$H$565"),"Error"),IFERROR(INDIRECT("'"&$CZ36&"'!"&"$H$568"),"Error"))) ->  | DF36: =IF($CZ36="","",IF('Project Information'!$K$16="Proposed",IFERROR(INDIRECT("'"&$CZ36&"'!"&"$I$565"),"Error"),IFERROR(INDIRECT("'"&$CZ36&"'!"&"$I$568"),"Error"))) -> 
F37: Net Present Value of Safety Benefits | G37: =Q30 -> 2255680.093 | AB37: Countermeasure | AC37: =AC21 -> 0 | AD37: 1 | AE37: 2 | AF37: 3 | AG37: 4 | AH37: 5 | AI37: 6 | AJ37: 7 | AK37: 8 | AL37: 9 | AM37: 10 | AN37: 11 | AO37: 12 | AP37: 13 | AQ37: 14 | AR37: 15 | AS37: 16 | AT37: 17 | AU37: 18 | AV37: 19 | AW37: 20 | AX37: X | AY37: X | AZ37: X | BA37: X | BB37: X | BC37: X | BD37: X | BE37: X | BF37: X | BG37: X | BP37: B | BQ37: Non-Incapacitating Injury Crash | BR37: =DT83*-1 -> 0 | BS37: =$AB$6 -> 69135 | BT37: 0 | BU37: =IF(MAX($J$16:$J$29)>=BU$35,$BS37*(1+$BK$2)^BU$35*$BR37,0) -> 0 | BV37: =IF(MAX($J$16:$J$29)>=BV$35,$BS37*(1+$BK$2)^BV$35*$BR37,0) -> 0 | BW37: 0 | BX37: 0 | BY37: 0 | BZ37: 0 | CA37: 0 | CB37: 0 | CC37: 0 | CD37: 0 | CE37: 0 | CF37: 0 | CG37: 0 | CH37: 0 | CI37: 0 | CJ37: 0 | CK37: 0 | CL37: 0 | CM37: 0 | CN37: 0 | CO37: 0 | CP37: 0 | CQ37: 0 | CR37: 0 | CS37: 0 | CT37: 0 | CU37: 0 | CV37: 0 | CW37: 0 | CX37: 0 | CZ37: =IF('Project Information'!$C64="","",'Project Information'!C64) ->  | DA37: =IF('Project Information'!$C64="","",'Project Information'!D64) ->  | DB37: =IF('Project Information'!$C64="","",'Project Information'!K64) ->  | DC37: =IF($CZ37="","",IF('Project Information'!$K$16="Proposed",IFERROR(INDIRECT("'"&$CZ37&"'!"&"$F$565"),"Error"),IFERROR(INDIRECT("'"&$CZ37&"'!"&"$F$568"),"Error"))) ->  | DD37: =IF($CZ37="","",IF('Project Information'!$K$16="Proposed",IFERROR(INDIRECT("'"&$CZ37&"'!"&"$G$565"),"Error"),IFERROR(INDIRECT("'"&$CZ37&"'!"&"$G$568"),"Error"))) ->  | DE37: =IF($CZ37="","",IF('Project Information'!$K$16="Proposed",IFERROR(INDIRECT("'"&$CZ37&"'!"&"$H$565"),"Error"),IFERROR(INDIRECT("'"&$CZ37&"'!"&"$H$568"),"Error"))) ->  | DF37: =IF($CZ37="","",IF('Project Information'!$K$16="Proposed",IFERROR(INDIRECT("'"&$CZ37&"'!"&"$I$565"),"Error"),IFERROR(INDIRECT("'"&$CZ37&"'!"&"$I$568"),"Error"))) -> 
L38: Number of Injury Crashes | M38: =-SUM(AA5:AA7) -> -1.0018 | AB38: =B16 -> Site Characteristic Improvements (Please add description about improvements i.e. Lane widening) | AC38: =AC22+BT8 -> -3500000 | AD38: 150658.2609 | AE38: 152405.8967 | AF38: 154173.8051 | AG38: 155962.2213 | AH38: 157771.3831 | AI38: 159601.5311 | AJ38: 161452.9089 | AK38: 163325.7626 | AL38: 165220.3414 | AM38: 167136.8974 | AN38: 169075.6854 | AO38: 171036.9634 | AP38: 173020.9921 | AQ38: 175028.0357 | AR38: 177058.3609 | AS38: 179112.2378 | AT38: 181189.9398 | AU38: 183291.7431 | AV38: 185417.9273 | AW38: 187568.7753 | AX38: 0 | AY38: 0 | AZ38: 0 | BA38: 0 | BB38: 0 | BC38: 0 | BD38: 0 | BE38: 0 | BF38: 0 | BG38: 0 | BP38: C | BQ38: Possible Injury Crash | BR38: =DU83*-1 -> 0 | BS38: =$AB$7 -> 46860 | BT38: 0 | BU38: =IF(MAX($J$16:$J$29)>=BU$35,$BS38*(1+$BK$2)^BU$35*$BR38,0) -> 0 | BV38: 0 | BW38: 0 | BX38: 0 | BY38: 0 | BZ38: 0 | CA38: 0 | CB38: 0 | CC38: 0 | CD38: 0 | CE38: 0 | CF38: 0 | CG38: 0 | CH38: 0 | CI38: 0 | CJ38: 0 | CK38: 0 | CL38: 0 | CM38: 0 | CN38: 0 | CO38: 0 | CP38: 0 | CQ38: 0 | CR38: 0 | CS38: 0 | CT38: 0 | CU38: 0 | CV38: 0 | CW38: 0 | CX38: 0 | CZ38: =IF('Project Information'!$C65="","",'Project Information'!C65) ->  | DA38: =IF('Project Information'!$C65="","",'Project Information'!D65) ->  | DB38: =IF('Project Information'!$C65="","",'Project Information'!K65) ->  | DC38: =IF($CZ38="","",IF('Project Information'!$K$16="Proposed",IFERROR(INDIRECT("'"&$CZ38&"'!"&"$F$565"),"Error"),IFERROR(INDIRECT("'"&$CZ38&"'!"&"$F$568"),"Error"))) ->  | DD38: =IF($CZ38="","",IF('Project Information'!$K$16="Proposed",IFERROR(INDIRECT("'"&$CZ38&"'!"&"$G$565"),"Error"),IFERROR(INDIRECT("'"&$CZ38&"'!"&"$G$568"),"Error"))) ->  | DE38: =IF($CZ38="","",IF('Project Information'!$K$16="Proposed",IFERROR(INDIRECT("'"&$CZ38&"'!"&"$H$565"),"Error"),IFERROR(INDIRECT("'"&$CZ38&"'!"&"$H$568"),"Error"))) ->  | DF38: =IF($CZ38="","",IF('Project Information'!$K$16="Proposed",IFERROR(INDIRECT("'"&$CZ38&"'!"&"$I$565"),"Error"),IFERROR(INDIRECT("'"&$CZ38&"'!"&"$I$568"),"Error"))) -> 
F39: Net Benefit | G39: =G37-G35 -> -1244319.907 | AB39: =B20 ->  | AC39: =AC23+BT16 -> 0 | AD39: 0 | AE39: 0 | AF39: 0 | AG39: 0 | AH39: 0 | AI39: 0 | AJ39: 0 | AK39: 0 | AL39: 0 | AM39: 0 | AN39: 0 | AO39: 0 | AP39: 0 | AQ39: 0 | AR39: 0 | AS39: 0 | AT39: 0 | AU39: 0 | AV39: 0 | AW39: 0 | AX39: 0 | AY39: 0 | AZ39: 0 | BA39: 0 | BB39: 0 | BC39: 0 | BD39: 0 | BE39: 0 | BF39: 0 | BG39: 0 | BP39: O | BQ39: Property Damage Crash | BR39: =DV83*-1 -> 0 | BS39: =$AB$8 -> 0 | BT39: 0 | BU39: =IF(MAX($J$16:$J$29)>=BU$35,$BS39*(1+$BK$2)^BU$35*$BR39,0) -> 0 | BV39: 0 | BW39: 0 | BX39: 0 | BY39: 0 | BZ39: 0 | CA39: 0 | CB39: 0 | CC39: 0 | CD39: 0 | CE39: 0 | CF39: 0 | CG39: 0 | CH39: 0 | CI39: 0 | CJ39: 0 | CK39: 0 | CL39: 0 | CM39: 0 | CN39: 0 | CO39: 0 | CP39: 0 | CQ39: 0 | CR39: 0 | CS39: 0 | CT39: 0 | CU39: 0 | CV39: 0 | CW39: 0 | CX39: 0 | CZ39: =IF('Project Information'!$C66="","",'Project Information'!C66) ->  | DA39: =IF('Project Information'!$C66="","",'Project Information'!D66) ->  | DB39: =IF('Project Information'!$C66="","",'Project Information'!K66) ->  | DC39: =IF($CZ39="","",IF('Project Information'!$K$16="Proposed",IFERROR(INDIRECT("'"&$CZ39&"'!"&"$F$565"),"Error"),IFERROR(INDIRECT("'"&$CZ39&"'!"&"$F$568"),"Error"))) ->  | DD39: =IF($CZ39="","",IF('Project Information'!$K$16="Proposed",IFERROR(INDIRECT("'"&$CZ39&"'!"&"$G$565"),"Error"),IFERROR(INDIRECT("'"&$CZ39&"'!"&"$G$568"),"Error"))) ->  | DE39: =IF($CZ39="","",IF('Project Information'!$K$16="Proposed",IFERROR(INDIRECT("'"&$CZ39&"'!"&"$H$565"),"Error"),IFERROR(INDIRECT("'"&$CZ39&"'!"&"$H$568"),"Error"))) ->  | DF39: =IF($CZ39="","",IF('Project Information'!$K$16="Proposed",IFERROR(INDIRECT("'"&$CZ39&"'!"&"$I$565"),"Error"),IFERROR(INDIRECT("'"&$CZ39&"'!"&"$I$568"),"Error"))) -> 
L40: Number of Total Crashes | M40: =-SUM(AA5:AA8) -> -2.0213 | AC40: =AC24+BT24 -> 0 | AD40: 0 | AE40: 0 | AF40: 0 | AG40: 0 | AH40: 0 | AI40: 0 | AJ40: 0 | AK40: 0 | AL40: 0 | AM40: 0 | AN40: 0 | AO40: 0 | AP40: 0 | AQ40: 0 | AR40: 0 | AS40: 0 | AT40: 0 | AU40: 0 | AV40: 0 | AW40: 0 | AX40: 0 | AY40: 0 | AZ40: 0 | BA40: 0 | BB40: 0 | BC40: 0 | BD40: 0 | BE40: 0 | BF40: 0 | BG40: 0 | BP40: Total Annual Benefit | BT40: =SUM(BT36:BT39) -> 0 | BU40: 0 | BV40: 0 | BW40: 0 | BX40: 0 | BY40: 0 | BZ40: 0 | CA40: 0 | CB40: 0 | CC40: 0 | CD40: 0 | CE40: 0 | CF40: 0 | CG40: 0 | CH40: 0 | CI40: 0 | CJ40: 0 | CK40: 0 | CL40: 0 | CM40: 0 | CN40: 0 | CO40: 0 | CP40: 0 | CQ40: 0 | CR40: 0 | CS40: 0 | CT40: 0 | CU40: 0 | CV40: 0 | CW40: 0 | CX40: 0 | CZ40: =IF('Project Information'!$C67="","",'Project Information'!C67) ->  | DA40: =IF('Project Information'!$C67="","",'Project Information'!D67) ->  | DB40: =IF('Project Information'!$C67="","",'Project Information'!K67) ->  | DC40: =IF($CZ40="","",IF('Project Information'!$K$16="Proposed",IFERROR(INDIRECT("'"&$CZ40&"'!"&"$F$565"),"Error"),IFERROR(INDIRECT("'"&$CZ40&"'!"&"$F$568"),"Error"))) ->  | DD40: =IF($CZ40="","",IF('Project Information'!$K$16="Proposed",IFERROR(INDIRECT("'"&$CZ40&"'!"&"$G$565"),"Error"),IFERROR(INDIRECT("'"&$CZ40&"'!"&"$G$568"),"Error"))) ->  | DE40: =IF($CZ40="","",IF('Project Information'!$K$16="Proposed",IFERROR(INDIRECT("'"&$CZ40&"'!"&"$H$565"),"Error"),IFERROR(INDIRECT("'"&$CZ40&"'!"&"$H$568"),"Error"))) ->  | DF40: =IF($CZ40="","",IF('Project Information'!$K$16="Proposed",IFERROR(INDIRECT("'"&$CZ40&"'!"&"$I$565"),"Error"),IFERROR(INDIRECT("'"&$CZ40&"'!"&"$I$568"),"Error"))) -> 
F41: Benefit / Cost Ratio | G41: =IFERROR(G37/G35,"Unable to Calculate") -> 0.6444800267 | AC41: =AC25+BT32 -> 0 | AD41: 0 | AE41: 0 | AF41: 0 | AG41: 0 | AH41: 0 | AI41: 0 | AJ41: 0 | AK41: 0 | AL41: 0 | AM41: 0 | AN41: 0 | AO41: 0 | AP41: 0 | AQ41: 0 | AR41: 0 | AS41: 0 | AT41: 0 | AU41: 0 | AV41: 0 | AW41: 0 | AX41: 0 | AY41: 0 | AZ41: 0 | BA41: 0 | BB41: 0 | BC41: 0 | BD41: 0 | BE41: 0 | BF41: 0 | BG41: 0 | BP41: Net Present Value of Safety Benefits | BT41: =BT40*(1+$BK$1)^-BT35 -> 0 | BU41: 0 | BV41: 0 | BW41: 0 | BX41: 0 | BY41: 0 | BZ41: 0 | CA41: 0 | CB41: 0 | CC41: 0 | CD41: 0 | CE41: 0 | CF41: 0 | CG41: 0 | CH41: 0 | CI41: 0 | CJ41: 0 | CK41: 0 | CL41: 0 | CM41: 0 | CN41: 0 | CO41: 0 | CP41: 0 | CQ41: 0 | CR41: 0 | CS41: 0 | CT41: 0 | CU41: 0 | CV41: 0 | CW41: 0 | CX41: 0 | CZ41: =IF('Project Information'!$C68="","",'Project Information'!C68) ->  | DA41: =IF('Project Information'!$C68="","",'Project Information'!D68) ->  | DB41: =IF('Project Information'!$C68="","",'Project Information'!K68) ->  | DC41: =IF($CZ41="","",IF('Project Information'!$K$16="Proposed",IFERROR(INDIRECT("'"&$CZ41&"'!"&"$F$565"),"Error"),IFERROR(INDIRECT("'"&$CZ41&"'!"&"$F$568"),"Error"))) ->  | DD41: =IF($CZ41="","",IF('Project Information'!$K$16="Proposed",IFERROR(INDIRECT("'"&$CZ41&"'!"&"$G$565"),"Error"),IFERROR(INDIRECT("'"&$CZ41&"'!"&"$G$568"),"Error"))) ->  | DE41: =IF($CZ41="","",IF('Project Information'!$K$16="Proposed",IFERROR(INDIRECT("'"&$CZ41&"'!"&"$H$565"),"Error"),IFERROR(INDIRECT("'"&$CZ41&"'!"&"$H$568"),"Error"))) ->  | DF41: =IF($CZ41="","",IF('Project Information'!$K$16="Proposed",IFERROR(INDIRECT("'"&$CZ41&"'!"&"$I$565"),"Error"),IFERROR(INDIRECT("'"&$CZ41&"'!"&"$I$568"),"Error"))) -> 
AC42: =AC26+BT40 -> 0 | AD42: 0 | AE42: 0 | AF42: 0 | AG42: 0 | AH42: 0 | AI42: 0 | AJ42: 0 | AK42: 0 | AL42: 0 | AM42: 0 | AN42: 0 | AO42: 0 | AP42: 0 | AQ42: 0 | AR42: 0 | AS42: 0 | AT42: 0 | AU42: 0 | AV42: 0 | AW42: 0 | AX42: 0 | AY42: 0 | AZ42: 0 | BA42: 0 | BB42: 0 | BC42: 0 | BD42: 0 | BE42: 0 | BF42: 0 | BG42: 0 | BO42: 5 | BP42: =B24 ->  | BT42: Year | CZ42: =IF('Project Information'!$C69="","",'Project Information'!C69) ->  | DA42: =IF('Project Information'!$C69="","",'Project Information'!D69) ->  | DB42: =IF('Project Information'!$C69="","",'Project Information'!K69) ->  | DC42: =IF($CZ42="","",IF('Project Information'!$K$16="Proposed",IFERROR(INDIRECT("'"&$CZ42&"'!"&"$F$565"),"Error"),IFERROR(INDIRECT("'"&$CZ42&"'!"&"$F$568"),"Error"))) ->  | DD42: =IF($CZ42="","",IF('Project Information'!$K$16="Proposed",IFERROR(INDIRECT("'"&$CZ42&"'!"&"$G$565"),"Error"),IFERROR(INDIRECT("'"&$CZ42&"'!"&"$G$568"),"Error"))) ->  | DE42: =IF($CZ42="","",IF('Project Information'!$K$16="Proposed",IFERROR(INDIRECT("'"&$CZ42&"'!"&"$H$565"),"Error"),IFERROR(INDIRECT("'"&$CZ42&"'!"&"$H$568"),"Error"))) ->  | DF42: =IF($CZ42="","",IF('Project Information'!$K$16="Proposed",IFERROR(INDIRECT("'"&$CZ42&"'!"&"$I$565"),"Error"),IFERROR(INDIRECT("'"&$CZ42&"'!"&"$I$568"),"Error"))) -> 
B43: Safety Benefits and Project Costs Combined Cash Flows By Countermeasure Per Year | AC43: =AC27+BT48 -> 0 | AD43: 0 | AE43: 0 | AF43: 0 | AG43: 0 | AH43: 0 | AI43: 0 | AJ43: 0 | AK43: 0 | AL43: 0 | AM43: 0 | AN43: 0 | AO43: 0 | AP43: 0 | AQ43: 0 | AR43: 0 | AS43: 0 | AT43: 0 | AU43: 0 | AV43: 0 | AW43: 0 | AX43: 0 | AY43: 0 | AZ43: 0 | BA43: 0 | BB43: 0 | BC43: 0 | BD43: 0 | BE43: 0 | BF43: 0 | BG43: 0 | BP43: Code | BQ43: Severity | BR43: Avg Est Red | BS43: PV $ | BT43: 0 | BU43: 1 | BV43: 2 | BW43: 3 | BX43: 4 | BY43: 5 | BZ43: 6 | CA43: 7 | CB43: 8 | CC43: 9 | CD43: 10 | CE43: 11 | CF43: 12 | CG43: 13 | CH43: 14 | CI43: 15 | CJ43: 16 | CK43: 17 | CL43: 18 | CM43: 19 | CN43: 20 | CO43: 21 | CP43: 22 | CQ43: 23 | CR43: 24 | CS43: 25 | CT43: 26 | CU43: 27 | CV43: 28 | CW43: 29 | CX43: 30 | CZ43: =IF('Project Information'!$C70="","",'Project Information'!C70) ->  | DA43: =IF('Project Information'!$C70="","",'Project Information'!D70) ->  | DB43: =IF('Project Information'!$C70="","",'Project Information'!K70) ->  | DC43: =IF($CZ43="","",IF('Project Information'!$K$16="Proposed",IFERROR(INDIRECT("'"&$CZ43&"'!"&"$F$565"),"Error"),IFERROR(INDIRECT("'"&$CZ43&"'!"&"$F$568"),"Error"))) ->  | DD43: =IF($CZ43="","",IF('Project Information'!$K$16="Proposed",IFERROR(INDIRECT("'"&$CZ43&"'!"&"$G$565"),"Error"),IFERROR(INDIRECT("'"&$CZ43&"'!"&"$G$568"),"Error"))) ->  | DE43: =IF($CZ43="","",IF('Project Information'!$K$16="Proposed",IFERROR(INDIRECT("'"&$CZ43&"'!"&"$H$565"),"Error"),IFERROR(INDIRECT("'"&$CZ43&"'!"&"$H$568"),"Error"))) ->  | DF43: =IF($CZ43="","",IF('Project Information'!$K$16="Proposed",IFERROR(INDIRECT("'"&$CZ43&"'!"&"$I$565"),"Error"),IFERROR(INDIRECT("'"&$CZ43&"'!"&"$I$568"),"Error"))) -> 
AC44: =AC28+BT56 -> 0 | AD44: 0 | AE44: 0 | AF44: 0 | AG44: 0 | AH44: 0 | AI44: 0 | AJ44: 0 | AK44: 0 | AL44: 0 | AM44: 0 | AN44: 0 | AO44: 0 | AP44: 0 | AQ44: 0 | AR44: 0 | AS44: 0 | AT44: 0 | AU44: 0 | AV44: 0 | AW44: 0 | AX44: 0 | AY44: 0 | AZ44: 0 | BA44: 0 | BB44: 0 | BC44: 0 | BD44: 0 | BE44: 0 | BF44: 0 | BG44: 0 | BP44: KA | BQ44: Fatal &Incapacitating Injury Crash | BR44: =DW83*-1 -> 0 | BS44: =$AB$5 -> 484544 | BT44: 0 | BU44: =IF(MAX($J$16:$J$29)>=BU$43,$BS44*(1+$BK$2)^BU$43*$BR44,0) -> 0 | BV44: =IF(MAX($J$16:$J$29)>=BV$43,$BS44*(1+$BK$2)^BV$43*$BR44,0) -> 0 | BW44: 0 | BX44: 0 | BY44: 0 | BZ44: 0 | CA44: 0 | CB44: 0 | CC44: 0 | CD44: 0 | CE44: 0 | CF44: 0 | CG44: 0 | CH44: 0 | CI44: 0 | CJ44: 0 | CK44: 0 | CL44: 0 | CM44: 0 | CN44: 0 | CO44: 0 | CP44: 0 | CQ44: 0 | CR44: 0 | CS44: 0 | CT44: 0 | CU44: 0 | CV44: 0 | CW44: 0 | CX44: 0 | CZ44: =IF('Project Information'!$C71="","",'Project Information'!C71) ->  | DA44: =IF('Project Information'!$C71="","",'Project Information'!D71) ->  | DB44: =IF('Project Information'!$C71="","",'Project Information'!K71) ->  | DC44: =IF($CZ44="","",IF('Project Information'!$K$16="Proposed",IFERROR(INDIRECT("'"&$CZ44&"'!"&"$F$565"),"Error"),IFERROR(INDIRECT("'"&$CZ44&"'!"&"$F$568"),"Error"))) ->  | DD44: =IF($CZ44="","",IF('Project Information'!$K$16="Proposed",IFERROR(INDIRECT("'"&$CZ44&"'!"&"$G$565"),"Error"),IFERROR(INDIRECT("'"&$CZ44&"'!"&"$G$568"),"Error"))) ->  | DE44: =IF($CZ44="","",IF('Project Information'!$K$16="Proposed",IFERROR(INDIRECT("'"&$CZ44&"'!"&"$H$565"),"Error"),IFERROR(INDIRECT("'"&$CZ44&"'!"&"$H$568"),"Error"))) ->  | DF44: =IF($CZ44="","",IF('Project Information'!$K$16="Proposed",IFERROR(INDIRECT("'"&$CZ44&"'!"&"$I$565"),"Error"),IFERROR(INDIRECT("'"&$CZ44&"'!"&"$I$568"),"Error"))) -> 
AC45: =AC29+BT64 -> 0 | AD45: 0 | AE45: 0 | AF45: 0 | AG45: 0 | AH45: 0 | AI45: 0 | AJ45: 0 | AK45: 0 | AL45: 0 | AM45: 0 | AN45: 0 | AO45: 0 | AP45: 0 | AQ45: 0 | AR45: 0 | AS45: 0 | AT45: 0 | AU45: 0 | AV45: 0 | AW45: 0 | AX45: 0 | AY45: 0 | AZ45: 0 | BA45: 0 | BB45: 0 | BC45: 0 | BD45: 0 | BE45: 0 | BF45: 0 | BG45: 0 | BP45: B | BQ45: Non-Incapacitating Injury Crash | BR45: =DX83*-1 -> 0 | BS45: =$AB$6 -> 69135 | BT45: 0 | BU45: =IF(MAX($J$16:$J$29)>=BU$43,$BS45*(1+$BK$2)^BU$43*$BR45,0) -> 0 | BV45: =IF(MAX($J$16:$J$29)>=BV$43,$BS45*(1+$BK$2)^BV$43*$BR45,0) -> 0 | BW45: 0 | BX45: 0 | BY45: 0 | BZ45: 0 | CA45: 0 | CB45: 0 | CC45: 0 | CD45: 0 | CE45: 0 | CF45: 0 | CG45: 0 | CH45: 0 | CI45: 0 | CJ45: 0 | CK45: 0 | CL45: 0 | CM45: 0 | CN45: 0 | CO45: 0 | CP45: 0 | CQ45: 0 | CR45: 0 | CS45: 0 | CT45: 0 | CU45: 0 | CV45: 0 | CW45: 0 | CX45: 0 | CZ45: =IF('Project Information'!$C72="","",'Project Information'!C72) ->  | DA45: =IF('Project Information'!$C72="","",'Project Information'!D72) ->  | DB45: =IF('Project Information'!$C72="","",'Project Information'!K72) ->  | DC45: =IF($CZ45="","",IF('Project Information'!$K$16="Proposed",IFERROR(INDIRECT("'"&$CZ45&"'!"&"$F$565"),"Error"),IFERROR(INDIRECT("'"&$CZ45&"'!"&"$F$568"),"Error"))) ->  | DD45: =IF($CZ45="","",IF('Project Information'!$K$16="Proposed",IFERROR(INDIRECT("'"&$CZ45&"'!"&"$G$565"),"Error"),IFERROR(INDIRECT("'"&$CZ45&"'!"&"$G$568"),"Error"))) ->  | DE45: =IF($CZ45="","",IF('Project Information'!$K$16="Proposed",IFERROR(INDIRECT("'"&$CZ45&"'!"&"$H$565"),"Error"),IFERROR(INDIRECT("'"&$CZ45&"'!"&"$H$568"),"Error"))) ->  | DF45: =IF($CZ45="","",IF('Project Information'!$K$16="Proposed",IFERROR(INDIRECT("'"&$CZ45&"'!"&"$I$565"),"Error"),IFERROR(INDIRECT("'"&$CZ45&"'!"&"$I$568"),"Error"))) -> 
AC46: =AC30+BT72 -> 0 | AD46: 0 | AE46: 0 | AF46: 0 | AG46: 0 | AH46: 0 | AI46: 0 | AJ46: 0 | AK46: 0 | AL46: 0 | AM46: 0 | AN46: 0 | AO46: 0 | AP46: 0 | AQ46: 0 | AR46: 0 | AS46: 0 | AT46: 0 | AU46: 0 | AV46: 0 | AW46: 0 | AX46: 0 | AY46: 0 | AZ46: 0 | BA46: 0 | BB46: 0 | BC46: 0 | BD46: 0 | BE46: 0 | BF46: 0 | BG46: 0 | BP46: C | BQ46: Possible Injury Crash | BR46: =DY83*-1 -> 0 | BS46: =$AB$7 -> 46860 | BT46: 0 | BU46: =IF(MAX($J$16:$J$29)>=BU$43,$BS46*(1+$BK$2)^BU$43*$BR46,0) -> 0 | BV46: 0 | BW46: 0 | BX46: 0 | BY46: 0 | BZ46: 0 | CA46: 0 | CB46: 0 | CC46: 0 | CD46: 0 | CE46: 0 | CF46: 0 | CG46: 0 | CH46: 0 | CI46: 0 | CJ46: 0 | CK46: 0 | CL46: 0 | CM46: 0 | CN46: 0 | CO46: 0 | CP46: 0 | CQ46: 0 | CR46: 0 | CS46: 0 | CT46: 0 | CU46: 0 | CV46: 0 | CW46: 0 | CX46: 0 | CZ46: =IF('Project Information'!$C73="","",'Project Information'!C73) ->  | DA46: =IF('Project Information'!$C73="","",'Project Information'!D73) ->  | DB46: =IF('Project Information'!$C73="","",'Project Information'!K73) ->  | DC46: =IF($CZ46="","",IF('Project Information'!$K$16="Proposed",IFERROR(INDIRECT("'"&$CZ46&"'!"&"$F$565"),"Error"),IFERROR(INDIRECT("'"&$CZ46&"'!"&"$F$568"),"Error"))) ->  | DD46: =IF($CZ46="","",IF('Project Information'!$K$16="Proposed",IFERROR(INDIRECT("'"&$CZ46&"'!"&"$G$565"),"Error"),IFERROR(INDIRECT("'"&$CZ46&"'!"&"$G$568"),"Error"))) ->  | DE46: =IF($CZ46="","",IF('Project Information'!$K$16="Proposed",IFERROR(INDIRECT("'"&$CZ46&"'!"&"$H$565"),"Error"),IFERROR(INDIRECT("'"&$CZ46&"'!"&"$H$568"),"Error"))) ->  | DF46: =IF($CZ46="","",IF('Project Information'!$K$16="Proposed",IFERROR(INDIRECT("'"&$CZ46&"'!"&"$I$565"),"Error"),IFERROR(INDIRECT("'"&$CZ46&"'!"&"$I$568"),"Error"))) -> 
AC47: =AC31+BT80 -> 0 | AD47: 0 | AE47: 0 | AF47: 0 | AG47: 0 | AH47: 0 | AI47: 0 | AJ47: 0 | AK47: 0 | AL47: 0 | AM47: 0 | AN47: 0 | AO47: 0 | AP47: 0 | AQ47: 0 | AR47: 0 | AS47: 0 | AT47: 0 | AU47: 0 | AV47: 0 | AW47: 0 | AX47: 0 | AY47: 0 | AZ47: 0 | BA47: 0 | BB47: 0 | BC47: 0 | BD47: 0 | BE47: 0 | BF47: 0 | BG47: 0 | BP47: O | BQ47: Property Damage Crash | BR47: =DZ83*-1 -> 0 | BS47: =$AB$8 -> 0 | BT47: 0 | BU47: =IF(MAX($J$16:$J$29)>=BU$43,$BS47*(1+$BK$2)^BU$43*$BR47,0) -> 0 | BV47: 0 | BW47: 0 | BX47: 0 | BY47: 0 | BZ47: 0 | CA47: 0 | CB47: 0 | CC47: 0 | CD47: 0 | CE47: 0 | CF47: 0 | CG47: 0 | CH47: 0 | CI47: 0 | CJ47: 0 | CK47: 0 | CL47: 0 | CM47: 0 | CN47: 0 | CO47: 0 | CP47: 0 | CQ47: 0 | CR47: 0 | CS47: 0 | CT47: 0 | CU47: 0 | CV47: 0 | CW47: 0 | CX47: 0 | CZ47: =IF('Project Information'!$C74="","",'Project Information'!C74) ->  | DA47: =IF('Project Information'!$C74="","",'Project Information'!D74) ->  | DB47: =IF('Project Information'!$C74="","",'Project Information'!K74) ->  | DC47: =IF($CZ47="","",IF('Project Information'!$K$16="Proposed",IFERROR(INDIRECT("'"&$CZ47&"'!"&"$F$565"),"Error"),IFERROR(INDIRECT("'"&$CZ47&"'!"&"$F$568"),"Error"))) ->  | DD47: =IF($CZ47="","",IF('Project Information'!$K$16="Proposed",IFERROR(INDIRECT("'"&$CZ47&"'!"&"$G$565"),"Error"),IFERROR(INDIRECT("'"&$CZ47&"'!"&"$G$568"),"Error"))) ->  | DE47: =IF($CZ47="","",IF('Project Information'!$K$16="Proposed",IFERROR(INDIRECT("'"&$CZ47&"'!"&"$H$565"),"Error"),IFERROR(INDIRECT("'"&$CZ47&"'!"&"$H$568"),"Error"))) ->  | DF47: =IF($CZ47="","",IF('Project Information'!$K$16="Proposed",IFERROR(INDIRECT("'"&$CZ47&"'!"&"$I$565"),"Error"),IFERROR(INDIRECT("'"&$CZ47&"'!"&"$I$568"),"Error"))) -> 
AC48: =AC32+BT88 -> 0 | AD48: 0 | AE48: 0 | AF48: 0 | AG48: 0 | AH48: 0 | AI48: 0 | AJ48: 0 | AK48: 0 | AL48: 0 | AM48: 0 | AN48: 0 | AO48: 0 | AP48: 0 | AQ48: 0 | AR48: 0 | AS48: 0 | AT48: 0 | AU48: 0 | AV48: 0 | AW48: 0 | AX48: 0 | AY48: 0 | AZ48: 0 | BA48: 0 | BB48: 0 | BC48: 0 | BD48: 0 | BE48: 0 | BF48: 0 | BG48: 0 | BP48: Total Annual Benefit | BT48: =SUM(BT44:BT47) -> 0 | BU48: 0 | BV48: 0 | BW48: 0 | BX48: 0 | BY48: 0 | BZ48: 0 | CA48: 0 | CB48: 0 | CC48: 0 | CD48: 0 | CE48: 0 | CF48: 0 | CG48: 0 | CH48: 0 | CI48: 0 | CJ48: 0 | CK48: 0 | CL48: 0 | CM48: 0 | CN48: 0 | CO48: 0 | CP48: 0 | CQ48: 0 | CR48: 0 | CS48: 0 | CT48: 0 | CU48: 0 | CV48: 0 | CW48: 0 | CX48: 0 | CZ48: =IF('Project Information'!$C75="","",'Project Information'!C75) ->  | DA48: =IF('Project Information'!$C75="","",'Project Information'!D75) ->  | DB48: =IF('Project Information'!$C75="","",'Project Information'!K75) ->  | DC48: =IF($CZ48="","",IF('Project Information'!$K$16="Proposed",IFERROR(INDIRECT("'"&$CZ48&"'!"&"$F$565"),"Error"),IFERROR(INDIRECT("'"&$CZ48&"'!"&"$F$568"),"Error"))) ->  | DD48: =IF($CZ48="","",IF('Project Information'!$K$16="Proposed",IFERROR(INDIRECT("'"&$CZ48&"'!"&"$G$565"),"Error"),IFERROR(INDIRECT("'"&$CZ48&"'!"&"$G$568"),"Error"))) ->  | DE48: =IF($CZ48="","",IF('Project Information'!$K$16="Proposed",IFERROR(INDIRECT("'"&$CZ48&"'!"&"$H$565"),"Error"),IFERROR(INDIRECT("'"&$CZ48&"'!"&"$H$568"),"Error"))) ->  | DF48: =IF($CZ48="","",IF('Project Information'!$K$16="Proposed",IFERROR(INDIRECT("'"&$CZ48&"'!"&"$I$565"),"Error"),IFERROR(INDIRECT("'"&$CZ48&"'!"&"$I$568"),"Error"))) -> 
AB49: Total | AC49: =SUM(AC38:AC48) -> -3500000 | AD49: 150658.2609 | AE49: 152405.8967 | AF49: 154173.8051 | AG49: 155962.2213 | AH49: 157771.3831 | AI49: 159601.5311 | AJ49: 161452.9089 | AK49: 163325.7626 | AL49: 165220.3414 | AM49: 167136.8974 | AN49: 169075.6854 | AO49: 171036.9634 | AP49: 173020.9921 | AQ49: 175028.0357 | AR49: 177058.3609 | AS49: 179112.2378 | AT49: 181189.9398 | AU49: 183291.7431 | AV49: 185417.9273 | AW49: 187568.7753 | AX49: 0 | AY49: 0 | AZ49: 0 | BA49: 0 | BB49: 0 | BC49: 0 | BD49: 0 | BE49: 0 | BF49: 0 | BG49: 0 | BP49: Net Present Value of Safety Benefits | BT49: =BT48*(1+$BK$1)^-BT43 -> 0 | BU49: 0 | BV49: 0 | BW49: 0 | BX49: 0 | BY49: 0 | BZ49: 0 | CA49: 0 | CB49: 0 | CC49: 0 | CD49: 0 | CE49: 0 | CF49: 0 | CG49: 0 | CH49: 0 | CI49: 0 | CJ49: 0 | CK49: 0 | CL49: 0 | CM49: 0 | CN49: 0 | CO49: 0 | CP49: 0 | CQ49: 0 | CR49: 0 | CS49: 0 | CT49: 0 | CU49: 0 | CV49: 0 | CW49: 0 | CX49: 0 | CZ49: =IF('Project Information'!$C76="","",'Project Information'!C76) ->  | DA49: =IF('Project Information'!$C76="","",'Project Information'!D76) ->  | DB49: =IF('Project Information'!$C76="","",'Project Information'!K76) ->  | DC49: =IF($CZ49="","",IF('Project Information'!$K$16="Proposed",IFERROR(INDIRECT("'"&$CZ49&"'!"&"$F$565"),"Error"),IFERROR(INDIRECT("'"&$CZ49&"'!"&"$F$568"),"Error"))) ->  | DD49: =IF($CZ49="","",IF('Project Information'!$K$16="Proposed",IFERROR(INDIRECT("'"&$CZ49&"'!"&"$G$565"),"Error"),IFERROR(INDIRECT("'"&$CZ49&"'!"&"$G$568"),"Error"))) ->  | DE49: =IF($CZ49="","",IF('Project Information'!$K$16="Proposed",IFERROR(INDIRECT("'"&$CZ49&"'!"&"$H$565"),"Error"),IFERROR(INDIRECT("'"&$CZ49&"'!"&"$H$568"),"Error"))) ->  | DF49: =IF($CZ49="","",IF('Project Information'!$K$16="Proposed",IFERROR(INDIRECT("'"&$CZ49&"'!"&"$I$565"),"Error"),IFERROR(INDIRECT("'"&$CZ49&"'!"&"$I$568"),"Error"))) -> 
AB50: Return on Investment | AC50: =AC49 -> -3500000 | AD50: =AC50+AD49 -> -3349341.739 | AE50: -3196935.842 | AF50: -3042762.037 | AG50: -2886799.816 | AH50: -2729028.433 | AI50: -2569426.902 | AJ50: -2407973.993 | AK50: -2244648.23 | AL50: -2079427.889 | AM50: -1912290.991 | AN50: -1743215.306 | AO50: -1572178.343 | AP50: -1399157.351 | AQ50: -1224129.315 | AR50: -1047070.954 | AS50: -867958.7162 | AT50: -686768.7764 | AU50: -503477.0333 | AV50: -318059.1059 | AW50: -130490.3306 | AX50: -130490.3306 | AY50: -130490.3306 | AZ50: -130490.3306 | BA50: -130490.3306 | BB50: -130490.3306 | BC50: -130490.3306 | BD50: -130490.3306 | BE50: -130490.3306 | BF50: -130490.3306 | BG50: -130490.3306 | BO50: 6 | BP50: =B25 ->  | BT50: Year | CZ50: =IF('Project Information'!$C77="","",'Project Information'!C77) ->  | DA50: =IF('Project Information'!$C77="","",'Project Information'!D77) ->  | DB50: =IF('Project Information'!$C77="","",'Project Information'!K77) ->  | DC50: =IF($CZ50="","",IF('Project Information'!$K$16="Proposed",IFERROR(INDIRECT("'"&$CZ50&"'!"&"$F$565"),"Error"),IFERROR(INDIRECT("'"&$CZ50&"'!"&"$F$568"),"Error"))) ->  | DD50: =IF($CZ50="","",IF('Project Information'!$K$16="Proposed",IFERROR(INDIRECT("'"&$CZ50&"'!"&"$G$565"),"Error"),IFERROR(INDIRECT("'"&$CZ50&"'!"&"$G$568"),"Error"))) ->  | DE50: =IF($CZ50="","",IF('Project Information'!$K$16="Proposed",IFERROR(INDIRECT("'"&$CZ50&"'!"&"$H$565"),"Error"),IFERROR(INDIRECT("'"&$CZ50&"'!"&"$H$568"),"Error"))) ->  | DF50: =IF($CZ50="","",IF('Project Information'!$K$16="Proposed",IFERROR(INDIRECT("'"&$CZ50&"'!"&"$I$565"),"Error"),IFERROR(INDIRECT("'"&$CZ50&"'!"&"$I$568"),"Error"))) -> 
AB51: Return on Investment -Negative | AC51: =IF(AC50>0,0,AC50) -> -3500000 | AD51: =IF(AD50>0,0,AD50) -> -3349341.739 | AE51: -3196935.842 | AF51: -3042762.037 | AG51: -2886799.816 | AH51: -2729028.433 | AI51: -2569426.902 | AJ51: -2407973.993 | AK51: -2244648.23 | AL51: -2079427.889 | AM51: -1912290.991 | AN51: -1743215.306 | AO51: -1572178.343 | AP51: -1399157.351 | AQ51: -1224129.315 | AR51: -1047070.954 | AS51: -867958.7162 | AT51: -686768.7764 | AU51: -503477.0333 | AV51: -318059.1059 | AW51: -130490.3306 | AX51: -130490.3306 | AY51: -130490.3306 | AZ51: -130490.3306 | BA51: -130490.3306 | BB51: -130490.3306 | BC51: -130490.3306 | BD51: -130490.3306 | BE51: -130490.3306 | BF51: -130490.3306 | BG51: -130490.3306 | BP51: Code | BQ51: Severity | BR51: Avg Est Red | BS51: PV $ | BT51: 0 | BU51: 1 | BV51: 2 | BW51: 3 | BX51: 4 | BY51: 5 | BZ51: 6 | CA51: 7 | CB51: 8 | CC51: 9 | CD51: 10 | CE51: 11 | CF51: 12 | CG51: 13 | CH51: 14 | CI51: 15 | CJ51: 16 | CK51: 17 | CL51: 18 | CM51: 19 | CN51: 20 | CO51: 21 | CP51: 22 | CQ51: 23 | CR51: 24 | CS51: 25 | CT51: 26 | CU51: 27 | CV51: 28 | CW51: 29 | CX51: 30 | CZ51: =IF('Project Information'!$C78="","",'Project Information'!C78) ->  | DA51: =IF('Project Information'!$C78="","",'Project Information'!D78) ->  | DB51: =IF('Project Information'!$C78="","",'Project Information'!K78) ->  | DC51: =IF($CZ51="","",IF('Project Information'!$K$16="Proposed",IFERROR(INDIRECT("'"&$CZ51&"'!"&"$F$565"),"Error"),IFERROR(INDIRECT("'"&$CZ51&"'!"&"$F$568"),"Error"))) ->  | DD51: =IF($CZ51="","",IF('Project Information'!$K$16="Proposed",IFERROR(INDIRECT("'"&$CZ51&"'!"&"$G$565"),"Error"),IFERROR(INDIRECT("'"&$CZ51&"'!"&"$G$568"),"Error"))) ->  | DE51: =IF($CZ51="","",IF('Project Information'!$K$16="Proposed",IFERROR(INDIRECT("'"&$CZ51&"'!"&"$H$565"),"Error"),IFERROR(INDIRECT("'"&$CZ51&"'!"&"$H$568"),"Error"))) ->  | DF51: =IF($CZ51="","",IF('Project Information'!$K$16="Proposed",IFERROR(INDIRECT("'"&$CZ51&"'!"&"$I$565"),"Error"),IFERROR(INDIRECT("'"&$CZ51&"'!"&"$I$568"),"Error"))) -> 
AB52: Return on Investment -Positive | AC52: =IF(AC50>0,AC50,0) -> 0 | AD52: =IF(AD50>0,AD50,0) -> 0 | AE52: 0 | AF52: 0 | AG52: 0 | AH52: 0 | AI52: 0 | AJ52: 0 | AK52: 0 | AL52: 0 | AM52: 0 | AN52: 0 | AO52: 0 | AP52: 0 | AQ52: 0 | AR52: 0 | AS52: 0 | AT52: 0 | AU52: 0 | AV52: 0 | AW52: 0 | AX52: 0 | AY52: 0 | AZ52: 0 | BA52: 0 | BB52: 0 | BC52: 0 | BD52: 0 | BE52: 0 | BF52: 0 | BG52: 0 | BP52: KA | BQ52: Fatal &Incapacitating Injury Crash | BR52: =EA83*-1 -> 0 | BS52: =$AB$5 -> 484544 | BT52: 0 | BU52: =IF(MAX($J$16:$J$29)>=BU$51,$BS52*(1+$BK$2)^BU$51*$BR52,0) -> 0 | BV52: =IF(MAX($J$16:$J$29)>=BV$51,$BS52*(1+$BK$2)^BV$51*$BR52,0) -> 0 | BW52: 0 | BX52: 0 | BY52: 0 | BZ52: 0 | CA52: 0 | CB52: 0 | CC52: 0 | CD52: 0 | CE52: 0 | CF52: 0 | CG52: 0 | CH52: 0 | CI52: 0 | CJ52: 0 | CK52: 0 | CL52: 0 | CM52: 0 | CN52: 0 | CO52: 0 | CP52: 0 | CQ52: 0 | CR52: 0 | CS52: 0 | CT52: 0 | CU52: 0 | CV52: 0 | CW52: 0 | CX52: 0 | CZ52: =IF('Project Information'!$C79="","",'Project Information'!C79) ->  | DA52: =IF('Project Information'!$C79="","",'Project Information'!D79) ->  | DB52: =IF('Project Information'!$C79="","",'Project Information'!K79) ->  | DC52: =IF($CZ52="","",IF('Project Information'!$K$16="Proposed",IFERROR(INDIRECT("'"&$CZ52&"'!"&"$F$565"),"Error"),IFERROR(INDIRECT("'"&$CZ52&"'!"&"$F$568"),"Error"))) ->  | DD52: =IF($CZ52="","",IF('Project Information'!$K$16="Proposed",IFERROR(INDIRECT("'"&$CZ52&"'!"&"$G$565"),"Error"),IFERROR(INDIRECT("'"&$CZ52&"'!"&"$G$568"),"Error"))) ->  | DE52: =IF($CZ52="","",IF('Project Information'!$K$16="Proposed",IFERROR(INDIRECT("'"&$CZ52&"'!"&"$H$565"),"Error"),IFERROR(INDIRECT("'"&$CZ52&"'!"&"$H$568"),"Error"))) ->  | DF52: =IF($CZ52="","",IF('Project Information'!$K$16="Proposed",IFERROR(INDIRECT("'"&$CZ52&"'!"&"$I$565"),"Error"),IFERROR(INDIRECT("'"&$CZ52&"'!"&"$I$568"),"Error"))) -> 
